{"text_format":"1","workbook":"xlsx","n_sheets":9,"sheets":["Start Here - Instructions","Budget","Expenses","Draw Form Page 1","Draw Form Page 2","DBE Form","Closeout","Davis-Bacon","American Iron & Steel"],"not_rendered":{"charts":0,"images":14,"macros":1,"external_links":0,"defined_names":8,"comments":1,"pivot_tables":0},"unopened":[],"bounds":{"document_bytes":16777216,"sheet_cells":100000,"rows_first":2000,"rows_last":500,"rows_between":2000,"halvings":0,"cell_chars":16384,"cell_head_chars":4096},"cells_cut":0,"cells_raw":0,"read":"whole","date_system":"1900"}

{"sheet":"Start Here - Instructions","index":0,"n_rows":43,"n_cols":5,"rows_kept":43,"cut":false,"hidden":false,"merged":[[40,0,40,3],[15,1,15,5],[0,0,0,5],[1,0,1,5],[2,0,2,5],[3,0,3,5],[6,1,6,5],[7,3,7,5],[8,1,8,5],[9,1,9,5],[12,1,12,3],[13,1,13,3],[14,1,14,5],[16,1,16,5],[18,1,18,4],[21,1,21,4],[23,1,23,4],[25,0,27,0],[25,1,25,4],[26,1,26,4],[27,1,27,4],[31,0,31,5],[33,0,33,5],[35,0,35,5],[36,3,36,4],[38,0,38,4]]}
["Kentucky Infrastructure Authority"]
["Draw Request Form Exhibit B"]
["Instructions"]
["Use yellow cells only."]
[]
["Step 1: Complete the information below."]
["Borrower:"]
["WX/SX Number:","SX"]
["KIA Loan #:"]
["Project Title:","[enter Project Title]"]
[]
["Step 2:  Verify budget."]
[null,"Click here to review budget."]
[null,"Is the budget correct?",null,null,"No"]
[null,{"$f":"IF(E14=\"Yes\",\"Go to Step 3.\",IF(E14=\"No\",\"Please update the budget and submit with draw request.\",\"Please choose Yes or No from the drop down box.\"))","v":"Please update the budget and submit with draw request."}]
[null,{"$f":"IF(B15=\"Please update the budget.\",\"Click here to update the budget.\",\"\")","v":""}]
[]
["Step 3: Enter Expenses."]
[null,"Click here to enter expenses."]
[]
["Step 4: Enter information on Draw Form Page 1."]
[null,"Click here to access the Draw Form."]
[null,"Is this the final draw?",null,null,"No"]
[null,{"$f":"IF(E23=\"Yes\",\"Click here to access the Closeout tab.\",\"\")","v":""}]
["Step 5: Print."]
["Click button to Print. 44"]
[]
[]
[]
["Step 6: Save this workbook."]
[]
[{"$f":"IF(LEFT(B9,1)=\"B\",\"Step 7: Obtain signatures on Draw Form Page 1.\",IF(LEFT(B9,1)=\"C\",\"Step 7: Obtain signatures on Draw Form Page 1.\",IF('Draw Form Page 1'!I44=\"Yes\",\"Step 7: Obtain signatures on Draw Form Page 1 and DBE Form.\",\"Step 7: Obtain signatures on Draw Form Page 1.\")))","v":"Step 7: Obtain signatures on Draw Form Page 1."}]
[]
["Step 8: Scan signed form(s), supporting invoices, and budget info as PDF files."]
[]
["Step 9: Email the signed form(s), supporting invoices, and budget info to:"]
[{"$f":"IF(OR(LEFT(B9,1)=\"A\",(LEFT(B9,1)=\"F\")),\"kia.srfloans@ky.gov\",IF(OR(LEFT(B9,1)=\"B\",(LEFT(B9,1)=\"C\")),\"kia.fundbcloans@ky.gov\"))","v":false},null,null,{"$f":"\"mailto:\"&HYPERLINK(A37)","v":"mailto:FALSE"}]
[]
[{"$f":"IF(LEFT(B9,1)=\"B\",\"\",IF(LEFT(B9,1)=\"C\",\"\",\"Reminder\"))","v":"Reminder"}]
[null,null,null,{"$f":"IF(LEFT(B9,1)=\"B\",\"\",IF(LEFT(B9,1)=\"C\",\"\",\"Today is:\"))","v":"Today is:"},{"$f":"IF(LEFT(B9,1)=\"B\",\"\",IF(LEFT(B9,1)=\"C\",\"\",TODAY()))","v":"2019-06-27"}]
[{"$f":"IF(LEFT(B9,1)=\"B\",\"\",IF(LEFT(B9,1)=\"C\",\"\",\"Your next Davis-Bacon Certification is due on:\"))","v":"Your next Davis-Bacon Certification is due on:"},null,null,null,{"$f":"IF(LEFT(B9,1)=\"B\",\"\",IF(LEFT(B9,1)=\"C\",\"\",IF((OR(MONTH(E40)=1,MONTH(E40)=2,MONTH(E40)=3)),\"April 5, \"&YEAR(E40),IF((OR(MONTH(E40)=4,MONTH(E40)=5,MONTH(E40)=6)),\"July 5, \"&YEAR(E40),IF((OR(MONTH(E40)=7,MONTH(E40)=8,MONTH(E40)=9)),\"October 5, \"&YEAR(E40),IF((OR(MONTH(E40)=10,MONTH(E40)=11,MONTH(E40)=12)),\"January 5, \"&YEAR(E40)+1,\"error\"))))))","v":"July 5, 2019"}]
[]
["Updated 10.31.2018"]

{"sheet":"Budget","index":1,"n_rows":33,"n_cols":13,"rows_kept":33,"cut":false,"hidden":false,"merged":[[30,1,30,3],[32,6,32,9],[0,0,0,12],[2,2,2,3],[2,4,2,7],[2,9,2,12],[5,1,5,3],[20,1,20,3]]}
["PROJECT BUDGET"]
[{"$f":"'Start Here - Instructions'!A7","v":"Borrower:"},null,{"$f":"'Start Here - Instructions'!B7","v":0}]
[{"$f":"'Start Here - Instructions'!A8","v":"WX/SX Number:"},null,{"$f":"CONCATENATE('Start Here - Instructions'!B8,\" \",'Start Here - Instructions'!D8)","v":"SX "},null,"Click here to go back to Instructions."]
[{"$f":"'Draw Form Page 1'!G4","v":"KIA Loan #:"},null,{"$f":"'Start Here - Instructions'!B9","v":0}]
[]
[null,"Budget Dates:",null,null,"2018-01-01","[enter date]","[enter date]","[enter date]","[enter date]","[enter date]",{"$f":"IF(SUM(Budget!J8:J20)>0,Budget!J6,IF(SUM(Budget!I8:I20)>0,Budget!I6,IF(SUM(Budget!H8:H20)>0,Budget!H6,(IF(SUM(Budget!G8:G20)>0,Budget!G6,IF(SUM(Budget!F8:F20)>0,Budget!F6,IF(SUM(Budget!E8:E20),Budget!E6,0)))))))","v":"2018-01-01"}]
[null,"Cost",null,null,"Preliminary Budget ","As Bid Budget ","Revised Budget","Revised Budget","Revised Budget","Revised Budget","Current Budget","Expenses to Date","Balance"]
[null,"Administrative",null,null,1,null,0,0,0,0,{"$f":"IF(SUM(Budget!$J$8:$J$20)>0,Budget!J8,IF(SUM(Budget!$I$8:$I$20)>0,Budget!I8,IF(SUM(Budget!$H$8:$H$20)>0,Budget!H8,(IF(SUM(Budget!$G$8:$G$20)>0,Budget!G8,IF(SUM(Budget!$F$8:$F$20)>0,Budget!F8,IF(SUM(Budget!$E$8:$E$20)>0,Budget!E8,0)))))))","v":1},{"$f":"SUMPRODUCT(--(Expenses!$B$13:$B$1000=Budget!B8),Expenses!$F$13:$F$1000)","v":0},{"$f":"+K8-L8","v":1}]
[null,"Legal",null,null,0,null,0,0,0,0,{"$f":"IF(SUM(Budget!$J$8:$J$20)>0,Budget!J9,IF(SUM(Budget!$I$8:$I$20)>0,Budget!I9,IF(SUM(Budget!$H$8:$H$20)>0,Budget!H9,(IF(SUM(Budget!$G$8:$G$20)>0,Budget!G9,IF(SUM(Budget!$F$8:$F$20)>0,Budget!F9,IF(SUM(Budget!$E$8:$E$20)>0,Budget!E9,0)))))))","v":0},{"$f":"SUMPRODUCT(--(Expenses!$B$13:$B$1000=Budget!B9),Expenses!$F$13:$F$1000)","v":0},{"$f":"+K9-L9","v":0}]
[null,"Land/Appraisals/Easements/Rights of Way",null,null,0,null,0,0,0,0,{"$f":"IF(SUM(Budget!$J$8:$J$20)>0,Budget!J10,IF(SUM(Budget!$I$8:$I$20)>0,Budget!I10,IF(SUM(Budget!$H$8:$H$20)>0,Budget!H10,(IF(SUM(Budget!$G$8:$G$20)>0,Budget!G10,IF(SUM(Budget!$F$8:$F$20)>0,Budget!F10,IF(SUM(Budget!$E$8:$E$20)>0,Budget!E10,0)))))))","v":0},{"$f":"SUMPRODUCT(--(Expenses!$B$13:$B$1000=Budget!B10),Expenses!$F$13:$F$1000)","v":0},{"$f":"+K10-L10","v":0}]
[null,"Relocation Expense",null,null,0,null,0,0,0,0,{"$f":"IF(SUM(Budget!$J$8:$J$20)>0,Budget!J11,IF(SUM(Budget!$I$8:$I$20)>0,Budget!I11,IF(SUM(Budget!$H$8:$H$20)>0,Budget!H11,(IF(SUM(Budget!$G$8:$G$20)>0,Budget!G11,IF(SUM(Budget!$F$8:$F$20)>0,Budget!F11,IF(SUM(Budget!$E$8:$E$20)>0,Budget!E11,0)))))))","v":0},{"$f":"SUMPRODUCT(--(Expenses!$B$13:$B$1000=Budget!B11),Expenses!$F$13:$F$1000)","v":0},0]
[null,"Planning",null,null,0,null,0,0,0,0,{"$f":"IF(SUM(Budget!$J$8:$J$20)>0,Budget!J12,IF(SUM(Budget!$I$8:$I$20)>0,Budget!I12,IF(SUM(Budget!$H$8:$H$20)>0,Budget!H12,(IF(SUM(Budget!$G$8:$G$20)>0,Budget!G12,IF(SUM(Budget!$F$8:$F$20)>0,Budget!F12,IF(SUM(Budget!$E$8:$E$20)>0,Budget!E12,0)))))))","v":0},{"$f":"SUMPRODUCT(--(Expenses!$B$13:$B$1000=Budget!B12),Expenses!$F$13:$F$1000)","v":0},0]
[null,"Engineering Fees - Design",null,null,0,null,0,0,0,0,{"$f":"IF(SUM(Budget!$J$8:$J$20)>0,Budget!J13,IF(SUM(Budget!$I$8:$I$20)>0,Budget!I13,IF(SUM(Budget!$H$8:$H$20)>0,Budget!H13,(IF(SUM(Budget!$G$8:$G$20)>0,Budget!G13,IF(SUM(Budget!$F$8:$F$20)>0,Budget!F13,IF(SUM(Budget!$E$8:$E$20)>0,Budget!E13,0)))))))","v":0},{"$f":"SUMPRODUCT(--(Expenses!$B$13:$B$1000=Budget!B13),Expenses!$F$13:$F$1000)","v":0},0]
[null,"Engineering Fees - Construction",null,null,0,null,0,0,0,0,{"$f":"IF(SUM(Budget!$J$8:$J$20)>0,Budget!J14,IF(SUM(Budget!$I$8:$I$20)>0,Budget!I14,IF(SUM(Budget!$H$8:$H$20)>0,Budget!H14,(IF(SUM(Budget!$G$8:$G$20)>0,Budget!G14,IF(SUM(Budget!$F$8:$F$20)>0,Budget!F14,IF(SUM(Budget!$E$8:$E$20)>0,Budget!E14,0)))))))","v":0},{"$f":"SUMPRODUCT(--(Expenses!$B$13:$B$1000=Budget!B14),Expenses!$F$13:$F$1000)","v":0},0]
[null,"Engineering Fees - Inspection",null,null,0,null,0,0,0,0,{"$f":"IF(SUM(Budget!$J$8:$J$20)>0,Budget!J15,IF(SUM(Budget!$I$8:$I$20)>0,Budget!I15,IF(SUM(Budget!$H$8:$H$20)>0,Budget!H15,(IF(SUM(Budget!$G$8:$G$20)>0,Budget!G15,IF(SUM(Budget!$F$8:$F$20)>0,Budget!F15,IF(SUM(Budget!$E$8:$E$20)>0,Budget!E15,0)))))))","v":0},{"$f":"SUMPRODUCT(--(Expenses!$B$13:$B$1000=Budget!B15),Expenses!$F$13:$F$1000)","v":0},0]
[null,"Engineering Fees - Other",null,null,0,null,0,0,0,0,{"$f":"IF(SUM(Budget!$J$8:$J$20)>0,Budget!J16,IF(SUM(Budget!$I$8:$I$20)>0,Budget!I16,IF(SUM(Budget!$H$8:$H$20)>0,Budget!H16,(IF(SUM(Budget!$G$8:$G$20)>0,Budget!G16,IF(SUM(Budget!$F$8:$F$20)>0,Budget!F16,IF(SUM(Budget!$E$8:$E$20)>0,Budget!E16,0)))))))","v":0},{"$f":"SUMPRODUCT(--(Expenses!$B$13:$B$1000=Budget!B16),Expenses!$F$13:$F$1000)","v":0},0]
[null,"Construction",null,null,0,null,0,0,0,0,{"$f":"IF(SUM(Budget!$J$8:$J$20)>0,Budget!J17,IF(SUM(Budget!$I$8:$I$20)>0,Budget!I17,IF(SUM(Budget!$H$8:$H$20)>0,Budget!H17,(IF(SUM(Budget!$G$8:$G$20)>0,Budget!G17,IF(SUM(Budget!$F$8:$F$20)>0,Budget!F17,IF(SUM(Budget!$E$8:$E$20)>0,Budget!E17,0)))))))","v":0},{"$f":"SUMPRODUCT(--(Expenses!$B$13:$B$1000=Budget!B17),Expenses!$F$13:$F$1000)","v":0},0]
[null,"Equipment",null,null,0,null,0,0,0,0,{"$f":"IF(SUM(Budget!$J$8:$J$20)>0,Budget!J18,IF(SUM(Budget!$I$8:$I$20)>0,Budget!I18,IF(SUM(Budget!$H$8:$H$20)>0,Budget!H18,(IF(SUM(Budget!$G$8:$G$20)>0,Budget!G18,IF(SUM(Budget!$F$8:$F$20)>0,Budget!F18,IF(SUM(Budget!$E$8:$E$20)>0,Budget!E18,0)))))))","v":0},{"$f":"SUMPRODUCT(--(Expenses!$B$13:$B$1000=Budget!B18),Expenses!$F$13:$F$1000)","v":0},0]
[null,"Contingency",null,null,0,null,0,0,0,0,{"$f":"IF(SUM(Budget!$J$8:$J$20)>0,Budget!J19,IF(SUM(Budget!$I$8:$I$20)>0,Budget!I19,IF(SUM(Budget!$H$8:$H$20)>0,Budget!H19,(IF(SUM(Budget!$G$8:$G$20)>0,Budget!G19,IF(SUM(Budget!$F$8:$F$20)>0,Budget!F19,IF(SUM(Budget!$E$8:$E$20)>0,Budget!E19,0)))))))","v":0},{"$f":"SUMPRODUCT(--(Expenses!$B$13:$B$1000=Budget!B19),Expenses!$F$13:$F$1000)","v":0},0]
[null,"Other",null,null,0,0,0,0,0,0,{"$f":"IF(SUM(Budget!$J$8:$J$20)>0,Budget!J20,IF(SUM(Budget!$I$8:$I$20)>0,Budget!I20,IF(SUM(Budget!$H$8:$H$20)>0,Budget!H20,(IF(SUM(Budget!$G$8:$G$20)>0,Budget!G20,IF(SUM(Budget!$F$8:$F$20)>0,Budget!F20,IF(SUM(Budget!$E$8:$E$20)>0,Budget!E20,0)))))))","v":0},{"$f":"SUMPRODUCT(--(Expenses!$B$13:$B$1000=Budget!B20),Expenses!$F$13:$F$1000)","v":0},0]
[null,"Total",null,null,{"$f":"SUM(E8:E20)","v":1},{"$f":"SUM(F8:F20)","v":0},{"$f":"SUM(G8:G20)","v":0},{"$f":"SUM(H8:H20)","v":0},0,0,{"$f":"SUM(K8:K20)","v":1},{"$f":"SUM(L8:L20)","v":0},{"$f":"SUM(M8:M20)","v":1}]
[]
[null,"Funding Sources"]
[null,{"$f":"'Start Here - Instructions'!B9","v":0},null,null,1,0,0,0,0,0,{"$f":"IF(SUM(Budget!$J$24:$J$30)>0,Budget!J24,IF(SUM(Budget!$I$24:$I$30)>0,Budget!I24,IF(SUM(Budget!$H$24:$H$30)>0,Budget!H24,(IF(SUM(Budget!$G$24:$G$30)>0,Budget!G24,IF(SUM(Budget!$F$24:$F$30)>0,Budget!F24,IF(SUM(Budget!$E$24:$E$30)>0,Budget!E24,0)))))))","v":1},{"$f":"SUM(Expenses!$H$13:$H$1000)","v":0},{"$f":"+K24-L24","v":1}]
[null,"Local Funds",null,null,0,0,0,0,0,0,{"$f":"IF(SUM(Budget!$J$24:$J$30)>0,Budget!J25,IF(SUM(Budget!$I$24:$I$30)>0,Budget!I25,IF(SUM(Budget!$H$24:$H$30)>0,Budget!H25,(IF(SUM(Budget!$G$24:$G$30)>0,Budget!G25,IF(SUM(Budget!$F$24:$F$30)>0,Budget!F25,IF(SUM(Budget!$E$24:$E$30)>0,Budget!E25,0)))))))","v":0},{"$f":"SUM(Expenses!$I$13:$I$1000)","v":0},{"$f":"+K25-L25","v":0}]
[null,"Funding Source #3",null,null,0,0,0,0,0,0,{"$f":"IF(SUM(Budget!$J$24:$J$30)>0,Budget!J26,IF(SUM(Budget!$I$24:$I$30)>0,Budget!I26,IF(SUM(Budget!$H$24:$H$30)>0,Budget!H26,(IF(SUM(Budget!$G$24:$G$30)>0,Budget!G26,IF(SUM(Budget!$F$24:$F$30)>0,Budget!F26,IF(SUM(Budget!$E$24:$E$30)>0,Budget!E26,0)))))))","v":0},{"$f":"SUM(Expenses!$J$13:$J$1000)","v":0},{"$f":"+K26-L26","v":0}]
[null,"Funding Source #4",null,null,0,0,0,0,0,0,{"$f":"IF(SUM(Budget!$J$24:$J$30)>0,Budget!J27,IF(SUM(Budget!$I$24:$I$30)>0,Budget!I27,IF(SUM(Budget!$H$24:$H$30)>0,Budget!H27,(IF(SUM(Budget!$G$24:$G$30)>0,Budget!G27,IF(SUM(Budget!$F$24:$F$30)>0,Budget!F27,IF(SUM(Budget!$E$24:$E$30)>0,Budget!E27,0)))))))","v":0},{"$f":"SUM(Expenses!$K$13:$K$1000)","v":0},0]
[null,"Funding Source #5",null,null,0,0,0,0,0,0,{"$f":"IF(SUM(Budget!$J$24:$J$30)>0,Budget!J28,IF(SUM(Budget!$I$24:$I$30)>0,Budget!I28,IF(SUM(Budget!$H$24:$H$30)>0,Budget!H28,(IF(SUM(Budget!$G$24:$G$30)>0,Budget!G28,IF(SUM(Budget!$F$24:$F$30)>0,Budget!F28,IF(SUM(Budget!$E$24:$E$30)>0,Budget!E28,0)))))))","v":0},{"$f":"SUM(Expenses!$L$13:$L$1000)","v":0},0]
[null,"Funding Source #6",null,null,0,0,0,0,0,0,{"$f":"IF(SUM(Budget!$J$24:$J$30)>0,Budget!J29,IF(SUM(Budget!$I$24:$I$30)>0,Budget!I29,IF(SUM(Budget!$H$24:$H$30)>0,Budget!H29,(IF(SUM(Budget!$G$24:$G$30)>0,Budget!G29,IF(SUM(Budget!$F$24:$F$30)>0,Budget!F29,IF(SUM(Budget!$E$24:$E$30)>0,Budget!E29,0)))))))","v":0},{"$f":"SUM(Expenses!$M$13:$M$1000)","v":0},0]
[null,"Funding Source #7",null,null,0,0,0,0,0,0,{"$f":"IF(SUM(Budget!$J$24:$J$30)>0,Budget!J30,IF(SUM(Budget!$I$24:$I$30)>0,Budget!I30,IF(SUM(Budget!$H$24:$H$30)>0,Budget!H30,(IF(SUM(Budget!$G$24:$G$30)>0,Budget!G30,IF(SUM(Budget!$F$24:$F$30)>0,Budget!F30,IF(SUM(Budget!$E$24:$E$30)>0,Budget!E30,0)))))))","v":0},{"$f":"SUM(Expenses!$N$13:$N$1000)","v":0},{"$f":"+K30-L30","v":0}]
[null,"Total",null,null,{"$f":"SUM(E24:E30)","v":1},0,0,0,0,0,1,0,{"$f":"SUM(M24:M30)","v":1}]
[null,null,null,null,{"$f":"IF(E21=E31,\"\",\"ERROR\")","v":""},"","","","","","","",""]
[null,null,null,null,null,null,"Use the space below for notes related to change orders and/or budget revisions."]

{"sheet":"Expenses","index":2,"n_rows":1000,"n_cols":15,"rows_kept":1000,"cut":false,"hidden":false,"merged":[[7,0,7,2],[8,0,8,2],[9,0,9,2],[10,0,10,5],[37,1,37,2],[38,1,38,2],[39,1,39,2],[31,1,31,2],[32,1,32,2],[33,1,33,2],[34,1,34,2],[10,7,10,13],[11,1,11,2],[35,1,35,2],[0,0,0,13],[1,0,1,13],[2,0,2,5],[2,6,11,6],[2,7,4,13],[3,0,3,2],[4,0,4,2],[5,0,5,2],[5,7,6,13],[6,0,6,2],[16,1,16,2],[19,1,19,2],[20,1,20,2],[21,1,21,2],[22,1,22,2],[23,1,23,2],[24,1,24,2],[7,7,8,7],[7,8,8,8],[7,9,8,9],[12,1,12,2],[13,1,13,2],[14,1,14,2],[7,10,8,10],[7,11,8,11],[7,12,8,12],[7,13,8,13],[15,1,15,2],[17,1,17,2],[18,1,18,2],[57,1,57,2],[58,1,58,2],[59,1,59,2],[60,1,60,2],[49,1,49,2],[50,1,50,2],[51,1,51,2],[52,1,52,2],[53,1,53,2],[54,1,54,2],[40,1,40,2],[41,1,41,2],[42,1,42,2],[36,1,36,2],[25,1,25,2],[26,1,26,2],[27,1,27,2],[28,1,28,2],[29,1,29,2],[30,1,30,2],[43,1,43,2],[44,1,44,2],[45,1,45,2],[46,1,46,2],[47,1,47,2],[48,1,48,2],[79,1,79,2],[80,1,80,2],[81,1,81,2],[82,1,82,2],[83,1,83,2],[84,1,84,2],[73,1,73,2],[74,1,74,2],[75,1,75,2],[76,1,76,2],[77,1,77,2],[78,1,78,2],[67,1,67,2],[68,1,68,2],[69,1,69,2],[70,1,70,2],[71,1,71,2],[72,1,72,2],[61,1,61,2],[62,1,62,2],[63,1,63,2],[64,1,64,2],[65,1,65,2],[66,1,66,2],[55,1,55,2],[56,1,56,2],[97,1,97,2],[98,1,98,2],[99,1,99,2],[100,1,100,2],[101,1,101,2],[102,1,102,2],[91,1,91,2],[92,1,92,2],[93,1,93,2],[94,1,94,2],[95,1,95,2],[96,1,96,2],[85,1,85,2],[86,1,86,2],[87,1,87,2],[88,1,88,2],[89,1,89,2],[90,1,90,2],[115,1,115,2],[116,1,116,2],[117,1,117,2],[118,1,118,2],[119,1,119,2],[120,1,120,2],[109,1,109,2],[110,1,110,2],[111,1,111,2],[112,1,112,2],[113,1,113,2],[114,1,114,2],[103,1,103,2],[104,1,104,2],[105,1,105,2],[106,1,106,2],[107,1,107,2],[108,1,108,2],[133,1,133,2],[134,1,134,2],[135,1,135,2],[136,1,136,2],[137,1,137,2],[138,1,138,2],[127,1,127,2],[128,1,128,2],[129,1,129,2],[130,1,130,2],[131,1,131,2],[132,1,132,2],[121,1,121,2],[122,1,122,2],[123,1,123,2],[124,1,124,2],[125,1,125,2],[126,1,126,2],[151,1,151,2],[152,1,152,2],[153,1,153,2],[154,1,154,2],[155,1,155,2],[156,1,156,2],[145,1,145,2],[146,1,146,2],[147,1,147,2],[148,1,148,2],[149,1,149,2],[150,1,150,2],[139,1,139,2],[140,1,140,2],[141,1,141,2],[142,1,142,2],[143,1,143,2],[144,1,144,2],[169,1,169,2],[170,1,170,2],[171,1,171,2],[172,1,172,2],[173,1,173,2],[174,1,174,2],[163,1,163,2],[164,1,164,2],[165,1,165,2],[166,1,166,2],[167,1,167,2],[168,1,168,2],[157,1,157,2],[158,1,158,2],[159,1,159,2],[160,1,160,2],[161,1,161,2],[162,1,162,2],[187,1,187,2],[188,1,188,2],[189,1,189,2],[190,1,190,2],[191,1,191,2],[192,1,192,2],[181,1,181,2],[182,1,182,2],[183,1,183,2],[184,1,184,2],[185,1,185,2],[186,1,186,2],[175,1,175,2],[176,1,176,2],[177,1,177,2],[178,1,178,2],[179,1,179,2],[180,1,180,2],[205,1,205,2],[206,1,206,2],[207,1,207,2],[208,1,208,2],[209,1,209,2],[210,1,210,2],[199,1,199,2],[200,1,200,2],[201,1,201,2],[202,1,202,2],[203,1,203,2],[204,1,204,2],[193,1,193,2],[194,1,194,2],[195,1,195,2],[196,1,196,2],[197,1,197,2],[198,1,198,2],[223,1,223,2],[224,1,224,2],[225,1,225,2],[226,1,226,2],[227,1,227,2],[228,1,228,2],[217,1,217,2],[218,1,218,2],[219,1,219,2],[220,1,220,2],[221,1,221,2],[222,1,222,2],[211,1,211,2],[212,1,212,2],[213,1,213,2],[214,1,214,2],[215,1,215,2],[216,1,216,2],[241,1,241,2],[242,1,242,2],[243,1,243,2],[244,1,244,2],[245,1,245,2],[246,1,246,2],[235,1,235,2],[236,1,236,2],[237,1,237,2],[238,1,238,2],[239,1,239,2],[240,1,240,2],[229,1,229,2],[230,1,230,2],[231,1,231,2],[232,1,232,2],[233,1,233,2],[234,1,234,2],[259,1,259,2],[260,1,260,2],[261,1,261,2],[262,1,262,2],[263,1,263,2],[264,1,264,2],[253,1,253,2],[254,1,254,2],[255,1,255,2],[256,1,256,2],[257,1,257,2],[258,1,258,2],[247,1,247,2],[248,1,248,2],[249,1,249,2],[250,1,250,2],[251,1,251,2],[252,1,252,2],[277,1,277,2],[278,1,278,2],[279,1,279,2],[280,1,280,2],[281,1,281,2],[282,1,282,2],[271,1,271,2],[272,1,272,2],[273,1,273,2],[274,1,274,2],[275,1,275,2],[276,1,276,2],[265,1,265,2],[266,1,266,2],[267,1,267,2],[268,1,268,2],[269,1,269,2],[270,1,270,2],[295,1,295,2],[296,1,296,2],[297,1,297,2],[298,1,298,2],[299,1,299,2],[300,1,300,2],[289,1,289,2],[290,1,290,2],[291,1,291,2],[292,1,292,2],[293,1,293,2],[294,1,294,2],[283,1,283,2],[284,1,284,2],[285,1,285,2],[286,1,286,2],[287,1,287,2],[288,1,288,2],[313,1,313,2],[314,1,314,2],[315,1,315,2],[316,1,316,2],[317,1,317,2],[318,1,318,2],[307,1,307,2],[308,1,308,2],[309,1,309,2],[310,1,310,2],[311,1,311,2],[312,1,312,2],[301,1,301,2],[302,1,302,2],[303,1,303,2],[304,1,304,2],[305,1,305,2],[306,1,306,2],[331,1,331,2],[332,1,332,2],[333,1,333,2],[334,1,334,2],[335,1,335,2],[336,1,336,2],[325,1,325,2],[326,1,326,2],[327,1,327,2],[328,1,328,2],[329,1,329,2],[330,1,330,2],[319,1,319,2],[320,1,320,2],[321,1,321,2],[322,1,322,2],[323,1,323,2],[324,1,324,2],[349,1,349,2],[350,1,350,2],[351,1,351,2],[352,1,352,2],[353,1,353,2],[354,1,354,2],[343,1,343,2],[344,1,344,2],[345,1,345,2],[346,1,346,2],[347,1,347,2],[348,1,348,2],[337,1,337,2],[338,1,338,2],[339,1,339,2],[340,1,340,2],[341,1,341,2],[342,1,342,2],[367,1,367,2],[368,1,368,2],[369,1,369,2],[370,1,370,2],[371,1,371,2],[372,1,372,2],[361,1,361,2],[362,1,362,2],[363,1,363,2],[364,1,364,2],[365,1,365,2],[366,1,366,2],[355,1,355,2],[356,1,356,2],[357,1,357,2],[358,1,358,2],[359,1,359,2],[360,1,360,2],[385,1,385,2],[386,1,386,2],[387,1,387,2],[388,1,388,2],[389,1,389,2],[390,1,390,2],[379,1,379,2],[380,1,380,2],[381,1,381,2],[382,1,382,2],[383,1,383,2],[384,1,384,2],[373,1,373,2],[374,1,374,2],[375,1,375,2],[376,1,376,2],[377,1,377,2],[378,1,378,2],[403,1,403,2],[404,1,404,2],[405,1,405,2],[406,1,406,2],[407,1,407,2],[408,1,408,2],[397,1,397,2],[398,1,398,2],[399,1,399,2],[400,1,400,2],[401,1,401,2],[402,1,402,2],[391,1,391,2],[392,1,392,2],[393,1,393,2],[394,1,394,2],[395,1,395,2],[396,1,396,2],[421,1,421,2],[422,1,422,2],[423,1,423,2],[424,1,424,2],[425,1,425,2],[426,1,426,2],[415,1,415,2],[416,1,416,2],[417,1,417,2],[418,1,418,2],[419,1,419,2],[420,1,420,2],[409,1,409,2],[410,1,410,2],[411,1,411,2],[412,1,412,2],[413,1,413,2],[414,1,414,2],[439,1,439,2],[440,1,440,2],[441,1,441,2],[442,1,442,2],[443,1,443,2],[444,1,444,2],[433,1,433,2],[434,1,434,2],[435,1,435,2],[436,1,436,2],[437,1,437,2],[438,1,438,2],[427,1,427,2],[428,1,428,2],[429,1,429,2],[430,1,430,2],[431,1,431,2],[432,1,432,2],[457,1,457,2],[458,1,458,2],[459,1,459,2],[460,1,460,2],[461,1,461,2],[462,1,462,2],[451,1,451,2],[452,1,452,2],[453,1,453,2],[454,1,454,2],[455,1,455,2],[456,1,456,2],[445,1,445,2],[446,1,446,2],[447,1,447,2],[448,1,448,2],[449,1,449,2],[450,1,450,2],[475,1,475,2],[476,1,476,2],[477,1,477,2],[478,1,478,2],[479,1,479,2],[480,1,480,2],[469,1,469,2],[470,1,470,2],[471,1,471,2],[472,1,472,2],[473,1,473,2],[474,1,474,2],[463,1,463,2],[464,1,464,2],[465,1,465,2],[466,1,466,2],[467,1,467,2],[468,1,468,2],[493,1,493,2],[494,1,494,2],[495,1,495,2],[496,1,496,2],[497,1,497,2],[498,1,498,2],[487,1,487,2],[488,1,488,2],[489,1,489,2],[490,1,490,2],[491,1,491,2],[492,1,492,2],[481,1,481,2],[482,1,482,2],[483,1,483,2],[484,1,484,2],[485,1,485,2],[486,1,486,2],[511,1,511,2],[512,1,512,2],[513,1,513,2],[514,1,514,2],[515,1,515,2],[516,1,516,2],[505,1,505,2],[506,1,506,2],[507,1,507,2],[508,1,508,2],[509,1,509,2],[510,1,510,2],[499,1,499,2],[500,1,500,2],[501,1,501,2],[502,1,502,2],[503,1,503,2],[504,1,504,2],[529,1,529,2],[530,1,530,2],[531,1,531,2],[532,1,532,2],[533,1,533,2],[534,1,534,2],[523,1,523,2],[524,1,524,2],[525,1,525,2],[526,1,526,2],[527,1,527,2],[528,1,528,2],[517,1,517,2],[518,1,518,2],[519,1,519,2],[520,1,520,2],[521,1,521,2],[522,1,522,2],[547,1,547,2],[548,1,548,2],[549,1,549,2],[550,1,550,2],[551,1,551,2],[552,1,552,2],[541,1,541,2],[542,1,542,2],[543,1,543,2],[544,1,544,2],[545,1,545,2],[546,1,546,2],[535,1,535,2],[536,1,536,2],[537,1,537,2],[538,1,538,2],[539,1,539,2],[540,1,540,2],[565,1,565,2],[566,1,566,2],[567,1,567,2],[568,1,568,2],[569,1,569,2],[570,1,570,2],[559,1,559,2],[560,1,560,2],[561,1,561,2],[562,1,562,2],[563,1,563,2],[564,1,564,2],[553,1,553,2],[554,1,554,2],[555,1,555,2],[556,1,556,2],[557,1,557,2],[558,1,558,2],[583,1,583,2],[584,1,584,2],[585,1,585,2],[586,1,586,2],[587,1,587,2],[588,1,588,2],[577,1,577,2],[578,1,578,2],[579,1,579,2],[580,1,580,2],[581,1,581,2],[582,1,582,2],[571,1,571,2],[572,1,572,2],[573,1,573,2],[574,1,574,2],[575,1,575,2],[576,1,576,2],[601,1,601,2],[602,1,602,2],[603,1,603,2],[604,1,604,2],[605,1,605,2],[606,1,606,2],[595,1,595,2],[596,1,596,2],[597,1,597,2],[598,1,598,2],[599,1,599,2],[600,1,600,2],[589,1,589,2],[590,1,590,2],[591,1,591,2],[592,1,592,2],[593,1,593,2],[594,1,594,2],[619,1,619,2],[620,1,620,2],[621,1,621,2],[622,1,622,2],[623,1,623,2],[624,1,624,2],[613,1,613,2],[614,1,614,2],[615,1,615,2],[616,1,616,2],[617,1,617,2],[618,1,618,2],[607,1,607,2],[608,1,608,2],[609,1,609,2],[610,1,610,2],[611,1,611,2],[612,1,612,2],[637,1,637,2],[638,1,638,2],[639,1,639,2],[640,1,640,2],[641,1,641,2],[642,1,642,2],[631,1,631,2],[632,1,632,2],[633,1,633,2],[634,1,634,2],[635,1,635,2],[636,1,636,2],[625,1,625,2],[626,1,626,2],[627,1,627,2],[628,1,628,2],[629,1,629,2],[630,1,630,2],[655,1,655,2],[656,1,656,2],[657,1,657,2],[658,1,658,2],[659,1,659,2],[660,1,660,2],[649,1,649,2],[650,1,650,2],[651,1,651,2],[652,1,652,2],[653,1,653,2],[654,1,654,2],[643,1,643,2],[644,1,644,2],[645,1,645,2],[646,1,646,2],[647,1,647,2],[648,1,648,2],[673,1,673,2],[674,1,674,2],[675,1,675,2],[676,1,676,2],[677,1,677,2],[678,1,678,2],[667,1,667,2],[668,1,668,2],[669,1,669,2],[670,1,670,2],[671,1,671,2],[672,1,672,2],[661,1,661,2],[662,1,662,2],[663,1,663,2],[664,1,664,2],[665,1,665,2],[666,1,666,2],[691,1,691,2],[692,1,692,2],[693,1,693,2],[694,1,694,2],[695,1,695,2],[696,1,696,2],[685,1,685,2],[686,1,686,2],[687,1,687,2],[688,1,688,2],[689,1,689,2],[690,1,690,2],[679,1,679,2],[680,1,680,2],[681,1,681,2],[682,1,682,2],[683,1,683,2],[684,1,684,2],[709,1,709,2],[710,1,710,2],[711,1,711,2],[712,1,712,2],[713,1,713,2],[714,1,714,2],[703,1,703,2],[704,1,704,2],[705,1,705,2],[706,1,706,2],[707,1,707,2],[708,1,708,2],[697,1,697,2],[698,1,698,2],[699,1,699,2],[700,1,700,2],[701,1,701,2],[702,1,702,2],[727,1,727,2],[728,1,728,2],[729,1,729,2],[730,1,730,2],[731,1,731,2],[732,1,732,2],[721,1,721,2],[722,1,722,2],[723,1,723,2],[724,1,724,2],[725,1,725,2],[726,1,726,2],[715,1,715,2],[716,1,716,2],[717,1,717,2],[718,1,718,2],[719,1,719,2],[720,1,720,2],[745,1,745,2],[746,1,746,2],[747,1,747,2],[748,1,748,2],[749,1,749,2],[750,1,750,2],[739,1,739,2],[740,1,740,2],[741,1,741,2],[742,1,742,2],[743,1,743,2],[744,1,744,2],[733,1,733,2],[734,1,734,2],[735,1,735,2],[736,1,736,2],[737,1,737,2],[738,1,738,2],[763,1,763,2],[764,1,764,2],[765,1,765,2],[766,1,766,2],[767,1,767,2],[768,1,768,2],[757,1,757,2],[758,1,758,2],[759,1,759,2],[760,1,760,2],[761,1,761,2],[762,1,762,2],[751,1,751,2],[752,1,752,2],[753,1,753,2],[754,1,754,2],[755,1,755,2],[756,1,756,2],[781,1,781,2],[782,1,782,2],[783,1,783,2],[784,1,784,2],[785,1,785,2],[786,1,786,2],[775,1,775,2],[776,1,776,2],[777,1,777,2],[778,1,778,2],[779,1,779,2],[780,1,780,2],[769,1,769,2],[770,1,770,2],[771,1,771,2],[772,1,772,2],[773,1,773,2],[774,1,774,2],[799,1,799,2],[800,1,800,2],[801,1,801,2],[802,1,802,2],[803,1,803,2],[804,1,804,2],[793,1,793,2],[794,1,794,2],[795,1,795,2],[796,1,796,2],[797,1,797,2],[798,1,798,2],[787,1,787,2],[788,1,788,2],[789,1,789,2],[790,1,790,2],[791,1,791,2],[792,1,792,2],[817,1,817,2],[818,1,818,2],[819,1,819,2],[820,1,820,2],[821,1,821,2],[822,1,822,2],[811,1,811,2],[812,1,812,2],[813,1,813,2],[814,1,814,2],[815,1,815,2],[816,1,816,2],[805,1,805,2],[806,1,806,2],[807,1,807,2],[808,1,808,2],[809,1,809,2],[810,1,810,2],[835,1,835,2],[836,1,836,2],[837,1,837,2],[838,1,838,2],[839,1,839,2],[840,1,840,2],[829,1,829,2],[830,1,830,2],[831,1,831,2],[832,1,832,2],[833,1,833,2],[834,1,834,2],[823,1,823,2],[824,1,824,2],[825,1,825,2],[826,1,826,2],[827,1,827,2],[828,1,828,2],[853,1,853,2],[854,1,854,2],[855,1,855,2],[856,1,856,2],[857,1,857,2],[858,1,858,2],[847,1,847,2],[848,1,848,2],[849,1,849,2],[850,1,850,2],[851,1,851,2],[852,1,852,2],[841,1,841,2],[842,1,842,2],[843,1,843,2],[844,1,844,2],[845,1,845,2],[846,1,846,2],[871,1,871,2],[872,1,872,2],[873,1,873,2],[874,1,874,2],[875,1,875,2],[876,1,876,2],[865,1,865,2],[866,1,866,2],[867,1,867,2],[868,1,868,2],[869,1,869,2],[870,1,870,2],[859,1,859,2],[860,1,860,2],[861,1,861,2],[862,1,862,2],[863,1,863,2],[864,1,864,2],[889,1,889,2],[890,1,890,2],[891,1,891,2],[892,1,892,2],[893,1,893,2],[894,1,894,2],[883,1,883,2],[884,1,884,2],[885,1,885,2],[886,1,886,2],[887,1,887,2],[888,1,888,2],[877,1,877,2],[878,1,878,2],[879,1,879,2],[880,1,880,2],[881,1,881,2],[882,1,882,2],[907,1,907,2],[908,1,908,2],[909,1,909,2],[910,1,910,2],[911,1,911,2],[912,1,912,2],[901,1,901,2],[902,1,902,2],[903,1,903,2],[904,1,904,2],[905,1,905,2],[906,1,906,2],[895,1,895,2],[896,1,896,2],[897,1,897,2],[898,1,898,2],[899,1,899,2],[900,1,900,2],[925,1,925,2],[926,1,926,2],[927,1,927,2],[928,1,928,2],[929,1,929,2],[930,1,930,2],[919,1,919,2],[920,1,920,2],[921,1,921,2],[922,1,922,2],[923,1,923,2],[924,1,924,2],[913,1,913,2],[914,1,914,2],[915,1,915,2],[916,1,916,2],[917,1,917,2],[918,1,918,2],[943,1,943,2],[944,1,944,2],[945,1,945,2],[946,1,946,2],[947,1,947,2],[948,1,948,2],[937,1,937,2],[938,1,938,2],[939,1,939,2],[940,1,940,2],[941,1,941,2],[942,1,942,2],[931,1,931,2],[932,1,932,2],[933,1,933,2],[934,1,934,2],[935,1,935,2],[936,1,936,2],[972,1,972,2],[961,1,961,2],[962,1,962,2],[963,1,963,2],[964,1,964,2],[965,1,965,2],[966,1,966,2],[955,1,955,2],[956,1,956,2],[957,1,957,2],[958,1,958,2],[959,1,959,2],[960,1,960,2],[949,1,949,2],[950,1,950,2],[951,1,951,2],[952,1,952,2],[953,1,953,2],[954,1,954,2],[973,1,973,2],[974,1,974,2],[975,1,975,2],[976,1,976,2],[977,1,977,2],[978,1,978,2],[967,1,967,2],[997,1,997,2],[998,1,998,2],[999,1,999,2],[991,1,991,2],[992,1,992,2],[993,1,993,2],[994,1,994,2],[995,1,995,2],[996,1,996,2],[985,1,985,2],[986,1,986,2],[987,1,987,2],[988,1,988,2],[989,1,989,2]],"merged_total":1011,"flags":["merged_cut"]}
["Expenses"]
["Click here to go back to Instructions."]
["Budget Line Item Available Balances",null,null,null,null,null,"Amount to Assign to Funding Sources\n(Must equal $0)","Funding Sources"]
[{"$f":"Budget!B8","v":"Administrative"},null,null,{"$f":"SUMPRODUCT(--(Budget!B8:B20=A4),Budget!K8:K20)-SUMPRODUCT(--(B13:B1000=A4),F13:F1000)","v":1},{"$f":"Budget!B13","v":"Engineering Fees - Design"},{"$f":"SUMPRODUCT(--(Budget!B8:B20=E4),Budget!K8:K20)-SUMPRODUCT(--(B13:B1000=E4),F13:F1000)","v":0}]
[{"$f":"Budget!B9","v":"Legal"},null,null,{"$f":"SUMPRODUCT(--(Budget!B8:B20=A5),Budget!K8:K20)-SUMPRODUCT(--(B13:B1000=A5),F13:F1000)","v":0},{"$f":"Budget!B14","v":"Engineering Fees - Construction"},{"$f":"SUMPRODUCT(--(Budget!B8:B20=E5),Budget!K8:K20)-SUMPRODUCT(--(B13:B1000=E5),F13:F1000)","v":0}]
[{"$f":"Budget!B10","v":"Land/Appraisals/Easements/Rights of Way"},null,null,{"$f":"SUMPRODUCT(--(Budget!B8:B20=A6),Budget!K8:K20)-SUMPRODUCT(--(B13:B1000=A6),F13:F1000)","v":0},{"$f":"Budget!B15","v":"Engineering Fees - Inspection"},{"$f":"SUMPRODUCT(--(Budget!B8:B20=E6),Budget!K8:K20)-SUMPRODUCT(--(B13:B1000=E6),F13:F1000)","v":0},null,"Available Balances"]
[{"$f":"Budget!B11","v":"Relocation Expense"},null,null,{"$f":"SUMPRODUCT(--(Budget!B8:B20=A7),Budget!K8:K20)-SUMPRODUCT(--(B13:B1000=A7),F13:F1000)","v":0},{"$f":"Budget!B16","v":"Engineering Fees - Other"},{"$f":"SUMPRODUCT(--(Budget!B8:B20=E7),Budget!K8:K20)-SUMPRODUCT(--(B13:B1000=E7),F13:F1000)","v":0}]
[{"$f":"Budget!B12","v":"Planning"},null,null,{"$f":"SUMPRODUCT(--(Budget!B8:B20=A8),Budget!K8:K20)-SUMPRODUCT(--(B13:B1000=A8),F13:F1000)","v":0},{"$f":"Budget!B17","v":"Construction"},{"$f":"SUMPRODUCT(--(Budget!B8:B20=E8),Budget!K8:K20)-SUMPRODUCT(--(B13:B1000=E8),F13:F1000)","v":0},null,{"$f":"H12","v":0},"Local Funds","Funding Source #3","Funding Source #4","Funding Source #5","Funding Source #6","Funding Source #7"]
[{"$f":"Budget!B20","v":"Other"},null,null,{"$f":"SUMPRODUCT(--(Budget!B8:B20=A9),Budget!K8:K20)-SUMPRODUCT(--(B13:B1000=A9),F13:F1000)","v":0},{"$f":"Budget!B18","v":"Equipment"},{"$f":"SUMPRODUCT(--(Budget!B8:B20=E9),Budget!K8:K20)-SUMPRODUCT(--(B13:B1000=E9),F13:F1000)","v":0}]
[null,null,null,null,{"$f":"Budget!B19","v":"Contingency"},{"$f":"SUMPRODUCT(--(Budget!B8:B20=E10),Budget!K8:K20)-SUMPRODUCT(--(B13:B1000=E10),F13:F1000)","v":0},null,{"$f":"Budget!K24-SUM(H13:H1000)","v":1},{"$f":"Budget!K25-SUM(I13:I1000)","v":0},{"$f":"Budget!K26-SUM(J13:J1000)","v":0},{"$f":"Budget!K27-SUM(K13:K1000)","v":0},{"$f":"Budget!K28-SUM(L13:L1000)","v":0},{"$f":"Budget!K29-SUM(M13:M1000)","v":0},{"$f":"Budget!K30-SUM(N13:N1000)","v":0}]
["Enter Each Invoice\nNote: Possible duplicates will appear in red.",null,null,null,null,null,null,"Assign Funding for Each Invoice"]
["Draw #","Budget Line Item",null,"Invoice #\n(if no invoice #, enter invoice date)","Vendor","Total Invoice Amount",null,{"$f":"Budget!B24","v":0},{"$f":"Budget!B25","v":"Local Funds"},{"$f":"Budget!B26","v":"Funding Source #3"},{"$f":"Budget!B27","v":"Funding Source #4"},{"$f":"Budget!B28","v":"Funding Source #5"},{"$f":"Budget!B29","v":"Funding Source #6"},{"$f":"Budget!B30","v":"Funding Source #7"}]
[null,null,null,null,null,null,{"$f":"F13-SUM(H13:N13)","v":0},null,null,null,null,null,null,null,{"$f":"IF(G13<0,\"Error: Invoice < Funding\",IF(G13>0,\"Error: Invoice > Funding\",IF(G13=0,\"\")))","v":""}]
[null,null,null,null,null,null,0,null,null,null,null,null,null,null,{"$f":"IF(G14<0,\"Error: Invoice < Funding\",IF(G14>0,\"Error: Invoice > Funding\",IF(G14=0,\"\")))","v":""}]
[null,null,null,null,null,null,0,null,null,null,null,null,null,null,{"$f":"IF(G15<0,\"Error: Invoice < Funding\",IF(G15>0,\"Error: Invoice > Funding\",IF(G15=0,\"\")))","v":""}]
[null,null,null,null,null,null,0,null,null,null,null,null,null,null,{"$f":"IF(G16<0,\"Error: Invoice < Funding\",IF(G16>0,\"Error: Invoice > Funding\",IF(G16=0,\"\")))","v":""}]
[null,null,null,null,null,null,0,null,null,null,null,null,null,null,{"$f":"IF(G17<0,\"Error: Invoice < Funding\",IF(G17>0,\"Error: Invoice > Funding\",IF(G17=0,\"\")))","v":""}]
[null,null,null,null,null,null,0,null,null,null,null,null,null,null,{"$f":"IF(G18<0,\"Error: Invoice < Funding\",IF(G18>0,\"Error: Invoice > Funding\",IF(G18=0,\"\")))","v":""}]
[null,null,null,null,null,null,0,null,null,null,null,null,null,null,""]
[null,null,null,null,null,null,0,null,null,null,null,null,null,null,""]
[null,null,null,null,null,null,0,null,null,null,null,null,null,null,""]
[null,null,null,null,null,null,0,null,null,null,null,null,null,null,""]
[null,null,null,null,null,null,0,null,null,null,null,null,null,null,""]
[null,null,null,null,null,null,0,null,null,null,null,null,null,null,""]
[null,null,null,null,null,null,0,null,null,null,null,null,null,null,""]
[null,null,null,null,null,null,0,null,null,null,null,null,null,null,""]
[null,null,null,null,null,null,0,null,null,null,null,null,null,null,""]
[null,null,null,null,null,null,0,null,null,null,null,null,null,null,""]
[null,null,null,null,null,null,0,null,null,null,null,null,null,null,""]
[null,null,null,null,null,null,0,null,null,null,null,null,null,null,""]
[null,null,null,null,null,null,0,null,null,null,null,null,null,null,""]
[null,null,null,null,null,null,0,null,null,null,null,null,null,null,""]
[null,null,null,null,null,null,0,null,null,null,null,null,null,null,""]
[null,null,null,null,null,null,0,null,null,null,null,null,null,null,""]
[null,null,null,null,null,null,0,null,null,null,null,null,null,null,""]
[null,null,null,null,null,null,0,null,null,null,null,null,null,null,""]
[null,null,null,null,null,null,0,null,null,null,null,null,null,null,""]
[null,null,null,null,null,null,0,null,null,null,null,null,null,null,""]
[null,null,null,null,null,null,0,null,null,null,null,null,null,null,""]
[null,null,null,null,null,null,0,null,null,null,null,null,null,null,""]
[null,null,null,null,null,null,0,null,null,null,null,null,null,null,""]
[null,null,null,null,null,null,0,null,null,null,null,null,null,null,""]
[null,null,null,null,null,null,0,null,null,null,null,null,null,null,""]
[null,null,null,null,null,null,0,null,null,null,null,null,null,null,""]
[null,null,null,null,null,null,0,null,null,null,null,null,null,null,""]
[null,null,null,null,null,null,0,null,null,null,null,null,null,null,""]
[null,null,null,null,null,null,0,null,null,null,null,null,null,null,""]
[null,null,null,null,null,null,0,null,null,null,null,null,null,null,""]
[null,null,null,null,null,null,0,null,null,null,null,null,null,null,""]
[null,null,null,null,null,null,0,null,null,null,null,null,null,null,""]
[null,null,null,null,null,null,0,null,null,null,null,null,null,null,""]
[null,null,null,null,null,null,0,null,null,null,null,null,null,null,""]
[null,null,null,null,null,null,0,null,null,null,null,null,null,null,""]
[null,null,null,null,null,null,0,null,null,null,null,null,null,null,""]
[null,null,null,null,null,null,0,null,null,null,null,null,null,null,""]
[null,null,null,null,null,null,0,null,null,null,null,null,null,null,""]
[null,null,null,null,null,null,0,null,null,null,null,null,null,null,""]
[null,null,null,null,null,null,0,null,null,null,null,null,null,null,""]
[null,null,null,null,null,null,0,null,null,null,null,null,null,null,""]
[null,null,null,null,null,null,0,null,null,null,null,null,null,null,""]
[null,null,null,null,null,null,0,null,null,null,null,null,null,null,""]
[null,null,null,null,null,null,0,null,null,null,null,null,null,null,""]
[null,null,null,null,null,null,0,null,null,null,null,null,null,null,""]
[null,null,null,null,null,null,0,null,null,null,null,null,null,null,""]
[null,null,null,null,null,null,0,null,null,null,null,null,null,null,""]
[null,null,null,null,null,null,0,null,null,null,null,null,null,null,""]
[null,null,null,null,null,null,0,null,null,null,null,null,null,null,""]
[null,null,null,null,null,null,0,null,null,null,null,null,null,null,""]
[null,null,null,null,null,null,0,null,null,null,null,null,null,null,""]
[null,null,null,null,null,null,0,null,null,null,null,null,null,null,""]
[null,null,null,null,null,null,0,null,null,null,null,null,null,null,""]
[null,null,null,null,null,null,0,null,null,null,null,null,null,null,""]
[null,null,null,null,null,null,0,null,null,null,null,null,null,null,""]
[null,null,null,null,null,null,0,null,null,null,null,null,null,null,""]
[null,null,null,null,null,null,0,null,null,null,null,null,null,null,""]
[null,null,null,null,null,null,0,null,null,null,null,null,null,null,""]
[null,null,null,null,null,null,{"$f":"F77-SUM(H77:N77)","v":0},null,null,null,null,null,null,null,""]
[null,null,null,null,null,null,0,null,null,null,null,null,null,null,""]
[null,null,null,null,null,null,0,null,null,null,null,null,null,null,""]
[null,null,null,null,null,null,0,null,null,null,null,null,null,null,""]
[null,null,null,null,null,null,0,null,null,null,null,null,null,null,""]
[null,null,null,null,null,null,0,null,null,null,null,null,null,null,{"$f":"IF(G82<0,\"Error: Invoice < Funding\",IF(G82>0,\"Error: Invoice > Funding\",IF(G82=0,\"\")))","v":""}]
[null,null,null,null,null,null,0,null,null,null,null,null,null,null,""]
[null,null,null,null,null,null,0,null,null,null,null,null,null,null,""]
[null,null,null,null,null,null,0,null,null,null,null,null,null,null,""]
[null,null,null,null,null,null,0,null,null,null,null,null,null,null,""]
[null,null,null,null,null,null,0,null,null,null,null,null,null,null,""]
[null,null,null,null,null,null,0,null,null,null,null,null,null,null,""]
[null,null,null,null,null,null,0,null,null,null,null,null,null,null,""]
[null,null,null,null,null,null,0,null,null,null,null,null,null,null,""]
[null,null,null,null,null,null,0,null,null,null,null,null,null,null,""]
[null,null,null,null,null,null,0,null,null,null,null,null,null,null,""]
[null,null,null,null,null,null,0,null,null,null,null,null,null,null,""]
[null,null,null,null,null,null,0,null,null,null,null,null,null,null,""]
[null,null,null,null,null,null,0,null,null,null,null,null,null,null,""]
[null,null,null,null,null,null,0,null,null,null,null,null,null,null,""]
[null,null,null,null,null,null,0,null,null,null,null,null,null,null,""]
[null,null,null,null,null,null,0,null,null,null,null,null,null,null,""]
[null,null,null,null,null,null,0,null,null,null,null,null,null,null,""]
[null,null,null,null,null,null,0,null,null,null,null,null,null,null,""]
[null,null,null,null,null,null,0,null,null,null,null,null,null,null,""]
[null,null,null,null,null,null,0,null,null,null,null,null,null,null,""]
[null,null,null,null,null,null,0,null,null,null,null,null,null,null,""]
[null,null,null,null,null,null,0,null,null,null,null,null,null,null,""]
[null,null,null,null,null,null,0,null,null,null,null,null,null,null,""]
[null,null,null,null,null,null,0,null,null,null,null,null,null,null,""]
[null,null,null,null,null,null,0,null,null,null,null,null,null,null,""]
[null,null,null,null,null,null,0,null,null,null,null,null,null,null,""]
[null,null,null,null,null,null,0,null,null,null,null,null,null,null,""]
[null,null,null,null,null,null,0,null,null,null,null,null,null,null,""]
[null,null,null,null,null,null,0,null,null,null,null,null,null,null,""]
[null,null,null,null,null,null,0,null,null,null,null,null,null,null,""]
[null,null,null,null,null,null,0,null,null,null,null,null,null,null,""]
[null,null,null,null,null,null,0,null,null,null,null,null,null,null,""]
[null,null,null,null,null,null,0,null,null,null,null,null,null,null,""]
[null,null,null,null,null,null,0,null,null,null,null,null,null,null,""]
[null,null,null,null,null,null,0,null,null,null,null,null,null,null,""]
[null,null,null,null,null,null,0,null,null,null,null,null,null,null,""]
[null,null,null,null,null,null,0,null,null,null,null,null,null,null,""]
[null,null,null,null,null,null,0,null,null,null,null,null,null,null,""]
[null,null,null,null,null,null,0,null,null,null,null,null,null,null,""]
[null,null,null,null,null,null,0,null,null,null,null,null,null,null,""]
[null,null,null,null,null,null,0,null,null,null,null,null,null,null,""]
[null,null,null,null,null,null,0,null,null,null,null,null,null,null,""]
[null,null,null,null,null,null,0,null,null,null,null,null,null,null,""]
[null,null,null,null,null,null,0,null,null,null,null,null,null,null,""]
[null,null,null,null,null,null,0,null,null,null,null,null,null,null,""]
[null,null,null,null,null,null,0,null,null,null,null,null,null,null,""]
[null,null,null,null,null,null,0,null,null,null,null,null,null,null,""]
[null,null,null,null,null,null,0,null,null,null,null,null,null,null,""]
[null,null,null,null,null,null,0,null,null,null,null,null,null,null,""]
[null,null,null,null,null,null,0,null,null,null,null,null,null,null,""]
[null,null,null,null,null,null,0,null,null,null,null,null,null,null,""]
[null,null,null,null,null,null,0,null,null,null,null,null,null,null,""]
[null,null,null,null,null,null,0,null,null,null,null,null,null,null,""]
[null,null,null,null,null,null,0,null,null,null,null,null,null,null,""]
[null,null,null,null,null,null,0,null,null,null,null,null,null,null,""]
[null,null,null,null,null,null,0,null,null,null,null,null,null,null,""]
[null,null,null,null,null,null,0,null,null,null,null,null,null,null,""]
[null,null,null,null,null,null,0,null,null,null,null,null,null,null,""]
[null,null,null,null,null,null,{"$f":"F141-SUM(H141:N141)","v":0},null,null,null,null,null,null,null,""]
[null,null,null,null,null,null,0,null,null,null,null,null,null,null,""]
[null,null,null,null,null,null,0,null,null,null,null,null,null,null,""]
[null,null,null,null,null,null,0,null,null,null,null,null,null,null,""]
[null,null,null,null,null,null,0,null,null,null,null,null,null,null,""]
[null,null,null,null,null,null,0,null,null,null,null,null,null,null,{"$f":"IF(G146<0,\"Error: Invoice < Funding\",IF(G146>0,\"Error: Invoice > Funding\",IF(G146=0,\"\")))","v":""}]
[null,null,null,null,null,null,0,null,null,null,null,null,null,null,""]
[null,null,null,null,null,null,0,null,null,null,null,null,null,null,""]
[null,null,null,null,null,null,0,null,null,null,null,null,null,null,""]
[null,null,null,null,null,null,0,null,null,null,null,null,null,null,""]
[null,null,null,null,null,null,0,null,null,null,null,null,null,null,""]
[null,null,null,null,null,null,0,null,null,null,null,null,null,null,""]
[null,null,null,null,null,null,0,null,null,null,null,null,null,null,""]
[null,null,null,null,null,null,0,null,null,null,null,null,null,null,""]
[null,null,null,null,null,null,0,null,null,null,null,null,null,null,""]
[null,null,null,null,null,null,0,null,null,null,null,null,null,null,""]
[null,null,null,null,null,null,0,null,null,null,null,null,null,null,""]
[null,null,null,null,null,null,0,null,null,null,null,null,null,null,""]
[null,null,null,null,null,null,0,null,null,null,null,null,null,null,""]
[null,null,null,null,null,null,0,null,null,null,null,null,null,null,""]
[null,null,null,null,null,null,0,null,null,null,null,null,null,null,""]
[null,null,null,null,null,null,0,null,null,null,null,null,null,null,""]
[null,null,null,null,null,null,0,null,null,null,null,null,null,null,""]
[null,null,null,null,null,null,0,null,null,null,null,null,null,null,""]
[null,null,null,null,null,null,0,null,null,null,null,null,null,null,""]
[null,null,null,null,null,null,0,null,null,null,null,null,null,null,""]
[null,null,null,null,null,null,0,null,null,null,null,null,null,null,""]
[null,null,null,null,null,null,0,null,null,null,null,null,null,null,""]
[null,null,null,null,null,null,0,null,null,null,null,null,null,null,""]
[null,null,null,null,null,null,0,null,null,null,null,null,null,null,""]
[null,null,null,null,null,null,0,null,null,null,null,null,null,null,""]
[null,null,null,null,null,null,0,null,null,null,null,null,null,null,""]
[null,null,null,null,null,null,0,null,null,null,null,null,null,null,""]
[null,null,null,null,null,null,0,null,null,null,null,null,null,null,""]
[null,null,null,null,null,null,0,null,null,null,null,null,null,null,""]
[null,null,null,null,null,null,0,null,null,null,null,null,null,null,""]
[null,null,null,null,null,null,0,null,null,null,null,null,null,null,""]
[null,null,null,null,null,null,0,null,null,null,null,null,null,null,""]
[null,null,null,null,null,null,0,null,null,null,null,null,null,null,""]
[null,null,null,null,null,null,0,null,null,null,null,null,null,null,""]
[null,null,null,null,null,null,0,null,null,null,null,null,null,null,""]
[null,null,null,null,null,null,0,null,null,null,null,null,null,null,""]
[null,null,null,null,null,null,0,null,null,null,null,null,null,null,""]
[null,null,null,null,null,null,0,null,null,null,null,null,null,null,""]
[null,null,null,null,null,null,0,null,null,null,null,null,null,null,""]
[null,null,null,null,null,null,0,null,null,null,null,null,null,null,""]
[null,null,null,null,null,null,0,null,null,null,null,null,null,null,""]
[null,null,null,null,null,null,0,null,null,null,null,null,null,null,""]
[null,null,null,null,null,null,0,null,null,null,null,null,null,null,""]
[null,null,null,null,null,null,0,null,null,null,null,null,null,null,""]
[null,null,null,null,null,null,0,null,null,null,null,null,null,null,""]
[null,null,null,null,null,null,0,null,null,null,null,null,null,null,""]
[null,null,null,null,null,null,0,null,null,null,null,null,null,null,""]
[null,null,null,null,null,null,0,null,null,null,null,null,null,null,""]
[null,null,null,null,null,null,0,null,null,null,null,null,null,null,""]
[null,null,null,null,null,null,0,null,null,null,null,null,null,null,""]
[null,null,null,null,null,null,0,null,null,null,null,null,null,null,""]
[null,null,null,null,null,null,0,null,null,null,null,null,null,null,""]
[null,null,null,null,null,null,0,null,null,null,null,null,null,null,""]
[null,null,null,null,null,null,0,null,null,null,null,null,null,null,""]
[null,null,null,null,null,null,0,null,null,null,null,null,null,null,""]
[null,null,null,null,null,null,0,null,null,null,null,null,null,null,""]
[null,null,null,null,null,null,0,null,null,null,null,null,null,null,""]
[null,null,null,null,null,null,0,null,null,null,null,null,null,null,""]
[null,null,null,null,null,null,{"$f":"F205-SUM(H205:N205)","v":0},null,null,null,null,null,null,null,""]
[null,null,null,null,null,null,0,null,null,null,null,null,null,null,""]
[null,null,null,null,null,null,0,null,null,null,null,null,null,null,""]
[null,null,null,null,null,null,0,null,null,null,null,null,null,null,""]
[null,null,null,null,null,null,0,null,null,null,null,null,null,null,""]
[null,null,null,null,null,null,0,null,null,null,null,null,null,null,{"$f":"IF(G210<0,\"Error: Invoice < Funding\",IF(G210>0,\"Error: Invoice > Funding\",IF(G210=0,\"\")))","v":""}]
[null,null,null,null,null,null,0,null,null,null,null,null,null,null,""]
[null,null,null,null,null,null,0,null,null,null,null,null,null,null,""]
[null,null,null,null,null,null,0,null,null,null,null,null,null,null,""]
[null,null,null,null,null,null,0,null,null,null,null,null,null,null,""]
[null,null,null,null,null,null,0,null,null,null,null,null,null,null,""]
[null,null,null,null,null,null,0,null,null,null,null,null,null,null,""]
[null,null,null,null,null,null,0,null,null,null,null,null,null,null,""]
[null,null,null,null,null,null,0,null,null,null,null,null,null,null,""]
[null,null,null,null,null,null,0,null,null,null,null,null,null,null,""]
[null,null,null,null,null,null,0,null,null,null,null,null,null,null,""]
[null,null,null,null,null,null,0,null,null,null,null,null,null,null,""]
[null,null,null,null,null,null,0,null,null,null,null,null,null,null,""]
[null,null,null,null,null,null,0,null,null,null,null,null,null,null,""]
[null,null,null,null,null,null,0,null,null,null,null,null,null,null,""]
[null,null,null,null,null,null,0,null,null,null,null,null,null,null,""]
[null,null,null,null,null,null,0,null,null,null,null,null,null,null,""]
[null,null,null,null,null,null,0,null,null,null,null,null,null,null,""]
[null,null,null,null,null,null,0,null,null,null,null,null,null,null,""]
[null,null,null,null,null,null,0,null,null,null,null,null,null,null,""]
[null,null,null,null,null,null,0,null,null,null,null,null,null,null,""]
[null,null,null,null,null,null,0,null,null,null,null,null,null,null,""]
[null,null,null,null,null,null,0,null,null,null,null,null,null,null,""]
[null,null,null,null,null,null,0,null,null,null,null,null,null,null,""]
[null,null,null,null,null,null,0,null,null,null,null,null,null,null,""]
[null,null,null,null,null,null,0,null,null,null,null,null,null,null,""]
[null,null,null,null,null,null,0,null,null,null,null,null,null,null,""]
[null,null,null,null,null,null,0,null,null,null,null,null,null,null,""]
[null,null,null,null,null,null,0,null,null,null,null,null,null,null,""]
[null,null,null,null,null,null,0,null,null,null,null,null,null,null,""]
[null,null,null,null,null,null,0,null,null,null,null,null,null,null,""]
[null,null,null,null,null,null,0,null,null,null,null,null,null,null,""]
[null,null,null,null,null,null,0,null,null,null,null,null,null,null,""]
[null,null,null,null,null,null,0,null,null,null,null,null,null,null,""]
[null,null,null,null,null,null,0,null,null,null,null,null,null,null,""]
[null,null,null,null,null,null,0,null,null,null,null,null,null,null,""]
[null,null,null,null,null,null,0,null,null,null,null,null,null,null,""]
[null,null,null,null,null,null,0,null,null,null,null,null,null,null,""]
[null,null,null,null,null,null,0,null,null,null,null,null,null,null,""]
[null,null,null,null,null,null,0,null,null,null,null,null,null,null,""]
[null,null,null,null,null,null,0,null,null,null,null,null,null,null,""]
[null,null,null,null,null,null,0,null,null,null,null,null,null,null,""]
[null,null,null,null,null,null,0,null,null,null,null,null,null,null,""]
[null,null,null,null,null,null,0,null,null,null,null,null,null,null,""]
[null,null,null,null,null,null,0,null,null,null,null,null,null,null,""]
[null,null,null,null,null,null,0,null,null,null,null,null,null,null,""]
[null,null,null,null,null,null,0,null,null,null,null,null,null,null,""]
[null,null,null,null,null,null,0,null,null,null,null,null,null,null,""]
[null,null,null,null,null,null,0,null,null,null,null,null,null,null,""]
[null,null,null,null,null,null,0,null,null,null,null,null,null,null,""]
[null,null,null,null,null,null,0,null,null,null,null,null,null,null,""]
[null,null,null,null,null,null,0,null,null,null,null,null,null,null,""]
[null,null,null,null,null,null,0,null,null,null,null,null,null,null,""]
[null,null,null,null,null,null,0,null,null,null,null,null,null,null,""]
[null,null,null,null,null,null,0,null,null,null,null,null,null,null,""]
[null,null,null,null,null,null,0,null,null,null,null,null,null,null,""]
[null,null,null,null,null,null,0,null,null,null,null,null,null,null,""]
[null,null,null,null,null,null,0,null,null,null,null,null,null,null,""]
[null,null,null,null,null,null,0,null,null,null,null,null,null,null,""]
[null,null,null,null,null,null,{"$f":"F269-SUM(H269:N269)","v":0},null,null,null,null,null,null,null,""]
[null,null,null,null,null,null,0,null,null,null,null,null,null,null,""]
[null,null,null,null,null,null,0,null,null,null,null,null,null,null,""]
[null,null,null,null,null,null,0,null,null,null,null,null,null,null,""]
[null,null,null,null,null,null,0,null,null,null,null,null,null,null,""]
[null,null,null,null,null,null,0,null,null,null,null,null,null,null,{"$f":"IF(G274<0,\"Error: Invoice < Funding\",IF(G274>0,\"Error: Invoice > Funding\",IF(G274=0,\"\")))","v":""}]
[null,null,null,null,null,null,0,null,null,null,null,null,null,null,""]
[null,null,null,null,null,null,0,null,null,null,null,null,null,null,""]
[null,null,null,null,null,null,0,null,null,null,null,null,null,null,""]
[null,null,null,null,null,null,0,null,null,null,null,null,null,null,""]
[null,null,null,null,null,null,0,null,null,null,null,null,null,null,""]
[null,null,null,null,null,null,0,null,null,null,null,null,null,null,""]
[null,null,null,null,null,null,0,null,null,null,null,null,null,null,""]
[null,null,null,null,null,null,0,null,null,null,null,null,null,null,""]
[null,null,null,null,null,null,0,null,null,null,null,null,null,null,""]
[null,null,null,null,null,null,0,null,null,null,null,null,null,null,""]
[null,null,null,null,null,null,0,null,null,null,null,null,null,null,""]
[null,null,null,null,null,null,0,null,null,null,null,null,null,null,""]
[null,null,null,null,null,null,0,null,null,null,null,null,null,null,""]
[null,null,null,null,null,null,0,null,null,null,null,null,null,null,""]
[null,null,null,null,null,null,0,null,null,null,null,null,null,null,""]
[null,null,null,null,null,null,0,null,null,null,null,null,null,null,""]
[null,null,null,null,null,null,0,null,null,null,null,null,null,null,""]
[null,null,null,null,null,null,0,null,null,null,null,null,null,null,""]
[null,null,null,null,null,null,0,null,null,null,null,null,null,null,""]
[null,null,null,null,null,null,0,null,null,null,null,null,null,null,""]
[null,null,null,null,null,null,0,null,null,null,null,null,null,null,""]
[null,null,null,null,null,null,0,null,null,null,null,null,null,null,""]
[null,null,null,null,null,null,0,null,null,null,null,null,null,null,""]
[null,null,null,null,null,null,0,null,null,null,null,null,null,null,""]
[null,null,null,null,null,null,0,null,null,null,null,null,null,null,""]
[null,null,null,null,null,null,0,null,null,null,null,null,null,null,""]
[null,null,null,null,null,null,0,null,null,null,null,null,null,null,""]
[null,null,null,null,null,null,0,null,null,null,null,null,null,null,""]
[null,null,null,null,null,null,0,null,null,null,null,null,null,null,""]
[null,null,null,null,null,null,0,null,null,null,null,null,null,null,""]
[null,null,null,null,null,null,0,null,null,null,null,null,null,null,""]
[null,null,null,null,null,null,0,null,null,null,null,null,null,null,""]
[null,null,null,null,null,null,0,null,null,null,null,null,null,null,""]
[null,null,null,null,null,null,0,null,null,null,null,null,null,null,""]
[null,null,null,null,null,null,0,null,null,null,null,null,null,null,""]
[null,null,null,null,null,null,0,null,null,null,null,null,null,null,""]
[null,null,null,null,null,null,0,null,null,null,null,null,null,null,""]
[null,null,null,null,null,null,0,null,null,null,null,null,null,null,""]
[null,null,null,null,null,null,0,null,null,null,null,null,null,null,""]
[null,null,null,null,null,null,0,null,null,null,null,null,null,null,""]
[null,null,null,null,null,null,0,null,null,null,null,null,null,null,""]
[null,null,null,null,null,null,0,null,null,null,null,null,null,null,""]
[null,null,null,null,null,null,0,null,null,null,null,null,null,null,""]
[null,null,null,null,null,null,0,null,null,null,null,null,null,null,""]
[null,null,null,null,null,null,0,null,null,null,null,null,null,null,""]
[null,null,null,null,null,null,0,null,null,null,null,null,null,null,""]
[null,null,null,null,null,null,0,null,null,null,null,null,null,null,""]
[null,null,null,null,null,null,0,null,null,null,null,null,null,null,""]
[null,null,null,null,null,null,0,null,null,null,null,null,null,null,""]
[null,null,null,null,null,null,0,null,null,null,null,null,null,null,""]
[null,null,null,null,null,null,0,null,null,null,null,null,null,null,""]
[null,null,null,null,null,null,0,null,null,null,null,null,null,null,""]
[null,null,null,null,null,null,0,null,null,null,null,null,null,null,""]
[null,null,null,null,null,null,0,null,null,null,null,null,null,null,""]
[null,null,null,null,null,null,0,null,null,null,null,null,null,null,""]
[null,null,null,null,null,null,0,null,null,null,null,null,null,null,""]
[null,null,null,null,null,null,0,null,null,null,null,null,null,null,""]
[null,null,null,null,null,null,0,null,null,null,null,null,null,null,""]
[null,null,null,null,null,null,{"$f":"F333-SUM(H333:N333)","v":0},null,null,null,null,null,null,null,""]
[null,null,null,null,null,null,0,null,null,null,null,null,null,null,""]
[null,null,null,null,null,null,0,null,null,null,null,null,null,null,""]
[null,null,null,null,null,null,0,null,null,null,null,null,null,null,""]
[null,null,null,null,null,null,0,null,null,null,null,null,null,null,""]
[null,null,null,null,null,null,0,null,null,null,null,null,null,null,{"$f":"IF(G338<0,\"Error: Invoice < Funding\",IF(G338>0,\"Error: Invoice > Funding\",IF(G338=0,\"\")))","v":""}]
[null,null,null,null,null,null,0,null,null,null,null,null,null,null,""]
[null,null,null,null,null,null,0,null,null,null,null,null,null,null,""]
[null,null,null,null,null,null,0,null,null,null,null,null,null,null,""]
[null,null,null,null,null,null,0,null,null,null,null,null,null,null,""]
[null,null,null,null,null,null,0,null,null,null,null,null,null,null,""]
[null,null,null,null,null,null,0,null,null,null,null,null,null,null,""]
[null,null,null,null,null,null,0,null,null,null,null,null,null,null,""]
[null,null,null,null,null,null,0,null,null,null,null,null,null,null,""]
[null,null,null,null,null,null,0,null,null,null,null,null,null,null,""]
[null,null,null,null,null,null,0,null,null,null,null,null,null,null,""]
[null,null,null,null,null,null,0,null,null,null,null,null,null,null,""]
[null,null,null,null,null,null,0,null,null,null,null,null,null,null,""]
[null,null,null,null,null,null,0,null,null,null,null,null,null,null,""]
[null,null,null,null,null,null,0,null,null,null,null,null,null,null,""]
[null,null,null,null,null,null,0,null,null,null,null,null,null,null,""]
[null,null,null,null,null,null,0,null,null,null,null,null,null,null,""]
[null,null,null,null,null,null,0,null,null,null,null,null,null,null,""]
[null,null,null,null,null,null,0,null,null,null,null,null,null,null,""]
[null,null,null,null,null,null,0,null,null,null,null,null,null,null,""]
[null,null,null,null,null,null,0,null,null,null,null,null,null,null,""]
[null,null,null,null,null,null,0,null,null,null,null,null,null,null,""]
[null,null,null,null,null,null,0,null,null,null,null,null,null,null,""]
[null,null,null,null,null,null,0,null,null,null,null,null,null,null,""]
[null,null,null,null,null,null,0,null,null,null,null,null,null,null,""]
[null,null,null,null,null,null,0,null,null,null,null,null,null,null,""]
[null,null,null,null,null,null,0,null,null,null,null,null,null,null,""]
[null,null,null,null,null,null,0,null,null,null,null,null,null,null,""]
[null,null,null,null,null,null,0,null,null,null,null,null,null,null,""]
[null,null,null,null,null,null,0,null,null,null,null,null,null,null,""]
[null,null,null,null,null,null,0,null,null,null,null,null,null,null,""]
[null,null,null,null,null,null,0,null,null,null,null,null,null,null,""]
[null,null,null,null,null,null,0,null,null,null,null,null,null,null,""]
[null,null,null,null,null,null,0,null,null,null,null,null,null,null,""]
[null,null,null,null,null,null,0,null,null,null,null,null,null,null,""]
[null,null,null,null,null,null,0,null,null,null,null,null,null,null,""]
[null,null,null,null,null,null,0,null,null,null,null,null,null,null,""]
[null,null,null,null,null,null,0,null,null,null,null,null,null,null,""]
[null,null,null,null,null,null,0,null,null,null,null,null,null,null,""]
[null,null,null,null,null,null,0,null,null,null,null,null,null,null,""]
[null,null,null,null,null,null,0,null,null,null,null,null,null,null,""]
[null,null,null,null,null,null,0,null,null,null,null,null,null,null,""]
[null,null,null,null,null,null,0,null,null,null,null,null,null,null,""]
[null,null,null,null,null,null,0,null,null,null,null,null,null,null,""]
[null,null,null,null,null,null,0,null,null,null,null,null,null,null,""]
[null,null,null,null,null,null,0,null,null,null,null,null,null,null,""]
[null,null,null,null,null,null,0,null,null,null,null,null,null,null,""]
[null,null,null,null,null,null,0,null,null,null,null,null,null,null,""]
[null,null,null,null,null,null,0,null,null,null,null,null,null,null,""]
[null,null,null,null,null,null,0,null,null,null,null,null,null,null,""]
[null,null,null,null,null,null,0,null,null,null,null,null,null,null,""]
[null,null,null,null,null,null,0,null,null,null,null,null,null,null,""]
[null,null,null,null,null,null,0,null,null,null,null,null,null,null,""]
[null,null,null,null,null,null,0,null,null,null,null,null,null,null,""]
[null,null,null,null,null,null,0,null,null,null,null,null,null,null,""]
[null,null,null,null,null,null,0,null,null,null,null,null,null,null,""]
[null,null,null,null,null,null,0,null,null,null,null,null,null,null,""]
[null,null,null,null,null,null,0,null,null,null,null,null,null,null,""]
[null,null,null,null,null,null,0,null,null,null,null,null,null,null,""]
[null,null,null,null,null,null,{"$f":"F397-SUM(H397:N397)","v":0},null,null,null,null,null,null,null,""]
[null,null,null,null,null,null,0,null,null,null,null,null,null,null,""]
[null,null,null,null,null,null,0,null,null,null,null,null,null,null,""]
[null,null,null,null,null,null,0,null,null,null,null,null,null,null,""]
[null,null,null,null,null,null,0,null,null,null,null,null,null,null,""]
[null,null,null,null,null,null,0,null,null,null,null,null,null,null,{"$f":"IF(G402<0,\"Error: Invoice < Funding\",IF(G402>0,\"Error: Invoice > Funding\",IF(G402=0,\"\")))","v":""}]
[null,null,null,null,null,null,0,null,null,null,null,null,null,null,""]
[null,null,null,null,null,null,0,null,null,null,null,null,null,null,""]
[null,null,null,null,null,null,0,null,null,null,null,null,null,null,""]
[null,null,null,null,null,null,0,null,null,null,null,null,null,null,""]
[null,null,null,null,null,null,0,null,null,null,null,null,null,null,""]
[null,null,null,null,null,null,0,null,null,null,null,null,null,null,""]
[null,null,null,null,null,null,0,null,null,null,null,null,null,null,""]
[null,null,null,null,null,null,0,null,null,null,null,null,null,null,""]
[null,null,null,null,null,null,0,null,null,null,null,null,null,null,""]
[null,null,null,null,null,null,0,null,null,null,null,null,null,null,""]
[null,null,null,null,null,null,0,null,null,null,null,null,null,null,""]
[null,null,null,null,null,null,0,null,null,null,null,null,null,null,""]
[null,null,null,null,null,null,0,null,null,null,null,null,null,null,""]
[null,null,null,null,null,null,0,null,null,null,null,null,null,null,""]
[null,null,null,null,null,null,0,null,null,null,null,null,null,null,""]
[null,null,null,null,null,null,0,null,null,null,null,null,null,null,""]
[null,null,null,null,null,null,0,null,null,null,null,null,null,null,""]
[null,null,null,null,null,null,0,null,null,null,null,null,null,null,""]
[null,null,null,null,null,null,0,null,null,null,null,null,null,null,""]
[null,null,null,null,null,null,0,null,null,null,null,null,null,null,""]
[null,null,null,null,null,null,0,null,null,null,null,null,null,null,""]
[null,null,null,null,null,null,0,null,null,null,null,null,null,null,""]
[null,null,null,null,null,null,0,null,null,null,null,null,null,null,""]
[null,null,null,null,null,null,0,null,null,null,null,null,null,null,""]
[null,null,null,null,null,null,0,null,null,null,null,null,null,null,""]
[null,null,null,null,null,null,0,null,null,null,null,null,null,null,""]
[null,null,null,null,null,null,0,null,null,null,null,null,null,null,""]
[null,null,null,null,null,null,0,null,null,null,null,null,null,null,""]
[null,null,null,null,null,null,0,null,null,null,null,null,null,null,""]
[null,null,null,null,null,null,0,null,null,null,null,null,null,null,""]
[null,null,null,null,null,null,0,null,null,null,null,null,null,null,""]
[null,null,null,null,null,null,0,null,null,null,null,null,null,null,""]
[null,null,null,null,null,null,0,null,null,null,null,null,null,null,""]
[null,null,null,null,null,null,0,null,null,null,null,null,null,null,""]
[null,null,null,null,null,null,0,null,null,null,null,null,null,null,""]
[null,null,null,null,null,null,0,null,null,null,null,null,null,null,""]
[null,null,null,null,null,null,0,null,null,null,null,null,null,null,""]
[null,null,null,null,null,null,0,null,null,null,null,null,null,null,""]
[null,null,null,null,null,null,0,null,null,null,null,null,null,null,""]
[null,null,null,null,null,null,0,null,null,null,null,null,null,null,""]
[null,null,null,null,null,null,0,null,null,null,null,null,null,null,""]
[null,null,null,null,null,null,0,null,null,null,null,null,null,null,""]
[null,null,null,null,null,null,0,null,null,null,null,null,null,null,""]
[null,null,null,null,null,null,0,null,null,null,null,null,null,null,""]
[null,null,null,null,null,null,0,null,null,null,null,null,null,null,""]
[null,null,null,null,null,null,0,null,null,null,null,null,null,null,""]
[null,null,null,null,null,null,0,null,null,null,null,null,null,null,""]
[null,null,null,null,null,null,0,null,null,null,null,null,null,null,""]
[null,null,null,null,null,null,0,null,null,null,null,null,null,null,""]
[null,null,null,null,null,null,0,null,null,null,null,null,null,null,""]
[null,null,null,null,null,null,0,null,null,null,null,null,null,null,""]
[null,null,null,null,null,null,0,null,null,null,null,null,null,null,""]
[null,null,null,null,null,null,0,null,null,null,null,null,null,null,""]
[null,null,null,null,null,null,0,null,null,null,null,null,null,null,""]
[null,null,null,null,null,null,0,null,null,null,null,null,null,null,""]
[null,null,null,null,null,null,0,null,null,null,null,null,null,null,""]
[null,null,null,null,null,null,0,null,null,null,null,null,null,null,""]
[null,null,null,null,null,null,0,null,null,null,null,null,null,null,""]
[null,null,null,null,null,null,{"$f":"F461-SUM(H461:N461)","v":0},null,null,null,null,null,null,null,""]
[null,null,null,null,null,null,0,null,null,null,null,null,null,null,""]
[null,null,null,null,null,null,0,null,null,null,null,null,null,null,""]
[null,null,null,null,null,null,0,null,null,null,null,null,null,null,""]
[null,null,null,null,null,null,0,null,null,null,null,null,null,null,""]
[null,null,null,null,null,null,0,null,null,null,null,null,null,null,{"$f":"IF(G466<0,\"Error: Invoice < Funding\",IF(G466>0,\"Error: Invoice > Funding\",IF(G466=0,\"\")))","v":""}]
[null,null,null,null,null,null,0,null,null,null,null,null,null,null,""]
[null,null,null,null,null,null,0,null,null,null,null,null,null,null,""]
[null,null,null,null,null,null,0,null,null,null,null,null,null,null,""]
[null,null,null,null,null,null,0,null,null,null,null,null,null,null,""]
[null,null,null,null,null,null,0,null,null,null,null,null,null,null,""]
[null,null,null,null,null,null,0,null,null,null,null,null,null,null,""]
[null,null,null,null,null,null,0,null,null,null,null,null,null,null,""]
[null,null,null,null,null,null,0,null,null,null,null,null,null,null,""]
[null,null,null,null,null,null,0,null,null,null,null,null,null,null,""]
[null,null,null,null,null,null,0,null,null,null,null,null,null,null,""]
[null,null,null,null,null,null,0,null,null,null,null,null,null,null,""]
[null,null,null,null,null,null,0,null,null,null,null,null,null,null,""]
[null,null,null,null,null,null,0,null,null,null,null,null,null,null,""]
[null,null,null,null,null,null,0,null,null,null,null,null,null,null,""]
[null,null,null,null,null,null,0,null,null,null,null,null,null,null,""]
[null,null,null,null,null,null,0,null,null,null,null,null,null,null,""]
[null,null,null,null,null,null,0,null,null,null,null,null,null,null,""]
[null,null,null,null,null,null,0,null,null,null,null,null,null,null,""]
[null,null,null,null,null,null,0,null,null,null,null,null,null,null,""]
[null,null,null,null,null,null,0,null,null,null,null,null,null,null,""]
[null,null,null,null,null,null,0,null,null,null,null,null,null,null,""]
[null,null,null,null,null,null,0,null,null,null,null,null,null,null,""]
[null,null,null,null,null,null,0,null,null,null,null,null,null,null,""]
[null,null,null,null,null,null,0,null,null,null,null,null,null,null,""]
[null,null,null,null,null,null,0,null,null,null,null,null,null,null,""]
[null,null,null,null,null,null,0,null,null,null,null,null,null,null,""]
[null,null,null,null,null,null,0,null,null,null,null,null,null,null,""]
[null,null,null,null,null,null,0,null,null,null,null,null,null,null,""]
[null,null,null,null,null,null,0,null,null,null,null,null,null,null,""]
[null,null,null,null,null,null,0,null,null,null,null,null,null,null,""]
[null,null,null,null,null,null,0,null,null,null,null,null,null,null,""]
[null,null,null,null,null,null,0,null,null,null,null,null,null,null,""]
[null,null,null,null,null,null,0,null,null,null,null,null,null,null,""]
[null,null,null,null,null,null,0,null,null,null,null,null,null,null,""]
[null,null,null,null,null,null,0,null,null,null,null,null,null,null,""]
[null,null,null,null,null,null,0,null,null,null,null,null,null,null,""]
[null,null,null,null,null,null,0,null,null,null,null,null,null,null,""]
[null,null,null,null,null,null,0,null,null,null,null,null,null,null,""]
[null,null,null,null,null,null,0,null,null,null,null,null,null,null,""]
[null,null,null,null,null,null,0,null,null,null,null,null,null,null,""]
[null,null,null,null,null,null,0,null,null,null,null,null,null,null,""]
[null,null,null,null,null,null,0,null,null,null,null,null,null,null,""]
[null,null,null,null,null,null,0,null,null,null,null,null,null,null,""]
[null,null,null,null,null,null,0,null,null,null,null,null,null,null,""]
[null,null,null,null,null,null,0,null,null,null,null,null,null,null,""]
[null,null,null,null,null,null,0,null,null,null,null,null,null,null,""]
[null,null,null,null,null,null,0,null,null,null,null,null,null,null,""]
[null,null,null,null,null,null,0,null,null,null,null,null,null,null,""]
[null,null,null,null,null,null,0,null,null,null,null,null,null,null,""]
[null,null,null,null,null,null,0,null,null,null,null,null,null,null,""]
[null,null,null,null,null,null,0,null,null,null,null,null,null,null,""]
[null,null,null,null,null,null,0,null,null,null,null,null,null,null,""]
[null,null,null,null,null,null,0,null,null,null,null,null,null,null,""]
[null,null,null,null,null,null,0,null,null,null,null,null,null,null,""]
[null,null,null,null,null,null,0,null,null,null,null,null,null,null,""]
[null,null,null,null,null,null,0,null,null,null,null,null,null,null,""]
[null,null,null,null,null,null,0,null,null,null,null,null,null,null,""]
[null,null,null,null,null,null,0,null,null,null,null,null,null,null,""]
[null,null,null,null,null,null,{"$f":"F525-SUM(H525:N525)","v":0},null,null,null,null,null,null,null,""]
[null,null,null,null,null,null,0,null,null,null,null,null,null,null,""]
[null,null,null,null,null,null,0,null,null,null,null,null,null,null,""]
[null,null,null,null,null,null,0,null,null,null,null,null,null,null,""]
[null,null,null,null,null,null,0,null,null,null,null,null,null,null,""]
[null,null,null,null,null,null,0,null,null,null,null,null,null,null,{"$f":"IF(G530<0,\"Error: Invoice < Funding\",IF(G530>0,\"Error: Invoice > Funding\",IF(G530=0,\"\")))","v":""}]
[null,null,null,null,null,null,0,null,null,null,null,null,null,null,""]
[null,null,null,null,null,null,0,null,null,null,null,null,null,null,""]
[null,null,null,null,null,null,0,null,null,null,null,null,null,null,""]
[null,null,null,null,null,null,0,null,null,null,null,null,null,null,""]
[null,null,null,null,null,null,0,null,null,null,null,null,null,null,""]
[null,null,null,null,null,null,0,null,null,null,null,null,null,null,""]
[null,null,null,null,null,null,0,null,null,null,null,null,null,null,""]
[null,null,null,null,null,null,0,null,null,null,null,null,null,null,""]
[null,null,null,null,null,null,0,null,null,null,null,null,null,null,""]
[null,null,null,null,null,null,0,null,null,null,null,null,null,null,""]
[null,null,null,null,null,null,0,null,null,null,null,null,null,null,""]
[null,null,null,null,null,null,0,null,null,null,null,null,null,null,""]
[null,null,null,null,null,null,0,null,null,null,null,null,null,null,""]
[null,null,null,null,null,null,0,null,null,null,null,null,null,null,""]
[null,null,null,null,null,null,0,null,null,null,null,null,null,null,""]
[null,null,null,null,null,null,0,null,null,null,null,null,null,null,""]
[null,null,null,null,null,null,0,null,null,null,null,null,null,null,""]
[null,null,null,null,null,null,0,null,null,null,null,null,null,null,""]
[null,null,null,null,null,null,0,null,null,null,null,null,null,null,""]
[null,null,null,null,null,null,0,null,null,null,null,null,null,null,""]
[null,null,null,null,null,null,0,null,null,null,null,null,null,null,""]
[null,null,null,null,null,null,0,null,null,null,null,null,null,null,""]
[null,null,null,null,null,null,0,null,null,null,null,null,null,null,""]
[null,null,null,null,null,null,0,null,null,null,null,null,null,null,""]
[null,null,null,null,null,null,0,null,null,null,null,null,null,null,""]
[null,null,null,null,null,null,0,null,null,null,null,null,null,null,""]
[null,null,null,null,null,null,0,null,null,null,null,null,null,null,""]
[null,null,null,null,null,null,0,null,null,null,null,null,null,null,""]
[null,null,null,null,null,null,0,null,null,null,null,null,null,null,""]
[null,null,null,null,null,null,0,null,null,null,null,null,null,null,""]
[null,null,null,null,null,null,0,null,null,null,null,null,null,null,""]
[null,null,null,null,null,null,0,null,null,null,null,null,null,null,""]
[null,null,null,null,null,null,0,null,null,null,null,null,null,null,""]
[null,null,null,null,null,null,0,null,null,null,null,null,null,null,""]
[null,null,null,null,null,null,0,null,null,null,null,null,null,null,""]
[null,null,null,null,null,null,0,null,null,null,null,null,null,null,""]
[null,null,null,null,null,null,0,null,null,null,null,null,null,null,""]
[null,null,null,null,null,null,0,null,null,null,null,null,null,null,""]
[null,null,null,null,null,null,0,null,null,null,null,null,null,null,""]
[null,null,null,null,null,null,0,null,null,null,null,null,null,null,""]
[null,null,null,null,null,null,0,null,null,null,null,null,null,null,""]
[null,null,null,null,null,null,0,null,null,null,null,null,null,null,""]
[null,null,null,null,null,null,0,null,null,null,null,null,null,null,""]
[null,null,null,null,null,null,0,null,null,null,null,null,null,null,""]
[null,null,null,null,null,null,0,null,null,null,null,null,null,null,""]
[null,null,null,null,null,null,0,null,null,null,null,null,null,null,""]
[null,null,null,null,null,null,0,null,null,null,null,null,null,null,""]
[null,null,null,null,null,null,0,null,null,null,null,null,null,null,""]
[null,null,null,null,null,null,0,null,null,null,null,null,null,null,""]
[null,null,null,null,null,null,0,null,null,null,null,null,null,null,""]
[null,null,null,null,null,null,0,null,null,null,null,null,null,null,""]
[null,null,null,null,null,null,0,null,null,null,null,null,null,null,""]
[null,null,null,null,null,null,0,null,null,null,null,null,null,null,""]
[null,null,null,null,null,null,0,null,null,null,null,null,null,null,""]
[null,null,null,null,null,null,0,null,null,null,null,null,null,null,""]
[null,null,null,null,null,null,0,null,null,null,null,null,null,null,""]
[null,null,null,null,null,null,0,null,null,null,null,null,null,null,""]
[null,null,null,null,null,null,0,null,null,null,null,null,null,null,""]
[null,null,null,null,null,null,{"$f":"F589-SUM(H589:N589)","v":0},null,null,null,null,null,null,null,""]
[null,null,null,null,null,null,0,null,null,null,null,null,null,null,""]
[null,null,null,null,null,null,0,null,null,null,null,null,null,null,""]
[null,null,null,null,null,null,0,null,null,null,null,null,null,null,""]
[null,null,null,null,null,null,0,null,null,null,null,null,null,null,""]
[null,null,null,null,null,null,0,null,null,null,null,null,null,null,{"$f":"IF(G594<0,\"Error: Invoice < Funding\",IF(G594>0,\"Error: Invoice > Funding\",IF(G594=0,\"\")))","v":""}]
[null,null,null,null,null,null,0,null,null,null,null,null,null,null,""]
[null,null,null,null,null,null,0,null,null,null,null,null,null,null,""]
[null,null,null,null,null,null,0,null,null,null,null,null,null,null,""]
[null,null,null,null,null,null,0,null,null,null,null,null,null,null,""]
[null,null,null,null,null,null,0,null,null,null,null,null,null,null,""]
[null,null,null,null,null,null,0,null,null,null,null,null,null,null,""]
[null,null,null,null,null,null,0,null,null,null,null,null,null,null,""]
[null,null,null,null,null,null,0,null,null,null,null,null,null,null,""]
[null,null,null,null,null,null,0,null,null,null,null,null,null,null,""]
[null,null,null,null,null,null,0,null,null,null,null,null,null,null,""]
[null,null,null,null,null,null,0,null,null,null,null,null,null,null,""]
[null,null,null,null,null,null,0,null,null,null,null,null,null,null,""]
[null,null,null,null,null,null,0,null,null,null,null,null,null,null,""]
[null,null,null,null,null,null,0,null,null,null,null,null,null,null,""]
[null,null,null,null,null,null,0,null,null,null,null,null,null,null,""]
[null,null,null,null,null,null,0,null,null,null,null,null,null,null,""]
[null,null,null,null,null,null,0,null,null,null,null,null,null,null,""]
[null,null,null,null,null,null,0,null,null,null,null,null,null,null,""]
[null,null,null,null,null,null,0,null,null,null,null,null,null,null,""]
[null,null,null,null,null,null,0,null,null,null,null,null,null,null,""]
[null,null,null,null,null,null,0,null,null,null,null,null,null,null,""]
[null,null,null,null,null,null,0,null,null,null,null,null,null,null,""]
[null,null,null,null,null,null,0,null,null,null,null,null,null,null,""]
[null,null,null,null,null,null,0,null,null,null,null,null,null,null,""]
[null,null,null,null,null,null,0,null,null,null,null,null,null,null,""]
[null,null,null,null,null,null,0,null,null,null,null,null,null,null,""]
[null,null,null,null,null,null,0,null,null,null,null,null,null,null,""]
[null,null,null,null,null,null,0,null,null,null,null,null,null,null,""]
[null,null,null,null,null,null,0,null,null,null,null,null,null,null,""]
[null,null,null,null,null,null,0,null,null,null,null,null,null,null,""]
[null,null,null,null,null,null,0,null,null,null,null,null,null,null,""]
[null,null,null,null,null,null,0,null,null,null,null,null,null,null,""]
[null,null,null,null,null,null,0,null,null,null,null,null,null,null,""]
[null,null,null,null,null,null,0,null,null,null,null,null,null,null,""]
[null,null,null,null,null,null,0,null,null,null,null,null,null,null,""]
[null,null,null,null,null,null,0,null,null,null,null,null,null,null,""]
[null,null,null,null,null,null,0,null,null,null,null,null,null,null,""]
[null,null,null,null,null,null,0,null,null,null,null,null,null,null,""]
[null,null,null,null,null,null,0,null,null,null,null,null,null,null,""]
[null,null,null,null,null,null,0,null,null,null,null,null,null,null,""]
[null,null,null,null,null,null,0,null,null,null,null,null,null,null,""]
[null,null,null,null,null,null,0,null,null,null,null,null,null,null,""]
[null,null,null,null,null,null,0,null,null,null,null,null,null,null,""]
[null,null,null,null,null,null,0,null,null,null,null,null,null,null,""]
[null,null,null,null,null,null,0,null,null,null,null,null,null,null,""]
[null,null,null,null,null,null,0,null,null,null,null,null,null,null,""]
[null,null,null,null,null,null,0,null,null,null,null,null,null,null,""]
[null,null,null,null,null,null,0,null,null,null,null,null,null,null,""]
[null,null,null,null,null,null,0,null,null,null,null,null,null,null,""]
[null,null,null,null,null,null,0,null,null,null,null,null,null,null,""]
[null,null,null,null,null,null,0,null,null,null,null,null,null,null,""]
[null,null,null,null,null,null,0,null,null,null,null,null,null,null,""]
[null,null,null,null,null,null,0,null,null,null,null,null,null,null,""]
[null,null,null,null,null,null,0,null,null,null,null,null,null,null,""]
[null,null,null,null,null,null,0,null,null,null,null,null,null,null,""]
[null,null,null,null,null,null,0,null,null,null,null,null,null,null,""]
[null,null,null,null,null,null,0,null,null,null,null,null,null,null,""]
[null,null,null,null,null,null,0,null,null,null,null,null,null,null,""]
[null,null,null,null,null,null,{"$f":"F653-SUM(H653:N653)","v":0},null,null,null,null,null,null,null,""]
[null,null,null,null,null,null,0,null,null,null,null,null,null,null,""]
[null,null,null,null,null,null,0,null,null,null,null,null,null,null,""]
[null,null,null,null,null,null,0,null,null,null,null,null,null,null,""]
[null,null,null,null,null,null,0,null,null,null,null,null,null,null,""]
[null,null,null,null,null,null,0,null,null,null,null,null,null,null,{"$f":"IF(G658<0,\"Error: Invoice < Funding\",IF(G658>0,\"Error: Invoice > Funding\",IF(G658=0,\"\")))","v":""}]
[null,null,null,null,null,null,0,null,null,null,null,null,null,null,""]
[null,null,null,null,null,null,0,null,null,null,null,null,null,null,""]
[null,null,null,null,null,null,0,null,null,null,null,null,null,null,""]
[null,null,null,null,null,null,0,null,null,null,null,null,null,null,""]
[null,null,null,null,null,null,0,null,null,null,null,null,null,null,""]
[null,null,null,null,null,null,0,null,null,null,null,null,null,null,""]
[null,null,null,null,null,null,0,null,null,null,null,null,null,null,""]
[null,null,null,null,null,null,0,null,null,null,null,null,null,null,""]
[null,null,null,null,null,null,0,null,null,null,null,null,null,null,""]
[null,null,null,null,null,null,0,null,null,null,null,null,null,null,""]
[null,null,null,null,null,null,0,null,null,null,null,null,null,null,""]
[null,null,null,null,null,null,0,null,null,null,null,null,null,null,""]
[null,null,null,null,null,null,0,null,null,null,null,null,null,null,""]
[null,null,null,null,null,null,0,null,null,null,null,null,null,null,""]
[null,null,null,null,null,null,0,null,null,null,null,null,null,null,""]
[null,null,null,null,null,null,0,null,null,null,null,null,null,null,""]
[null,null,null,null,null,null,0,null,null,null,null,null,null,null,""]
[null,null,null,null,null,null,0,null,null,null,null,null,null,null,""]
[null,null,null,null,null,null,0,null,null,null,null,null,null,null,""]
[null,null,null,null,null,null,0,null,null,null,null,null,null,null,""]
[null,null,null,null,null,null,0,null,null,null,null,null,null,null,""]
[null,null,null,null,null,null,0,null,null,null,null,null,null,null,""]
[null,null,null,null,null,null,0,null,null,null,null,null,null,null,""]
[null,null,null,null,null,null,0,null,null,null,null,null,null,null,""]
[null,null,null,null,null,null,0,null,null,null,null,null,null,null,""]
[null,null,null,null,null,null,0,null,null,null,null,null,null,null,""]
[null,null,null,null,null,null,0,null,null,null,null,null,null,null,""]
[null,null,null,null,null,null,0,null,null,null,null,null,null,null,""]
[null,null,null,null,null,null,0,null,null,null,null,null,null,null,""]
[null,null,null,null,null,null,0,null,null,null,null,null,null,null,""]
[null,null,null,null,null,null,0,null,null,null,null,null,null,null,""]
[null,null,null,null,null,null,0,null,null,null,null,null,null,null,""]
[null,null,null,null,null,null,0,null,null,null,null,null,null,null,""]
[null,null,null,null,null,null,0,null,null,null,null,null,null,null,""]
[null,null,null,null,null,null,0,null,null,null,null,null,null,null,""]
[null,null,null,null,null,null,0,null,null,null,null,null,null,null,""]
[null,null,null,null,null,null,0,null,null,null,null,null,null,null,""]
[null,null,null,null,null,null,0,null,null,null,null,null,null,null,""]
[null,null,null,null,null,null,0,null,null,null,null,null,null,null,""]
[null,null,null,null,null,null,0,null,null,null,null,null,null,null,""]
[null,null,null,null,null,null,0,null,null,null,null,null,null,null,""]
[null,null,null,null,null,null,0,null,null,null,null,null,null,null,""]
[null,null,null,null,null,null,0,null,null,null,null,null,null,null,""]
[null,null,null,null,null,null,0,null,null,null,null,null,null,null,""]
[null,null,null,null,null,null,0,null,null,null,null,null,null,null,""]
[null,null,null,null,null,null,0,null,null,null,null,null,null,null,""]
[null,null,null,null,null,null,0,null,null,null,null,null,null,null,""]
[null,null,null,null,null,null,0,null,null,null,null,null,null,null,""]
[null,null,null,null,null,null,0,null,null,null,null,null,null,null,""]
[null,null,null,null,null,null,0,null,null,null,null,null,null,null,""]
[null,null,null,null,null,null,0,null,null,null,null,null,null,null,""]
[null,null,null,null,null,null,0,null,null,null,null,null,null,null,""]
[null,null,null,null,null,null,0,null,null,null,null,null,null,null,""]
[null,null,null,null,null,null,0,null,null,null,null,null,null,null,""]
[null,null,null,null,null,null,0,null,null,null,null,null,null,null,""]
[null,null,null,null,null,null,0,null,null,null,null,null,null,null,""]
[null,null,null,null,null,null,0,null,null,null,null,null,null,null,""]
[null,null,null,null,null,null,0,null,null,null,null,null,null,null,""]
[null,null,null,null,null,null,{"$f":"F717-SUM(H717:N717)","v":0},null,null,null,null,null,null,null,""]
[null,null,null,null,null,null,0,null,null,null,null,null,null,null,""]
[null,null,null,null,null,null,0,null,null,null,null,null,null,null,""]
[null,null,null,null,null,null,0,null,null,null,null,null,null,null,""]
[null,null,null,null,null,null,0,null,null,null,null,null,null,null,""]
[null,null,null,null,null,null,0,null,null,null,null,null,null,null,{"$f":"IF(G722<0,\"Error: Invoice < Funding\",IF(G722>0,\"Error: Invoice > Funding\",IF(G722=0,\"\")))","v":""}]
[null,null,null,null,null,null,0,null,null,null,null,null,null,null,""]
[null,null,null,null,null,null,0,null,null,null,null,null,null,null,""]
[null,null,null,null,null,null,0,null,null,null,null,null,null,null,""]
[null,null,null,null,null,null,0,null,null,null,null,null,null,null,""]
[null,null,null,null,null,null,0,null,null,null,null,null,null,null,""]
[null,null,null,null,null,null,0,null,null,null,null,null,null,null,""]
[null,null,null,null,null,null,0,null,null,null,null,null,null,null,""]
[null,null,null,null,null,null,0,null,null,null,null,null,null,null,""]
[null,null,null,null,null,null,0,null,null,null,null,null,null,null,""]
[null,null,null,null,null,null,0,null,null,null,null,null,null,null,""]
[null,null,null,null,null,null,0,null,null,null,null,null,null,null,""]
[null,null,null,null,null,null,0,null,null,null,null,null,null,null,""]
[null,null,null,null,null,null,0,null,null,null,null,null,null,null,""]
[null,null,null,null,null,null,0,null,null,null,null,null,null,null,""]
[null,null,null,null,null,null,0,null,null,null,null,null,null,null,""]
[null,null,null,null,null,null,0,null,null,null,null,null,null,null,""]
[null,null,null,null,null,null,0,null,null,null,null,null,null,null,""]
[null,null,null,null,null,null,0,null,null,null,null,null,null,null,""]
[null,null,null,null,null,null,0,null,null,null,null,null,null,null,""]
[null,null,null,null,null,null,0,null,null,null,null,null,null,null,""]
[null,null,null,null,null,null,0,null,null,null,null,null,null,null,""]
[null,null,null,null,null,null,0,null,null,null,null,null,null,null,""]
[null,null,null,null,null,null,0,null,null,null,null,null,null,null,""]
[null,null,null,null,null,null,0,null,null,null,null,null,null,null,""]
[null,null,null,null,null,null,0,null,null,null,null,null,null,null,""]
[null,null,null,null,null,null,0,null,null,null,null,null,null,null,""]
[null,null,null,null,null,null,0,null,null,null,null,null,null,null,""]
[null,null,null,null,null,null,0,null,null,null,null,null,null,null,""]
[null,null,null,null,null,null,0,null,null,null,null,null,null,null,""]
[null,null,null,null,null,null,0,null,null,null,null,null,null,null,""]
[null,null,null,null,null,null,0,null,null,null,null,null,null,null,""]
[null,null,null,null,null,null,0,null,null,null,null,null,null,null,""]
[null,null,null,null,null,null,0,null,null,null,null,null,null,null,""]
[null,null,null,null,null,null,0,null,null,null,null,null,null,null,""]
[null,null,null,null,null,null,0,null,null,null,null,null,null,null,""]
[null,null,null,null,null,null,0,null,null,null,null,null,null,null,""]
[null,null,null,null,null,null,0,null,null,null,null,null,null,null,""]
[null,null,null,null,null,null,0,null,null,null,null,null,null,null,""]
[null,null,null,null,null,null,0,null,null,null,null,null,null,null,""]
[null,null,null,null,null,null,0,null,null,null,null,null,null,null,""]
[null,null,null,null,null,null,0,null,null,null,null,null,null,null,""]
[null,null,null,null,null,null,0,null,null,null,null,null,null,null,""]
[null,null,null,null,null,null,0,null,null,null,null,null,null,null,""]
[null,null,null,null,null,null,0,null,null,null,null,null,null,null,""]
[null,null,null,null,null,null,0,null,null,null,null,null,null,null,""]
[null,null,null,null,null,null,0,null,null,null,null,null,null,null,""]
[null,null,null,null,null,null,0,null,null,null,null,null,null,null,""]
[null,null,null,null,null,null,0,null,null,null,null,null,null,null,""]
[null,null,null,null,null,null,0,null,null,null,null,null,null,null,""]
[null,null,null,null,null,null,0,null,null,null,null,null,null,null,""]
[null,null,null,null,null,null,0,null,null,null,null,null,null,null,""]
[null,null,null,null,null,null,0,null,null,null,null,null,null,null,""]
[null,null,null,null,null,null,0,null,null,null,null,null,null,null,""]
[null,null,null,null,null,null,0,null,null,null,null,null,null,null,""]
[null,null,null,null,null,null,0,null,null,null,null,null,null,null,""]
[null,null,null,null,null,null,0,null,null,null,null,null,null,null,""]
[null,null,null,null,null,null,0,null,null,null,null,null,null,null,""]
[null,null,null,null,null,null,0,null,null,null,null,null,null,null,""]
[null,null,null,null,null,null,{"$f":"F781-SUM(H781:N781)","v":0},null,null,null,null,null,null,null,""]
[null,null,null,null,null,null,0,null,null,null,null,null,null,null,""]
[null,null,null,null,null,null,0,null,null,null,null,null,null,null,""]
[null,null,null,null,null,null,0,null,null,null,null,null,null,null,""]
[null,null,null,null,null,null,0,null,null,null,null,null,null,null,""]
[null,null,null,null,null,null,0,null,null,null,null,null,null,null,{"$f":"IF(G786<0,\"Error: Invoice < Funding\",IF(G786>0,\"Error: Invoice > Funding\",IF(G786=0,\"\")))","v":""}]
[null,null,null,null,null,null,0,null,null,null,null,null,null,null,""]
[null,null,null,null,null,null,0,null,null,null,null,null,null,null,""]
[null,null,null,null,null,null,0,null,null,null,null,null,null,null,""]
[null,null,null,null,null,null,0,null,null,null,null,null,null,null,""]
[null,null,null,null,null,null,0,null,null,null,null,null,null,null,""]
[null,null,null,null,null,null,0,null,null,null,null,null,null,null,""]
[null,null,null,null,null,null,0,null,null,null,null,null,null,null,""]
[null,null,null,null,null,null,0,null,null,null,null,null,null,null,""]
[null,null,null,null,null,null,0,null,null,null,null,null,null,null,""]
[null,null,null,null,null,null,0,null,null,null,null,null,null,null,""]
[null,null,null,null,null,null,0,null,null,null,null,null,null,null,""]
[null,null,null,null,null,null,0,null,null,null,null,null,null,null,""]
[null,null,null,null,null,null,0,null,null,null,null,null,null,null,""]
[null,null,null,null,null,null,0,null,null,null,null,null,null,null,""]
[null,null,null,null,null,null,0,null,null,null,null,null,null,null,""]
[null,null,null,null,null,null,0,null,null,null,null,null,null,null,""]
[null,null,null,null,null,null,0,null,null,null,null,null,null,null,""]
[null,null,null,null,null,null,0,null,null,null,null,null,null,null,""]
[null,null,null,null,null,null,0,null,null,null,null,null,null,null,""]
[null,null,null,null,null,null,0,null,null,null,null,null,null,null,""]
[null,null,null,null,null,null,0,null,null,null,null,null,null,null,""]
[null,null,null,null,null,null,0,null,null,null,null,null,null,null,""]
[null,null,null,null,null,null,0,null,null,null,null,null,null,null,""]
[null,null,null,null,null,null,0,null,null,null,null,null,null,null,""]
[null,null,null,null,null,null,0,null,null,null,null,null,null,null,""]
[null,null,null,null,null,null,0,null,null,null,null,null,null,null,""]
[null,null,null,null,null,null,0,null,null,null,null,null,null,null,""]
[null,null,null,null,null,null,0,null,null,null,null,null,null,null,""]
[null,null,null,null,null,null,0,null,null,null,null,null,null,null,""]
[null,null,null,null,null,null,0,null,null,null,null,null,null,null,""]
[null,null,null,null,null,null,0,null,null,null,null,null,null,null,""]
[null,null,null,null,null,null,0,null,null,null,null,null,null,null,""]
[null,null,null,null,null,null,0,null,null,null,null,null,null,null,""]
[null,null,null,null,null,null,0,null,null,null,null,null,null,null,""]
[null,null,null,null,null,null,0,null,null,null,null,null,null,null,""]
[null,null,null,null,null,null,0,null,null,null,null,null,null,null,""]
[null,null,null,null,null,null,0,null,null,null,null,null,null,null,""]
[null,null,null,null,null,null,0,null,null,null,null,null,null,null,""]
[null,null,null,null,null,null,0,null,null,null,null,null,null,null,""]
[null,null,null,null,null,null,0,null,null,null,null,null,null,null,""]
[null,null,null,null,null,null,0,null,null,null,null,null,null,null,""]
[null,null,null,null,null,null,0,null,null,null,null,null,null,null,""]
[null,null,null,null,null,null,0,null,null,null,null,null,null,null,""]
[null,null,null,null,null,null,0,null,null,null,null,null,null,null,""]
[null,null,null,null,null,null,0,null,null,null,null,null,null,null,""]
[null,null,null,null,null,null,0,null,null,null,null,null,null,null,""]
[null,null,null,null,null,null,0,null,null,null,null,null,null,null,""]
[null,null,null,null,null,null,0,null,null,null,null,null,null,null,""]
[null,null,null,null,null,null,0,null,null,null,null,null,null,null,""]
[null,null,null,null,null,null,0,null,null,null,null,null,null,null,""]
[null,null,null,null,null,null,0,null,null,null,null,null,null,null,""]
[null,null,null,null,null,null,0,null,null,null,null,null,null,null,""]
[null,null,null,null,null,null,0,null,null,null,null,null,null,null,""]
[null,null,null,null,null,null,0,null,null,null,null,null,null,null,""]
[null,null,null,null,null,null,0,null,null,null,null,null,null,null,""]
[null,null,null,null,null,null,0,null,null,null,null,null,null,null,""]
[null,null,null,null,null,null,0,null,null,null,null,null,null,null,""]
[null,null,null,null,null,null,0,null,null,null,null,null,null,null,""]
[null,null,null,null,null,null,{"$f":"F845-SUM(H845:N845)","v":0},null,null,null,null,null,null,null,""]
[null,null,null,null,null,null,0,null,null,null,null,null,null,null,""]
[null,null,null,null,null,null,0,null,null,null,null,null,null,null,""]
[null,null,null,null,null,null,0,null,null,null,null,null,null,null,""]
[null,null,null,null,null,null,0,null,null,null,null,null,null,null,""]
[null,null,null,null,null,null,0,null,null,null,null,null,null,null,{"$f":"IF(G850<0,\"Error: Invoice < Funding\",IF(G850>0,\"Error: Invoice > Funding\",IF(G850=0,\"\")))","v":""}]
[null,null,null,null,null,null,0,null,null,null,null,null,null,null,""]
[null,null,null,null,null,null,0,null,null,null,null,null,null,null,""]
[null,null,null,null,null,null,0,null,null,null,null,null,null,null,""]
[null,null,null,null,null,null,0,null,null,null,null,null,null,null,""]
[null,null,null,null,null,null,0,null,null,null,null,null,null,null,""]
[null,null,null,null,null,null,0,null,null,null,null,null,null,null,""]
[null,null,null,null,null,null,0,null,null,null,null,null,null,null,""]
[null,null,null,null,null,null,0,null,null,null,null,null,null,null,""]
[null,null,null,null,null,null,0,null,null,null,null,null,null,null,""]
[null,null,null,null,null,null,0,null,null,null,null,null,null,null,""]
[null,null,null,null,null,null,0,null,null,null,null,null,null,null,""]
[null,null,null,null,null,null,0,null,null,null,null,null,null,null,""]
[null,null,null,null,null,null,0,null,null,null,null,null,null,null,""]
[null,null,null,null,null,null,0,null,null,null,null,null,null,null,""]
[null,null,null,null,null,null,0,null,null,null,null,null,null,null,""]
[null,null,null,null,null,null,0,null,null,null,null,null,null,null,""]
[null,null,null,null,null,null,0,null,null,null,null,null,null,null,""]
[null,null,null,null,null,null,0,null,null,null,null,null,null,null,""]
[null,null,null,null,null,null,0,null,null,null,null,null,null,null,""]
[null,null,null,null,null,null,0,null,null,null,null,null,null,null,""]
[null,null,null,null,null,null,0,null,null,null,null,null,null,null,""]
[null,null,null,null,null,null,0,null,null,null,null,null,null,null,""]
[null,null,null,null,null,null,0,null,null,null,null,null,null,null,""]
[null,null,null,null,null,null,0,null,null,null,null,null,null,null,""]
[null,null,null,null,null,null,0,null,null,null,null,null,null,null,""]
[null,null,null,null,null,null,0,null,null,null,null,null,null,null,""]
[null,null,null,null,null,null,0,null,null,null,null,null,null,null,""]
[null,null,null,null,null,null,0,null,null,null,null,null,null,null,""]
[null,null,null,null,null,null,0,null,null,null,null,null,null,null,""]
[null,null,null,null,null,null,0,null,null,null,null,null,null,null,""]
[null,null,null,null,null,null,0,null,null,null,null,null,null,null,""]
[null,null,null,null,null,null,0,null,null,null,null,null,null,null,""]
[null,null,null,null,null,null,0,null,null,null,null,null,null,null,""]
[null,null,null,null,null,null,0,null,null,null,null,null,null,null,""]
[null,null,null,null,null,null,0,null,null,null,null,null,null,null,""]
[null,null,null,null,null,null,0,null,null,null,null,null,null,null,""]
[null,null,null,null,null,null,0,null,null,null,null,null,null,null,""]
[null,null,null,null,null,null,0,null,null,null,null,null,null,null,""]
[null,null,null,null,null,null,0,null,null,null,null,null,null,null,""]
[null,null,null,null,null,null,0,null,null,null,null,null,null,null,""]
[null,null,null,null,null,null,0,null,null,null,null,null,null,null,""]
[null,null,null,null,null,null,0,null,null,null,null,null,null,null,""]
[null,null,null,null,null,null,0,null,null,null,null,null,null,null,""]
[null,null,null,null,null,null,0,null,null,null,null,null,null,null,""]
[null,null,null,null,null,null,0,null,null,null,null,null,null,null,""]
[null,null,null,null,null,null,0,null,null,null,null,null,null,null,""]
[null,null,null,null,null,null,0,null,null,null,null,null,null,null,""]
[null,null,null,null,null,null,0,null,null,null,null,null,null,null,""]
[null,null,null,null,null,null,0,null,null,null,null,null,null,null,""]
[null,null,null,null,null,null,0,null,null,null,null,null,null,null,""]
[null,null,null,null,null,null,0,null,null,null,null,null,null,null,""]
[null,null,null,null,null,null,0,null,null,null,null,null,null,null,""]
[null,null,null,null,null,null,0,null,null,null,null,null,null,null,""]
[null,null,null,null,null,null,0,null,null,null,null,null,null,null,""]
[null,null,null,null,null,null,0,null,null,null,null,null,null,null,""]
[null,null,null,null,null,null,0,null,null,null,null,null,null,null,""]
[null,null,null,null,null,null,0,null,null,null,null,null,null,null,""]
[null,null,null,null,null,null,0,null,null,null,null,null,null,null,""]
[null,null,null,null,null,null,{"$f":"F909-SUM(H909:N909)","v":0},null,null,null,null,null,null,null,""]
[null,null,null,null,null,null,0,null,null,null,null,null,null,null,""]
[null,null,null,null,null,null,0,null,null,null,null,null,null,null,""]
[null,null,null,null,null,null,0,null,null,null,null,null,null,null,""]
[null,null,null,null,null,null,0,null,null,null,null,null,null,null,""]
[null,null,null,null,null,null,0,null,null,null,null,null,null,null,{"$f":"IF(G914<0,\"Error: Invoice < Funding\",IF(G914>0,\"Error: Invoice > Funding\",IF(G914=0,\"\")))","v":""}]
[null,null,null,null,null,null,0,null,null,null,null,null,null,null,""]
[null,null,null,null,null,null,0,null,null,null,null,null,null,null,""]
[null,null,null,null,null,null,0,null,null,null,null,null,null,null,""]
[null,null,null,null,null,null,0,null,null,null,null,null,null,null,""]
[null,null,null,null,null,null,0,null,null,null,null,null,null,null,""]
[null,null,null,null,null,null,0,null,null,null,null,null,null,null,""]
[null,null,null,null,null,null,0,null,null,null,null,null,null,null,""]
[null,null,null,null,null,null,0,null,null,null,null,null,null,null,""]
[null,null,null,null,null,null,0,null,null,null,null,null,null,null,""]
[null,null,null,null,null,null,0,null,null,null,null,null,null,null,""]
[null,null,null,null,null,null,0,null,null,null,null,null,null,null,""]
[null,null,null,null,null,null,0,null,null,null,null,null,null,null,""]
[null,null,null,null,null,null,0,null,null,null,null,null,null,null,""]
[null,null,null,null,null,null,0,null,null,null,null,null,null,null,""]
[null,null,null,null,null,null,0,null,null,null,null,null,null,null,""]
[null,null,null,null,null,null,0,null,null,null,null,null,null,null,""]
[null,null,null,null,null,null,0,null,null,null,null,null,null,null,""]
[null,null,null,null,null,null,0,null,null,null,null,null,null,null,""]
[null,null,null,null,null,null,0,null,null,null,null,null,null,null,""]
[null,null,null,null,null,null,0,null,null,null,null,null,null,null,""]
[null,null,null,null,null,null,0,null,null,null,null,null,null,null,""]
[null,null,null,null,null,null,0,null,null,null,null,null,null,null,""]
[null,null,null,null,null,null,0,null,null,null,null,null,null,null,""]
[null,null,null,null,null,null,0,null,null,null,null,null,null,null,""]
[null,null,null,null,null,null,0,null,null,null,null,null,null,null,""]
[null,null,null,null,null,null,0,null,null,null,null,null,null,null,""]
[null,null,null,null,null,null,0,null,null,null,null,null,null,null,""]
[null,null,null,null,null,null,0,null,null,null,null,null,null,null,""]
[null,null,null,null,null,null,0,null,null,null,null,null,null,null,""]
[null,null,null,null,null,null,0,null,null,null,null,null,null,null,""]
[null,null,null,null,null,null,0,null,null,null,null,null,null,null,""]
[null,null,null,null,null,null,0,null,null,null,null,null,null,null,""]
[null,null,null,null,null,null,0,null,null,null,null,null,null,null,""]
[null,null,null,null,null,null,0,null,null,null,null,null,null,null,""]
[null,null,null,null,null,null,0,null,null,null,null,null,null,null,""]
[null,null,null,null,null,null,0,null,null,null,null,null,null,null,""]
[null,null,null,null,null,null,0,null,null,null,null,null,null,null,""]
[null,null,null,null,null,null,0,null,null,null,null,null,null,null,""]
[null,null,null,null,null,null,0,null,null,null,null,null,null,null,""]
[null,null,null,null,null,null,0,null,null,null,null,null,null,null,""]
[null,null,null,null,null,null,0,null,null,null,null,null,null,null,""]
[null,null,null,null,null,null,0,null,null,null,null,null,null,null,""]
[null,null,null,null,null,null,0,null,null,null,null,null,null,null,""]
[null,null,null,null,null,null,0,null,null,null,null,null,null,null,""]
[null,null,null,null,null,null,0,null,null,null,null,null,null,null,""]
[null,null,null,null,null,null,0,null,null,null,null,null,null,null,""]
[null,null,null,null,null,null,0,null,null,null,null,null,null,null,""]
[null,null,null,null,null,null,0,null,null,null,null,null,null,null,""]
[null,null,null,null,null,null,0,null,null,null,null,null,null,null,""]
[null,null,null,null,null,null,0,null,null,null,null,null,null,null,""]
[null,null,null,null,null,null,0,null,null,null,null,null,null,null,""]
[null,null,null,null,null,null,0,null,null,null,null,null,null,null,""]
[null,null,null,null,null,null,0,null,null,null,null,null,null,null,""]
[null,null,null,null,null,null,0,null,null,null,null,null,null,null,""]
[null,null,null,null,null,null,0,null,null,null,null,null,null,null,""]
[null,null,null,null,null,null,0,null,null,null,null,null,null,null,""]
[null,null,null,null,null,null,0,null,null,null,null,null,null,null,""]
[null,null,null,null,null,null,0,null,null,null,null,null,null,null,""]
[null,null,null,null,null,null,{"$f":"F973-SUM(H973:N973)","v":0},null,null,null,null,null,null,null,""]
[null,null,null,null,null,null,0,null,null,null,null,null,null,null,""]
[null,null,null,null,null,null,0,null,null,null,null,null,null,null,""]
[null,null,null,null,null,null,0,null,null,null,null,null,null,null,""]
[null,null,null,null,null,null,0,null,null,null,null,null,null,null,""]
[null,null,null,null,null,null,0,null,null,null,null,null,null,null,{"$f":"IF(G978<0,\"Error: Invoice < Funding\",IF(G978>0,\"Error: Invoice > Funding\",IF(G978=0,\"\")))","v":""}]
[null,null,null,null,null,null,0,null,null,null,null,null,null,null,""]
[null,null,null,null,null,null,0,null,null,null,null,null,null,null,""]
[null,null,null,null,null,null,0,null,null,null,null,null,null,null,""]
[null,null,null,null,null,null,0,null,null,null,null,null,null,null,""]
[null,null,null,null,null,null,0,null,null,null,null,null,null,null,""]
[null,null,null,null,null,null,0,null,null,null,null,null,null,null,""]
[null,null,null,null,null,null,0,null,null,null,null,null,null,null,""]
[null,null,null,null,null,null,0,null,null,null,null,null,null,null,""]
[null,null,null,null,null,null,0,null,null,null,null,null,null,null,""]
[null,null,null,null,null,null,0,null,null,null,null,null,null,null,""]
[null,null,null,null,null,null,0,null,null,null,null,null,null,null,""]
[null,null,null,null,null,null,{"$f":"F990-SUM(H990:N990)","v":0},null,null,null,null,null,null,null,""]
[null,null,null,null,null,null,0,null,null,null,null,null,null,null,""]
[null,null,null,null,null,null,0,null,null,null,null,null,null,null,""]
[null,null,null,null,null,null,0,null,null,null,null,null,null,null,""]
[null,null,null,null,null,null,0,null,null,null,null,null,null,null,""]
[null,null,null,null,null,null,0,null,null,null,null,null,null,null,""]
[null,null,null,null,null,null,0,null,null,null,null,null,null,null,""]
[null,null,null,null,null,null,0,null,null,null,null,null,null,null,""]
[null,null,null,null,null,null,0,null,null,null,null,null,null,null,""]
[null,null,null,null,null,null,0,null,null,null,null,null,null,null,""]
[null,null,null,null,null,null,{"$f":"F1000-SUM(H1000:N1000)","v":0},null,null,null,null,null,null,null,{"$f":"IF(G1000<0,\"Error: Invoice < Funding\",IF(G1000>0,\"Error: Invoice > Funding\",IF(G1000=0,\"\")))","v":""}]

{"sheet":"Draw Form Page 1","index":3,"n_rows":58,"n_cols":9,"rows_kept":58,"cut":false,"hidden":false,"merged":[[57,0,57,8],[0,0,0,8],[1,0,1,8],[2,3,2,5],[2,7,2,8],[3,3,3,5],[3,7,3,8],[32,0,32,8],[5,0,5,4],[5,5,5,8],[6,0,6,8],[7,0,8,8],[10,0,10,1],[10,5,10,8],[11,0,11,4],[11,5,11,8],[13,0,13,8],[28,1,28,4],[30,0,30,8],[49,0,49,8],[50,0,50,8],[51,0,51,8],[41,1,41,4],[43,0,43,7],[44,0,44,8],[45,1,45,2],[45,3,45,5],[45,7,45,8],[47,0,47,7]]}
["EXHIBIT B"]
["REQUEST FOR REIMBURSEMENT AND PROJECT STATUS REPORT"]
["Borrower:",null,null,{"$f":"'Start Here - Instructions'!B7","v":0},null,null,"Date:",{"$f":"TODAY()","v":"2019-06-27"}]
["WX/SX Number:",null,null,{"$f":"CONCATENATE('Start Here - Instructions'!B8,\" \",'Start Here - Instructions'!D8)","v":"SX "},null,null,"KIA Loan #:",{"$f":"'Start Here - Instructions'!B9","v":0}]
[]
["Project Status:",null,null,null,null,"On Schedule"]
[{"$f":"IF(F6=\"Behind Schedule\",\"If project is behind schedule, please explain below:\",\"\")","v":""}]
[]
[]
[]
[{"$f":"IF('Start Here - Instructions'!E23=\"Yes\",\"FINAL\",\"\")","v":""},null,"Draw Number:",null,null,1]
["Funds Requested:",null,null,null,null,{"$f":"H35","v":0}]
[]
["Project Budget and Expenses"]
[null,null,"Cost",null,null,"Project Budget ","Expenses (excluding this request)","Expenses This Request","Balance After Draw"]
[null,{"$f":"Budget!B8","v":"Administrative"},null,null,null,{"$f":"Budget!K8","v":1},{"$f":"SUMPRODUCT(--(NOT(Expenses!$A$13:$A$1000='Draw Form Page 1'!$F$11))*(Expenses!$B$13:$B$1000='Draw Form Page 1'!$B16),Expenses!$F$13:$F$1000)","v":0},{"$f":"SUMPRODUCT(--(Expenses!$A$13:$A$1000='Draw Form Page 1'!$F$11)*(Expenses!$B$13:$B$1000='Draw Form Page 1'!$B16),Expenses!$F$13:$F$1000)","v":0},{"$f":"+F16-G16-H16","v":1}]
[null,{"$f":"Budget!B9","v":"Legal"},null,null,null,{"$f":"Budget!K9","v":0},{"$f":"SUMPRODUCT(--(NOT(Expenses!$A$13:$A$1000='Draw Form Page 1'!$F$11))*(Expenses!$B$13:$B$1000='Draw Form Page 1'!$B17),Expenses!$F$13:$F$1000)","v":0},{"$f":"SUMPRODUCT(--(Expenses!$A$13:$A$1000='Draw Form Page 1'!$F$11)*(Expenses!$B$13:$B$1000='Draw Form Page 1'!$B17),Expenses!$F$13:$F$1000)","v":0},{"$f":"+F17-G17-H17","v":0}]
[null,{"$f":"Budget!B10","v":"Land/Appraisals/Easements/Rights of Way"},null,null,null,{"$f":"Budget!K10","v":0},{"$f":"SUMPRODUCT(--(NOT(Expenses!$A$13:$A$1000='Draw Form Page 1'!$F$11))*(Expenses!$B$13:$B$1000='Draw Form Page 1'!$B18),Expenses!$F$13:$F$1000)","v":0},{"$f":"SUMPRODUCT(--(Expenses!$A$13:$A$1000='Draw Form Page 1'!$F$11)*(Expenses!$B$13:$B$1000='Draw Form Page 1'!$B18),Expenses!$F$13:$F$1000)","v":0},0]
[null,{"$f":"Budget!B11","v":"Relocation Expense"},null,null,null,{"$f":"Budget!K11","v":0},{"$f":"SUMPRODUCT(--(NOT(Expenses!$A$13:$A$1000='Draw Form Page 1'!$F$11))*(Expenses!$B$13:$B$1000='Draw Form Page 1'!$B19),Expenses!$F$13:$F$1000)","v":0},{"$f":"SUMPRODUCT(--(Expenses!$A$13:$A$1000='Draw Form Page 1'!$F$11)*(Expenses!$B$13:$B$1000='Draw Form Page 1'!$B19),Expenses!$F$13:$F$1000)","v":0},0]
[null,{"$f":"Budget!B12","v":"Planning"},null,null,null,{"$f":"Budget!K12","v":0},{"$f":"SUMPRODUCT(--(NOT(Expenses!$A$13:$A$1000='Draw Form Page 1'!$F$11))*(Expenses!$B$13:$B$1000='Draw Form Page 1'!$B20),Expenses!$F$13:$F$1000)","v":0},{"$f":"SUMPRODUCT(--(Expenses!$A$13:$A$1000='Draw Form Page 1'!$F$11)*(Expenses!$B$13:$B$1000='Draw Form Page 1'!$B20),Expenses!$F$13:$F$1000)","v":0},0]
[null,{"$f":"Budget!B13","v":"Engineering Fees - Design"},null,null,null,{"$f":"Budget!K13","v":0},{"$f":"SUMPRODUCT(--(NOT(Expenses!$A$13:$A$1000='Draw Form Page 1'!$F$11))*(Expenses!$B$13:$B$1000='Draw Form Page 1'!$B21),Expenses!$F$13:$F$1000)","v":0},{"$f":"SUMPRODUCT(--(Expenses!$A$13:$A$1000='Draw Form Page 1'!$F$11)*(Expenses!$B$13:$B$1000='Draw Form Page 1'!$B21),Expenses!$F$13:$F$1000)","v":0},0]
[null,{"$f":"Budget!B14","v":"Engineering Fees - Construction"},null,null,null,{"$f":"Budget!K14","v":0},{"$f":"SUMPRODUCT(--(NOT(Expenses!$A$13:$A$1000='Draw Form Page 1'!$F$11))*(Expenses!$B$13:$B$1000='Draw Form Page 1'!$B22),Expenses!$F$13:$F$1000)","v":0},{"$f":"SUMPRODUCT(--(Expenses!$A$13:$A$1000='Draw Form Page 1'!$F$11)*(Expenses!$B$13:$B$1000='Draw Form Page 1'!$B22),Expenses!$F$13:$F$1000)","v":0},0]
[null,{"$f":"Budget!B15","v":"Engineering Fees - Inspection"},null,null,null,{"$f":"Budget!K15","v":0},{"$f":"SUMPRODUCT(--(NOT(Expenses!$A$13:$A$1000='Draw Form Page 1'!$F$11))*(Expenses!$B$13:$B$1000='Draw Form Page 1'!$B23),Expenses!$F$13:$F$1000)","v":0},{"$f":"SUMPRODUCT(--(Expenses!$A$13:$A$1000='Draw Form Page 1'!$F$11)*(Expenses!$B$13:$B$1000='Draw Form Page 1'!$B23),Expenses!$F$13:$F$1000)","v":0},0]
[null,{"$f":"Budget!B16","v":"Engineering Fees - Other"},null,null,null,{"$f":"Budget!K16","v":0},{"$f":"SUMPRODUCT(--(NOT(Expenses!$A$13:$A$1000='Draw Form Page 1'!$F$11))*(Expenses!$B$13:$B$1000='Draw Form Page 1'!$B24),Expenses!$F$13:$F$1000)","v":0},{"$f":"SUMPRODUCT(--(Expenses!$A$13:$A$1000='Draw Form Page 1'!$F$11)*(Expenses!$B$13:$B$1000='Draw Form Page 1'!$B24),Expenses!$F$13:$F$1000)","v":0},0]
[null,{"$f":"Budget!B17","v":"Construction"},null,null,null,{"$f":"Budget!K17","v":0},{"$f":"SUMPRODUCT(--(NOT(Expenses!$A$13:$A$1000='Draw Form Page 1'!$F$11))*(Expenses!$B$13:$B$1000='Draw Form Page 1'!$B25),Expenses!$F$13:$F$1000)","v":0},{"$f":"SUMPRODUCT(--(Expenses!$A$13:$A$1000='Draw Form Page 1'!$F$11)*(Expenses!$B$13:$B$1000='Draw Form Page 1'!$B25),Expenses!$F$13:$F$1000)","v":0},0]
[null,{"$f":"Budget!B18","v":"Equipment"},null,null,null,{"$f":"Budget!K18","v":0},{"$f":"SUMPRODUCT(--(NOT(Expenses!$A$13:$A$1000='Draw Form Page 1'!$F$11))*(Expenses!$B$13:$B$1000='Draw Form Page 1'!$B26),Expenses!$F$13:$F$1000)","v":0},{"$f":"SUMPRODUCT(--(Expenses!$A$13:$A$1000='Draw Form Page 1'!$F$11)*(Expenses!$B$13:$B$1000='Draw Form Page 1'!$B26),Expenses!$F$13:$F$1000)","v":0},0]
[null,{"$f":"Budget!B19","v":"Contingency"},null,null,null,{"$f":"Budget!K19","v":0},{"$f":"SUMPRODUCT(--(NOT(Expenses!$A$13:$A$1000='Draw Form Page 1'!$F$11))*(Expenses!$B$13:$B$1000='Draw Form Page 1'!$B27),Expenses!$F$13:$F$1000)","v":0},{"$f":"SUMPRODUCT(--(Expenses!$A$13:$A$1000='Draw Form Page 1'!$F$11)*(Expenses!$B$13:$B$1000='Draw Form Page 1'!$B27),Expenses!$F$13:$F$1000)","v":0},0]
[null,{"$f":"Budget!B20","v":"Other"},null,null,null,{"$f":"Budget!K20","v":0},{"$f":"SUMPRODUCT(--(NOT(Expenses!$A$13:$A$1000='Draw Form Page 1'!$F$11))*(Expenses!$B$13:$B$1000='Draw Form Page 1'!$B28),Expenses!$F$13:$F$1000)","v":0},{"$f":"SUMPRODUCT(--(Expenses!$A$13:$A$1000='Draw Form Page 1'!$F$11)*(Expenses!$B$13:$B$1000='Draw Form Page 1'!$B28),Expenses!$F$13:$F$1000)","v":0},0]
[null,"Total",null,null,null,{"$f":"SUM(F16:F28)","v":1},{"$f":"SUM(G16:G28)","v":0},{"$f":"SUM(H16:H28)","v":0},{"$f":"SUM(I16:I28)","v":1}]
[]
["If expenses exceed the project budget, a revised budget must be submitted to & approved by the Authority before funds will be released."]
[]
["Project Funding"]
[null,"Funding Agency",null,null,null,"Project Budget ","Expenses (excluding this request)","Expenses This Request","Balance After Draw"]
[null,{"$f":"Budget!B24","v":0},null,null,null,{"$f":"Budget!K24","v":1},{"$f":"SUMPRODUCT(--(Expenses!$H$12:$N$12='Draw Form Page 1'!$B35)*(NOT(Expenses!$A$13:$A$1000='Draw Form Page 1'!$F$11)),Expenses!$H$13:$N$1000)","v":0},{"$f":"SUMPRODUCT(--(Expenses!$H$12:$N$12='Draw Form Page 1'!$B35)*(Expenses!$A$13:$A$1000='Draw Form Page 1'!$F$11),Expenses!$H$13:$N$1000)","v":0},{"$f":"+F35-G35-H35","v":1}]
[null,{"$f":"Budget!B25","v":"Local Funds"},null,null,null,{"$f":"Budget!K25","v":0},{"$f":"SUMPRODUCT(--(Expenses!$H$12:$N$12='Draw Form Page 1'!$B36)*(NOT(Expenses!$A$13:$A$1000='Draw Form Page 1'!$F$11)),Expenses!$H$13:$N$1000)","v":0},{"$f":"SUMPRODUCT(--(Expenses!$H$12:$N$12='Draw Form Page 1'!$B36)*(Expenses!$A$13:$A$1000='Draw Form Page 1'!$F$11),Expenses!$H$13:$N$1000)","v":0},{"$f":"+F36-G36-H36","v":0}]
[null,{"$f":"Budget!B26","v":"Funding Source #3"},null,null,null,{"$f":"Budget!K26","v":0},{"$f":"SUMPRODUCT(--(Expenses!$H$12:$N$12='Draw Form Page 1'!$B37)*(NOT(Expenses!$A$13:$A$1000='Draw Form Page 1'!$F$11)),Expenses!$H$13:$N$1000)","v":0},{"$f":"SUMPRODUCT(--(Expenses!$H$12:$N$12='Draw Form Page 1'!$B37)*(Expenses!$A$13:$A$1000='Draw Form Page 1'!$F$11),Expenses!$H$13:$N$1000)","v":0},0]
[null,{"$f":"Budget!B27","v":"Funding Source #4"},null,null,null,{"$f":"Budget!K27","v":0},{"$f":"SUMPRODUCT(--(Expenses!$H$12:$N$12='Draw Form Page 1'!$B38)*(NOT(Expenses!$A$13:$A$1000='Draw Form Page 1'!$F$11)),Expenses!$H$13:$N$1000)","v":0},{"$f":"SUMPRODUCT(--(Expenses!$H$12:$N$12='Draw Form Page 1'!$B38)*(Expenses!$A$13:$A$1000='Draw Form Page 1'!$F$11),Expenses!$H$13:$N$1000)","v":0},0]
[null,{"$f":"Budget!B28","v":"Funding Source #5"},null,null,null,{"$f":"Budget!K28","v":0},{"$f":"SUMPRODUCT(--(Expenses!$H$12:$N$12='Draw Form Page 1'!$B39)*(NOT(Expenses!$A$13:$A$1000='Draw Form Page 1'!$F$11)),Expenses!$H$13:$N$1000)","v":0},{"$f":"SUMPRODUCT(--(Expenses!$H$12:$N$12='Draw Form Page 1'!$B39)*(Expenses!$A$13:$A$1000='Draw Form Page 1'!$F$11),Expenses!$H$13:$N$1000)","v":0},0]
[null,{"$f":"Budget!B29","v":"Funding Source #6"},null,null,null,{"$f":"Budget!K29","v":0},{"$f":"SUMPRODUCT(--(Expenses!$H$12:$N$12='Draw Form Page 1'!$B40)*(NOT(Expenses!$A$13:$A$1000='Draw Form Page 1'!$F$11)),Expenses!$H$13:$N$1000)","v":0},{"$f":"SUMPRODUCT(--(Expenses!$H$12:$N$12='Draw Form Page 1'!$B40)*(Expenses!$A$13:$A$1000='Draw Form Page 1'!$F$11),Expenses!$H$13:$N$1000)","v":0},0]
[null,{"$f":"Budget!B30","v":"Funding Source #7"},null,null,null,{"$f":"Budget!K30","v":0},{"$f":"SUMPRODUCT(--(Expenses!$H$12:$N$12='Draw Form Page 1'!$B41)*(NOT(Expenses!$A$13:$A$1000='Draw Form Page 1'!$F$11)),Expenses!$H$13:$N$1000)","v":0},{"$f":"SUMPRODUCT(--(Expenses!$H$12:$N$12='Draw Form Page 1'!$B41)*(Expenses!$A$13:$A$1000='Draw Form Page 1'!$F$11),Expenses!$H$13:$N$1000)","v":0},0]
[null,"Total",null,null,null,{"$f":"SUM(F35:F41)","v":1},{"$f":"SUM(G35:G41)","v":0},{"$f":"SUM(H35:H41)","v":0},{"$f":"SUM(I35:I41)","v":1}]
[]
[{"$f":"IF(LEFT(H4,1)=\"B\",\"\",IF(LEFT(H4,1)=\"C\",\"\",\"REQUIRED: Were any of the funds requested above paid to an MBE/WBE subcontractor?\"))","v":"REQUIRED: Were any of the funds requested above paid to an MBE/WBE subcontractor?"}]
[{"$f":"IF(LEFT(H4,1)=\"B\",\"\",IF(LEFT(H4,1)=\"C\",\"\",IF(I44=\"Yes\",\"Complete DBE Form. Click here to access the form.\",\"\")))","v":""}]
[null,"Submitter\nName:",null,null,null,null,"Submitter\nPhone #:"]
[]
[{"$f":"IF(LEFT(H4,1)=\"B\",\"\",IF(LEFT(H4,1)=\"C\",\"\",IF(OR(H25>0,H26>0),\"Sign here to verify that all AIS certifications for materials/equipment included in this draw have been received.\",\"\")))","v":""}]
[null,null,null,null,null,null,null,null,{"$f":"IF(A48=\"Sign here to verify that all AIS certifications for materials/equipment included in this draw have been received.\",\"(Project Engineer's Signature)\",\"\")","v":""}]
[{"$f":"'Start Here - Instructions'!B7 &\" has entered into an Assistance Agreement with the Kentucky Infrastructure Authority (the ''Authority'') for the acquisition and construction of facilities described in the Assistance Agreement as the ''Project.''\"","v":" has entered into an Assistance Agreement with the Kentucky Infrastructure Authority (the ''Authority'') for the acquisition and construction of facilities described in the Assistance Agreement as the ''Project.''"}]
[{"$f":"\"Pursuant to the Assistance Agreement, \"&'Start Here - Instructions'!B7&\" hereby certifies that the following expenses were incurred in connection with the Project (\"&'Start Here - Instructions'!B8&\" \"&'Start Here - Instructions'!D8&\") and that the Authority's share of these expenses is in the amount so denoted in this request. Documentation supporting the expenses incurred and identified per this request are attached.\"","v":"Pursuant to the Assistance Agreement,  hereby certifies that the following expenses were incurred in connection with the Project (SX ) and that the Authority's share of these expenses is in the amount so denoted in this request. Documentation supporting the expenses incurred and identified per this request are attached."}]
["We certify that the expenses in this draw request were incurred pursuant to local procurement polices which conform to KRS 45A. "]
[]
[]
[]
[" Borrower's Signature",null,null,null,"Date",null," Project Administrator's Signature",null,"Date"]
[]
["Click here to go back to Instructions."]

{"sheet":"Draw Form Page 2","index":4,"n_rows":250,"n_cols":6,"rows_kept":250,"cut":false,"hidden":false,"merged":[[8,0,8,3],[9,0,9,3]]}
[{"$f":"'Start Here - Instructions'!B7","v":0},null,null,null,{"$f":"'Start Here - Instructions'!B9","v":0},{"$f":"COUNT(E13:E250)","v":0}]
[{"$f":"'Draw Form Page 1'!D4","v":"SX "},null,null,null,{"$f":"Draw_Date","v":"2019-06-27"}]
["Draw #",{"$f":"'Draw Form Page 1'!F11","v":1}]
[]
[]
[]
[]
[]
["PROJECT EXPENSES THIS DRAW REQUEST"]
["(Include Invoices for Expenses Listed Below)"]
[]
["Draw #","Budget Line Items","Invoice #","Vendor","Amount"]
[{"$f":"IFERROR(INDEX(Expenses!A$13:A$1000,SMALL(IF(Expenses!$A$13:$A$1000=$B$3,ROW(Expenses!A$13:A$1000)-ROW(Expenses!A$13)+1),ROWS(Expenses!A$13:'Expenses'!A13))),\"\")","v":""},{"$f":"IFERROR(INDEX(Expenses!B$13:B$1000,SMALL(IF(Expenses!$A$13:$A$1000=$B$3,ROW(Expenses!B$13:B$1000)-ROW(Expenses!B$13)+1),ROWS(Expenses!B$13:'Expenses'!B13))),\"\")","v":""},{"$f":"IFERROR(INDEX(Expenses!D$13:D$1000,SMALL(IF(Expenses!$A$13:$A$1000=$B$3,ROW(Expenses!D$13:D$1000)-ROW(Expenses!D$13)+1),ROWS(Expenses!D$13:'Expenses'!D13))),\"\")","v":""},{"$f":"IFERROR(INDEX(Expenses!E$13:E$1000,SMALL(IF(Expenses!$A$13:$A$1000=$B$3,ROW(Expenses!E$13:E$1000)-ROW(Expenses!E$13)+1),ROWS(Expenses!E$13:'Expenses'!E13))),\"\")","v":""},{"$f":"IFERROR(INDEX(Expenses!F$13:F$1000,SMALL(IF(Expenses!$A$13:$A$1000=$B$3,ROW(Expenses!F$13:F$1000)-ROW(Expenses!F$13)+1),ROWS(Expenses!F$13:'Expenses'!F13))),\"\")","v":""}]
[{"$f":"IFERROR(INDEX(Expenses!A$13:A$1000,SMALL(IF(Expenses!$A$13:$A$1000=$B$3,ROW(Expenses!A$13:A$1000)-ROW(Expenses!A$13)+1),ROWS(Expenses!A$13:'Expenses'!A14))),\"\")","v":""},{"$f":"IFERROR(INDEX(Expenses!B$13:B$1000,SMALL(IF(Expenses!$A$13:$A$1000=$B$3,ROW(Expenses!B$13:B$1000)-ROW(Expenses!B$13)+1),ROWS(Expenses!B$13:'Expenses'!B14))),\"\")","v":""},{"$f":"IFERROR(INDEX(Expenses!D$13:D$1000,SMALL(IF(Expenses!$A$13:$A$1000=$B$3,ROW(Expenses!D$13:D$1000)-ROW(Expenses!D$13)+1),ROWS(Expenses!D$13:'Expenses'!D14))),\"\")","v":""},{"$f":"IFERROR(INDEX(Expenses!E$13:E$1000,SMALL(IF(Expenses!$A$13:$A$1000=$B$3,ROW(Expenses!E$13:E$1000)-ROW(Expenses!E$13)+1),ROWS(Expenses!E$13:'Expenses'!E14))),\"\")","v":""},{"$f":"IFERROR(INDEX(Expenses!F$13:F$1000,SMALL(IF(Expenses!$A$13:$A$1000=$B$3,ROW(Expenses!F$13:F$1000)-ROW(Expenses!F$13)+1),ROWS(Expenses!F$13:'Expenses'!F14))),\"\")","v":""}]
[{"$f":"IFERROR(INDEX(Expenses!A$13:A$1000,SMALL(IF(Expenses!$A$13:$A$1000=$B$3,ROW(Expenses!A$13:A$1000)-ROW(Expenses!A$13)+1),ROWS(Expenses!A$13:'Expenses'!A15))),\"\")","v":""},{"$f":"IFERROR(INDEX(Expenses!B$13:B$1000,SMALL(IF(Expenses!$A$13:$A$1000=$B$3,ROW(Expenses!B$13:B$1000)-ROW(Expenses!B$13)+1),ROWS(Expenses!B$13:'Expenses'!B15))),\"\")","v":""},{"$f":"IFERROR(INDEX(Expenses!D$13:D$1000,SMALL(IF(Expenses!$A$13:$A$1000=$B$3,ROW(Expenses!D$13:D$1000)-ROW(Expenses!D$13)+1),ROWS(Expenses!D$13:'Expenses'!D15))),\"\")","v":""},{"$f":"IFERROR(INDEX(Expenses!E$13:E$1000,SMALL(IF(Expenses!$A$13:$A$1000=$B$3,ROW(Expenses!E$13:E$1000)-ROW(Expenses!E$13)+1),ROWS(Expenses!E$13:'Expenses'!E15))),\"\")","v":""},{"$f":"IFERROR(INDEX(Expenses!F$13:F$1000,SMALL(IF(Expenses!$A$13:$A$1000=$B$3,ROW(Expenses!F$13:F$1000)-ROW(Expenses!F$13)+1),ROWS(Expenses!F$13:'Expenses'!F15))),\"\")","v":""}]
[{"$f":"IFERROR(INDEX(Expenses!A$13:A$1000,SMALL(IF(Expenses!$A$13:$A$1000=$B$3,ROW(Expenses!A$13:A$1000)-ROW(Expenses!A$13)+1),ROWS(Expenses!A$13:'Expenses'!A16))),\"\")","v":""},{"$f":"IFERROR(INDEX(Expenses!B$13:B$1000,SMALL(IF(Expenses!$A$13:$A$1000=$B$3,ROW(Expenses!B$13:B$1000)-ROW(Expenses!B$13)+1),ROWS(Expenses!B$13:'Expenses'!B16))),\"\")","v":""},{"$f":"IFERROR(INDEX(Expenses!D$13:D$1000,SMALL(IF(Expenses!$A$13:$A$1000=$B$3,ROW(Expenses!D$13:D$1000)-ROW(Expenses!D$13)+1),ROWS(Expenses!D$13:'Expenses'!D16))),\"\")","v":""},{"$f":"IFERROR(INDEX(Expenses!E$13:E$1000,SMALL(IF(Expenses!$A$13:$A$1000=$B$3,ROW(Expenses!E$13:E$1000)-ROW(Expenses!E$13)+1),ROWS(Expenses!E$13:'Expenses'!E16))),\"\")","v":""},{"$f":"IFERROR(INDEX(Expenses!F$13:F$1000,SMALL(IF(Expenses!$A$13:$A$1000=$B$3,ROW(Expenses!F$13:F$1000)-ROW(Expenses!F$13)+1),ROWS(Expenses!F$13:'Expenses'!F16))),\"\")","v":""}]
[{"$f":"IFERROR(INDEX(Expenses!A$13:A$1000,SMALL(IF(Expenses!$A$13:$A$1000=$B$3,ROW(Expenses!A$13:A$1000)-ROW(Expenses!A$13)+1),ROWS(Expenses!A$13:'Expenses'!A17))),\"\")","v":""},{"$f":"IFERROR(INDEX(Expenses!B$13:B$1000,SMALL(IF(Expenses!$A$13:$A$1000=$B$3,ROW(Expenses!B$13:B$1000)-ROW(Expenses!B$13)+1),ROWS(Expenses!B$13:'Expenses'!B17))),\"\")","v":""},{"$f":"IFERROR(INDEX(Expenses!D$13:D$1000,SMALL(IF(Expenses!$A$13:$A$1000=$B$3,ROW(Expenses!D$13:D$1000)-ROW(Expenses!D$13)+1),ROWS(Expenses!D$13:'Expenses'!D17))),\"\")","v":""},{"$f":"IFERROR(INDEX(Expenses!E$13:E$1000,SMALL(IF(Expenses!$A$13:$A$1000=$B$3,ROW(Expenses!E$13:E$1000)-ROW(Expenses!E$13)+1),ROWS(Expenses!E$13:'Expenses'!E17))),\"\")","v":""},{"$f":"IFERROR(INDEX(Expenses!F$13:F$1000,SMALL(IF(Expenses!$A$13:$A$1000=$B$3,ROW(Expenses!F$13:F$1000)-ROW(Expenses!F$13)+1),ROWS(Expenses!F$13:'Expenses'!F17))),\"\")","v":""}]
[{"$f":"IFERROR(INDEX(Expenses!A$13:A$1000,SMALL(IF(Expenses!$A$13:$A$1000=$B$3,ROW(Expenses!A$13:A$1000)-ROW(Expenses!A$13)+1),ROWS(Expenses!A$13:'Expenses'!A18))),\"\")","v":""},{"$f":"IFERROR(INDEX(Expenses!B$13:B$1000,SMALL(IF(Expenses!$A$13:$A$1000=$B$3,ROW(Expenses!B$13:B$1000)-ROW(Expenses!B$13)+1),ROWS(Expenses!B$13:'Expenses'!B18))),\"\")","v":""},{"$f":"IFERROR(INDEX(Expenses!D$13:D$1000,SMALL(IF(Expenses!$A$13:$A$1000=$B$3,ROW(Expenses!D$13:D$1000)-ROW(Expenses!D$13)+1),ROWS(Expenses!D$13:'Expenses'!D18))),\"\")","v":""},{"$f":"IFERROR(INDEX(Expenses!E$13:E$1000,SMALL(IF(Expenses!$A$13:$A$1000=$B$3,ROW(Expenses!E$13:E$1000)-ROW(Expenses!E$13)+1),ROWS(Expenses!E$13:'Expenses'!E18))),\"\")","v":""},{"$f":"IFERROR(INDEX(Expenses!F$13:F$1000,SMALL(IF(Expenses!$A$13:$A$1000=$B$3,ROW(Expenses!F$13:F$1000)-ROW(Expenses!F$13)+1),ROWS(Expenses!F$13:'Expenses'!F18))),\"\")","v":""}]
[{"$f":"IFERROR(INDEX(Expenses!A$13:A$1000,SMALL(IF(Expenses!$A$13:$A$1000=$B$3,ROW(Expenses!A$13:A$1000)-ROW(Expenses!A$13)+1),ROWS(Expenses!A$13:'Expenses'!A19))),\"\")","v":""},{"$f":"IFERROR(INDEX(Expenses!B$13:B$1000,SMALL(IF(Expenses!$A$13:$A$1000=$B$3,ROW(Expenses!B$13:B$1000)-ROW(Expenses!B$13)+1),ROWS(Expenses!B$13:'Expenses'!B19))),\"\")","v":""},{"$f":"IFERROR(INDEX(Expenses!D$13:D$1000,SMALL(IF(Expenses!$A$13:$A$1000=$B$3,ROW(Expenses!D$13:D$1000)-ROW(Expenses!D$13)+1),ROWS(Expenses!D$13:'Expenses'!D19))),\"\")","v":""},{"$f":"IFERROR(INDEX(Expenses!E$13:E$1000,SMALL(IF(Expenses!$A$13:$A$1000=$B$3,ROW(Expenses!E$13:E$1000)-ROW(Expenses!E$13)+1),ROWS(Expenses!E$13:'Expenses'!E19))),\"\")","v":""},{"$f":"IFERROR(INDEX(Expenses!F$13:F$1000,SMALL(IF(Expenses!$A$13:$A$1000=$B$3,ROW(Expenses!F$13:F$1000)-ROW(Expenses!F$13)+1),ROWS(Expenses!F$13:'Expenses'!F19))),\"\")","v":""}]
[{"$f":"IFERROR(INDEX(Expenses!A$13:A$1000,SMALL(IF(Expenses!$A$13:$A$1000=$B$3,ROW(Expenses!A$13:A$1000)-ROW(Expenses!A$13)+1),ROWS(Expenses!A$13:'Expenses'!A20))),\"\")","v":""},{"$f":"IFERROR(INDEX(Expenses!B$13:B$1000,SMALL(IF(Expenses!$A$13:$A$1000=$B$3,ROW(Expenses!B$13:B$1000)-ROW(Expenses!B$13)+1),ROWS(Expenses!B$13:'Expenses'!B20))),\"\")","v":""},{"$f":"IFERROR(INDEX(Expenses!D$13:D$1000,SMALL(IF(Expenses!$A$13:$A$1000=$B$3,ROW(Expenses!D$13:D$1000)-ROW(Expenses!D$13)+1),ROWS(Expenses!D$13:'Expenses'!D20))),\"\")","v":""},{"$f":"IFERROR(INDEX(Expenses!E$13:E$1000,SMALL(IF(Expenses!$A$13:$A$1000=$B$3,ROW(Expenses!E$13:E$1000)-ROW(Expenses!E$13)+1),ROWS(Expenses!E$13:'Expenses'!E20))),\"\")","v":""},{"$f":"IFERROR(INDEX(Expenses!F$13:F$1000,SMALL(IF(Expenses!$A$13:$A$1000=$B$3,ROW(Expenses!F$13:F$1000)-ROW(Expenses!F$13)+1),ROWS(Expenses!F$13:'Expenses'!F20))),\"\")","v":""}]
[{"$f":"IFERROR(INDEX(Expenses!A$13:A$1000,SMALL(IF(Expenses!$A$13:$A$1000=$B$3,ROW(Expenses!A$13:A$1000)-ROW(Expenses!A$13)+1),ROWS(Expenses!A$13:'Expenses'!A21))),\"\")","v":""},{"$f":"IFERROR(INDEX(Expenses!B$13:B$1000,SMALL(IF(Expenses!$A$13:$A$1000=$B$3,ROW(Expenses!B$13:B$1000)-ROW(Expenses!B$13)+1),ROWS(Expenses!B$13:'Expenses'!B21))),\"\")","v":""},{"$f":"IFERROR(INDEX(Expenses!D$13:D$1000,SMALL(IF(Expenses!$A$13:$A$1000=$B$3,ROW(Expenses!D$13:D$1000)-ROW(Expenses!D$13)+1),ROWS(Expenses!D$13:'Expenses'!D21))),\"\")","v":""},{"$f":"IFERROR(INDEX(Expenses!E$13:E$1000,SMALL(IF(Expenses!$A$13:$A$1000=$B$3,ROW(Expenses!E$13:E$1000)-ROW(Expenses!E$13)+1),ROWS(Expenses!E$13:'Expenses'!E21))),\"\")","v":""},{"$f":"IFERROR(INDEX(Expenses!F$13:F$1000,SMALL(IF(Expenses!$A$13:$A$1000=$B$3,ROW(Expenses!F$13:F$1000)-ROW(Expenses!F$13)+1),ROWS(Expenses!F$13:'Expenses'!F21))),\"\")","v":""}]
[{"$f":"IFERROR(INDEX(Expenses!A$13:A$1000,SMALL(IF(Expenses!$A$13:$A$1000=$B$3,ROW(Expenses!A$13:A$1000)-ROW(Expenses!A$13)+1),ROWS(Expenses!A$13:'Expenses'!A22))),\"\")","v":""},{"$f":"IFERROR(INDEX(Expenses!B$13:B$1000,SMALL(IF(Expenses!$A$13:$A$1000=$B$3,ROW(Expenses!B$13:B$1000)-ROW(Expenses!B$13)+1),ROWS(Expenses!B$13:'Expenses'!B22))),\"\")","v":""},{"$f":"IFERROR(INDEX(Expenses!D$13:D$1000,SMALL(IF(Expenses!$A$13:$A$1000=$B$3,ROW(Expenses!D$13:D$1000)-ROW(Expenses!D$13)+1),ROWS(Expenses!D$13:'Expenses'!D22))),\"\")","v":""},{"$f":"IFERROR(INDEX(Expenses!E$13:E$1000,SMALL(IF(Expenses!$A$13:$A$1000=$B$3,ROW(Expenses!E$13:E$1000)-ROW(Expenses!E$13)+1),ROWS(Expenses!E$13:'Expenses'!E22))),\"\")","v":""},{"$f":"IFERROR(INDEX(Expenses!F$13:F$1000,SMALL(IF(Expenses!$A$13:$A$1000=$B$3,ROW(Expenses!F$13:F$1000)-ROW(Expenses!F$13)+1),ROWS(Expenses!F$13:'Expenses'!F22))),\"\")","v":""}]
[{"$f":"IFERROR(INDEX(Expenses!A$13:A$1000,SMALL(IF(Expenses!$A$13:$A$1000=$B$3,ROW(Expenses!A$13:A$1000)-ROW(Expenses!A$13)+1),ROWS(Expenses!A$13:'Expenses'!A23))),\"\")","v":""},{"$f":"IFERROR(INDEX(Expenses!B$13:B$1000,SMALL(IF(Expenses!$A$13:$A$1000=$B$3,ROW(Expenses!B$13:B$1000)-ROW(Expenses!B$13)+1),ROWS(Expenses!B$13:'Expenses'!B23))),\"\")","v":""},{"$f":"IFERROR(INDEX(Expenses!D$13:D$1000,SMALL(IF(Expenses!$A$13:$A$1000=$B$3,ROW(Expenses!D$13:D$1000)-ROW(Expenses!D$13)+1),ROWS(Expenses!D$13:'Expenses'!D23))),\"\")","v":""},{"$f":"IFERROR(INDEX(Expenses!E$13:E$1000,SMALL(IF(Expenses!$A$13:$A$1000=$B$3,ROW(Expenses!E$13:E$1000)-ROW(Expenses!E$13)+1),ROWS(Expenses!E$13:'Expenses'!E23))),\"\")","v":""},{"$f":"IFERROR(INDEX(Expenses!F$13:F$1000,SMALL(IF(Expenses!$A$13:$A$1000=$B$3,ROW(Expenses!F$13:F$1000)-ROW(Expenses!F$13)+1),ROWS(Expenses!F$13:'Expenses'!F23))),\"\")","v":""}]
[{"$f":"IFERROR(INDEX(Expenses!A$13:A$1000,SMALL(IF(Expenses!$A$13:$A$1000=$B$3,ROW(Expenses!A$13:A$1000)-ROW(Expenses!A$13)+1),ROWS(Expenses!A$13:'Expenses'!A24))),\"\")","v":""},{"$f":"IFERROR(INDEX(Expenses!B$13:B$1000,SMALL(IF(Expenses!$A$13:$A$1000=$B$3,ROW(Expenses!B$13:B$1000)-ROW(Expenses!B$13)+1),ROWS(Expenses!B$13:'Expenses'!B24))),\"\")","v":""},{"$f":"IFERROR(INDEX(Expenses!D$13:D$1000,SMALL(IF(Expenses!$A$13:$A$1000=$B$3,ROW(Expenses!D$13:D$1000)-ROW(Expenses!D$13)+1),ROWS(Expenses!D$13:'Expenses'!D24))),\"\")","v":""},{"$f":"IFERROR(INDEX(Expenses!E$13:E$1000,SMALL(IF(Expenses!$A$13:$A$1000=$B$3,ROW(Expenses!E$13:E$1000)-ROW(Expenses!E$13)+1),ROWS(Expenses!E$13:'Expenses'!E24))),\"\")","v":""},{"$f":"IFERROR(INDEX(Expenses!F$13:F$1000,SMALL(IF(Expenses!$A$13:$A$1000=$B$3,ROW(Expenses!F$13:F$1000)-ROW(Expenses!F$13)+1),ROWS(Expenses!F$13:'Expenses'!F24))),\"\")","v":""}]
[{"$f":"IFERROR(INDEX(Expenses!A$13:A$1000,SMALL(IF(Expenses!$A$13:$A$1000=$B$3,ROW(Expenses!A$13:A$1000)-ROW(Expenses!A$13)+1),ROWS(Expenses!A$13:'Expenses'!A25))),\"\")","v":""},{"$f":"IFERROR(INDEX(Expenses!B$13:B$1000,SMALL(IF(Expenses!$A$13:$A$1000=$B$3,ROW(Expenses!B$13:B$1000)-ROW(Expenses!B$13)+1),ROWS(Expenses!B$13:'Expenses'!B25))),\"\")","v":""},{"$f":"IFERROR(INDEX(Expenses!D$13:D$1000,SMALL(IF(Expenses!$A$13:$A$1000=$B$3,ROW(Expenses!D$13:D$1000)-ROW(Expenses!D$13)+1),ROWS(Expenses!D$13:'Expenses'!D25))),\"\")","v":""},{"$f":"IFERROR(INDEX(Expenses!E$13:E$1000,SMALL(IF(Expenses!$A$13:$A$1000=$B$3,ROW(Expenses!E$13:E$1000)-ROW(Expenses!E$13)+1),ROWS(Expenses!E$13:'Expenses'!E25))),\"\")","v":""},{"$f":"IFERROR(INDEX(Expenses!F$13:F$1000,SMALL(IF(Expenses!$A$13:$A$1000=$B$3,ROW(Expenses!F$13:F$1000)-ROW(Expenses!F$13)+1),ROWS(Expenses!F$13:'Expenses'!F25))),\"\")","v":""}]
[{"$f":"IFERROR(INDEX(Expenses!A$13:A$1000,SMALL(IF(Expenses!$A$13:$A$1000=$B$3,ROW(Expenses!A$13:A$1000)-ROW(Expenses!A$13)+1),ROWS(Expenses!A$13:'Expenses'!A26))),\"\")","v":""},{"$f":"IFERROR(INDEX(Expenses!B$13:B$1000,SMALL(IF(Expenses!$A$13:$A$1000=$B$3,ROW(Expenses!B$13:B$1000)-ROW(Expenses!B$13)+1),ROWS(Expenses!B$13:'Expenses'!B26))),\"\")","v":""},{"$f":"IFERROR(INDEX(Expenses!D$13:D$1000,SMALL(IF(Expenses!$A$13:$A$1000=$B$3,ROW(Expenses!D$13:D$1000)-ROW(Expenses!D$13)+1),ROWS(Expenses!D$13:'Expenses'!D26))),\"\")","v":""},{"$f":"IFERROR(INDEX(Expenses!E$13:E$1000,SMALL(IF(Expenses!$A$13:$A$1000=$B$3,ROW(Expenses!E$13:E$1000)-ROW(Expenses!E$13)+1),ROWS(Expenses!E$13:'Expenses'!E26))),\"\")","v":""},{"$f":"IFERROR(INDEX(Expenses!F$13:F$1000,SMALL(IF(Expenses!$A$13:$A$1000=$B$3,ROW(Expenses!F$13:F$1000)-ROW(Expenses!F$13)+1),ROWS(Expenses!F$13:'Expenses'!F26))),\"\")","v":""}]
[{"$f":"IFERROR(INDEX(Expenses!A$13:A$1000,SMALL(IF(Expenses!$A$13:$A$1000=$B$3,ROW(Expenses!A$13:A$1000)-ROW(Expenses!A$13)+1),ROWS(Expenses!A$13:'Expenses'!A27))),\"\")","v":""},{"$f":"IFERROR(INDEX(Expenses!B$13:B$1000,SMALL(IF(Expenses!$A$13:$A$1000=$B$3,ROW(Expenses!B$13:B$1000)-ROW(Expenses!B$13)+1),ROWS(Expenses!B$13:'Expenses'!B27))),\"\")","v":""},{"$f":"IFERROR(INDEX(Expenses!D$13:D$1000,SMALL(IF(Expenses!$A$13:$A$1000=$B$3,ROW(Expenses!D$13:D$1000)-ROW(Expenses!D$13)+1),ROWS(Expenses!D$13:'Expenses'!D27))),\"\")","v":""},{"$f":"IFERROR(INDEX(Expenses!E$13:E$1000,SMALL(IF(Expenses!$A$13:$A$1000=$B$3,ROW(Expenses!E$13:E$1000)-ROW(Expenses!E$13)+1),ROWS(Expenses!E$13:'Expenses'!E27))),\"\")","v":""},{"$f":"IFERROR(INDEX(Expenses!F$13:F$1000,SMALL(IF(Expenses!$A$13:$A$1000=$B$3,ROW(Expenses!F$13:F$1000)-ROW(Expenses!F$13)+1),ROWS(Expenses!F$13:'Expenses'!F27))),\"\")","v":""}]
[{"$f":"IFERROR(INDEX(Expenses!A$13:A$1000,SMALL(IF(Expenses!$A$13:$A$1000=$B$3,ROW(Expenses!A$13:A$1000)-ROW(Expenses!A$13)+1),ROWS(Expenses!A$13:'Expenses'!A28))),\"\")","v":""},{"$f":"IFERROR(INDEX(Expenses!B$13:B$1000,SMALL(IF(Expenses!$A$13:$A$1000=$B$3,ROW(Expenses!B$13:B$1000)-ROW(Expenses!B$13)+1),ROWS(Expenses!B$13:'Expenses'!B28))),\"\")","v":""},{"$f":"IFERROR(INDEX(Expenses!D$13:D$1000,SMALL(IF(Expenses!$A$13:$A$1000=$B$3,ROW(Expenses!D$13:D$1000)-ROW(Expenses!D$13)+1),ROWS(Expenses!D$13:'Expenses'!D28))),\"\")","v":""},{"$f":"IFERROR(INDEX(Expenses!E$13:E$1000,SMALL(IF(Expenses!$A$13:$A$1000=$B$3,ROW(Expenses!E$13:E$1000)-ROW(Expenses!E$13)+1),ROWS(Expenses!E$13:'Expenses'!E28))),\"\")","v":""},{"$f":"IFERROR(INDEX(Expenses!F$13:F$1000,SMALL(IF(Expenses!$A$13:$A$1000=$B$3,ROW(Expenses!F$13:F$1000)-ROW(Expenses!F$13)+1),ROWS(Expenses!F$13:'Expenses'!F28))),\"\")","v":""}]
[{"$f":"IFERROR(INDEX(Expenses!A$13:A$1000,SMALL(IF(Expenses!$A$13:$A$1000=$B$3,ROW(Expenses!A$13:A$1000)-ROW(Expenses!A$13)+1),ROWS(Expenses!A$13:'Expenses'!A29))),\"\")","v":""},{"$f":"IFERROR(INDEX(Expenses!B$13:B$1000,SMALL(IF(Expenses!$A$13:$A$1000=$B$3,ROW(Expenses!B$13:B$1000)-ROW(Expenses!B$13)+1),ROWS(Expenses!B$13:'Expenses'!B29))),\"\")","v":""},{"$f":"IFERROR(INDEX(Expenses!D$13:D$1000,SMALL(IF(Expenses!$A$13:$A$1000=$B$3,ROW(Expenses!D$13:D$1000)-ROW(Expenses!D$13)+1),ROWS(Expenses!D$13:'Expenses'!D29))),\"\")","v":""},{"$f":"IFERROR(INDEX(Expenses!E$13:E$1000,SMALL(IF(Expenses!$A$13:$A$1000=$B$3,ROW(Expenses!E$13:E$1000)-ROW(Expenses!E$13)+1),ROWS(Expenses!E$13:'Expenses'!E29))),\"\")","v":""},{"$f":"IFERROR(INDEX(Expenses!F$13:F$1000,SMALL(IF(Expenses!$A$13:$A$1000=$B$3,ROW(Expenses!F$13:F$1000)-ROW(Expenses!F$13)+1),ROWS(Expenses!F$13:'Expenses'!F29))),\"\")","v":""}]
[{"$f":"IFERROR(INDEX(Expenses!A$13:A$1000,SMALL(IF(Expenses!$A$13:$A$1000=$B$3,ROW(Expenses!A$13:A$1000)-ROW(Expenses!A$13)+1),ROWS(Expenses!A$13:'Expenses'!A30))),\"\")","v":""},{"$f":"IFERROR(INDEX(Expenses!B$13:B$1000,SMALL(IF(Expenses!$A$13:$A$1000=$B$3,ROW(Expenses!B$13:B$1000)-ROW(Expenses!B$13)+1),ROWS(Expenses!B$13:'Expenses'!B30))),\"\")","v":""},{"$f":"IFERROR(INDEX(Expenses!D$13:D$1000,SMALL(IF(Expenses!$A$13:$A$1000=$B$3,ROW(Expenses!D$13:D$1000)-ROW(Expenses!D$13)+1),ROWS(Expenses!D$13:'Expenses'!D30))),\"\")","v":""},{"$f":"IFERROR(INDEX(Expenses!E$13:E$1000,SMALL(IF(Expenses!$A$13:$A$1000=$B$3,ROW(Expenses!E$13:E$1000)-ROW(Expenses!E$13)+1),ROWS(Expenses!E$13:'Expenses'!E30))),\"\")","v":""},{"$f":"IFERROR(INDEX(Expenses!F$13:F$1000,SMALL(IF(Expenses!$A$13:$A$1000=$B$3,ROW(Expenses!F$13:F$1000)-ROW(Expenses!F$13)+1),ROWS(Expenses!F$13:'Expenses'!F30))),\"\")","v":""}]
[{"$f":"IFERROR(INDEX(Expenses!A$13:A$1000,SMALL(IF(Expenses!$A$13:$A$1000=$B$3,ROW(Expenses!A$13:A$1000)-ROW(Expenses!A$13)+1),ROWS(Expenses!A$13:'Expenses'!A31))),\"\")","v":""},{"$f":"IFERROR(INDEX(Expenses!B$13:B$1000,SMALL(IF(Expenses!$A$13:$A$1000=$B$3,ROW(Expenses!B$13:B$1000)-ROW(Expenses!B$13)+1),ROWS(Expenses!B$13:'Expenses'!B31))),\"\")","v":""},{"$f":"IFERROR(INDEX(Expenses!D$13:D$1000,SMALL(IF(Expenses!$A$13:$A$1000=$B$3,ROW(Expenses!D$13:D$1000)-ROW(Expenses!D$13)+1),ROWS(Expenses!D$13:'Expenses'!D31))),\"\")","v":""},{"$f":"IFERROR(INDEX(Expenses!E$13:E$1000,SMALL(IF(Expenses!$A$13:$A$1000=$B$3,ROW(Expenses!E$13:E$1000)-ROW(Expenses!E$13)+1),ROWS(Expenses!E$13:'Expenses'!E31))),\"\")","v":""},{"$f":"IFERROR(INDEX(Expenses!F$13:F$1000,SMALL(IF(Expenses!$A$13:$A$1000=$B$3,ROW(Expenses!F$13:F$1000)-ROW(Expenses!F$13)+1),ROWS(Expenses!F$13:'Expenses'!F31))),\"\")","v":""}]
[{"$f":"IFERROR(INDEX(Expenses!A$13:A$1000,SMALL(IF(Expenses!$A$13:$A$1000=$B$3,ROW(Expenses!A$13:A$1000)-ROW(Expenses!A$13)+1),ROWS(Expenses!A$13:'Expenses'!A32))),\"\")","v":""},{"$f":"IFERROR(INDEX(Expenses!B$13:B$1000,SMALL(IF(Expenses!$A$13:$A$1000=$B$3,ROW(Expenses!B$13:B$1000)-ROW(Expenses!B$13)+1),ROWS(Expenses!B$13:'Expenses'!B32))),\"\")","v":""},{"$f":"IFERROR(INDEX(Expenses!D$13:D$1000,SMALL(IF(Expenses!$A$13:$A$1000=$B$3,ROW(Expenses!D$13:D$1000)-ROW(Expenses!D$13)+1),ROWS(Expenses!D$13:'Expenses'!D32))),\"\")","v":""},{"$f":"IFERROR(INDEX(Expenses!E$13:E$1000,SMALL(IF(Expenses!$A$13:$A$1000=$B$3,ROW(Expenses!E$13:E$1000)-ROW(Expenses!E$13)+1),ROWS(Expenses!E$13:'Expenses'!E32))),\"\")","v":""},{"$f":"IFERROR(INDEX(Expenses!F$13:F$1000,SMALL(IF(Expenses!$A$13:$A$1000=$B$3,ROW(Expenses!F$13:F$1000)-ROW(Expenses!F$13)+1),ROWS(Expenses!F$13:'Expenses'!F32))),\"\")","v":""}]
[{"$f":"IFERROR(INDEX(Expenses!A$13:A$1000,SMALL(IF(Expenses!$A$13:$A$1000=$B$3,ROW(Expenses!A$13:A$1000)-ROW(Expenses!A$13)+1),ROWS(Expenses!A$13:'Expenses'!A33))),\"\")","v":""},{"$f":"IFERROR(INDEX(Expenses!B$13:B$1000,SMALL(IF(Expenses!$A$13:$A$1000=$B$3,ROW(Expenses!B$13:B$1000)-ROW(Expenses!B$13)+1),ROWS(Expenses!B$13:'Expenses'!B33))),\"\")","v":""},{"$f":"IFERROR(INDEX(Expenses!D$13:D$1000,SMALL(IF(Expenses!$A$13:$A$1000=$B$3,ROW(Expenses!D$13:D$1000)-ROW(Expenses!D$13)+1),ROWS(Expenses!D$13:'Expenses'!D33))),\"\")","v":""},{"$f":"IFERROR(INDEX(Expenses!E$13:E$1000,SMALL(IF(Expenses!$A$13:$A$1000=$B$3,ROW(Expenses!E$13:E$1000)-ROW(Expenses!E$13)+1),ROWS(Expenses!E$13:'Expenses'!E33))),\"\")","v":""},{"$f":"IFERROR(INDEX(Expenses!F$13:F$1000,SMALL(IF(Expenses!$A$13:$A$1000=$B$3,ROW(Expenses!F$13:F$1000)-ROW(Expenses!F$13)+1),ROWS(Expenses!F$13:'Expenses'!F33))),\"\")","v":""}]
[{"$f":"IFERROR(INDEX(Expenses!A$13:A$1000,SMALL(IF(Expenses!$A$13:$A$1000=$B$3,ROW(Expenses!A$13:A$1000)-ROW(Expenses!A$13)+1),ROWS(Expenses!A$13:'Expenses'!A34))),\"\")","v":""},{"$f":"IFERROR(INDEX(Expenses!B$13:B$1000,SMALL(IF(Expenses!$A$13:$A$1000=$B$3,ROW(Expenses!B$13:B$1000)-ROW(Expenses!B$13)+1),ROWS(Expenses!B$13:'Expenses'!B34))),\"\")","v":""},{"$f":"IFERROR(INDEX(Expenses!D$13:D$1000,SMALL(IF(Expenses!$A$13:$A$1000=$B$3,ROW(Expenses!D$13:D$1000)-ROW(Expenses!D$13)+1),ROWS(Expenses!D$13:'Expenses'!D34))),\"\")","v":""},{"$f":"IFERROR(INDEX(Expenses!E$13:E$1000,SMALL(IF(Expenses!$A$13:$A$1000=$B$3,ROW(Expenses!E$13:E$1000)-ROW(Expenses!E$13)+1),ROWS(Expenses!E$13:'Expenses'!E34))),\"\")","v":""},{"$f":"IFERROR(INDEX(Expenses!F$13:F$1000,SMALL(IF(Expenses!$A$13:$A$1000=$B$3,ROW(Expenses!F$13:F$1000)-ROW(Expenses!F$13)+1),ROWS(Expenses!F$13:'Expenses'!F34))),\"\")","v":""}]
[{"$f":"IFERROR(INDEX(Expenses!A$13:A$1000,SMALL(IF(Expenses!$A$13:$A$1000=$B$3,ROW(Expenses!A$13:A$1000)-ROW(Expenses!A$13)+1),ROWS(Expenses!A$13:'Expenses'!A35))),\"\")","v":""},{"$f":"IFERROR(INDEX(Expenses!B$13:B$1000,SMALL(IF(Expenses!$A$13:$A$1000=$B$3,ROW(Expenses!B$13:B$1000)-ROW(Expenses!B$13)+1),ROWS(Expenses!B$13:'Expenses'!B35))),\"\")","v":""},{"$f":"IFERROR(INDEX(Expenses!D$13:D$1000,SMALL(IF(Expenses!$A$13:$A$1000=$B$3,ROW(Expenses!D$13:D$1000)-ROW(Expenses!D$13)+1),ROWS(Expenses!D$13:'Expenses'!D35))),\"\")","v":""},{"$f":"IFERROR(INDEX(Expenses!E$13:E$1000,SMALL(IF(Expenses!$A$13:$A$1000=$B$3,ROW(Expenses!E$13:E$1000)-ROW(Expenses!E$13)+1),ROWS(Expenses!E$13:'Expenses'!E35))),\"\")","v":""},{"$f":"IFERROR(INDEX(Expenses!F$13:F$1000,SMALL(IF(Expenses!$A$13:$A$1000=$B$3,ROW(Expenses!F$13:F$1000)-ROW(Expenses!F$13)+1),ROWS(Expenses!F$13:'Expenses'!F35))),\"\")","v":""}]
[{"$f":"IFERROR(INDEX(Expenses!A$13:A$1000,SMALL(IF(Expenses!$A$13:$A$1000=$B$3,ROW(Expenses!A$13:A$1000)-ROW(Expenses!A$13)+1),ROWS(Expenses!A$13:'Expenses'!A36))),\"\")","v":""},{"$f":"IFERROR(INDEX(Expenses!B$13:B$1000,SMALL(IF(Expenses!$A$13:$A$1000=$B$3,ROW(Expenses!B$13:B$1000)-ROW(Expenses!B$13)+1),ROWS(Expenses!B$13:'Expenses'!B36))),\"\")","v":""},{"$f":"IFERROR(INDEX(Expenses!D$13:D$1000,SMALL(IF(Expenses!$A$13:$A$1000=$B$3,ROW(Expenses!D$13:D$1000)-ROW(Expenses!D$13)+1),ROWS(Expenses!D$13:'Expenses'!D36))),\"\")","v":""},{"$f":"IFERROR(INDEX(Expenses!E$13:E$1000,SMALL(IF(Expenses!$A$13:$A$1000=$B$3,ROW(Expenses!E$13:E$1000)-ROW(Expenses!E$13)+1),ROWS(Expenses!E$13:'Expenses'!E36))),\"\")","v":""},{"$f":"IFERROR(INDEX(Expenses!F$13:F$1000,SMALL(IF(Expenses!$A$13:$A$1000=$B$3,ROW(Expenses!F$13:F$1000)-ROW(Expenses!F$13)+1),ROWS(Expenses!F$13:'Expenses'!F36))),\"\")","v":""}]
[{"$f":"IFERROR(INDEX(Expenses!A$13:A$1000,SMALL(IF(Expenses!$A$13:$A$1000=$B$3,ROW(Expenses!A$13:A$1000)-ROW(Expenses!A$13)+1),ROWS(Expenses!A$13:'Expenses'!A37))),\"\")","v":""},{"$f":"IFERROR(INDEX(Expenses!B$13:B$1000,SMALL(IF(Expenses!$A$13:$A$1000=$B$3,ROW(Expenses!B$13:B$1000)-ROW(Expenses!B$13)+1),ROWS(Expenses!B$13:'Expenses'!B37))),\"\")","v":""},{"$f":"IFERROR(INDEX(Expenses!D$13:D$1000,SMALL(IF(Expenses!$A$13:$A$1000=$B$3,ROW(Expenses!D$13:D$1000)-ROW(Expenses!D$13)+1),ROWS(Expenses!D$13:'Expenses'!D37))),\"\")","v":""},{"$f":"IFERROR(INDEX(Expenses!E$13:E$1000,SMALL(IF(Expenses!$A$13:$A$1000=$B$3,ROW(Expenses!E$13:E$1000)-ROW(Expenses!E$13)+1),ROWS(Expenses!E$13:'Expenses'!E37))),\"\")","v":""},{"$f":"IFERROR(INDEX(Expenses!F$13:F$1000,SMALL(IF(Expenses!$A$13:$A$1000=$B$3,ROW(Expenses!F$13:F$1000)-ROW(Expenses!F$13)+1),ROWS(Expenses!F$13:'Expenses'!F37))),\"\")","v":""}]
[{"$f":"IFERROR(INDEX(Expenses!A$13:A$1000,SMALL(IF(Expenses!$A$13:$A$1000=$B$3,ROW(Expenses!A$13:A$1000)-ROW(Expenses!A$13)+1),ROWS(Expenses!A$13:'Expenses'!A38))),\"\")","v":""},{"$f":"IFERROR(INDEX(Expenses!B$13:B$1000,SMALL(IF(Expenses!$A$13:$A$1000=$B$3,ROW(Expenses!B$13:B$1000)-ROW(Expenses!B$13)+1),ROWS(Expenses!B$13:'Expenses'!B38))),\"\")","v":""},{"$f":"IFERROR(INDEX(Expenses!D$13:D$1000,SMALL(IF(Expenses!$A$13:$A$1000=$B$3,ROW(Expenses!D$13:D$1000)-ROW(Expenses!D$13)+1),ROWS(Expenses!D$13:'Expenses'!D38))),\"\")","v":""},{"$f":"IFERROR(INDEX(Expenses!E$13:E$1000,SMALL(IF(Expenses!$A$13:$A$1000=$B$3,ROW(Expenses!E$13:E$1000)-ROW(Expenses!E$13)+1),ROWS(Expenses!E$13:'Expenses'!E38))),\"\")","v":""},{"$f":"IFERROR(INDEX(Expenses!F$13:F$1000,SMALL(IF(Expenses!$A$13:$A$1000=$B$3,ROW(Expenses!F$13:F$1000)-ROW(Expenses!F$13)+1),ROWS(Expenses!F$13:'Expenses'!F38))),\"\")","v":""}]
[{"$f":"IFERROR(INDEX(Expenses!A$13:A$1000,SMALL(IF(Expenses!$A$13:$A$1000=$B$3,ROW(Expenses!A$13:A$1000)-ROW(Expenses!A$13)+1),ROWS(Expenses!A$13:'Expenses'!A39))),\"\")","v":""},{"$f":"IFERROR(INDEX(Expenses!B$13:B$1000,SMALL(IF(Expenses!$A$13:$A$1000=$B$3,ROW(Expenses!B$13:B$1000)-ROW(Expenses!B$13)+1),ROWS(Expenses!B$13:'Expenses'!B39))),\"\")","v":""},{"$f":"IFERROR(INDEX(Expenses!D$13:D$1000,SMALL(IF(Expenses!$A$13:$A$1000=$B$3,ROW(Expenses!D$13:D$1000)-ROW(Expenses!D$13)+1),ROWS(Expenses!D$13:'Expenses'!D39))),\"\")","v":""},{"$f":"IFERROR(INDEX(Expenses!E$13:E$1000,SMALL(IF(Expenses!$A$13:$A$1000=$B$3,ROW(Expenses!E$13:E$1000)-ROW(Expenses!E$13)+1),ROWS(Expenses!E$13:'Expenses'!E39))),\"\")","v":""},{"$f":"IFERROR(INDEX(Expenses!F$13:F$1000,SMALL(IF(Expenses!$A$13:$A$1000=$B$3,ROW(Expenses!F$13:F$1000)-ROW(Expenses!F$13)+1),ROWS(Expenses!F$13:'Expenses'!F39))),\"\")","v":""}]
[{"$f":"IFERROR(INDEX(Expenses!A$13:A$1000,SMALL(IF(Expenses!$A$13:$A$1000=$B$3,ROW(Expenses!A$13:A$1000)-ROW(Expenses!A$13)+1),ROWS(Expenses!A$13:'Expenses'!A40))),\"\")","v":""},{"$f":"IFERROR(INDEX(Expenses!B$13:B$1000,SMALL(IF(Expenses!$A$13:$A$1000=$B$3,ROW(Expenses!B$13:B$1000)-ROW(Expenses!B$13)+1),ROWS(Expenses!B$13:'Expenses'!B40))),\"\")","v":""},{"$f":"IFERROR(INDEX(Expenses!D$13:D$1000,SMALL(IF(Expenses!$A$13:$A$1000=$B$3,ROW(Expenses!D$13:D$1000)-ROW(Expenses!D$13)+1),ROWS(Expenses!D$13:'Expenses'!D40))),\"\")","v":""},{"$f":"IFERROR(INDEX(Expenses!E$13:E$1000,SMALL(IF(Expenses!$A$13:$A$1000=$B$3,ROW(Expenses!E$13:E$1000)-ROW(Expenses!E$13)+1),ROWS(Expenses!E$13:'Expenses'!E40))),\"\")","v":""},{"$f":"IFERROR(INDEX(Expenses!F$13:F$1000,SMALL(IF(Expenses!$A$13:$A$1000=$B$3,ROW(Expenses!F$13:F$1000)-ROW(Expenses!F$13)+1),ROWS(Expenses!F$13:'Expenses'!F40))),\"\")","v":""}]
[{"$f":"IFERROR(INDEX(Expenses!A$13:A$1000,SMALL(IF(Expenses!$A$13:$A$1000=$B$3,ROW(Expenses!A$13:A$1000)-ROW(Expenses!A$13)+1),ROWS(Expenses!A$13:'Expenses'!A41))),\"\")","v":""},{"$f":"IFERROR(INDEX(Expenses!B$13:B$1000,SMALL(IF(Expenses!$A$13:$A$1000=$B$3,ROW(Expenses!B$13:B$1000)-ROW(Expenses!B$13)+1),ROWS(Expenses!B$13:'Expenses'!B41))),\"\")","v":""},{"$f":"IFERROR(INDEX(Expenses!D$13:D$1000,SMALL(IF(Expenses!$A$13:$A$1000=$B$3,ROW(Expenses!D$13:D$1000)-ROW(Expenses!D$13)+1),ROWS(Expenses!D$13:'Expenses'!D41))),\"\")","v":""},{"$f":"IFERROR(INDEX(Expenses!E$13:E$1000,SMALL(IF(Expenses!$A$13:$A$1000=$B$3,ROW(Expenses!E$13:E$1000)-ROW(Expenses!E$13)+1),ROWS(Expenses!E$13:'Expenses'!E41))),\"\")","v":""},{"$f":"IFERROR(INDEX(Expenses!F$13:F$1000,SMALL(IF(Expenses!$A$13:$A$1000=$B$3,ROW(Expenses!F$13:F$1000)-ROW(Expenses!F$13)+1),ROWS(Expenses!F$13:'Expenses'!F41))),\"\")","v":""}]
[{"$f":"IFERROR(INDEX(Expenses!A$13:A$1000,SMALL(IF(Expenses!$A$13:$A$1000=$B$3,ROW(Expenses!A$13:A$1000)-ROW(Expenses!A$13)+1),ROWS(Expenses!A$13:'Expenses'!A42))),\"\")","v":""},{"$f":"IFERROR(INDEX(Expenses!B$13:B$1000,SMALL(IF(Expenses!$A$13:$A$1000=$B$3,ROW(Expenses!B$13:B$1000)-ROW(Expenses!B$13)+1),ROWS(Expenses!B$13:'Expenses'!B42))),\"\")","v":""},{"$f":"IFERROR(INDEX(Expenses!D$13:D$1000,SMALL(IF(Expenses!$A$13:$A$1000=$B$3,ROW(Expenses!D$13:D$1000)-ROW(Expenses!D$13)+1),ROWS(Expenses!D$13:'Expenses'!D42))),\"\")","v":""},{"$f":"IFERROR(INDEX(Expenses!E$13:E$1000,SMALL(IF(Expenses!$A$13:$A$1000=$B$3,ROW(Expenses!E$13:E$1000)-ROW(Expenses!E$13)+1),ROWS(Expenses!E$13:'Expenses'!E42))),\"\")","v":""},{"$f":"IFERROR(INDEX(Expenses!F$13:F$1000,SMALL(IF(Expenses!$A$13:$A$1000=$B$3,ROW(Expenses!F$13:F$1000)-ROW(Expenses!F$13)+1),ROWS(Expenses!F$13:'Expenses'!F42))),\"\")","v":""}]
[{"$f":"IFERROR(INDEX(Expenses!A$13:A$1000,SMALL(IF(Expenses!$A$13:$A$1000=$B$3,ROW(Expenses!A$13:A$1000)-ROW(Expenses!A$13)+1),ROWS(Expenses!A$13:'Expenses'!A43))),\"\")","v":""},{"$f":"IFERROR(INDEX(Expenses!B$13:B$1000,SMALL(IF(Expenses!$A$13:$A$1000=$B$3,ROW(Expenses!B$13:B$1000)-ROW(Expenses!B$13)+1),ROWS(Expenses!B$13:'Expenses'!B43))),\"\")","v":""},{"$f":"IFERROR(INDEX(Expenses!D$13:D$1000,SMALL(IF(Expenses!$A$13:$A$1000=$B$3,ROW(Expenses!D$13:D$1000)-ROW(Expenses!D$13)+1),ROWS(Expenses!D$13:'Expenses'!D43))),\"\")","v":""},{"$f":"IFERROR(INDEX(Expenses!E$13:E$1000,SMALL(IF(Expenses!$A$13:$A$1000=$B$3,ROW(Expenses!E$13:E$1000)-ROW(Expenses!E$13)+1),ROWS(Expenses!E$13:'Expenses'!E43))),\"\")","v":""},{"$f":"IFERROR(INDEX(Expenses!F$13:F$1000,SMALL(IF(Expenses!$A$13:$A$1000=$B$3,ROW(Expenses!F$13:F$1000)-ROW(Expenses!F$13)+1),ROWS(Expenses!F$13:'Expenses'!F43))),\"\")","v":""}]
[{"$f":"IFERROR(INDEX(Expenses!A$13:A$1000,SMALL(IF(Expenses!$A$13:$A$1000=$B$3,ROW(Expenses!A$13:A$1000)-ROW(Expenses!A$13)+1),ROWS(Expenses!A$13:'Expenses'!A44))),\"\")","v":""},{"$f":"IFERROR(INDEX(Expenses!B$13:B$1000,SMALL(IF(Expenses!$A$13:$A$1000=$B$3,ROW(Expenses!B$13:B$1000)-ROW(Expenses!B$13)+1),ROWS(Expenses!B$13:'Expenses'!B44))),\"\")","v":""},{"$f":"IFERROR(INDEX(Expenses!D$13:D$1000,SMALL(IF(Expenses!$A$13:$A$1000=$B$3,ROW(Expenses!D$13:D$1000)-ROW(Expenses!D$13)+1),ROWS(Expenses!D$13:'Expenses'!D44))),\"\")","v":""},{"$f":"IFERROR(INDEX(Expenses!E$13:E$1000,SMALL(IF(Expenses!$A$13:$A$1000=$B$3,ROW(Expenses!E$13:E$1000)-ROW(Expenses!E$13)+1),ROWS(Expenses!E$13:'Expenses'!E44))),\"\")","v":""},{"$f":"IFERROR(INDEX(Expenses!F$13:F$1000,SMALL(IF(Expenses!$A$13:$A$1000=$B$3,ROW(Expenses!F$13:F$1000)-ROW(Expenses!F$13)+1),ROWS(Expenses!F$13:'Expenses'!F44))),\"\")","v":""}]
[{"$f":"IFERROR(INDEX(Expenses!A$13:A$1000,SMALL(IF(Expenses!$A$13:$A$1000=$B$3,ROW(Expenses!A$13:A$1000)-ROW(Expenses!A$13)+1),ROWS(Expenses!A$13:'Expenses'!A45))),\"\")","v":""},{"$f":"IFERROR(INDEX(Expenses!B$13:B$1000,SMALL(IF(Expenses!$A$13:$A$1000=$B$3,ROW(Expenses!B$13:B$1000)-ROW(Expenses!B$13)+1),ROWS(Expenses!B$13:'Expenses'!B45))),\"\")","v":""},{"$f":"IFERROR(INDEX(Expenses!D$13:D$1000,SMALL(IF(Expenses!$A$13:$A$1000=$B$3,ROW(Expenses!D$13:D$1000)-ROW(Expenses!D$13)+1),ROWS(Expenses!D$13:'Expenses'!D45))),\"\")","v":""},{"$f":"IFERROR(INDEX(Expenses!E$13:E$1000,SMALL(IF(Expenses!$A$13:$A$1000=$B$3,ROW(Expenses!E$13:E$1000)-ROW(Expenses!E$13)+1),ROWS(Expenses!E$13:'Expenses'!E45))),\"\")","v":""},{"$f":"IFERROR(INDEX(Expenses!F$13:F$1000,SMALL(IF(Expenses!$A$13:$A$1000=$B$3,ROW(Expenses!F$13:F$1000)-ROW(Expenses!F$13)+1),ROWS(Expenses!F$13:'Expenses'!F45))),\"\")","v":""}]
[{"$f":"IFERROR(INDEX(Expenses!A$13:A$1000,SMALL(IF(Expenses!$A$13:$A$1000=$B$3,ROW(Expenses!A$13:A$1000)-ROW(Expenses!A$13)+1),ROWS(Expenses!A$13:'Expenses'!A46))),\"\")","v":""},{"$f":"IFERROR(INDEX(Expenses!B$13:B$1000,SMALL(IF(Expenses!$A$13:$A$1000=$B$3,ROW(Expenses!B$13:B$1000)-ROW(Expenses!B$13)+1),ROWS(Expenses!B$13:'Expenses'!B46))),\"\")","v":""},{"$f":"IFERROR(INDEX(Expenses!D$13:D$1000,SMALL(IF(Expenses!$A$13:$A$1000=$B$3,ROW(Expenses!D$13:D$1000)-ROW(Expenses!D$13)+1),ROWS(Expenses!D$13:'Expenses'!D46))),\"\")","v":""},{"$f":"IFERROR(INDEX(Expenses!E$13:E$1000,SMALL(IF(Expenses!$A$13:$A$1000=$B$3,ROW(Expenses!E$13:E$1000)-ROW(Expenses!E$13)+1),ROWS(Expenses!E$13:'Expenses'!E46))),\"\")","v":""},{"$f":"IFERROR(INDEX(Expenses!F$13:F$1000,SMALL(IF(Expenses!$A$13:$A$1000=$B$3,ROW(Expenses!F$13:F$1000)-ROW(Expenses!F$13)+1),ROWS(Expenses!F$13:'Expenses'!F46))),\"\")","v":""}]
[{"$f":"IFERROR(INDEX(Expenses!A$13:A$1000,SMALL(IF(Expenses!$A$13:$A$1000=$B$3,ROW(Expenses!A$13:A$1000)-ROW(Expenses!A$13)+1),ROWS(Expenses!A$13:'Expenses'!A47))),\"\")","v":""},{"$f":"IFERROR(INDEX(Expenses!B$13:B$1000,SMALL(IF(Expenses!$A$13:$A$1000=$B$3,ROW(Expenses!B$13:B$1000)-ROW(Expenses!B$13)+1),ROWS(Expenses!B$13:'Expenses'!B47))),\"\")","v":""},{"$f":"IFERROR(INDEX(Expenses!D$13:D$1000,SMALL(IF(Expenses!$A$13:$A$1000=$B$3,ROW(Expenses!D$13:D$1000)-ROW(Expenses!D$13)+1),ROWS(Expenses!D$13:'Expenses'!D47))),\"\")","v":""},{"$f":"IFERROR(INDEX(Expenses!E$13:E$1000,SMALL(IF(Expenses!$A$13:$A$1000=$B$3,ROW(Expenses!E$13:E$1000)-ROW(Expenses!E$13)+1),ROWS(Expenses!E$13:'Expenses'!E47))),\"\")","v":""},{"$f":"IFERROR(INDEX(Expenses!F$13:F$1000,SMALL(IF(Expenses!$A$13:$A$1000=$B$3,ROW(Expenses!F$13:F$1000)-ROW(Expenses!F$13)+1),ROWS(Expenses!F$13:'Expenses'!F47))),\"\")","v":""}]
[{"$f":"IFERROR(INDEX(Expenses!A$13:A$1000,SMALL(IF(Expenses!$A$13:$A$1000=$B$3,ROW(Expenses!A$13:A$1000)-ROW(Expenses!A$13)+1),ROWS(Expenses!A$13:'Expenses'!A48))),\"\")","v":""},{"$f":"IFERROR(INDEX(Expenses!B$13:B$1000,SMALL(IF(Expenses!$A$13:$A$1000=$B$3,ROW(Expenses!B$13:B$1000)-ROW(Expenses!B$13)+1),ROWS(Expenses!B$13:'Expenses'!B48))),\"\")","v":""},{"$f":"IFERROR(INDEX(Expenses!D$13:D$1000,SMALL(IF(Expenses!$A$13:$A$1000=$B$3,ROW(Expenses!D$13:D$1000)-ROW(Expenses!D$13)+1),ROWS(Expenses!D$13:'Expenses'!D48))),\"\")","v":""},{"$f":"IFERROR(INDEX(Expenses!E$13:E$1000,SMALL(IF(Expenses!$A$13:$A$1000=$B$3,ROW(Expenses!E$13:E$1000)-ROW(Expenses!E$13)+1),ROWS(Expenses!E$13:'Expenses'!E48))),\"\")","v":""},{"$f":"IFERROR(INDEX(Expenses!F$13:F$1000,SMALL(IF(Expenses!$A$13:$A$1000=$B$3,ROW(Expenses!F$13:F$1000)-ROW(Expenses!F$13)+1),ROWS(Expenses!F$13:'Expenses'!F48))),\"\")","v":""}]
[{"$f":"IFERROR(INDEX(Expenses!A$13:A$1000,SMALL(IF(Expenses!$A$13:$A$1000=$B$3,ROW(Expenses!A$13:A$1000)-ROW(Expenses!A$13)+1),ROWS(Expenses!A$13:'Expenses'!A49))),\"\")","v":""},{"$f":"IFERROR(INDEX(Expenses!B$13:B$1000,SMALL(IF(Expenses!$A$13:$A$1000=$B$3,ROW(Expenses!B$13:B$1000)-ROW(Expenses!B$13)+1),ROWS(Expenses!B$13:'Expenses'!B49))),\"\")","v":""},{"$f":"IFERROR(INDEX(Expenses!D$13:D$1000,SMALL(IF(Expenses!$A$13:$A$1000=$B$3,ROW(Expenses!D$13:D$1000)-ROW(Expenses!D$13)+1),ROWS(Expenses!D$13:'Expenses'!D49))),\"\")","v":""},{"$f":"IFERROR(INDEX(Expenses!E$13:E$1000,SMALL(IF(Expenses!$A$13:$A$1000=$B$3,ROW(Expenses!E$13:E$1000)-ROW(Expenses!E$13)+1),ROWS(Expenses!E$13:'Expenses'!E49))),\"\")","v":""},{"$f":"IFERROR(INDEX(Expenses!F$13:F$1000,SMALL(IF(Expenses!$A$13:$A$1000=$B$3,ROW(Expenses!F$13:F$1000)-ROW(Expenses!F$13)+1),ROWS(Expenses!F$13:'Expenses'!F49))),\"\")","v":""}]
[{"$f":"IFERROR(INDEX(Expenses!A$13:A$1000,SMALL(IF(Expenses!$A$13:$A$1000=$B$3,ROW(Expenses!A$13:A$1000)-ROW(Expenses!A$13)+1),ROWS(Expenses!A$13:'Expenses'!A50))),\"\")","v":""},{"$f":"IFERROR(INDEX(Expenses!B$13:B$1000,SMALL(IF(Expenses!$A$13:$A$1000=$B$3,ROW(Expenses!B$13:B$1000)-ROW(Expenses!B$13)+1),ROWS(Expenses!B$13:'Expenses'!B50))),\"\")","v":""},{"$f":"IFERROR(INDEX(Expenses!D$13:D$1000,SMALL(IF(Expenses!$A$13:$A$1000=$B$3,ROW(Expenses!D$13:D$1000)-ROW(Expenses!D$13)+1),ROWS(Expenses!D$13:'Expenses'!D50))),\"\")","v":""},{"$f":"IFERROR(INDEX(Expenses!E$13:E$1000,SMALL(IF(Expenses!$A$13:$A$1000=$B$3,ROW(Expenses!E$13:E$1000)-ROW(Expenses!E$13)+1),ROWS(Expenses!E$13:'Expenses'!E50))),\"\")","v":""},{"$f":"IFERROR(INDEX(Expenses!F$13:F$1000,SMALL(IF(Expenses!$A$13:$A$1000=$B$3,ROW(Expenses!F$13:F$1000)-ROW(Expenses!F$13)+1),ROWS(Expenses!F$13:'Expenses'!F50))),\"\")","v":""}]
[{"$f":"IFERROR(INDEX(Expenses!A$13:A$1000,SMALL(IF(Expenses!$A$13:$A$1000=$B$3,ROW(Expenses!A$13:A$1000)-ROW(Expenses!A$13)+1),ROWS(Expenses!A$13:'Expenses'!A51))),\"\")","v":""},{"$f":"IFERROR(INDEX(Expenses!B$13:B$1000,SMALL(IF(Expenses!$A$13:$A$1000=$B$3,ROW(Expenses!B$13:B$1000)-ROW(Expenses!B$13)+1),ROWS(Expenses!B$13:'Expenses'!B51))),\"\")","v":""},{"$f":"IFERROR(INDEX(Expenses!D$13:D$1000,SMALL(IF(Expenses!$A$13:$A$1000=$B$3,ROW(Expenses!D$13:D$1000)-ROW(Expenses!D$13)+1),ROWS(Expenses!D$13:'Expenses'!D51))),\"\")","v":""},{"$f":"IFERROR(INDEX(Expenses!E$13:E$1000,SMALL(IF(Expenses!$A$13:$A$1000=$B$3,ROW(Expenses!E$13:E$1000)-ROW(Expenses!E$13)+1),ROWS(Expenses!E$13:'Expenses'!E51))),\"\")","v":""},{"$f":"IFERROR(INDEX(Expenses!F$13:F$1000,SMALL(IF(Expenses!$A$13:$A$1000=$B$3,ROW(Expenses!F$13:F$1000)-ROW(Expenses!F$13)+1),ROWS(Expenses!F$13:'Expenses'!F51))),\"\")","v":""}]
[{"$f":"IFERROR(INDEX(Expenses!A$13:A$1000,SMALL(IF(Expenses!$A$13:$A$1000=$B$3,ROW(Expenses!A$13:A$1000)-ROW(Expenses!A$13)+1),ROWS(Expenses!A$13:'Expenses'!A52))),\"\")","v":""},{"$f":"IFERROR(INDEX(Expenses!B$13:B$1000,SMALL(IF(Expenses!$A$13:$A$1000=$B$3,ROW(Expenses!B$13:B$1000)-ROW(Expenses!B$13)+1),ROWS(Expenses!B$13:'Expenses'!B52))),\"\")","v":""},{"$f":"IFERROR(INDEX(Expenses!D$13:D$1000,SMALL(IF(Expenses!$A$13:$A$1000=$B$3,ROW(Expenses!D$13:D$1000)-ROW(Expenses!D$13)+1),ROWS(Expenses!D$13:'Expenses'!D52))),\"\")","v":""},{"$f":"IFERROR(INDEX(Expenses!E$13:E$1000,SMALL(IF(Expenses!$A$13:$A$1000=$B$3,ROW(Expenses!E$13:E$1000)-ROW(Expenses!E$13)+1),ROWS(Expenses!E$13:'Expenses'!E52))),\"\")","v":""},{"$f":"IFERROR(INDEX(Expenses!F$13:F$1000,SMALL(IF(Expenses!$A$13:$A$1000=$B$3,ROW(Expenses!F$13:F$1000)-ROW(Expenses!F$13)+1),ROWS(Expenses!F$13:'Expenses'!F52))),\"\")","v":""}]
[{"$f":"IFERROR(INDEX(Expenses!A$13:A$1000,SMALL(IF(Expenses!$A$13:$A$1000=$B$3,ROW(Expenses!A$13:A$1000)-ROW(Expenses!A$13)+1),ROWS(Expenses!A$13:'Expenses'!A53))),\"\")","v":""},{"$f":"IFERROR(INDEX(Expenses!B$13:B$1000,SMALL(IF(Expenses!$A$13:$A$1000=$B$3,ROW(Expenses!B$13:B$1000)-ROW(Expenses!B$13)+1),ROWS(Expenses!B$13:'Expenses'!B53))),\"\")","v":""},{"$f":"IFERROR(INDEX(Expenses!D$13:D$1000,SMALL(IF(Expenses!$A$13:$A$1000=$B$3,ROW(Expenses!D$13:D$1000)-ROW(Expenses!D$13)+1),ROWS(Expenses!D$13:'Expenses'!D53))),\"\")","v":""},{"$f":"IFERROR(INDEX(Expenses!E$13:E$1000,SMALL(IF(Expenses!$A$13:$A$1000=$B$3,ROW(Expenses!E$13:E$1000)-ROW(Expenses!E$13)+1),ROWS(Expenses!E$13:'Expenses'!E53))),\"\")","v":""},{"$f":"IFERROR(INDEX(Expenses!F$13:F$1000,SMALL(IF(Expenses!$A$13:$A$1000=$B$3,ROW(Expenses!F$13:F$1000)-ROW(Expenses!F$13)+1),ROWS(Expenses!F$13:'Expenses'!F53))),\"\")","v":""}]
[{"$f":"IFERROR(INDEX(Expenses!A$13:A$1000,SMALL(IF(Expenses!$A$13:$A$1000=$B$3,ROW(Expenses!A$13:A$1000)-ROW(Expenses!A$13)+1),ROWS(Expenses!A$13:'Expenses'!A54))),\"\")","v":""},{"$f":"IFERROR(INDEX(Expenses!B$13:B$1000,SMALL(IF(Expenses!$A$13:$A$1000=$B$3,ROW(Expenses!B$13:B$1000)-ROW(Expenses!B$13)+1),ROWS(Expenses!B$13:'Expenses'!B54))),\"\")","v":""},{"$f":"IFERROR(INDEX(Expenses!D$13:D$1000,SMALL(IF(Expenses!$A$13:$A$1000=$B$3,ROW(Expenses!D$13:D$1000)-ROW(Expenses!D$13)+1),ROWS(Expenses!D$13:'Expenses'!D54))),\"\")","v":""},{"$f":"IFERROR(INDEX(Expenses!E$13:E$1000,SMALL(IF(Expenses!$A$13:$A$1000=$B$3,ROW(Expenses!E$13:E$1000)-ROW(Expenses!E$13)+1),ROWS(Expenses!E$13:'Expenses'!E54))),\"\")","v":""},{"$f":"IFERROR(INDEX(Expenses!F$13:F$1000,SMALL(IF(Expenses!$A$13:$A$1000=$B$3,ROW(Expenses!F$13:F$1000)-ROW(Expenses!F$13)+1),ROWS(Expenses!F$13:'Expenses'!F54))),\"\")","v":""}]
[{"$f":"IFERROR(INDEX(Expenses!A$13:A$1000,SMALL(IF(Expenses!$A$13:$A$1000=$B$3,ROW(Expenses!A$13:A$1000)-ROW(Expenses!A$13)+1),ROWS(Expenses!A$13:'Expenses'!A55))),\"\")","v":""},{"$f":"IFERROR(INDEX(Expenses!B$13:B$1000,SMALL(IF(Expenses!$A$13:$A$1000=$B$3,ROW(Expenses!B$13:B$1000)-ROW(Expenses!B$13)+1),ROWS(Expenses!B$13:'Expenses'!B55))),\"\")","v":""},{"$f":"IFERROR(INDEX(Expenses!D$13:D$1000,SMALL(IF(Expenses!$A$13:$A$1000=$B$3,ROW(Expenses!D$13:D$1000)-ROW(Expenses!D$13)+1),ROWS(Expenses!D$13:'Expenses'!D55))),\"\")","v":""},{"$f":"IFERROR(INDEX(Expenses!E$13:E$1000,SMALL(IF(Expenses!$A$13:$A$1000=$B$3,ROW(Expenses!E$13:E$1000)-ROW(Expenses!E$13)+1),ROWS(Expenses!E$13:'Expenses'!E55))),\"\")","v":""},{"$f":"IFERROR(INDEX(Expenses!F$13:F$1000,SMALL(IF(Expenses!$A$13:$A$1000=$B$3,ROW(Expenses!F$13:F$1000)-ROW(Expenses!F$13)+1),ROWS(Expenses!F$13:'Expenses'!F55))),\"\")","v":""}]
[{"$f":"IFERROR(INDEX(Expenses!A$13:A$1000,SMALL(IF(Expenses!$A$13:$A$1000=$B$3,ROW(Expenses!A$13:A$1000)-ROW(Expenses!A$13)+1),ROWS(Expenses!A$13:'Expenses'!A56))),\"\")","v":""},{"$f":"IFERROR(INDEX(Expenses!B$13:B$1000,SMALL(IF(Expenses!$A$13:$A$1000=$B$3,ROW(Expenses!B$13:B$1000)-ROW(Expenses!B$13)+1),ROWS(Expenses!B$13:'Expenses'!B56))),\"\")","v":""},{"$f":"IFERROR(INDEX(Expenses!D$13:D$1000,SMALL(IF(Expenses!$A$13:$A$1000=$B$3,ROW(Expenses!D$13:D$1000)-ROW(Expenses!D$13)+1),ROWS(Expenses!D$13:'Expenses'!D56))),\"\")","v":""},{"$f":"IFERROR(INDEX(Expenses!E$13:E$1000,SMALL(IF(Expenses!$A$13:$A$1000=$B$3,ROW(Expenses!E$13:E$1000)-ROW(Expenses!E$13)+1),ROWS(Expenses!E$13:'Expenses'!E56))),\"\")","v":""},{"$f":"IFERROR(INDEX(Expenses!F$13:F$1000,SMALL(IF(Expenses!$A$13:$A$1000=$B$3,ROW(Expenses!F$13:F$1000)-ROW(Expenses!F$13)+1),ROWS(Expenses!F$13:'Expenses'!F56))),\"\")","v":""}]
[{"$f":"IFERROR(INDEX(Expenses!A$13:A$1000,SMALL(IF(Expenses!$A$13:$A$1000=$B$3,ROW(Expenses!A$13:A$1000)-ROW(Expenses!A$13)+1),ROWS(Expenses!A$13:'Expenses'!A57))),\"\")","v":""},{"$f":"IFERROR(INDEX(Expenses!B$13:B$1000,SMALL(IF(Expenses!$A$13:$A$1000=$B$3,ROW(Expenses!B$13:B$1000)-ROW(Expenses!B$13)+1),ROWS(Expenses!B$13:'Expenses'!B57))),\"\")","v":""},{"$f":"IFERROR(INDEX(Expenses!D$13:D$1000,SMALL(IF(Expenses!$A$13:$A$1000=$B$3,ROW(Expenses!D$13:D$1000)-ROW(Expenses!D$13)+1),ROWS(Expenses!D$13:'Expenses'!D57))),\"\")","v":""},{"$f":"IFERROR(INDEX(Expenses!E$13:E$1000,SMALL(IF(Expenses!$A$13:$A$1000=$B$3,ROW(Expenses!E$13:E$1000)-ROW(Expenses!E$13)+1),ROWS(Expenses!E$13:'Expenses'!E57))),\"\")","v":""},{"$f":"IFERROR(INDEX(Expenses!F$13:F$1000,SMALL(IF(Expenses!$A$13:$A$1000=$B$3,ROW(Expenses!F$13:F$1000)-ROW(Expenses!F$13)+1),ROWS(Expenses!F$13:'Expenses'!F57))),\"\")","v":""}]
[{"$f":"IFERROR(INDEX(Expenses!A$13:A$1000,SMALL(IF(Expenses!$A$13:$A$1000=$B$3,ROW(Expenses!A$13:A$1000)-ROW(Expenses!A$13)+1),ROWS(Expenses!A$13:'Expenses'!A58))),\"\")","v":""},{"$f":"IFERROR(INDEX(Expenses!B$13:B$1000,SMALL(IF(Expenses!$A$13:$A$1000=$B$3,ROW(Expenses!B$13:B$1000)-ROW(Expenses!B$13)+1),ROWS(Expenses!B$13:'Expenses'!B58))),\"\")","v":""},{"$f":"IFERROR(INDEX(Expenses!D$13:D$1000,SMALL(IF(Expenses!$A$13:$A$1000=$B$3,ROW(Expenses!D$13:D$1000)-ROW(Expenses!D$13)+1),ROWS(Expenses!D$13:'Expenses'!D58))),\"\")","v":""},{"$f":"IFERROR(INDEX(Expenses!E$13:E$1000,SMALL(IF(Expenses!$A$13:$A$1000=$B$3,ROW(Expenses!E$13:E$1000)-ROW(Expenses!E$13)+1),ROWS(Expenses!E$13:'Expenses'!E58))),\"\")","v":""},{"$f":"IFERROR(INDEX(Expenses!F$13:F$1000,SMALL(IF(Expenses!$A$13:$A$1000=$B$3,ROW(Expenses!F$13:F$1000)-ROW(Expenses!F$13)+1),ROWS(Expenses!F$13:'Expenses'!F58))),\"\")","v":""}]
[{"$f":"IFERROR(INDEX(Expenses!A$13:A$1000,SMALL(IF(Expenses!$A$13:$A$1000=$B$3,ROW(Expenses!A$13:A$1000)-ROW(Expenses!A$13)+1),ROWS(Expenses!A$13:'Expenses'!A59))),\"\")","v":""},{"$f":"IFERROR(INDEX(Expenses!B$13:B$1000,SMALL(IF(Expenses!$A$13:$A$1000=$B$3,ROW(Expenses!B$13:B$1000)-ROW(Expenses!B$13)+1),ROWS(Expenses!B$13:'Expenses'!B59))),\"\")","v":""},{"$f":"IFERROR(INDEX(Expenses!D$13:D$1000,SMALL(IF(Expenses!$A$13:$A$1000=$B$3,ROW(Expenses!D$13:D$1000)-ROW(Expenses!D$13)+1),ROWS(Expenses!D$13:'Expenses'!D59))),\"\")","v":""},{"$f":"IFERROR(INDEX(Expenses!E$13:E$1000,SMALL(IF(Expenses!$A$13:$A$1000=$B$3,ROW(Expenses!E$13:E$1000)-ROW(Expenses!E$13)+1),ROWS(Expenses!E$13:'Expenses'!E59))),\"\")","v":""},{"$f":"IFERROR(INDEX(Expenses!F$13:F$1000,SMALL(IF(Expenses!$A$13:$A$1000=$B$3,ROW(Expenses!F$13:F$1000)-ROW(Expenses!F$13)+1),ROWS(Expenses!F$13:'Expenses'!F59))),\"\")","v":""}]
[{"$f":"IFERROR(INDEX(Expenses!A$13:A$1000,SMALL(IF(Expenses!$A$13:$A$1000=$B$3,ROW(Expenses!A$13:A$1000)-ROW(Expenses!A$13)+1),ROWS(Expenses!A$13:'Expenses'!A60))),\"\")","v":""},{"$f":"IFERROR(INDEX(Expenses!B$13:B$1000,SMALL(IF(Expenses!$A$13:$A$1000=$B$3,ROW(Expenses!B$13:B$1000)-ROW(Expenses!B$13)+1),ROWS(Expenses!B$13:'Expenses'!B60))),\"\")","v":""},{"$f":"IFERROR(INDEX(Expenses!D$13:D$1000,SMALL(IF(Expenses!$A$13:$A$1000=$B$3,ROW(Expenses!D$13:D$1000)-ROW(Expenses!D$13)+1),ROWS(Expenses!D$13:'Expenses'!D60))),\"\")","v":""},{"$f":"IFERROR(INDEX(Expenses!E$13:E$1000,SMALL(IF(Expenses!$A$13:$A$1000=$B$3,ROW(Expenses!E$13:E$1000)-ROW(Expenses!E$13)+1),ROWS(Expenses!E$13:'Expenses'!E60))),\"\")","v":""},{"$f":"IFERROR(INDEX(Expenses!F$13:F$1000,SMALL(IF(Expenses!$A$13:$A$1000=$B$3,ROW(Expenses!F$13:F$1000)-ROW(Expenses!F$13)+1),ROWS(Expenses!F$13:'Expenses'!F60))),\"\")","v":""}]
[{"$f":"IFERROR(INDEX(Expenses!A$13:A$1000,SMALL(IF(Expenses!$A$13:$A$1000=$B$3,ROW(Expenses!A$13:A$1000)-ROW(Expenses!A$13)+1),ROWS(Expenses!A$13:'Expenses'!A61))),\"\")","v":""},{"$f":"IFERROR(INDEX(Expenses!B$13:B$1000,SMALL(IF(Expenses!$A$13:$A$1000=$B$3,ROW(Expenses!B$13:B$1000)-ROW(Expenses!B$13)+1),ROWS(Expenses!B$13:'Expenses'!B61))),\"\")","v":""},{"$f":"IFERROR(INDEX(Expenses!D$13:D$1000,SMALL(IF(Expenses!$A$13:$A$1000=$B$3,ROW(Expenses!D$13:D$1000)-ROW(Expenses!D$13)+1),ROWS(Expenses!D$13:'Expenses'!D61))),\"\")","v":""},{"$f":"IFERROR(INDEX(Expenses!E$13:E$1000,SMALL(IF(Expenses!$A$13:$A$1000=$B$3,ROW(Expenses!E$13:E$1000)-ROW(Expenses!E$13)+1),ROWS(Expenses!E$13:'Expenses'!E61))),\"\")","v":""},{"$f":"IFERROR(INDEX(Expenses!F$13:F$1000,SMALL(IF(Expenses!$A$13:$A$1000=$B$3,ROW(Expenses!F$13:F$1000)-ROW(Expenses!F$13)+1),ROWS(Expenses!F$13:'Expenses'!F61))),\"\")","v":""}]
[{"$f":"IFERROR(INDEX(Expenses!A$13:A$1000,SMALL(IF(Expenses!$A$13:$A$1000=$B$3,ROW(Expenses!A$13:A$1000)-ROW(Expenses!A$13)+1),ROWS(Expenses!A$13:'Expenses'!A62))),\"\")","v":""},{"$f":"IFERROR(INDEX(Expenses!B$13:B$1000,SMALL(IF(Expenses!$A$13:$A$1000=$B$3,ROW(Expenses!B$13:B$1000)-ROW(Expenses!B$13)+1),ROWS(Expenses!B$13:'Expenses'!B62))),\"\")","v":""},{"$f":"IFERROR(INDEX(Expenses!D$13:D$1000,SMALL(IF(Expenses!$A$13:$A$1000=$B$3,ROW(Expenses!D$13:D$1000)-ROW(Expenses!D$13)+1),ROWS(Expenses!D$13:'Expenses'!D62))),\"\")","v":""},{"$f":"IFERROR(INDEX(Expenses!E$13:E$1000,SMALL(IF(Expenses!$A$13:$A$1000=$B$3,ROW(Expenses!E$13:E$1000)-ROW(Expenses!E$13)+1),ROWS(Expenses!E$13:'Expenses'!E62))),\"\")","v":""},{"$f":"IFERROR(INDEX(Expenses!F$13:F$1000,SMALL(IF(Expenses!$A$13:$A$1000=$B$3,ROW(Expenses!F$13:F$1000)-ROW(Expenses!F$13)+1),ROWS(Expenses!F$13:'Expenses'!F62))),\"\")","v":""}]
[{"$f":"IFERROR(INDEX(Expenses!A$13:A$1000,SMALL(IF(Expenses!$A$13:$A$1000=$B$3,ROW(Expenses!A$13:A$1000)-ROW(Expenses!A$13)+1),ROWS(Expenses!A$13:'Expenses'!A63))),\"\")","v":""},{"$f":"IFERROR(INDEX(Expenses!B$13:B$1000,SMALL(IF(Expenses!$A$13:$A$1000=$B$3,ROW(Expenses!B$13:B$1000)-ROW(Expenses!B$13)+1),ROWS(Expenses!B$13:'Expenses'!B63))),\"\")","v":""},{"$f":"IFERROR(INDEX(Expenses!D$13:D$1000,SMALL(IF(Expenses!$A$13:$A$1000=$B$3,ROW(Expenses!D$13:D$1000)-ROW(Expenses!D$13)+1),ROWS(Expenses!D$13:'Expenses'!D63))),\"\")","v":""},{"$f":"IFERROR(INDEX(Expenses!E$13:E$1000,SMALL(IF(Expenses!$A$13:$A$1000=$B$3,ROW(Expenses!E$13:E$1000)-ROW(Expenses!E$13)+1),ROWS(Expenses!E$13:'Expenses'!E63))),\"\")","v":""},{"$f":"IFERROR(INDEX(Expenses!F$13:F$1000,SMALL(IF(Expenses!$A$13:$A$1000=$B$3,ROW(Expenses!F$13:F$1000)-ROW(Expenses!F$13)+1),ROWS(Expenses!F$13:'Expenses'!F63))),\"\")","v":""}]
[{"$f":"IFERROR(INDEX(Expenses!A$13:A$1000,SMALL(IF(Expenses!$A$13:$A$1000=$B$3,ROW(Expenses!A$13:A$1000)-ROW(Expenses!A$13)+1),ROWS(Expenses!A$13:'Expenses'!A64))),\"\")","v":""},{"$f":"IFERROR(INDEX(Expenses!B$13:B$1000,SMALL(IF(Expenses!$A$13:$A$1000=$B$3,ROW(Expenses!B$13:B$1000)-ROW(Expenses!B$13)+1),ROWS(Expenses!B$13:'Expenses'!B64))),\"\")","v":""},{"$f":"IFERROR(INDEX(Expenses!D$13:D$1000,SMALL(IF(Expenses!$A$13:$A$1000=$B$3,ROW(Expenses!D$13:D$1000)-ROW(Expenses!D$13)+1),ROWS(Expenses!D$13:'Expenses'!D64))),\"\")","v":""},{"$f":"IFERROR(INDEX(Expenses!E$13:E$1000,SMALL(IF(Expenses!$A$13:$A$1000=$B$3,ROW(Expenses!E$13:E$1000)-ROW(Expenses!E$13)+1),ROWS(Expenses!E$13:'Expenses'!E64))),\"\")","v":""},{"$f":"IFERROR(INDEX(Expenses!F$13:F$1000,SMALL(IF(Expenses!$A$13:$A$1000=$B$3,ROW(Expenses!F$13:F$1000)-ROW(Expenses!F$13)+1),ROWS(Expenses!F$13:'Expenses'!F64))),\"\")","v":""}]
[{"$f":"IFERROR(INDEX(Expenses!A$13:A$1000,SMALL(IF(Expenses!$A$13:$A$1000=$B$3,ROW(Expenses!A$13:A$1000)-ROW(Expenses!A$13)+1),ROWS(Expenses!A$13:'Expenses'!A65))),\"\")","v":""},{"$f":"IFERROR(INDEX(Expenses!B$13:B$1000,SMALL(IF(Expenses!$A$13:$A$1000=$B$3,ROW(Expenses!B$13:B$1000)-ROW(Expenses!B$13)+1),ROWS(Expenses!B$13:'Expenses'!B65))),\"\")","v":""},{"$f":"IFERROR(INDEX(Expenses!D$13:D$1000,SMALL(IF(Expenses!$A$13:$A$1000=$B$3,ROW(Expenses!D$13:D$1000)-ROW(Expenses!D$13)+1),ROWS(Expenses!D$13:'Expenses'!D65))),\"\")","v":""},{"$f":"IFERROR(INDEX(Expenses!E$13:E$1000,SMALL(IF(Expenses!$A$13:$A$1000=$B$3,ROW(Expenses!E$13:E$1000)-ROW(Expenses!E$13)+1),ROWS(Expenses!E$13:'Expenses'!E65))),\"\")","v":""},{"$f":"IFERROR(INDEX(Expenses!F$13:F$1000,SMALL(IF(Expenses!$A$13:$A$1000=$B$3,ROW(Expenses!F$13:F$1000)-ROW(Expenses!F$13)+1),ROWS(Expenses!F$13:'Expenses'!F65))),\"\")","v":""}]
[{"$f":"IFERROR(INDEX(Expenses!A$13:A$1000,SMALL(IF(Expenses!$A$13:$A$1000=$B$3,ROW(Expenses!A$13:A$1000)-ROW(Expenses!A$13)+1),ROWS(Expenses!A$13:'Expenses'!A66))),\"\")","v":""},{"$f":"IFERROR(INDEX(Expenses!B$13:B$1000,SMALL(IF(Expenses!$A$13:$A$1000=$B$3,ROW(Expenses!B$13:B$1000)-ROW(Expenses!B$13)+1),ROWS(Expenses!B$13:'Expenses'!B66))),\"\")","v":""},{"$f":"IFERROR(INDEX(Expenses!D$13:D$1000,SMALL(IF(Expenses!$A$13:$A$1000=$B$3,ROW(Expenses!D$13:D$1000)-ROW(Expenses!D$13)+1),ROWS(Expenses!D$13:'Expenses'!D66))),\"\")","v":""},{"$f":"IFERROR(INDEX(Expenses!E$13:E$1000,SMALL(IF(Expenses!$A$13:$A$1000=$B$3,ROW(Expenses!E$13:E$1000)-ROW(Expenses!E$13)+1),ROWS(Expenses!E$13:'Expenses'!E66))),\"\")","v":""},{"$f":"IFERROR(INDEX(Expenses!F$13:F$1000,SMALL(IF(Expenses!$A$13:$A$1000=$B$3,ROW(Expenses!F$13:F$1000)-ROW(Expenses!F$13)+1),ROWS(Expenses!F$13:'Expenses'!F66))),\"\")","v":""}]
[{"$f":"IFERROR(INDEX(Expenses!A$13:A$1000,SMALL(IF(Expenses!$A$13:$A$1000=$B$3,ROW(Expenses!A$13:A$1000)-ROW(Expenses!A$13)+1),ROWS(Expenses!A$13:'Expenses'!A67))),\"\")","v":""},{"$f":"IFERROR(INDEX(Expenses!B$13:B$1000,SMALL(IF(Expenses!$A$13:$A$1000=$B$3,ROW(Expenses!B$13:B$1000)-ROW(Expenses!B$13)+1),ROWS(Expenses!B$13:'Expenses'!B67))),\"\")","v":""},{"$f":"IFERROR(INDEX(Expenses!D$13:D$1000,SMALL(IF(Expenses!$A$13:$A$1000=$B$3,ROW(Expenses!D$13:D$1000)-ROW(Expenses!D$13)+1),ROWS(Expenses!D$13:'Expenses'!D67))),\"\")","v":""},{"$f":"IFERROR(INDEX(Expenses!E$13:E$1000,SMALL(IF(Expenses!$A$13:$A$1000=$B$3,ROW(Expenses!E$13:E$1000)-ROW(Expenses!E$13)+1),ROWS(Expenses!E$13:'Expenses'!E67))),\"\")","v":""},{"$f":"IFERROR(INDEX(Expenses!F$13:F$1000,SMALL(IF(Expenses!$A$13:$A$1000=$B$3,ROW(Expenses!F$13:F$1000)-ROW(Expenses!F$13)+1),ROWS(Expenses!F$13:'Expenses'!F67))),\"\")","v":""}]
[{"$f":"IFERROR(INDEX(Expenses!A$13:A$1000,SMALL(IF(Expenses!$A$13:$A$1000=$B$3,ROW(Expenses!A$13:A$1000)-ROW(Expenses!A$13)+1),ROWS(Expenses!A$13:'Expenses'!A68))),\"\")","v":""},{"$f":"IFERROR(INDEX(Expenses!B$13:B$1000,SMALL(IF(Expenses!$A$13:$A$1000=$B$3,ROW(Expenses!B$13:B$1000)-ROW(Expenses!B$13)+1),ROWS(Expenses!B$13:'Expenses'!B68))),\"\")","v":""},{"$f":"IFERROR(INDEX(Expenses!D$13:D$1000,SMALL(IF(Expenses!$A$13:$A$1000=$B$3,ROW(Expenses!D$13:D$1000)-ROW(Expenses!D$13)+1),ROWS(Expenses!D$13:'Expenses'!D68))),\"\")","v":""},{"$f":"IFERROR(INDEX(Expenses!E$13:E$1000,SMALL(IF(Expenses!$A$13:$A$1000=$B$3,ROW(Expenses!E$13:E$1000)-ROW(Expenses!E$13)+1),ROWS(Expenses!E$13:'Expenses'!E68))),\"\")","v":""},{"$f":"IFERROR(INDEX(Expenses!F$13:F$1000,SMALL(IF(Expenses!$A$13:$A$1000=$B$3,ROW(Expenses!F$13:F$1000)-ROW(Expenses!F$13)+1),ROWS(Expenses!F$13:'Expenses'!F68))),\"\")","v":""}]
[{"$f":"IFERROR(INDEX(Expenses!A$13:A$1000,SMALL(IF(Expenses!$A$13:$A$1000=$B$3,ROW(Expenses!A$13:A$1000)-ROW(Expenses!A$13)+1),ROWS(Expenses!A$13:'Expenses'!A69))),\"\")","v":""},{"$f":"IFERROR(INDEX(Expenses!B$13:B$1000,SMALL(IF(Expenses!$A$13:$A$1000=$B$3,ROW(Expenses!B$13:B$1000)-ROW(Expenses!B$13)+1),ROWS(Expenses!B$13:'Expenses'!B69))),\"\")","v":""},{"$f":"IFERROR(INDEX(Expenses!D$13:D$1000,SMALL(IF(Expenses!$A$13:$A$1000=$B$3,ROW(Expenses!D$13:D$1000)-ROW(Expenses!D$13)+1),ROWS(Expenses!D$13:'Expenses'!D69))),\"\")","v":""},{"$f":"IFERROR(INDEX(Expenses!E$13:E$1000,SMALL(IF(Expenses!$A$13:$A$1000=$B$3,ROW(Expenses!E$13:E$1000)-ROW(Expenses!E$13)+1),ROWS(Expenses!E$13:'Expenses'!E69))),\"\")","v":""},{"$f":"IFERROR(INDEX(Expenses!F$13:F$1000,SMALL(IF(Expenses!$A$13:$A$1000=$B$3,ROW(Expenses!F$13:F$1000)-ROW(Expenses!F$13)+1),ROWS(Expenses!F$13:'Expenses'!F69))),\"\")","v":""}]
[{"$f":"IFERROR(INDEX(Expenses!A$13:A$1000,SMALL(IF(Expenses!$A$13:$A$1000=$B$3,ROW(Expenses!A$13:A$1000)-ROW(Expenses!A$13)+1),ROWS(Expenses!A$13:'Expenses'!A70))),\"\")","v":""},{"$f":"IFERROR(INDEX(Expenses!B$13:B$1000,SMALL(IF(Expenses!$A$13:$A$1000=$B$3,ROW(Expenses!B$13:B$1000)-ROW(Expenses!B$13)+1),ROWS(Expenses!B$13:'Expenses'!B70))),\"\")","v":""},{"$f":"IFERROR(INDEX(Expenses!D$13:D$1000,SMALL(IF(Expenses!$A$13:$A$1000=$B$3,ROW(Expenses!D$13:D$1000)-ROW(Expenses!D$13)+1),ROWS(Expenses!D$13:'Expenses'!D70))),\"\")","v":""},{"$f":"IFERROR(INDEX(Expenses!E$13:E$1000,SMALL(IF(Expenses!$A$13:$A$1000=$B$3,ROW(Expenses!E$13:E$1000)-ROW(Expenses!E$13)+1),ROWS(Expenses!E$13:'Expenses'!E70))),\"\")","v":""},{"$f":"IFERROR(INDEX(Expenses!F$13:F$1000,SMALL(IF(Expenses!$A$13:$A$1000=$B$3,ROW(Expenses!F$13:F$1000)-ROW(Expenses!F$13)+1),ROWS(Expenses!F$13:'Expenses'!F70))),\"\")","v":""}]
[{"$f":"IFERROR(INDEX(Expenses!A$13:A$1000,SMALL(IF(Expenses!$A$13:$A$1000=$B$3,ROW(Expenses!A$13:A$1000)-ROW(Expenses!A$13)+1),ROWS(Expenses!A$13:'Expenses'!A71))),\"\")","v":""},{"$f":"IFERROR(INDEX(Expenses!B$13:B$1000,SMALL(IF(Expenses!$A$13:$A$1000=$B$3,ROW(Expenses!B$13:B$1000)-ROW(Expenses!B$13)+1),ROWS(Expenses!B$13:'Expenses'!B71))),\"\")","v":""},{"$f":"IFERROR(INDEX(Expenses!D$13:D$1000,SMALL(IF(Expenses!$A$13:$A$1000=$B$3,ROW(Expenses!D$13:D$1000)-ROW(Expenses!D$13)+1),ROWS(Expenses!D$13:'Expenses'!D71))),\"\")","v":""},{"$f":"IFERROR(INDEX(Expenses!E$13:E$1000,SMALL(IF(Expenses!$A$13:$A$1000=$B$3,ROW(Expenses!E$13:E$1000)-ROW(Expenses!E$13)+1),ROWS(Expenses!E$13:'Expenses'!E71))),\"\")","v":""},{"$f":"IFERROR(INDEX(Expenses!F$13:F$1000,SMALL(IF(Expenses!$A$13:$A$1000=$B$3,ROW(Expenses!F$13:F$1000)-ROW(Expenses!F$13)+1),ROWS(Expenses!F$13:'Expenses'!F71))),\"\")","v":""}]
[{"$f":"IFERROR(INDEX(Expenses!A$13:A$1000,SMALL(IF(Expenses!$A$13:$A$1000=$B$3,ROW(Expenses!A$13:A$1000)-ROW(Expenses!A$13)+1),ROWS(Expenses!A$13:'Expenses'!A72))),\"\")","v":""},{"$f":"IFERROR(INDEX(Expenses!B$13:B$1000,SMALL(IF(Expenses!$A$13:$A$1000=$B$3,ROW(Expenses!B$13:B$1000)-ROW(Expenses!B$13)+1),ROWS(Expenses!B$13:'Expenses'!B72))),\"\")","v":""},{"$f":"IFERROR(INDEX(Expenses!D$13:D$1000,SMALL(IF(Expenses!$A$13:$A$1000=$B$3,ROW(Expenses!D$13:D$1000)-ROW(Expenses!D$13)+1),ROWS(Expenses!D$13:'Expenses'!D72))),\"\")","v":""},{"$f":"IFERROR(INDEX(Expenses!E$13:E$1000,SMALL(IF(Expenses!$A$13:$A$1000=$B$3,ROW(Expenses!E$13:E$1000)-ROW(Expenses!E$13)+1),ROWS(Expenses!E$13:'Expenses'!E72))),\"\")","v":""},{"$f":"IFERROR(INDEX(Expenses!F$13:F$1000,SMALL(IF(Expenses!$A$13:$A$1000=$B$3,ROW(Expenses!F$13:F$1000)-ROW(Expenses!F$13)+1),ROWS(Expenses!F$13:'Expenses'!F72))),\"\")","v":""}]
[{"$f":"IFERROR(INDEX(Expenses!A$13:A$1000,SMALL(IF(Expenses!$A$13:$A$1000=$B$3,ROW(Expenses!A$13:A$1000)-ROW(Expenses!A$13)+1),ROWS(Expenses!A$13:'Expenses'!A73))),\"\")","v":""},{"$f":"IFERROR(INDEX(Expenses!B$13:B$1000,SMALL(IF(Expenses!$A$13:$A$1000=$B$3,ROW(Expenses!B$13:B$1000)-ROW(Expenses!B$13)+1),ROWS(Expenses!B$13:'Expenses'!B73))),\"\")","v":""},{"$f":"IFERROR(INDEX(Expenses!D$13:D$1000,SMALL(IF(Expenses!$A$13:$A$1000=$B$3,ROW(Expenses!D$13:D$1000)-ROW(Expenses!D$13)+1),ROWS(Expenses!D$13:'Expenses'!D73))),\"\")","v":""},{"$f":"IFERROR(INDEX(Expenses!E$13:E$1000,SMALL(IF(Expenses!$A$13:$A$1000=$B$3,ROW(Expenses!E$13:E$1000)-ROW(Expenses!E$13)+1),ROWS(Expenses!E$13:'Expenses'!E73))),\"\")","v":""},{"$f":"IFERROR(INDEX(Expenses!F$13:F$1000,SMALL(IF(Expenses!$A$13:$A$1000=$B$3,ROW(Expenses!F$13:F$1000)-ROW(Expenses!F$13)+1),ROWS(Expenses!F$13:'Expenses'!F73))),\"\")","v":""}]
[{"$f":"IFERROR(INDEX(Expenses!A$13:A$1000,SMALL(IF(Expenses!$A$13:$A$1000=$B$3,ROW(Expenses!A$13:A$1000)-ROW(Expenses!A$13)+1),ROWS(Expenses!A$13:'Expenses'!A74))),\"\")","v":""},{"$f":"IFERROR(INDEX(Expenses!B$13:B$1000,SMALL(IF(Expenses!$A$13:$A$1000=$B$3,ROW(Expenses!B$13:B$1000)-ROW(Expenses!B$13)+1),ROWS(Expenses!B$13:'Expenses'!B74))),\"\")","v":""},{"$f":"IFERROR(INDEX(Expenses!D$13:D$1000,SMALL(IF(Expenses!$A$13:$A$1000=$B$3,ROW(Expenses!D$13:D$1000)-ROW(Expenses!D$13)+1),ROWS(Expenses!D$13:'Expenses'!D74))),\"\")","v":""},{"$f":"IFERROR(INDEX(Expenses!E$13:E$1000,SMALL(IF(Expenses!$A$13:$A$1000=$B$3,ROW(Expenses!E$13:E$1000)-ROW(Expenses!E$13)+1),ROWS(Expenses!E$13:'Expenses'!E74))),\"\")","v":""},{"$f":"IFERROR(INDEX(Expenses!F$13:F$1000,SMALL(IF(Expenses!$A$13:$A$1000=$B$3,ROW(Expenses!F$13:F$1000)-ROW(Expenses!F$13)+1),ROWS(Expenses!F$13:'Expenses'!F74))),\"\")","v":""}]
[{"$f":"IFERROR(INDEX(Expenses!A$13:A$1000,SMALL(IF(Expenses!$A$13:$A$1000=$B$3,ROW(Expenses!A$13:A$1000)-ROW(Expenses!A$13)+1),ROWS(Expenses!A$13:'Expenses'!A75))),\"\")","v":""},{"$f":"IFERROR(INDEX(Expenses!B$13:B$1000,SMALL(IF(Expenses!$A$13:$A$1000=$B$3,ROW(Expenses!B$13:B$1000)-ROW(Expenses!B$13)+1),ROWS(Expenses!B$13:'Expenses'!B75))),\"\")","v":""},{"$f":"IFERROR(INDEX(Expenses!D$13:D$1000,SMALL(IF(Expenses!$A$13:$A$1000=$B$3,ROW(Expenses!D$13:D$1000)-ROW(Expenses!D$13)+1),ROWS(Expenses!D$13:'Expenses'!D75))),\"\")","v":""},{"$f":"IFERROR(INDEX(Expenses!E$13:E$1000,SMALL(IF(Expenses!$A$13:$A$1000=$B$3,ROW(Expenses!E$13:E$1000)-ROW(Expenses!E$13)+1),ROWS(Expenses!E$13:'Expenses'!E75))),\"\")","v":""},{"$f":"IFERROR(INDEX(Expenses!F$13:F$1000,SMALL(IF(Expenses!$A$13:$A$1000=$B$3,ROW(Expenses!F$13:F$1000)-ROW(Expenses!F$13)+1),ROWS(Expenses!F$13:'Expenses'!F75))),\"\")","v":""}]
[{"$f":"IFERROR(INDEX(Expenses!A$13:A$1000,SMALL(IF(Expenses!$A$13:$A$1000=$B$3,ROW(Expenses!A$13:A$1000)-ROW(Expenses!A$13)+1),ROWS(Expenses!A$13:'Expenses'!A76))),\"\")","v":""},{"$f":"IFERROR(INDEX(Expenses!B$13:B$1000,SMALL(IF(Expenses!$A$13:$A$1000=$B$3,ROW(Expenses!B$13:B$1000)-ROW(Expenses!B$13)+1),ROWS(Expenses!B$13:'Expenses'!B76))),\"\")","v":""},{"$f":"IFERROR(INDEX(Expenses!D$13:D$1000,SMALL(IF(Expenses!$A$13:$A$1000=$B$3,ROW(Expenses!D$13:D$1000)-ROW(Expenses!D$13)+1),ROWS(Expenses!D$13:'Expenses'!D76))),\"\")","v":""},{"$f":"IFERROR(INDEX(Expenses!E$13:E$1000,SMALL(IF(Expenses!$A$13:$A$1000=$B$3,ROW(Expenses!E$13:E$1000)-ROW(Expenses!E$13)+1),ROWS(Expenses!E$13:'Expenses'!E76))),\"\")","v":""},{"$f":"IFERROR(INDEX(Expenses!F$13:F$1000,SMALL(IF(Expenses!$A$13:$A$1000=$B$3,ROW(Expenses!F$13:F$1000)-ROW(Expenses!F$13)+1),ROWS(Expenses!F$13:'Expenses'!F76))),\"\")","v":""}]
[{"$f":"IFERROR(INDEX(Expenses!A$13:A$1000,SMALL(IF(Expenses!$A$13:$A$1000=$B$3,ROW(Expenses!A$13:A$1000)-ROW(Expenses!A$13)+1),ROWS(Expenses!A$13:'Expenses'!A77))),\"\")","v":""},{"$f":"IFERROR(INDEX(Expenses!B$13:B$1000,SMALL(IF(Expenses!$A$13:$A$1000=$B$3,ROW(Expenses!B$13:B$1000)-ROW(Expenses!B$13)+1),ROWS(Expenses!B$13:'Expenses'!B77))),\"\")","v":""},{"$f":"IFERROR(INDEX(Expenses!D$13:D$1000,SMALL(IF(Expenses!$A$13:$A$1000=$B$3,ROW(Expenses!D$13:D$1000)-ROW(Expenses!D$13)+1),ROWS(Expenses!D$13:'Expenses'!D77))),\"\")","v":""},{"$f":"IFERROR(INDEX(Expenses!E$13:E$1000,SMALL(IF(Expenses!$A$13:$A$1000=$B$3,ROW(Expenses!E$13:E$1000)-ROW(Expenses!E$13)+1),ROWS(Expenses!E$13:'Expenses'!E77))),\"\")","v":""},{"$f":"IFERROR(INDEX(Expenses!F$13:F$1000,SMALL(IF(Expenses!$A$13:$A$1000=$B$3,ROW(Expenses!F$13:F$1000)-ROW(Expenses!F$13)+1),ROWS(Expenses!F$13:'Expenses'!F77))),\"\")","v":""}]
[{"$f":"IFERROR(INDEX(Expenses!A$13:A$1000,SMALL(IF(Expenses!$A$13:$A$1000=$B$3,ROW(Expenses!A$13:A$1000)-ROW(Expenses!A$13)+1),ROWS(Expenses!A$13:'Expenses'!A78))),\"\")","v":""},{"$f":"IFERROR(INDEX(Expenses!B$13:B$1000,SMALL(IF(Expenses!$A$13:$A$1000=$B$3,ROW(Expenses!B$13:B$1000)-ROW(Expenses!B$13)+1),ROWS(Expenses!B$13:'Expenses'!B78))),\"\")","v":""},{"$f":"IFERROR(INDEX(Expenses!D$13:D$1000,SMALL(IF(Expenses!$A$13:$A$1000=$B$3,ROW(Expenses!D$13:D$1000)-ROW(Expenses!D$13)+1),ROWS(Expenses!D$13:'Expenses'!D78))),\"\")","v":""},{"$f":"IFERROR(INDEX(Expenses!E$13:E$1000,SMALL(IF(Expenses!$A$13:$A$1000=$B$3,ROW(Expenses!E$13:E$1000)-ROW(Expenses!E$13)+1),ROWS(Expenses!E$13:'Expenses'!E78))),\"\")","v":""},{"$f":"IFERROR(INDEX(Expenses!F$13:F$1000,SMALL(IF(Expenses!$A$13:$A$1000=$B$3,ROW(Expenses!F$13:F$1000)-ROW(Expenses!F$13)+1),ROWS(Expenses!F$13:'Expenses'!F78))),\"\")","v":""}]
[{"$f":"IFERROR(INDEX(Expenses!A$13:A$1000,SMALL(IF(Expenses!$A$13:$A$1000=$B$3,ROW(Expenses!A$13:A$1000)-ROW(Expenses!A$13)+1),ROWS(Expenses!A$13:'Expenses'!A79))),\"\")","v":""},{"$f":"IFERROR(INDEX(Expenses!B$13:B$1000,SMALL(IF(Expenses!$A$13:$A$1000=$B$3,ROW(Expenses!B$13:B$1000)-ROW(Expenses!B$13)+1),ROWS(Expenses!B$13:'Expenses'!B79))),\"\")","v":""},{"$f":"IFERROR(INDEX(Expenses!D$13:D$1000,SMALL(IF(Expenses!$A$13:$A$1000=$B$3,ROW(Expenses!D$13:D$1000)-ROW(Expenses!D$13)+1),ROWS(Expenses!D$13:'Expenses'!D79))),\"\")","v":""},{"$f":"IFERROR(INDEX(Expenses!E$13:E$1000,SMALL(IF(Expenses!$A$13:$A$1000=$B$3,ROW(Expenses!E$13:E$1000)-ROW(Expenses!E$13)+1),ROWS(Expenses!E$13:'Expenses'!E79))),\"\")","v":""},{"$f":"IFERROR(INDEX(Expenses!F$13:F$1000,SMALL(IF(Expenses!$A$13:$A$1000=$B$3,ROW(Expenses!F$13:F$1000)-ROW(Expenses!F$13)+1),ROWS(Expenses!F$13:'Expenses'!F79))),\"\")","v":""}]
[{"$f":"IFERROR(INDEX(Expenses!A$13:A$1000,SMALL(IF(Expenses!$A$13:$A$1000=$B$3,ROW(Expenses!A$13:A$1000)-ROW(Expenses!A$13)+1),ROWS(Expenses!A$13:'Expenses'!A80))),\"\")","v":""},{"$f":"IFERROR(INDEX(Expenses!B$13:B$1000,SMALL(IF(Expenses!$A$13:$A$1000=$B$3,ROW(Expenses!B$13:B$1000)-ROW(Expenses!B$13)+1),ROWS(Expenses!B$13:'Expenses'!B80))),\"\")","v":""},{"$f":"IFERROR(INDEX(Expenses!D$13:D$1000,SMALL(IF(Expenses!$A$13:$A$1000=$B$3,ROW(Expenses!D$13:D$1000)-ROW(Expenses!D$13)+1),ROWS(Expenses!D$13:'Expenses'!D80))),\"\")","v":""},{"$f":"IFERROR(INDEX(Expenses!E$13:E$1000,SMALL(IF(Expenses!$A$13:$A$1000=$B$3,ROW(Expenses!E$13:E$1000)-ROW(Expenses!E$13)+1),ROWS(Expenses!E$13:'Expenses'!E80))),\"\")","v":""},{"$f":"IFERROR(INDEX(Expenses!F$13:F$1000,SMALL(IF(Expenses!$A$13:$A$1000=$B$3,ROW(Expenses!F$13:F$1000)-ROW(Expenses!F$13)+1),ROWS(Expenses!F$13:'Expenses'!F80))),\"\")","v":""}]
[{"$f":"IFERROR(INDEX(Expenses!A$13:A$1000,SMALL(IF(Expenses!$A$13:$A$1000=$B$3,ROW(Expenses!A$13:A$1000)-ROW(Expenses!A$13)+1),ROWS(Expenses!A$13:'Expenses'!A81))),\"\")","v":""},{"$f":"IFERROR(INDEX(Expenses!B$13:B$1000,SMALL(IF(Expenses!$A$13:$A$1000=$B$3,ROW(Expenses!B$13:B$1000)-ROW(Expenses!B$13)+1),ROWS(Expenses!B$13:'Expenses'!B81))),\"\")","v":""},{"$f":"IFERROR(INDEX(Expenses!D$13:D$1000,SMALL(IF(Expenses!$A$13:$A$1000=$B$3,ROW(Expenses!D$13:D$1000)-ROW(Expenses!D$13)+1),ROWS(Expenses!D$13:'Expenses'!D81))),\"\")","v":""},{"$f":"IFERROR(INDEX(Expenses!E$13:E$1000,SMALL(IF(Expenses!$A$13:$A$1000=$B$3,ROW(Expenses!E$13:E$1000)-ROW(Expenses!E$13)+1),ROWS(Expenses!E$13:'Expenses'!E81))),\"\")","v":""},{"$f":"IFERROR(INDEX(Expenses!F$13:F$1000,SMALL(IF(Expenses!$A$13:$A$1000=$B$3,ROW(Expenses!F$13:F$1000)-ROW(Expenses!F$13)+1),ROWS(Expenses!F$13:'Expenses'!F81))),\"\")","v":""}]
[{"$f":"IFERROR(INDEX(Expenses!A$13:A$1000,SMALL(IF(Expenses!$A$13:$A$1000=$B$3,ROW(Expenses!A$13:A$1000)-ROW(Expenses!A$13)+1),ROWS(Expenses!A$13:'Expenses'!A82))),\"\")","v":""},{"$f":"IFERROR(INDEX(Expenses!B$13:B$1000,SMALL(IF(Expenses!$A$13:$A$1000=$B$3,ROW(Expenses!B$13:B$1000)-ROW(Expenses!B$13)+1),ROWS(Expenses!B$13:'Expenses'!B82))),\"\")","v":""},{"$f":"IFERROR(INDEX(Expenses!D$13:D$1000,SMALL(IF(Expenses!$A$13:$A$1000=$B$3,ROW(Expenses!D$13:D$1000)-ROW(Expenses!D$13)+1),ROWS(Expenses!D$13:'Expenses'!D82))),\"\")","v":""},{"$f":"IFERROR(INDEX(Expenses!E$13:E$1000,SMALL(IF(Expenses!$A$13:$A$1000=$B$3,ROW(Expenses!E$13:E$1000)-ROW(Expenses!E$13)+1),ROWS(Expenses!E$13:'Expenses'!E82))),\"\")","v":""},{"$f":"IFERROR(INDEX(Expenses!F$13:F$1000,SMALL(IF(Expenses!$A$13:$A$1000=$B$3,ROW(Expenses!F$13:F$1000)-ROW(Expenses!F$13)+1),ROWS(Expenses!F$13:'Expenses'!F82))),\"\")","v":""}]
[{"$f":"IFERROR(INDEX(Expenses!A$13:A$1000,SMALL(IF(Expenses!$A$13:$A$1000=$B$3,ROW(Expenses!A$13:A$1000)-ROW(Expenses!A$13)+1),ROWS(Expenses!A$13:'Expenses'!A83))),\"\")","v":""},{"$f":"IFERROR(INDEX(Expenses!B$13:B$1000,SMALL(IF(Expenses!$A$13:$A$1000=$B$3,ROW(Expenses!B$13:B$1000)-ROW(Expenses!B$13)+1),ROWS(Expenses!B$13:'Expenses'!B83))),\"\")","v":""},{"$f":"IFERROR(INDEX(Expenses!D$13:D$1000,SMALL(IF(Expenses!$A$13:$A$1000=$B$3,ROW(Expenses!D$13:D$1000)-ROW(Expenses!D$13)+1),ROWS(Expenses!D$13:'Expenses'!D83))),\"\")","v":""},{"$f":"IFERROR(INDEX(Expenses!E$13:E$1000,SMALL(IF(Expenses!$A$13:$A$1000=$B$3,ROW(Expenses!E$13:E$1000)-ROW(Expenses!E$13)+1),ROWS(Expenses!E$13:'Expenses'!E83))),\"\")","v":""},{"$f":"IFERROR(INDEX(Expenses!F$13:F$1000,SMALL(IF(Expenses!$A$13:$A$1000=$B$3,ROW(Expenses!F$13:F$1000)-ROW(Expenses!F$13)+1),ROWS(Expenses!F$13:'Expenses'!F83))),\"\")","v":""}]
[{"$f":"IFERROR(INDEX(Expenses!A$13:A$1000,SMALL(IF(Expenses!$A$13:$A$1000=$B$3,ROW(Expenses!A$13:A$1000)-ROW(Expenses!A$13)+1),ROWS(Expenses!A$13:'Expenses'!A84))),\"\")","v":""},{"$f":"IFERROR(INDEX(Expenses!B$13:B$1000,SMALL(IF(Expenses!$A$13:$A$1000=$B$3,ROW(Expenses!B$13:B$1000)-ROW(Expenses!B$13)+1),ROWS(Expenses!B$13:'Expenses'!B84))),\"\")","v":""},{"$f":"IFERROR(INDEX(Expenses!D$13:D$1000,SMALL(IF(Expenses!$A$13:$A$1000=$B$3,ROW(Expenses!D$13:D$1000)-ROW(Expenses!D$13)+1),ROWS(Expenses!D$13:'Expenses'!D84))),\"\")","v":""},{"$f":"IFERROR(INDEX(Expenses!E$13:E$1000,SMALL(IF(Expenses!$A$13:$A$1000=$B$3,ROW(Expenses!E$13:E$1000)-ROW(Expenses!E$13)+1),ROWS(Expenses!E$13:'Expenses'!E84))),\"\")","v":""},{"$f":"IFERROR(INDEX(Expenses!F$13:F$1000,SMALL(IF(Expenses!$A$13:$A$1000=$B$3,ROW(Expenses!F$13:F$1000)-ROW(Expenses!F$13)+1),ROWS(Expenses!F$13:'Expenses'!F84))),\"\")","v":""}]
[{"$f":"IFERROR(INDEX(Expenses!A$13:A$1000,SMALL(IF(Expenses!$A$13:$A$1000=$B$3,ROW(Expenses!A$13:A$1000)-ROW(Expenses!A$13)+1),ROWS(Expenses!A$13:'Expenses'!A85))),\"\")","v":""},{"$f":"IFERROR(INDEX(Expenses!B$13:B$1000,SMALL(IF(Expenses!$A$13:$A$1000=$B$3,ROW(Expenses!B$13:B$1000)-ROW(Expenses!B$13)+1),ROWS(Expenses!B$13:'Expenses'!B85))),\"\")","v":""},{"$f":"IFERROR(INDEX(Expenses!D$13:D$1000,SMALL(IF(Expenses!$A$13:$A$1000=$B$3,ROW(Expenses!D$13:D$1000)-ROW(Expenses!D$13)+1),ROWS(Expenses!D$13:'Expenses'!D85))),\"\")","v":""},{"$f":"IFERROR(INDEX(Expenses!E$13:E$1000,SMALL(IF(Expenses!$A$13:$A$1000=$B$3,ROW(Expenses!E$13:E$1000)-ROW(Expenses!E$13)+1),ROWS(Expenses!E$13:'Expenses'!E85))),\"\")","v":""},{"$f":"IFERROR(INDEX(Expenses!F$13:F$1000,SMALL(IF(Expenses!$A$13:$A$1000=$B$3,ROW(Expenses!F$13:F$1000)-ROW(Expenses!F$13)+1),ROWS(Expenses!F$13:'Expenses'!F85))),\"\")","v":""}]
[{"$f":"IFERROR(INDEX(Expenses!A$13:A$1000,SMALL(IF(Expenses!$A$13:$A$1000=$B$3,ROW(Expenses!A$13:A$1000)-ROW(Expenses!A$13)+1),ROWS(Expenses!A$13:'Expenses'!A86))),\"\")","v":""},{"$f":"IFERROR(INDEX(Expenses!B$13:B$1000,SMALL(IF(Expenses!$A$13:$A$1000=$B$3,ROW(Expenses!B$13:B$1000)-ROW(Expenses!B$13)+1),ROWS(Expenses!B$13:'Expenses'!B86))),\"\")","v":""},{"$f":"IFERROR(INDEX(Expenses!D$13:D$1000,SMALL(IF(Expenses!$A$13:$A$1000=$B$3,ROW(Expenses!D$13:D$1000)-ROW(Expenses!D$13)+1),ROWS(Expenses!D$13:'Expenses'!D86))),\"\")","v":""},{"$f":"IFERROR(INDEX(Expenses!E$13:E$1000,SMALL(IF(Expenses!$A$13:$A$1000=$B$3,ROW(Expenses!E$13:E$1000)-ROW(Expenses!E$13)+1),ROWS(Expenses!E$13:'Expenses'!E86))),\"\")","v":""},{"$f":"IFERROR(INDEX(Expenses!F$13:F$1000,SMALL(IF(Expenses!$A$13:$A$1000=$B$3,ROW(Expenses!F$13:F$1000)-ROW(Expenses!F$13)+1),ROWS(Expenses!F$13:'Expenses'!F86))),\"\")","v":""}]
[{"$f":"IFERROR(INDEX(Expenses!A$13:A$1000,SMALL(IF(Expenses!$A$13:$A$1000=$B$3,ROW(Expenses!A$13:A$1000)-ROW(Expenses!A$13)+1),ROWS(Expenses!A$13:'Expenses'!A87))),\"\")","v":""},{"$f":"IFERROR(INDEX(Expenses!B$13:B$1000,SMALL(IF(Expenses!$A$13:$A$1000=$B$3,ROW(Expenses!B$13:B$1000)-ROW(Expenses!B$13)+1),ROWS(Expenses!B$13:'Expenses'!B87))),\"\")","v":""},{"$f":"IFERROR(INDEX(Expenses!D$13:D$1000,SMALL(IF(Expenses!$A$13:$A$1000=$B$3,ROW(Expenses!D$13:D$1000)-ROW(Expenses!D$13)+1),ROWS(Expenses!D$13:'Expenses'!D87))),\"\")","v":""},{"$f":"IFERROR(INDEX(Expenses!E$13:E$1000,SMALL(IF(Expenses!$A$13:$A$1000=$B$3,ROW(Expenses!E$13:E$1000)-ROW(Expenses!E$13)+1),ROWS(Expenses!E$13:'Expenses'!E87))),\"\")","v":""},{"$f":"IFERROR(INDEX(Expenses!F$13:F$1000,SMALL(IF(Expenses!$A$13:$A$1000=$B$3,ROW(Expenses!F$13:F$1000)-ROW(Expenses!F$13)+1),ROWS(Expenses!F$13:'Expenses'!F87))),\"\")","v":""}]
[{"$f":"IFERROR(INDEX(Expenses!A$13:A$1000,SMALL(IF(Expenses!$A$13:$A$1000=$B$3,ROW(Expenses!A$13:A$1000)-ROW(Expenses!A$13)+1),ROWS(Expenses!A$13:'Expenses'!A88))),\"\")","v":""},{"$f":"IFERROR(INDEX(Expenses!B$13:B$1000,SMALL(IF(Expenses!$A$13:$A$1000=$B$3,ROW(Expenses!B$13:B$1000)-ROW(Expenses!B$13)+1),ROWS(Expenses!B$13:'Expenses'!B88))),\"\")","v":""},{"$f":"IFERROR(INDEX(Expenses!D$13:D$1000,SMALL(IF(Expenses!$A$13:$A$1000=$B$3,ROW(Expenses!D$13:D$1000)-ROW(Expenses!D$13)+1),ROWS(Expenses!D$13:'Expenses'!D88))),\"\")","v":""},{"$f":"IFERROR(INDEX(Expenses!E$13:E$1000,SMALL(IF(Expenses!$A$13:$A$1000=$B$3,ROW(Expenses!E$13:E$1000)-ROW(Expenses!E$13)+1),ROWS(Expenses!E$13:'Expenses'!E88))),\"\")","v":""},{"$f":"IFERROR(INDEX(Expenses!F$13:F$1000,SMALL(IF(Expenses!$A$13:$A$1000=$B$3,ROW(Expenses!F$13:F$1000)-ROW(Expenses!F$13)+1),ROWS(Expenses!F$13:'Expenses'!F88))),\"\")","v":""}]
[{"$f":"IFERROR(INDEX(Expenses!A$13:A$1000,SMALL(IF(Expenses!$A$13:$A$1000=$B$3,ROW(Expenses!A$13:A$1000)-ROW(Expenses!A$13)+1),ROWS(Expenses!A$13:'Expenses'!A89))),\"\")","v":""},{"$f":"IFERROR(INDEX(Expenses!B$13:B$1000,SMALL(IF(Expenses!$A$13:$A$1000=$B$3,ROW(Expenses!B$13:B$1000)-ROW(Expenses!B$13)+1),ROWS(Expenses!B$13:'Expenses'!B89))),\"\")","v":""},{"$f":"IFERROR(INDEX(Expenses!D$13:D$1000,SMALL(IF(Expenses!$A$13:$A$1000=$B$3,ROW(Expenses!D$13:D$1000)-ROW(Expenses!D$13)+1),ROWS(Expenses!D$13:'Expenses'!D89))),\"\")","v":""},{"$f":"IFERROR(INDEX(Expenses!E$13:E$1000,SMALL(IF(Expenses!$A$13:$A$1000=$B$3,ROW(Expenses!E$13:E$1000)-ROW(Expenses!E$13)+1),ROWS(Expenses!E$13:'Expenses'!E89))),\"\")","v":""},{"$f":"IFERROR(INDEX(Expenses!F$13:F$1000,SMALL(IF(Expenses!$A$13:$A$1000=$B$3,ROW(Expenses!F$13:F$1000)-ROW(Expenses!F$13)+1),ROWS(Expenses!F$13:'Expenses'!F89))),\"\")","v":""}]
[{"$f":"IFERROR(INDEX(Expenses!A$13:A$1000,SMALL(IF(Expenses!$A$13:$A$1000=$B$3,ROW(Expenses!A$13:A$1000)-ROW(Expenses!A$13)+1),ROWS(Expenses!A$13:'Expenses'!A90))),\"\")","v":""},{"$f":"IFERROR(INDEX(Expenses!B$13:B$1000,SMALL(IF(Expenses!$A$13:$A$1000=$B$3,ROW(Expenses!B$13:B$1000)-ROW(Expenses!B$13)+1),ROWS(Expenses!B$13:'Expenses'!B90))),\"\")","v":""},{"$f":"IFERROR(INDEX(Expenses!D$13:D$1000,SMALL(IF(Expenses!$A$13:$A$1000=$B$3,ROW(Expenses!D$13:D$1000)-ROW(Expenses!D$13)+1),ROWS(Expenses!D$13:'Expenses'!D90))),\"\")","v":""},{"$f":"IFERROR(INDEX(Expenses!E$13:E$1000,SMALL(IF(Expenses!$A$13:$A$1000=$B$3,ROW(Expenses!E$13:E$1000)-ROW(Expenses!E$13)+1),ROWS(Expenses!E$13:'Expenses'!E90))),\"\")","v":""},{"$f":"IFERROR(INDEX(Expenses!F$13:F$1000,SMALL(IF(Expenses!$A$13:$A$1000=$B$3,ROW(Expenses!F$13:F$1000)-ROW(Expenses!F$13)+1),ROWS(Expenses!F$13:'Expenses'!F90))),\"\")","v":""}]
[{"$f":"IFERROR(INDEX(Expenses!A$13:A$1000,SMALL(IF(Expenses!$A$13:$A$1000=$B$3,ROW(Expenses!A$13:A$1000)-ROW(Expenses!A$13)+1),ROWS(Expenses!A$13:'Expenses'!A91))),\"\")","v":""},{"$f":"IFERROR(INDEX(Expenses!B$13:B$1000,SMALL(IF(Expenses!$A$13:$A$1000=$B$3,ROW(Expenses!B$13:B$1000)-ROW(Expenses!B$13)+1),ROWS(Expenses!B$13:'Expenses'!B91))),\"\")","v":""},{"$f":"IFERROR(INDEX(Expenses!D$13:D$1000,SMALL(IF(Expenses!$A$13:$A$1000=$B$3,ROW(Expenses!D$13:D$1000)-ROW(Expenses!D$13)+1),ROWS(Expenses!D$13:'Expenses'!D91))),\"\")","v":""},{"$f":"IFERROR(INDEX(Expenses!E$13:E$1000,SMALL(IF(Expenses!$A$13:$A$1000=$B$3,ROW(Expenses!E$13:E$1000)-ROW(Expenses!E$13)+1),ROWS(Expenses!E$13:'Expenses'!E91))),\"\")","v":""},{"$f":"IFERROR(INDEX(Expenses!F$13:F$1000,SMALL(IF(Expenses!$A$13:$A$1000=$B$3,ROW(Expenses!F$13:F$1000)-ROW(Expenses!F$13)+1),ROWS(Expenses!F$13:'Expenses'!F91))),\"\")","v":""}]
[{"$f":"IFERROR(INDEX(Expenses!A$13:A$1000,SMALL(IF(Expenses!$A$13:$A$1000=$B$3,ROW(Expenses!A$13:A$1000)-ROW(Expenses!A$13)+1),ROWS(Expenses!A$13:'Expenses'!A92))),\"\")","v":""},{"$f":"IFERROR(INDEX(Expenses!B$13:B$1000,SMALL(IF(Expenses!$A$13:$A$1000=$B$3,ROW(Expenses!B$13:B$1000)-ROW(Expenses!B$13)+1),ROWS(Expenses!B$13:'Expenses'!B92))),\"\")","v":""},{"$f":"IFERROR(INDEX(Expenses!D$13:D$1000,SMALL(IF(Expenses!$A$13:$A$1000=$B$3,ROW(Expenses!D$13:D$1000)-ROW(Expenses!D$13)+1),ROWS(Expenses!D$13:'Expenses'!D92))),\"\")","v":""},{"$f":"IFERROR(INDEX(Expenses!E$13:E$1000,SMALL(IF(Expenses!$A$13:$A$1000=$B$3,ROW(Expenses!E$13:E$1000)-ROW(Expenses!E$13)+1),ROWS(Expenses!E$13:'Expenses'!E92))),\"\")","v":""},{"$f":"IFERROR(INDEX(Expenses!F$13:F$1000,SMALL(IF(Expenses!$A$13:$A$1000=$B$3,ROW(Expenses!F$13:F$1000)-ROW(Expenses!F$13)+1),ROWS(Expenses!F$13:'Expenses'!F92))),\"\")","v":""}]
[{"$f":"IFERROR(INDEX(Expenses!A$13:A$1000,SMALL(IF(Expenses!$A$13:$A$1000=$B$3,ROW(Expenses!A$13:A$1000)-ROW(Expenses!A$13)+1),ROWS(Expenses!A$13:'Expenses'!A93))),\"\")","v":""},{"$f":"IFERROR(INDEX(Expenses!B$13:B$1000,SMALL(IF(Expenses!$A$13:$A$1000=$B$3,ROW(Expenses!B$13:B$1000)-ROW(Expenses!B$13)+1),ROWS(Expenses!B$13:'Expenses'!B93))),\"\")","v":""},{"$f":"IFERROR(INDEX(Expenses!D$13:D$1000,SMALL(IF(Expenses!$A$13:$A$1000=$B$3,ROW(Expenses!D$13:D$1000)-ROW(Expenses!D$13)+1),ROWS(Expenses!D$13:'Expenses'!D93))),\"\")","v":""},{"$f":"IFERROR(INDEX(Expenses!E$13:E$1000,SMALL(IF(Expenses!$A$13:$A$1000=$B$3,ROW(Expenses!E$13:E$1000)-ROW(Expenses!E$13)+1),ROWS(Expenses!E$13:'Expenses'!E93))),\"\")","v":""},{"$f":"IFERROR(INDEX(Expenses!F$13:F$1000,SMALL(IF(Expenses!$A$13:$A$1000=$B$3,ROW(Expenses!F$13:F$1000)-ROW(Expenses!F$13)+1),ROWS(Expenses!F$13:'Expenses'!F93))),\"\")","v":""}]
[{"$f":"IFERROR(INDEX(Expenses!A$13:A$1000,SMALL(IF(Expenses!$A$13:$A$1000=$B$3,ROW(Expenses!A$13:A$1000)-ROW(Expenses!A$13)+1),ROWS(Expenses!A$13:'Expenses'!A94))),\"\")","v":""},{"$f":"IFERROR(INDEX(Expenses!B$13:B$1000,SMALL(IF(Expenses!$A$13:$A$1000=$B$3,ROW(Expenses!B$13:B$1000)-ROW(Expenses!B$13)+1),ROWS(Expenses!B$13:'Expenses'!B94))),\"\")","v":""},{"$f":"IFERROR(INDEX(Expenses!D$13:D$1000,SMALL(IF(Expenses!$A$13:$A$1000=$B$3,ROW(Expenses!D$13:D$1000)-ROW(Expenses!D$13)+1),ROWS(Expenses!D$13:'Expenses'!D94))),\"\")","v":""},{"$f":"IFERROR(INDEX(Expenses!E$13:E$1000,SMALL(IF(Expenses!$A$13:$A$1000=$B$3,ROW(Expenses!E$13:E$1000)-ROW(Expenses!E$13)+1),ROWS(Expenses!E$13:'Expenses'!E94))),\"\")","v":""},{"$f":"IFERROR(INDEX(Expenses!F$13:F$1000,SMALL(IF(Expenses!$A$13:$A$1000=$B$3,ROW(Expenses!F$13:F$1000)-ROW(Expenses!F$13)+1),ROWS(Expenses!F$13:'Expenses'!F94))),\"\")","v":""}]
[{"$f":"IFERROR(INDEX(Expenses!A$13:A$1000,SMALL(IF(Expenses!$A$13:$A$1000=$B$3,ROW(Expenses!A$13:A$1000)-ROW(Expenses!A$13)+1),ROWS(Expenses!A$13:'Expenses'!A95))),\"\")","v":""},{"$f":"IFERROR(INDEX(Expenses!B$13:B$1000,SMALL(IF(Expenses!$A$13:$A$1000=$B$3,ROW(Expenses!B$13:B$1000)-ROW(Expenses!B$13)+1),ROWS(Expenses!B$13:'Expenses'!B95))),\"\")","v":""},{"$f":"IFERROR(INDEX(Expenses!D$13:D$1000,SMALL(IF(Expenses!$A$13:$A$1000=$B$3,ROW(Expenses!D$13:D$1000)-ROW(Expenses!D$13)+1),ROWS(Expenses!D$13:'Expenses'!D95))),\"\")","v":""},{"$f":"IFERROR(INDEX(Expenses!E$13:E$1000,SMALL(IF(Expenses!$A$13:$A$1000=$B$3,ROW(Expenses!E$13:E$1000)-ROW(Expenses!E$13)+1),ROWS(Expenses!E$13:'Expenses'!E95))),\"\")","v":""},{"$f":"IFERROR(INDEX(Expenses!F$13:F$1000,SMALL(IF(Expenses!$A$13:$A$1000=$B$3,ROW(Expenses!F$13:F$1000)-ROW(Expenses!F$13)+1),ROWS(Expenses!F$13:'Expenses'!F95))),\"\")","v":""}]
[{"$f":"IFERROR(INDEX(Expenses!A$13:A$1000,SMALL(IF(Expenses!$A$13:$A$1000=$B$3,ROW(Expenses!A$13:A$1000)-ROW(Expenses!A$13)+1),ROWS(Expenses!A$13:'Expenses'!A96))),\"\")","v":""},{"$f":"IFERROR(INDEX(Expenses!B$13:B$1000,SMALL(IF(Expenses!$A$13:$A$1000=$B$3,ROW(Expenses!B$13:B$1000)-ROW(Expenses!B$13)+1),ROWS(Expenses!B$13:'Expenses'!B96))),\"\")","v":""},{"$f":"IFERROR(INDEX(Expenses!D$13:D$1000,SMALL(IF(Expenses!$A$13:$A$1000=$B$3,ROW(Expenses!D$13:D$1000)-ROW(Expenses!D$13)+1),ROWS(Expenses!D$13:'Expenses'!D96))),\"\")","v":""},{"$f":"IFERROR(INDEX(Expenses!E$13:E$1000,SMALL(IF(Expenses!$A$13:$A$1000=$B$3,ROW(Expenses!E$13:E$1000)-ROW(Expenses!E$13)+1),ROWS(Expenses!E$13:'Expenses'!E96))),\"\")","v":""},{"$f":"IFERROR(INDEX(Expenses!F$13:F$1000,SMALL(IF(Expenses!$A$13:$A$1000=$B$3,ROW(Expenses!F$13:F$1000)-ROW(Expenses!F$13)+1),ROWS(Expenses!F$13:'Expenses'!F96))),\"\")","v":""}]
[{"$f":"IFERROR(INDEX(Expenses!A$13:A$1000,SMALL(IF(Expenses!$A$13:$A$1000=$B$3,ROW(Expenses!A$13:A$1000)-ROW(Expenses!A$13)+1),ROWS(Expenses!A$13:'Expenses'!A97))),\"\")","v":""},{"$f":"IFERROR(INDEX(Expenses!B$13:B$1000,SMALL(IF(Expenses!$A$13:$A$1000=$B$3,ROW(Expenses!B$13:B$1000)-ROW(Expenses!B$13)+1),ROWS(Expenses!B$13:'Expenses'!B97))),\"\")","v":""},{"$f":"IFERROR(INDEX(Expenses!D$13:D$1000,SMALL(IF(Expenses!$A$13:$A$1000=$B$3,ROW(Expenses!D$13:D$1000)-ROW(Expenses!D$13)+1),ROWS(Expenses!D$13:'Expenses'!D97))),\"\")","v":""},{"$f":"IFERROR(INDEX(Expenses!E$13:E$1000,SMALL(IF(Expenses!$A$13:$A$1000=$B$3,ROW(Expenses!E$13:E$1000)-ROW(Expenses!E$13)+1),ROWS(Expenses!E$13:'Expenses'!E97))),\"\")","v":""},{"$f":"IFERROR(INDEX(Expenses!F$13:F$1000,SMALL(IF(Expenses!$A$13:$A$1000=$B$3,ROW(Expenses!F$13:F$1000)-ROW(Expenses!F$13)+1),ROWS(Expenses!F$13:'Expenses'!F97))),\"\")","v":""}]
[{"$f":"IFERROR(INDEX(Expenses!A$13:A$1000,SMALL(IF(Expenses!$A$13:$A$1000=$B$3,ROW(Expenses!A$13:A$1000)-ROW(Expenses!A$13)+1),ROWS(Expenses!A$13:'Expenses'!A98))),\"\")","v":""},{"$f":"IFERROR(INDEX(Expenses!B$13:B$1000,SMALL(IF(Expenses!$A$13:$A$1000=$B$3,ROW(Expenses!B$13:B$1000)-ROW(Expenses!B$13)+1),ROWS(Expenses!B$13:'Expenses'!B98))),\"\")","v":""},{"$f":"IFERROR(INDEX(Expenses!D$13:D$1000,SMALL(IF(Expenses!$A$13:$A$1000=$B$3,ROW(Expenses!D$13:D$1000)-ROW(Expenses!D$13)+1),ROWS(Expenses!D$13:'Expenses'!D98))),\"\")","v":""},{"$f":"IFERROR(INDEX(Expenses!E$13:E$1000,SMALL(IF(Expenses!$A$13:$A$1000=$B$3,ROW(Expenses!E$13:E$1000)-ROW(Expenses!E$13)+1),ROWS(Expenses!E$13:'Expenses'!E98))),\"\")","v":""},{"$f":"IFERROR(INDEX(Expenses!F$13:F$1000,SMALL(IF(Expenses!$A$13:$A$1000=$B$3,ROW(Expenses!F$13:F$1000)-ROW(Expenses!F$13)+1),ROWS(Expenses!F$13:'Expenses'!F98))),\"\")","v":""}]
[{"$f":"IFERROR(INDEX(Expenses!A$13:A$1000,SMALL(IF(Expenses!$A$13:$A$1000=$B$3,ROW(Expenses!A$13:A$1000)-ROW(Expenses!A$13)+1),ROWS(Expenses!A$13:'Expenses'!A99))),\"\")","v":""},{"$f":"IFERROR(INDEX(Expenses!B$13:B$1000,SMALL(IF(Expenses!$A$13:$A$1000=$B$3,ROW(Expenses!B$13:B$1000)-ROW(Expenses!B$13)+1),ROWS(Expenses!B$13:'Expenses'!B99))),\"\")","v":""},{"$f":"IFERROR(INDEX(Expenses!D$13:D$1000,SMALL(IF(Expenses!$A$13:$A$1000=$B$3,ROW(Expenses!D$13:D$1000)-ROW(Expenses!D$13)+1),ROWS(Expenses!D$13:'Expenses'!D99))),\"\")","v":""},{"$f":"IFERROR(INDEX(Expenses!E$13:E$1000,SMALL(IF(Expenses!$A$13:$A$1000=$B$3,ROW(Expenses!E$13:E$1000)-ROW(Expenses!E$13)+1),ROWS(Expenses!E$13:'Expenses'!E99))),\"\")","v":""},{"$f":"IFERROR(INDEX(Expenses!F$13:F$1000,SMALL(IF(Expenses!$A$13:$A$1000=$B$3,ROW(Expenses!F$13:F$1000)-ROW(Expenses!F$13)+1),ROWS(Expenses!F$13:'Expenses'!F99))),\"\")","v":""}]
[{"$f":"IFERROR(INDEX(Expenses!A$13:A$1000,SMALL(IF(Expenses!$A$13:$A$1000=$B$3,ROW(Expenses!A$13:A$1000)-ROW(Expenses!A$13)+1),ROWS(Expenses!A$13:'Expenses'!A100))),\"\")","v":""},{"$f":"IFERROR(INDEX(Expenses!B$13:B$1000,SMALL(IF(Expenses!$A$13:$A$1000=$B$3,ROW(Expenses!B$13:B$1000)-ROW(Expenses!B$13)+1),ROWS(Expenses!B$13:'Expenses'!B100))),\"\")","v":""},{"$f":"IFERROR(INDEX(Expenses!D$13:D$1000,SMALL(IF(Expenses!$A$13:$A$1000=$B$3,ROW(Expenses!D$13:D$1000)-ROW(Expenses!D$13)+1),ROWS(Expenses!D$13:'Expenses'!D100))),\"\")","v":""},{"$f":"IFERROR(INDEX(Expenses!E$13:E$1000,SMALL(IF(Expenses!$A$13:$A$1000=$B$3,ROW(Expenses!E$13:E$1000)-ROW(Expenses!E$13)+1),ROWS(Expenses!E$13:'Expenses'!E100))),\"\")","v":""},{"$f":"IFERROR(INDEX(Expenses!F$13:F$1000,SMALL(IF(Expenses!$A$13:$A$1000=$B$3,ROW(Expenses!F$13:F$1000)-ROW(Expenses!F$13)+1),ROWS(Expenses!F$13:'Expenses'!F100))),\"\")","v":""}]
[{"$f":"IFERROR(INDEX(Expenses!A$13:A$1000,SMALL(IF(Expenses!$A$13:$A$1000=$B$3,ROW(Expenses!A$13:A$1000)-ROW(Expenses!A$13)+1),ROWS(Expenses!A$13:'Expenses'!A101))),\"\")","v":""},{"$f":"IFERROR(INDEX(Expenses!B$13:B$1000,SMALL(IF(Expenses!$A$13:$A$1000=$B$3,ROW(Expenses!B$13:B$1000)-ROW(Expenses!B$13)+1),ROWS(Expenses!B$13:'Expenses'!B101))),\"\")","v":""},{"$f":"IFERROR(INDEX(Expenses!D$13:D$1000,SMALL(IF(Expenses!$A$13:$A$1000=$B$3,ROW(Expenses!D$13:D$1000)-ROW(Expenses!D$13)+1),ROWS(Expenses!D$13:'Expenses'!D101))),\"\")","v":""},{"$f":"IFERROR(INDEX(Expenses!E$13:E$1000,SMALL(IF(Expenses!$A$13:$A$1000=$B$3,ROW(Expenses!E$13:E$1000)-ROW(Expenses!E$13)+1),ROWS(Expenses!E$13:'Expenses'!E101))),\"\")","v":""},{"$f":"IFERROR(INDEX(Expenses!F$13:F$1000,SMALL(IF(Expenses!$A$13:$A$1000=$B$3,ROW(Expenses!F$13:F$1000)-ROW(Expenses!F$13)+1),ROWS(Expenses!F$13:'Expenses'!F101))),\"\")","v":""}]
[{"$f":"IFERROR(INDEX(Expenses!A$13:A$1000,SMALL(IF(Expenses!$A$13:$A$1000=$B$3,ROW(Expenses!A$13:A$1000)-ROW(Expenses!A$13)+1),ROWS(Expenses!A$13:'Expenses'!A102))),\"\")","v":""},{"$f":"IFERROR(INDEX(Expenses!B$13:B$1000,SMALL(IF(Expenses!$A$13:$A$1000=$B$3,ROW(Expenses!B$13:B$1000)-ROW(Expenses!B$13)+1),ROWS(Expenses!B$13:'Expenses'!B102))),\"\")","v":""},{"$f":"IFERROR(INDEX(Expenses!D$13:D$1000,SMALL(IF(Expenses!$A$13:$A$1000=$B$3,ROW(Expenses!D$13:D$1000)-ROW(Expenses!D$13)+1),ROWS(Expenses!D$13:'Expenses'!D102))),\"\")","v":""},{"$f":"IFERROR(INDEX(Expenses!E$13:E$1000,SMALL(IF(Expenses!$A$13:$A$1000=$B$3,ROW(Expenses!E$13:E$1000)-ROW(Expenses!E$13)+1),ROWS(Expenses!E$13:'Expenses'!E102))),\"\")","v":""},{"$f":"IFERROR(INDEX(Expenses!F$13:F$1000,SMALL(IF(Expenses!$A$13:$A$1000=$B$3,ROW(Expenses!F$13:F$1000)-ROW(Expenses!F$13)+1),ROWS(Expenses!F$13:'Expenses'!F102))),\"\")","v":""}]
[{"$f":"IFERROR(INDEX(Expenses!A$13:A$1000,SMALL(IF(Expenses!$A$13:$A$1000=$B$3,ROW(Expenses!A$13:A$1000)-ROW(Expenses!A$13)+1),ROWS(Expenses!A$13:'Expenses'!A103))),\"\")","v":""},{"$f":"IFERROR(INDEX(Expenses!B$13:B$1000,SMALL(IF(Expenses!$A$13:$A$1000=$B$3,ROW(Expenses!B$13:B$1000)-ROW(Expenses!B$13)+1),ROWS(Expenses!B$13:'Expenses'!B103))),\"\")","v":""},{"$f":"IFERROR(INDEX(Expenses!D$13:D$1000,SMALL(IF(Expenses!$A$13:$A$1000=$B$3,ROW(Expenses!D$13:D$1000)-ROW(Expenses!D$13)+1),ROWS(Expenses!D$13:'Expenses'!D103))),\"\")","v":""},{"$f":"IFERROR(INDEX(Expenses!E$13:E$1000,SMALL(IF(Expenses!$A$13:$A$1000=$B$3,ROW(Expenses!E$13:E$1000)-ROW(Expenses!E$13)+1),ROWS(Expenses!E$13:'Expenses'!E103))),\"\")","v":""},{"$f":"IFERROR(INDEX(Expenses!F$13:F$1000,SMALL(IF(Expenses!$A$13:$A$1000=$B$3,ROW(Expenses!F$13:F$1000)-ROW(Expenses!F$13)+1),ROWS(Expenses!F$13:'Expenses'!F103))),\"\")","v":""}]
[{"$f":"IFERROR(INDEX(Expenses!A$13:A$1000,SMALL(IF(Expenses!$A$13:$A$1000=$B$3,ROW(Expenses!A$13:A$1000)-ROW(Expenses!A$13)+1),ROWS(Expenses!A$13:'Expenses'!A104))),\"\")","v":""},{"$f":"IFERROR(INDEX(Expenses!B$13:B$1000,SMALL(IF(Expenses!$A$13:$A$1000=$B$3,ROW(Expenses!B$13:B$1000)-ROW(Expenses!B$13)+1),ROWS(Expenses!B$13:'Expenses'!B104))),\"\")","v":""},{"$f":"IFERROR(INDEX(Expenses!D$13:D$1000,SMALL(IF(Expenses!$A$13:$A$1000=$B$3,ROW(Expenses!D$13:D$1000)-ROW(Expenses!D$13)+1),ROWS(Expenses!D$13:'Expenses'!D104))),\"\")","v":""},{"$f":"IFERROR(INDEX(Expenses!E$13:E$1000,SMALL(IF(Expenses!$A$13:$A$1000=$B$3,ROW(Expenses!E$13:E$1000)-ROW(Expenses!E$13)+1),ROWS(Expenses!E$13:'Expenses'!E104))),\"\")","v":""},{"$f":"IFERROR(INDEX(Expenses!F$13:F$1000,SMALL(IF(Expenses!$A$13:$A$1000=$B$3,ROW(Expenses!F$13:F$1000)-ROW(Expenses!F$13)+1),ROWS(Expenses!F$13:'Expenses'!F104))),\"\")","v":""}]
[{"$f":"IFERROR(INDEX(Expenses!A$13:A$1000,SMALL(IF(Expenses!$A$13:$A$1000=$B$3,ROW(Expenses!A$13:A$1000)-ROW(Expenses!A$13)+1),ROWS(Expenses!A$13:'Expenses'!A105))),\"\")","v":""},{"$f":"IFERROR(INDEX(Expenses!B$13:B$1000,SMALL(IF(Expenses!$A$13:$A$1000=$B$3,ROW(Expenses!B$13:B$1000)-ROW(Expenses!B$13)+1),ROWS(Expenses!B$13:'Expenses'!B105))),\"\")","v":""},{"$f":"IFERROR(INDEX(Expenses!D$13:D$1000,SMALL(IF(Expenses!$A$13:$A$1000=$B$3,ROW(Expenses!D$13:D$1000)-ROW(Expenses!D$13)+1),ROWS(Expenses!D$13:'Expenses'!D105))),\"\")","v":""},{"$f":"IFERROR(INDEX(Expenses!E$13:E$1000,SMALL(IF(Expenses!$A$13:$A$1000=$B$3,ROW(Expenses!E$13:E$1000)-ROW(Expenses!E$13)+1),ROWS(Expenses!E$13:'Expenses'!E105))),\"\")","v":""},{"$f":"IFERROR(INDEX(Expenses!F$13:F$1000,SMALL(IF(Expenses!$A$13:$A$1000=$B$3,ROW(Expenses!F$13:F$1000)-ROW(Expenses!F$13)+1),ROWS(Expenses!F$13:'Expenses'!F105))),\"\")","v":""}]
[{"$f":"IFERROR(INDEX(Expenses!A$13:A$1000,SMALL(IF(Expenses!$A$13:$A$1000=$B$3,ROW(Expenses!A$13:A$1000)-ROW(Expenses!A$13)+1),ROWS(Expenses!A$13:'Expenses'!A106))),\"\")","v":""},{"$f":"IFERROR(INDEX(Expenses!B$13:B$1000,SMALL(IF(Expenses!$A$13:$A$1000=$B$3,ROW(Expenses!B$13:B$1000)-ROW(Expenses!B$13)+1),ROWS(Expenses!B$13:'Expenses'!B106))),\"\")","v":""},{"$f":"IFERROR(INDEX(Expenses!D$13:D$1000,SMALL(IF(Expenses!$A$13:$A$1000=$B$3,ROW(Expenses!D$13:D$1000)-ROW(Expenses!D$13)+1),ROWS(Expenses!D$13:'Expenses'!D106))),\"\")","v":""},{"$f":"IFERROR(INDEX(Expenses!E$13:E$1000,SMALL(IF(Expenses!$A$13:$A$1000=$B$3,ROW(Expenses!E$13:E$1000)-ROW(Expenses!E$13)+1),ROWS(Expenses!E$13:'Expenses'!E106))),\"\")","v":""},{"$f":"IFERROR(INDEX(Expenses!F$13:F$1000,SMALL(IF(Expenses!$A$13:$A$1000=$B$3,ROW(Expenses!F$13:F$1000)-ROW(Expenses!F$13)+1),ROWS(Expenses!F$13:'Expenses'!F106))),\"\")","v":""}]
[{"$f":"IFERROR(INDEX(Expenses!A$13:A$1000,SMALL(IF(Expenses!$A$13:$A$1000=$B$3,ROW(Expenses!A$13:A$1000)-ROW(Expenses!A$13)+1),ROWS(Expenses!A$13:'Expenses'!A107))),\"\")","v":""},{"$f":"IFERROR(INDEX(Expenses!B$13:B$1000,SMALL(IF(Expenses!$A$13:$A$1000=$B$3,ROW(Expenses!B$13:B$1000)-ROW(Expenses!B$13)+1),ROWS(Expenses!B$13:'Expenses'!B107))),\"\")","v":""},{"$f":"IFERROR(INDEX(Expenses!D$13:D$1000,SMALL(IF(Expenses!$A$13:$A$1000=$B$3,ROW(Expenses!D$13:D$1000)-ROW(Expenses!D$13)+1),ROWS(Expenses!D$13:'Expenses'!D107))),\"\")","v":""},{"$f":"IFERROR(INDEX(Expenses!E$13:E$1000,SMALL(IF(Expenses!$A$13:$A$1000=$B$3,ROW(Expenses!E$13:E$1000)-ROW(Expenses!E$13)+1),ROWS(Expenses!E$13:'Expenses'!E107))),\"\")","v":""},{"$f":"IFERROR(INDEX(Expenses!F$13:F$1000,SMALL(IF(Expenses!$A$13:$A$1000=$B$3,ROW(Expenses!F$13:F$1000)-ROW(Expenses!F$13)+1),ROWS(Expenses!F$13:'Expenses'!F107))),\"\")","v":""}]
[{"$f":"IFERROR(INDEX(Expenses!A$13:A$1000,SMALL(IF(Expenses!$A$13:$A$1000=$B$3,ROW(Expenses!A$13:A$1000)-ROW(Expenses!A$13)+1),ROWS(Expenses!A$13:'Expenses'!A108))),\"\")","v":""},{"$f":"IFERROR(INDEX(Expenses!B$13:B$1000,SMALL(IF(Expenses!$A$13:$A$1000=$B$3,ROW(Expenses!B$13:B$1000)-ROW(Expenses!B$13)+1),ROWS(Expenses!B$13:'Expenses'!B108))),\"\")","v":""},{"$f":"IFERROR(INDEX(Expenses!D$13:D$1000,SMALL(IF(Expenses!$A$13:$A$1000=$B$3,ROW(Expenses!D$13:D$1000)-ROW(Expenses!D$13)+1),ROWS(Expenses!D$13:'Expenses'!D108))),\"\")","v":""},{"$f":"IFERROR(INDEX(Expenses!E$13:E$1000,SMALL(IF(Expenses!$A$13:$A$1000=$B$3,ROW(Expenses!E$13:E$1000)-ROW(Expenses!E$13)+1),ROWS(Expenses!E$13:'Expenses'!E108))),\"\")","v":""},{"$f":"IFERROR(INDEX(Expenses!F$13:F$1000,SMALL(IF(Expenses!$A$13:$A$1000=$B$3,ROW(Expenses!F$13:F$1000)-ROW(Expenses!F$13)+1),ROWS(Expenses!F$13:'Expenses'!F108))),\"\")","v":""}]
[{"$f":"IFERROR(INDEX(Expenses!A$13:A$1000,SMALL(IF(Expenses!$A$13:$A$1000=$B$3,ROW(Expenses!A$13:A$1000)-ROW(Expenses!A$13)+1),ROWS(Expenses!A$13:'Expenses'!A109))),\"\")","v":""},{"$f":"IFERROR(INDEX(Expenses!B$13:B$1000,SMALL(IF(Expenses!$A$13:$A$1000=$B$3,ROW(Expenses!B$13:B$1000)-ROW(Expenses!B$13)+1),ROWS(Expenses!B$13:'Expenses'!B109))),\"\")","v":""},{"$f":"IFERROR(INDEX(Expenses!D$13:D$1000,SMALL(IF(Expenses!$A$13:$A$1000=$B$3,ROW(Expenses!D$13:D$1000)-ROW(Expenses!D$13)+1),ROWS(Expenses!D$13:'Expenses'!D109))),\"\")","v":""},{"$f":"IFERROR(INDEX(Expenses!E$13:E$1000,SMALL(IF(Expenses!$A$13:$A$1000=$B$3,ROW(Expenses!E$13:E$1000)-ROW(Expenses!E$13)+1),ROWS(Expenses!E$13:'Expenses'!E109))),\"\")","v":""},{"$f":"IFERROR(INDEX(Expenses!F$13:F$1000,SMALL(IF(Expenses!$A$13:$A$1000=$B$3,ROW(Expenses!F$13:F$1000)-ROW(Expenses!F$13)+1),ROWS(Expenses!F$13:'Expenses'!F109))),\"\")","v":""}]
[{"$f":"IFERROR(INDEX(Expenses!A$13:A$1000,SMALL(IF(Expenses!$A$13:$A$1000=$B$3,ROW(Expenses!A$13:A$1000)-ROW(Expenses!A$13)+1),ROWS(Expenses!A$13:'Expenses'!A110))),\"\")","v":""},{"$f":"IFERROR(INDEX(Expenses!B$13:B$1000,SMALL(IF(Expenses!$A$13:$A$1000=$B$3,ROW(Expenses!B$13:B$1000)-ROW(Expenses!B$13)+1),ROWS(Expenses!B$13:'Expenses'!B110))),\"\")","v":""},{"$f":"IFERROR(INDEX(Expenses!D$13:D$1000,SMALL(IF(Expenses!$A$13:$A$1000=$B$3,ROW(Expenses!D$13:D$1000)-ROW(Expenses!D$13)+1),ROWS(Expenses!D$13:'Expenses'!D110))),\"\")","v":""},{"$f":"IFERROR(INDEX(Expenses!E$13:E$1000,SMALL(IF(Expenses!$A$13:$A$1000=$B$3,ROW(Expenses!E$13:E$1000)-ROW(Expenses!E$13)+1),ROWS(Expenses!E$13:'Expenses'!E110))),\"\")","v":""},{"$f":"IFERROR(INDEX(Expenses!F$13:F$1000,SMALL(IF(Expenses!$A$13:$A$1000=$B$3,ROW(Expenses!F$13:F$1000)-ROW(Expenses!F$13)+1),ROWS(Expenses!F$13:'Expenses'!F110))),\"\")","v":""}]
[{"$f":"IFERROR(INDEX(Expenses!A$13:A$1000,SMALL(IF(Expenses!$A$13:$A$1000=$B$3,ROW(Expenses!A$13:A$1000)-ROW(Expenses!A$13)+1),ROWS(Expenses!A$13:'Expenses'!A111))),\"\")","v":""},{"$f":"IFERROR(INDEX(Expenses!B$13:B$1000,SMALL(IF(Expenses!$A$13:$A$1000=$B$3,ROW(Expenses!B$13:B$1000)-ROW(Expenses!B$13)+1),ROWS(Expenses!B$13:'Expenses'!B111))),\"\")","v":""},{"$f":"IFERROR(INDEX(Expenses!D$13:D$1000,SMALL(IF(Expenses!$A$13:$A$1000=$B$3,ROW(Expenses!D$13:D$1000)-ROW(Expenses!D$13)+1),ROWS(Expenses!D$13:'Expenses'!D111))),\"\")","v":""},{"$f":"IFERROR(INDEX(Expenses!E$13:E$1000,SMALL(IF(Expenses!$A$13:$A$1000=$B$3,ROW(Expenses!E$13:E$1000)-ROW(Expenses!E$13)+1),ROWS(Expenses!E$13:'Expenses'!E111))),\"\")","v":""},{"$f":"IFERROR(INDEX(Expenses!F$13:F$1000,SMALL(IF(Expenses!$A$13:$A$1000=$B$3,ROW(Expenses!F$13:F$1000)-ROW(Expenses!F$13)+1),ROWS(Expenses!F$13:'Expenses'!F111))),\"\")","v":""}]
[{"$f":"IFERROR(INDEX(Expenses!A$13:A$1000,SMALL(IF(Expenses!$A$13:$A$1000=$B$3,ROW(Expenses!A$13:A$1000)-ROW(Expenses!A$13)+1),ROWS(Expenses!A$13:'Expenses'!A112))),\"\")","v":""},{"$f":"IFERROR(INDEX(Expenses!B$13:B$1000,SMALL(IF(Expenses!$A$13:$A$1000=$B$3,ROW(Expenses!B$13:B$1000)-ROW(Expenses!B$13)+1),ROWS(Expenses!B$13:'Expenses'!B112))),\"\")","v":""},{"$f":"IFERROR(INDEX(Expenses!D$13:D$1000,SMALL(IF(Expenses!$A$13:$A$1000=$B$3,ROW(Expenses!D$13:D$1000)-ROW(Expenses!D$13)+1),ROWS(Expenses!D$13:'Expenses'!D112))),\"\")","v":""},{"$f":"IFERROR(INDEX(Expenses!E$13:E$1000,SMALL(IF(Expenses!$A$13:$A$1000=$B$3,ROW(Expenses!E$13:E$1000)-ROW(Expenses!E$13)+1),ROWS(Expenses!E$13:'Expenses'!E112))),\"\")","v":""},{"$f":"IFERROR(INDEX(Expenses!F$13:F$1000,SMALL(IF(Expenses!$A$13:$A$1000=$B$3,ROW(Expenses!F$13:F$1000)-ROW(Expenses!F$13)+1),ROWS(Expenses!F$13:'Expenses'!F112))),\"\")","v":""}]
[{"$f":"IFERROR(INDEX(Expenses!A$13:A$1000,SMALL(IF(Expenses!$A$13:$A$1000=$B$3,ROW(Expenses!A$13:A$1000)-ROW(Expenses!A$13)+1),ROWS(Expenses!A$13:'Expenses'!A113))),\"\")","v":""},{"$f":"IFERROR(INDEX(Expenses!B$13:B$1000,SMALL(IF(Expenses!$A$13:$A$1000=$B$3,ROW(Expenses!B$13:B$1000)-ROW(Expenses!B$13)+1),ROWS(Expenses!B$13:'Expenses'!B113))),\"\")","v":""},{"$f":"IFERROR(INDEX(Expenses!D$13:D$1000,SMALL(IF(Expenses!$A$13:$A$1000=$B$3,ROW(Expenses!D$13:D$1000)-ROW(Expenses!D$13)+1),ROWS(Expenses!D$13:'Expenses'!D113))),\"\")","v":""},{"$f":"IFERROR(INDEX(Expenses!E$13:E$1000,SMALL(IF(Expenses!$A$13:$A$1000=$B$3,ROW(Expenses!E$13:E$1000)-ROW(Expenses!E$13)+1),ROWS(Expenses!E$13:'Expenses'!E113))),\"\")","v":""},{"$f":"IFERROR(INDEX(Expenses!F$13:F$1000,SMALL(IF(Expenses!$A$13:$A$1000=$B$3,ROW(Expenses!F$13:F$1000)-ROW(Expenses!F$13)+1),ROWS(Expenses!F$13:'Expenses'!F113))),\"\")","v":""}]
[{"$f":"IFERROR(INDEX(Expenses!A$13:A$1000,SMALL(IF(Expenses!$A$13:$A$1000=$B$3,ROW(Expenses!A$13:A$1000)-ROW(Expenses!A$13)+1),ROWS(Expenses!A$13:'Expenses'!A114))),\"\")","v":""},{"$f":"IFERROR(INDEX(Expenses!B$13:B$1000,SMALL(IF(Expenses!$A$13:$A$1000=$B$3,ROW(Expenses!B$13:B$1000)-ROW(Expenses!B$13)+1),ROWS(Expenses!B$13:'Expenses'!B114))),\"\")","v":""},{"$f":"IFERROR(INDEX(Expenses!D$13:D$1000,SMALL(IF(Expenses!$A$13:$A$1000=$B$3,ROW(Expenses!D$13:D$1000)-ROW(Expenses!D$13)+1),ROWS(Expenses!D$13:'Expenses'!D114))),\"\")","v":""},{"$f":"IFERROR(INDEX(Expenses!E$13:E$1000,SMALL(IF(Expenses!$A$13:$A$1000=$B$3,ROW(Expenses!E$13:E$1000)-ROW(Expenses!E$13)+1),ROWS(Expenses!E$13:'Expenses'!E114))),\"\")","v":""},{"$f":"IFERROR(INDEX(Expenses!F$13:F$1000,SMALL(IF(Expenses!$A$13:$A$1000=$B$3,ROW(Expenses!F$13:F$1000)-ROW(Expenses!F$13)+1),ROWS(Expenses!F$13:'Expenses'!F114))),\"\")","v":""}]
[{"$f":"IFERROR(INDEX(Expenses!A$13:A$1000,SMALL(IF(Expenses!$A$13:$A$1000=$B$3,ROW(Expenses!A$13:A$1000)-ROW(Expenses!A$13)+1),ROWS(Expenses!A$13:'Expenses'!A115))),\"\")","v":""},{"$f":"IFERROR(INDEX(Expenses!B$13:B$1000,SMALL(IF(Expenses!$A$13:$A$1000=$B$3,ROW(Expenses!B$13:B$1000)-ROW(Expenses!B$13)+1),ROWS(Expenses!B$13:'Expenses'!B115))),\"\")","v":""},{"$f":"IFERROR(INDEX(Expenses!D$13:D$1000,SMALL(IF(Expenses!$A$13:$A$1000=$B$3,ROW(Expenses!D$13:D$1000)-ROW(Expenses!D$13)+1),ROWS(Expenses!D$13:'Expenses'!D115))),\"\")","v":""},{"$f":"IFERROR(INDEX(Expenses!E$13:E$1000,SMALL(IF(Expenses!$A$13:$A$1000=$B$3,ROW(Expenses!E$13:E$1000)-ROW(Expenses!E$13)+1),ROWS(Expenses!E$13:'Expenses'!E115))),\"\")","v":""},{"$f":"IFERROR(INDEX(Expenses!F$13:F$1000,SMALL(IF(Expenses!$A$13:$A$1000=$B$3,ROW(Expenses!F$13:F$1000)-ROW(Expenses!F$13)+1),ROWS(Expenses!F$13:'Expenses'!F115))),\"\")","v":""}]
[{"$f":"IFERROR(INDEX(Expenses!A$13:A$1000,SMALL(IF(Expenses!$A$13:$A$1000=$B$3,ROW(Expenses!A$13:A$1000)-ROW(Expenses!A$13)+1),ROWS(Expenses!A$13:'Expenses'!A116))),\"\")","v":""},{"$f":"IFERROR(INDEX(Expenses!B$13:B$1000,SMALL(IF(Expenses!$A$13:$A$1000=$B$3,ROW(Expenses!B$13:B$1000)-ROW(Expenses!B$13)+1),ROWS(Expenses!B$13:'Expenses'!B116))),\"\")","v":""},{"$f":"IFERROR(INDEX(Expenses!D$13:D$1000,SMALL(IF(Expenses!$A$13:$A$1000=$B$3,ROW(Expenses!D$13:D$1000)-ROW(Expenses!D$13)+1),ROWS(Expenses!D$13:'Expenses'!D116))),\"\")","v":""},{"$f":"IFERROR(INDEX(Expenses!E$13:E$1000,SMALL(IF(Expenses!$A$13:$A$1000=$B$3,ROW(Expenses!E$13:E$1000)-ROW(Expenses!E$13)+1),ROWS(Expenses!E$13:'Expenses'!E116))),\"\")","v":""},{"$f":"IFERROR(INDEX(Expenses!F$13:F$1000,SMALL(IF(Expenses!$A$13:$A$1000=$B$3,ROW(Expenses!F$13:F$1000)-ROW(Expenses!F$13)+1),ROWS(Expenses!F$13:'Expenses'!F116))),\"\")","v":""}]
[{"$f":"IFERROR(INDEX(Expenses!A$13:A$1000,SMALL(IF(Expenses!$A$13:$A$1000=$B$3,ROW(Expenses!A$13:A$1000)-ROW(Expenses!A$13)+1),ROWS(Expenses!A$13:'Expenses'!A117))),\"\")","v":""},{"$f":"IFERROR(INDEX(Expenses!B$13:B$1000,SMALL(IF(Expenses!$A$13:$A$1000=$B$3,ROW(Expenses!B$13:B$1000)-ROW(Expenses!B$13)+1),ROWS(Expenses!B$13:'Expenses'!B117))),\"\")","v":""},{"$f":"IFERROR(INDEX(Expenses!D$13:D$1000,SMALL(IF(Expenses!$A$13:$A$1000=$B$3,ROW(Expenses!D$13:D$1000)-ROW(Expenses!D$13)+1),ROWS(Expenses!D$13:'Expenses'!D117))),\"\")","v":""},{"$f":"IFERROR(INDEX(Expenses!E$13:E$1000,SMALL(IF(Expenses!$A$13:$A$1000=$B$3,ROW(Expenses!E$13:E$1000)-ROW(Expenses!E$13)+1),ROWS(Expenses!E$13:'Expenses'!E117))),\"\")","v":""},{"$f":"IFERROR(INDEX(Expenses!F$13:F$1000,SMALL(IF(Expenses!$A$13:$A$1000=$B$3,ROW(Expenses!F$13:F$1000)-ROW(Expenses!F$13)+1),ROWS(Expenses!F$13:'Expenses'!F117))),\"\")","v":""}]
[{"$f":"IFERROR(INDEX(Expenses!A$13:A$1000,SMALL(IF(Expenses!$A$13:$A$1000=$B$3,ROW(Expenses!A$13:A$1000)-ROW(Expenses!A$13)+1),ROWS(Expenses!A$13:'Expenses'!A118))),\"\")","v":""},{"$f":"IFERROR(INDEX(Expenses!B$13:B$1000,SMALL(IF(Expenses!$A$13:$A$1000=$B$3,ROW(Expenses!B$13:B$1000)-ROW(Expenses!B$13)+1),ROWS(Expenses!B$13:'Expenses'!B118))),\"\")","v":""},{"$f":"IFERROR(INDEX(Expenses!D$13:D$1000,SMALL(IF(Expenses!$A$13:$A$1000=$B$3,ROW(Expenses!D$13:D$1000)-ROW(Expenses!D$13)+1),ROWS(Expenses!D$13:'Expenses'!D118))),\"\")","v":""},{"$f":"IFERROR(INDEX(Expenses!E$13:E$1000,SMALL(IF(Expenses!$A$13:$A$1000=$B$3,ROW(Expenses!E$13:E$1000)-ROW(Expenses!E$13)+1),ROWS(Expenses!E$13:'Expenses'!E118))),\"\")","v":""},{"$f":"IFERROR(INDEX(Expenses!F$13:F$1000,SMALL(IF(Expenses!$A$13:$A$1000=$B$3,ROW(Expenses!F$13:F$1000)-ROW(Expenses!F$13)+1),ROWS(Expenses!F$13:'Expenses'!F118))),\"\")","v":""}]
[{"$f":"IFERROR(INDEX(Expenses!A$13:A$1000,SMALL(IF(Expenses!$A$13:$A$1000=$B$3,ROW(Expenses!A$13:A$1000)-ROW(Expenses!A$13)+1),ROWS(Expenses!A$13:'Expenses'!A119))),\"\")","v":""},{"$f":"IFERROR(INDEX(Expenses!B$13:B$1000,SMALL(IF(Expenses!$A$13:$A$1000=$B$3,ROW(Expenses!B$13:B$1000)-ROW(Expenses!B$13)+1),ROWS(Expenses!B$13:'Expenses'!B119))),\"\")","v":""},{"$f":"IFERROR(INDEX(Expenses!D$13:D$1000,SMALL(IF(Expenses!$A$13:$A$1000=$B$3,ROW(Expenses!D$13:D$1000)-ROW(Expenses!D$13)+1),ROWS(Expenses!D$13:'Expenses'!D119))),\"\")","v":""},{"$f":"IFERROR(INDEX(Expenses!E$13:E$1000,SMALL(IF(Expenses!$A$13:$A$1000=$B$3,ROW(Expenses!E$13:E$1000)-ROW(Expenses!E$13)+1),ROWS(Expenses!E$13:'Expenses'!E119))),\"\")","v":""},{"$f":"IFERROR(INDEX(Expenses!F$13:F$1000,SMALL(IF(Expenses!$A$13:$A$1000=$B$3,ROW(Expenses!F$13:F$1000)-ROW(Expenses!F$13)+1),ROWS(Expenses!F$13:'Expenses'!F119))),\"\")","v":""}]
[{"$f":"IFERROR(INDEX(Expenses!A$13:A$1000,SMALL(IF(Expenses!$A$13:$A$1000=$B$3,ROW(Expenses!A$13:A$1000)-ROW(Expenses!A$13)+1),ROWS(Expenses!A$13:'Expenses'!A120))),\"\")","v":""},{"$f":"IFERROR(INDEX(Expenses!B$13:B$1000,SMALL(IF(Expenses!$A$13:$A$1000=$B$3,ROW(Expenses!B$13:B$1000)-ROW(Expenses!B$13)+1),ROWS(Expenses!B$13:'Expenses'!B120))),\"\")","v":""},{"$f":"IFERROR(INDEX(Expenses!D$13:D$1000,SMALL(IF(Expenses!$A$13:$A$1000=$B$3,ROW(Expenses!D$13:D$1000)-ROW(Expenses!D$13)+1),ROWS(Expenses!D$13:'Expenses'!D120))),\"\")","v":""},{"$f":"IFERROR(INDEX(Expenses!E$13:E$1000,SMALL(IF(Expenses!$A$13:$A$1000=$B$3,ROW(Expenses!E$13:E$1000)-ROW(Expenses!E$13)+1),ROWS(Expenses!E$13:'Expenses'!E120))),\"\")","v":""},{"$f":"IFERROR(INDEX(Expenses!F$13:F$1000,SMALL(IF(Expenses!$A$13:$A$1000=$B$3,ROW(Expenses!F$13:F$1000)-ROW(Expenses!F$13)+1),ROWS(Expenses!F$13:'Expenses'!F120))),\"\")","v":""}]
[{"$f":"IFERROR(INDEX(Expenses!A$13:A$1000,SMALL(IF(Expenses!$A$13:$A$1000=$B$3,ROW(Expenses!A$13:A$1000)-ROW(Expenses!A$13)+1),ROWS(Expenses!A$13:'Expenses'!A121))),\"\")","v":""},{"$f":"IFERROR(INDEX(Expenses!B$13:B$1000,SMALL(IF(Expenses!$A$13:$A$1000=$B$3,ROW(Expenses!B$13:B$1000)-ROW(Expenses!B$13)+1),ROWS(Expenses!B$13:'Expenses'!B121))),\"\")","v":""},{"$f":"IFERROR(INDEX(Expenses!D$13:D$1000,SMALL(IF(Expenses!$A$13:$A$1000=$B$3,ROW(Expenses!D$13:D$1000)-ROW(Expenses!D$13)+1),ROWS(Expenses!D$13:'Expenses'!D121))),\"\")","v":""},{"$f":"IFERROR(INDEX(Expenses!E$13:E$1000,SMALL(IF(Expenses!$A$13:$A$1000=$B$3,ROW(Expenses!E$13:E$1000)-ROW(Expenses!E$13)+1),ROWS(Expenses!E$13:'Expenses'!E121))),\"\")","v":""},{"$f":"IFERROR(INDEX(Expenses!F$13:F$1000,SMALL(IF(Expenses!$A$13:$A$1000=$B$3,ROW(Expenses!F$13:F$1000)-ROW(Expenses!F$13)+1),ROWS(Expenses!F$13:'Expenses'!F121))),\"\")","v":""}]
[{"$f":"IFERROR(INDEX(Expenses!A$13:A$1000,SMALL(IF(Expenses!$A$13:$A$1000=$B$3,ROW(Expenses!A$13:A$1000)-ROW(Expenses!A$13)+1),ROWS(Expenses!A$13:'Expenses'!A122))),\"\")","v":""},{"$f":"IFERROR(INDEX(Expenses!B$13:B$1000,SMALL(IF(Expenses!$A$13:$A$1000=$B$3,ROW(Expenses!B$13:B$1000)-ROW(Expenses!B$13)+1),ROWS(Expenses!B$13:'Expenses'!B122))),\"\")","v":""},{"$f":"IFERROR(INDEX(Expenses!D$13:D$1000,SMALL(IF(Expenses!$A$13:$A$1000=$B$3,ROW(Expenses!D$13:D$1000)-ROW(Expenses!D$13)+1),ROWS(Expenses!D$13:'Expenses'!D122))),\"\")","v":""},{"$f":"IFERROR(INDEX(Expenses!E$13:E$1000,SMALL(IF(Expenses!$A$13:$A$1000=$B$3,ROW(Expenses!E$13:E$1000)-ROW(Expenses!E$13)+1),ROWS(Expenses!E$13:'Expenses'!E122))),\"\")","v":""},{"$f":"IFERROR(INDEX(Expenses!F$13:F$1000,SMALL(IF(Expenses!$A$13:$A$1000=$B$3,ROW(Expenses!F$13:F$1000)-ROW(Expenses!F$13)+1),ROWS(Expenses!F$13:'Expenses'!F122))),\"\")","v":""}]
[{"$f":"IFERROR(INDEX(Expenses!A$13:A$1000,SMALL(IF(Expenses!$A$13:$A$1000=$B$3,ROW(Expenses!A$13:A$1000)-ROW(Expenses!A$13)+1),ROWS(Expenses!A$13:'Expenses'!A123))),\"\")","v":""},{"$f":"IFERROR(INDEX(Expenses!B$13:B$1000,SMALL(IF(Expenses!$A$13:$A$1000=$B$3,ROW(Expenses!B$13:B$1000)-ROW(Expenses!B$13)+1),ROWS(Expenses!B$13:'Expenses'!B123))),\"\")","v":""},{"$f":"IFERROR(INDEX(Expenses!D$13:D$1000,SMALL(IF(Expenses!$A$13:$A$1000=$B$3,ROW(Expenses!D$13:D$1000)-ROW(Expenses!D$13)+1),ROWS(Expenses!D$13:'Expenses'!D123))),\"\")","v":""},{"$f":"IFERROR(INDEX(Expenses!E$13:E$1000,SMALL(IF(Expenses!$A$13:$A$1000=$B$3,ROW(Expenses!E$13:E$1000)-ROW(Expenses!E$13)+1),ROWS(Expenses!E$13:'Expenses'!E123))),\"\")","v":""},{"$f":"IFERROR(INDEX(Expenses!F$13:F$1000,SMALL(IF(Expenses!$A$13:$A$1000=$B$3,ROW(Expenses!F$13:F$1000)-ROW(Expenses!F$13)+1),ROWS(Expenses!F$13:'Expenses'!F123))),\"\")","v":""}]
[{"$f":"IFERROR(INDEX(Expenses!A$13:A$1000,SMALL(IF(Expenses!$A$13:$A$1000=$B$3,ROW(Expenses!A$13:A$1000)-ROW(Expenses!A$13)+1),ROWS(Expenses!A$13:'Expenses'!A124))),\"\")","v":""},{"$f":"IFERROR(INDEX(Expenses!B$13:B$1000,SMALL(IF(Expenses!$A$13:$A$1000=$B$3,ROW(Expenses!B$13:B$1000)-ROW(Expenses!B$13)+1),ROWS(Expenses!B$13:'Expenses'!B124))),\"\")","v":""},{"$f":"IFERROR(INDEX(Expenses!D$13:D$1000,SMALL(IF(Expenses!$A$13:$A$1000=$B$3,ROW(Expenses!D$13:D$1000)-ROW(Expenses!D$13)+1),ROWS(Expenses!D$13:'Expenses'!D124))),\"\")","v":""},{"$f":"IFERROR(INDEX(Expenses!E$13:E$1000,SMALL(IF(Expenses!$A$13:$A$1000=$B$3,ROW(Expenses!E$13:E$1000)-ROW(Expenses!E$13)+1),ROWS(Expenses!E$13:'Expenses'!E124))),\"\")","v":""},{"$f":"IFERROR(INDEX(Expenses!F$13:F$1000,SMALL(IF(Expenses!$A$13:$A$1000=$B$3,ROW(Expenses!F$13:F$1000)-ROW(Expenses!F$13)+1),ROWS(Expenses!F$13:'Expenses'!F124))),\"\")","v":""}]
[{"$f":"IFERROR(INDEX(Expenses!A$13:A$1000,SMALL(IF(Expenses!$A$13:$A$1000=$B$3,ROW(Expenses!A$13:A$1000)-ROW(Expenses!A$13)+1),ROWS(Expenses!A$13:'Expenses'!A125))),\"\")","v":""},{"$f":"IFERROR(INDEX(Expenses!B$13:B$1000,SMALL(IF(Expenses!$A$13:$A$1000=$B$3,ROW(Expenses!B$13:B$1000)-ROW(Expenses!B$13)+1),ROWS(Expenses!B$13:'Expenses'!B125))),\"\")","v":""},{"$f":"IFERROR(INDEX(Expenses!D$13:D$1000,SMALL(IF(Expenses!$A$13:$A$1000=$B$3,ROW(Expenses!D$13:D$1000)-ROW(Expenses!D$13)+1),ROWS(Expenses!D$13:'Expenses'!D125))),\"\")","v":""},{"$f":"IFERROR(INDEX(Expenses!E$13:E$1000,SMALL(IF(Expenses!$A$13:$A$1000=$B$3,ROW(Expenses!E$13:E$1000)-ROW(Expenses!E$13)+1),ROWS(Expenses!E$13:'Expenses'!E125))),\"\")","v":""},{"$f":"IFERROR(INDEX(Expenses!F$13:F$1000,SMALL(IF(Expenses!$A$13:$A$1000=$B$3,ROW(Expenses!F$13:F$1000)-ROW(Expenses!F$13)+1),ROWS(Expenses!F$13:'Expenses'!F125))),\"\")","v":""}]
[{"$f":"IFERROR(INDEX(Expenses!A$13:A$1000,SMALL(IF(Expenses!$A$13:$A$1000=$B$3,ROW(Expenses!A$13:A$1000)-ROW(Expenses!A$13)+1),ROWS(Expenses!A$13:'Expenses'!A126))),\"\")","v":""},{"$f":"IFERROR(INDEX(Expenses!B$13:B$1000,SMALL(IF(Expenses!$A$13:$A$1000=$B$3,ROW(Expenses!B$13:B$1000)-ROW(Expenses!B$13)+1),ROWS(Expenses!B$13:'Expenses'!B126))),\"\")","v":""},{"$f":"IFERROR(INDEX(Expenses!D$13:D$1000,SMALL(IF(Expenses!$A$13:$A$1000=$B$3,ROW(Expenses!D$13:D$1000)-ROW(Expenses!D$13)+1),ROWS(Expenses!D$13:'Expenses'!D126))),\"\")","v":""},{"$f":"IFERROR(INDEX(Expenses!E$13:E$1000,SMALL(IF(Expenses!$A$13:$A$1000=$B$3,ROW(Expenses!E$13:E$1000)-ROW(Expenses!E$13)+1),ROWS(Expenses!E$13:'Expenses'!E126))),\"\")","v":""},{"$f":"IFERROR(INDEX(Expenses!F$13:F$1000,SMALL(IF(Expenses!$A$13:$A$1000=$B$3,ROW(Expenses!F$13:F$1000)-ROW(Expenses!F$13)+1),ROWS(Expenses!F$13:'Expenses'!F126))),\"\")","v":""}]
[{"$f":"IFERROR(INDEX(Expenses!A$13:A$1000,SMALL(IF(Expenses!$A$13:$A$1000=$B$3,ROW(Expenses!A$13:A$1000)-ROW(Expenses!A$13)+1),ROWS(Expenses!A$13:'Expenses'!A127))),\"\")","v":""},{"$f":"IFERROR(INDEX(Expenses!B$13:B$1000,SMALL(IF(Expenses!$A$13:$A$1000=$B$3,ROW(Expenses!B$13:B$1000)-ROW(Expenses!B$13)+1),ROWS(Expenses!B$13:'Expenses'!B127))),\"\")","v":""},{"$f":"IFERROR(INDEX(Expenses!D$13:D$1000,SMALL(IF(Expenses!$A$13:$A$1000=$B$3,ROW(Expenses!D$13:D$1000)-ROW(Expenses!D$13)+1),ROWS(Expenses!D$13:'Expenses'!D127))),\"\")","v":""},{"$f":"IFERROR(INDEX(Expenses!E$13:E$1000,SMALL(IF(Expenses!$A$13:$A$1000=$B$3,ROW(Expenses!E$13:E$1000)-ROW(Expenses!E$13)+1),ROWS(Expenses!E$13:'Expenses'!E127))),\"\")","v":""},{"$f":"IFERROR(INDEX(Expenses!F$13:F$1000,SMALL(IF(Expenses!$A$13:$A$1000=$B$3,ROW(Expenses!F$13:F$1000)-ROW(Expenses!F$13)+1),ROWS(Expenses!F$13:'Expenses'!F127))),\"\")","v":""}]
[{"$f":"IFERROR(INDEX(Expenses!A$13:A$1000,SMALL(IF(Expenses!$A$13:$A$1000=$B$3,ROW(Expenses!A$13:A$1000)-ROW(Expenses!A$13)+1),ROWS(Expenses!A$13:'Expenses'!A128))),\"\")","v":""},{"$f":"IFERROR(INDEX(Expenses!B$13:B$1000,SMALL(IF(Expenses!$A$13:$A$1000=$B$3,ROW(Expenses!B$13:B$1000)-ROW(Expenses!B$13)+1),ROWS(Expenses!B$13:'Expenses'!B128))),\"\")","v":""},{"$f":"IFERROR(INDEX(Expenses!D$13:D$1000,SMALL(IF(Expenses!$A$13:$A$1000=$B$3,ROW(Expenses!D$13:D$1000)-ROW(Expenses!D$13)+1),ROWS(Expenses!D$13:'Expenses'!D128))),\"\")","v":""},{"$f":"IFERROR(INDEX(Expenses!E$13:E$1000,SMALL(IF(Expenses!$A$13:$A$1000=$B$3,ROW(Expenses!E$13:E$1000)-ROW(Expenses!E$13)+1),ROWS(Expenses!E$13:'Expenses'!E128))),\"\")","v":""},{"$f":"IFERROR(INDEX(Expenses!F$13:F$1000,SMALL(IF(Expenses!$A$13:$A$1000=$B$3,ROW(Expenses!F$13:F$1000)-ROW(Expenses!F$13)+1),ROWS(Expenses!F$13:'Expenses'!F128))),\"\")","v":""}]
[{"$f":"IFERROR(INDEX(Expenses!A$13:A$1000,SMALL(IF(Expenses!$A$13:$A$1000=$B$3,ROW(Expenses!A$13:A$1000)-ROW(Expenses!A$13)+1),ROWS(Expenses!A$13:'Expenses'!A129))),\"\")","v":""},{"$f":"IFERROR(INDEX(Expenses!B$13:B$1000,SMALL(IF(Expenses!$A$13:$A$1000=$B$3,ROW(Expenses!B$13:B$1000)-ROW(Expenses!B$13)+1),ROWS(Expenses!B$13:'Expenses'!B129))),\"\")","v":""},{"$f":"IFERROR(INDEX(Expenses!D$13:D$1000,SMALL(IF(Expenses!$A$13:$A$1000=$B$3,ROW(Expenses!D$13:D$1000)-ROW(Expenses!D$13)+1),ROWS(Expenses!D$13:'Expenses'!D129))),\"\")","v":""},{"$f":"IFERROR(INDEX(Expenses!E$13:E$1000,SMALL(IF(Expenses!$A$13:$A$1000=$B$3,ROW(Expenses!E$13:E$1000)-ROW(Expenses!E$13)+1),ROWS(Expenses!E$13:'Expenses'!E129))),\"\")","v":""},{"$f":"IFERROR(INDEX(Expenses!F$13:F$1000,SMALL(IF(Expenses!$A$13:$A$1000=$B$3,ROW(Expenses!F$13:F$1000)-ROW(Expenses!F$13)+1),ROWS(Expenses!F$13:'Expenses'!F129))),\"\")","v":""}]
[{"$f":"IFERROR(INDEX(Expenses!A$13:A$1000,SMALL(IF(Expenses!$A$13:$A$1000=$B$3,ROW(Expenses!A$13:A$1000)-ROW(Expenses!A$13)+1),ROWS(Expenses!A$13:'Expenses'!A130))),\"\")","v":""},{"$f":"IFERROR(INDEX(Expenses!B$13:B$1000,SMALL(IF(Expenses!$A$13:$A$1000=$B$3,ROW(Expenses!B$13:B$1000)-ROW(Expenses!B$13)+1),ROWS(Expenses!B$13:'Expenses'!B130))),\"\")","v":""},{"$f":"IFERROR(INDEX(Expenses!D$13:D$1000,SMALL(IF(Expenses!$A$13:$A$1000=$B$3,ROW(Expenses!D$13:D$1000)-ROW(Expenses!D$13)+1),ROWS(Expenses!D$13:'Expenses'!D130))),\"\")","v":""},{"$f":"IFERROR(INDEX(Expenses!E$13:E$1000,SMALL(IF(Expenses!$A$13:$A$1000=$B$3,ROW(Expenses!E$13:E$1000)-ROW(Expenses!E$13)+1),ROWS(Expenses!E$13:'Expenses'!E130))),\"\")","v":""},{"$f":"IFERROR(INDEX(Expenses!F$13:F$1000,SMALL(IF(Expenses!$A$13:$A$1000=$B$3,ROW(Expenses!F$13:F$1000)-ROW(Expenses!F$13)+1),ROWS(Expenses!F$13:'Expenses'!F130))),\"\")","v":""}]
[{"$f":"IFERROR(INDEX(Expenses!A$13:A$1000,SMALL(IF(Expenses!$A$13:$A$1000=$B$3,ROW(Expenses!A$13:A$1000)-ROW(Expenses!A$13)+1),ROWS(Expenses!A$13:'Expenses'!A131))),\"\")","v":""},{"$f":"IFERROR(INDEX(Expenses!B$13:B$1000,SMALL(IF(Expenses!$A$13:$A$1000=$B$3,ROW(Expenses!B$13:B$1000)-ROW(Expenses!B$13)+1),ROWS(Expenses!B$13:'Expenses'!B131))),\"\")","v":""},{"$f":"IFERROR(INDEX(Expenses!D$13:D$1000,SMALL(IF(Expenses!$A$13:$A$1000=$B$3,ROW(Expenses!D$13:D$1000)-ROW(Expenses!D$13)+1),ROWS(Expenses!D$13:'Expenses'!D131))),\"\")","v":""},{"$f":"IFERROR(INDEX(Expenses!E$13:E$1000,SMALL(IF(Expenses!$A$13:$A$1000=$B$3,ROW(Expenses!E$13:E$1000)-ROW(Expenses!E$13)+1),ROWS(Expenses!E$13:'Expenses'!E131))),\"\")","v":""},{"$f":"IFERROR(INDEX(Expenses!F$13:F$1000,SMALL(IF(Expenses!$A$13:$A$1000=$B$3,ROW(Expenses!F$13:F$1000)-ROW(Expenses!F$13)+1),ROWS(Expenses!F$13:'Expenses'!F131))),\"\")","v":""}]
[{"$f":"IFERROR(INDEX(Expenses!A$13:A$1000,SMALL(IF(Expenses!$A$13:$A$1000=$B$3,ROW(Expenses!A$13:A$1000)-ROW(Expenses!A$13)+1),ROWS(Expenses!A$13:'Expenses'!A132))),\"\")","v":""},{"$f":"IFERROR(INDEX(Expenses!B$13:B$1000,SMALL(IF(Expenses!$A$13:$A$1000=$B$3,ROW(Expenses!B$13:B$1000)-ROW(Expenses!B$13)+1),ROWS(Expenses!B$13:'Expenses'!B132))),\"\")","v":""},{"$f":"IFERROR(INDEX(Expenses!D$13:D$1000,SMALL(IF(Expenses!$A$13:$A$1000=$B$3,ROW(Expenses!D$13:D$1000)-ROW(Expenses!D$13)+1),ROWS(Expenses!D$13:'Expenses'!D132))),\"\")","v":""},{"$f":"IFERROR(INDEX(Expenses!E$13:E$1000,SMALL(IF(Expenses!$A$13:$A$1000=$B$3,ROW(Expenses!E$13:E$1000)-ROW(Expenses!E$13)+1),ROWS(Expenses!E$13:'Expenses'!E132))),\"\")","v":""},{"$f":"IFERROR(INDEX(Expenses!F$13:F$1000,SMALL(IF(Expenses!$A$13:$A$1000=$B$3,ROW(Expenses!F$13:F$1000)-ROW(Expenses!F$13)+1),ROWS(Expenses!F$13:'Expenses'!F132))),\"\")","v":""}]
[{"$f":"IFERROR(INDEX(Expenses!A$13:A$1000,SMALL(IF(Expenses!$A$13:$A$1000=$B$3,ROW(Expenses!A$13:A$1000)-ROW(Expenses!A$13)+1),ROWS(Expenses!A$13:'Expenses'!A133))),\"\")","v":""},{"$f":"IFERROR(INDEX(Expenses!B$13:B$1000,SMALL(IF(Expenses!$A$13:$A$1000=$B$3,ROW(Expenses!B$13:B$1000)-ROW(Expenses!B$13)+1),ROWS(Expenses!B$13:'Expenses'!B133))),\"\")","v":""},{"$f":"IFERROR(INDEX(Expenses!D$13:D$1000,SMALL(IF(Expenses!$A$13:$A$1000=$B$3,ROW(Expenses!D$13:D$1000)-ROW(Expenses!D$13)+1),ROWS(Expenses!D$13:'Expenses'!D133))),\"\")","v":""},{"$f":"IFERROR(INDEX(Expenses!E$13:E$1000,SMALL(IF(Expenses!$A$13:$A$1000=$B$3,ROW(Expenses!E$13:E$1000)-ROW(Expenses!E$13)+1),ROWS(Expenses!E$13:'Expenses'!E133))),\"\")","v":""},{"$f":"IFERROR(INDEX(Expenses!F$13:F$1000,SMALL(IF(Expenses!$A$13:$A$1000=$B$3,ROW(Expenses!F$13:F$1000)-ROW(Expenses!F$13)+1),ROWS(Expenses!F$13:'Expenses'!F133))),\"\")","v":""}]
[{"$f":"IFERROR(INDEX(Expenses!A$13:A$1000,SMALL(IF(Expenses!$A$13:$A$1000=$B$3,ROW(Expenses!A$13:A$1000)-ROW(Expenses!A$13)+1),ROWS(Expenses!A$13:'Expenses'!A134))),\"\")","v":""},{"$f":"IFERROR(INDEX(Expenses!B$13:B$1000,SMALL(IF(Expenses!$A$13:$A$1000=$B$3,ROW(Expenses!B$13:B$1000)-ROW(Expenses!B$13)+1),ROWS(Expenses!B$13:'Expenses'!B134))),\"\")","v":""},{"$f":"IFERROR(INDEX(Expenses!D$13:D$1000,SMALL(IF(Expenses!$A$13:$A$1000=$B$3,ROW(Expenses!D$13:D$1000)-ROW(Expenses!D$13)+1),ROWS(Expenses!D$13:'Expenses'!D134))),\"\")","v":""},{"$f":"IFERROR(INDEX(Expenses!E$13:E$1000,SMALL(IF(Expenses!$A$13:$A$1000=$B$3,ROW(Expenses!E$13:E$1000)-ROW(Expenses!E$13)+1),ROWS(Expenses!E$13:'Expenses'!E134))),\"\")","v":""},{"$f":"IFERROR(INDEX(Expenses!F$13:F$1000,SMALL(IF(Expenses!$A$13:$A$1000=$B$3,ROW(Expenses!F$13:F$1000)-ROW(Expenses!F$13)+1),ROWS(Expenses!F$13:'Expenses'!F134))),\"\")","v":""}]
[{"$f":"IFERROR(INDEX(Expenses!A$13:A$1000,SMALL(IF(Expenses!$A$13:$A$1000=$B$3,ROW(Expenses!A$13:A$1000)-ROW(Expenses!A$13)+1),ROWS(Expenses!A$13:'Expenses'!A135))),\"\")","v":""},{"$f":"IFERROR(INDEX(Expenses!B$13:B$1000,SMALL(IF(Expenses!$A$13:$A$1000=$B$3,ROW(Expenses!B$13:B$1000)-ROW(Expenses!B$13)+1),ROWS(Expenses!B$13:'Expenses'!B135))),\"\")","v":""},{"$f":"IFERROR(INDEX(Expenses!D$13:D$1000,SMALL(IF(Expenses!$A$13:$A$1000=$B$3,ROW(Expenses!D$13:D$1000)-ROW(Expenses!D$13)+1),ROWS(Expenses!D$13:'Expenses'!D135))),\"\")","v":""},{"$f":"IFERROR(INDEX(Expenses!E$13:E$1000,SMALL(IF(Expenses!$A$13:$A$1000=$B$3,ROW(Expenses!E$13:E$1000)-ROW(Expenses!E$13)+1),ROWS(Expenses!E$13:'Expenses'!E135))),\"\")","v":""},{"$f":"IFERROR(INDEX(Expenses!F$13:F$1000,SMALL(IF(Expenses!$A$13:$A$1000=$B$3,ROW(Expenses!F$13:F$1000)-ROW(Expenses!F$13)+1),ROWS(Expenses!F$13:'Expenses'!F135))),\"\")","v":""}]
[{"$f":"IFERROR(INDEX(Expenses!A$13:A$1000,SMALL(IF(Expenses!$A$13:$A$1000=$B$3,ROW(Expenses!A$13:A$1000)-ROW(Expenses!A$13)+1),ROWS(Expenses!A$13:'Expenses'!A136))),\"\")","v":""},{"$f":"IFERROR(INDEX(Expenses!B$13:B$1000,SMALL(IF(Expenses!$A$13:$A$1000=$B$3,ROW(Expenses!B$13:B$1000)-ROW(Expenses!B$13)+1),ROWS(Expenses!B$13:'Expenses'!B136))),\"\")","v":""},{"$f":"IFERROR(INDEX(Expenses!D$13:D$1000,SMALL(IF(Expenses!$A$13:$A$1000=$B$3,ROW(Expenses!D$13:D$1000)-ROW(Expenses!D$13)+1),ROWS(Expenses!D$13:'Expenses'!D136))),\"\")","v":""},{"$f":"IFERROR(INDEX(Expenses!E$13:E$1000,SMALL(IF(Expenses!$A$13:$A$1000=$B$3,ROW(Expenses!E$13:E$1000)-ROW(Expenses!E$13)+1),ROWS(Expenses!E$13:'Expenses'!E136))),\"\")","v":""},{"$f":"IFERROR(INDEX(Expenses!F$13:F$1000,SMALL(IF(Expenses!$A$13:$A$1000=$B$3,ROW(Expenses!F$13:F$1000)-ROW(Expenses!F$13)+1),ROWS(Expenses!F$13:'Expenses'!F136))),\"\")","v":""}]
[{"$f":"IFERROR(INDEX(Expenses!A$13:A$1000,SMALL(IF(Expenses!$A$13:$A$1000=$B$3,ROW(Expenses!A$13:A$1000)-ROW(Expenses!A$13)+1),ROWS(Expenses!A$13:'Expenses'!A137))),\"\")","v":""},{"$f":"IFERROR(INDEX(Expenses!B$13:B$1000,SMALL(IF(Expenses!$A$13:$A$1000=$B$3,ROW(Expenses!B$13:B$1000)-ROW(Expenses!B$13)+1),ROWS(Expenses!B$13:'Expenses'!B137))),\"\")","v":""},{"$f":"IFERROR(INDEX(Expenses!D$13:D$1000,SMALL(IF(Expenses!$A$13:$A$1000=$B$3,ROW(Expenses!D$13:D$1000)-ROW(Expenses!D$13)+1),ROWS(Expenses!D$13:'Expenses'!D137))),\"\")","v":""},{"$f":"IFERROR(INDEX(Expenses!E$13:E$1000,SMALL(IF(Expenses!$A$13:$A$1000=$B$3,ROW(Expenses!E$13:E$1000)-ROW(Expenses!E$13)+1),ROWS(Expenses!E$13:'Expenses'!E137))),\"\")","v":""},{"$f":"IFERROR(INDEX(Expenses!F$13:F$1000,SMALL(IF(Expenses!$A$13:$A$1000=$B$3,ROW(Expenses!F$13:F$1000)-ROW(Expenses!F$13)+1),ROWS(Expenses!F$13:'Expenses'!F137))),\"\")","v":""}]
[{"$f":"IFERROR(INDEX(Expenses!A$13:A$1000,SMALL(IF(Expenses!$A$13:$A$1000=$B$3,ROW(Expenses!A$13:A$1000)-ROW(Expenses!A$13)+1),ROWS(Expenses!A$13:'Expenses'!A138))),\"\")","v":""},{"$f":"IFERROR(INDEX(Expenses!B$13:B$1000,SMALL(IF(Expenses!$A$13:$A$1000=$B$3,ROW(Expenses!B$13:B$1000)-ROW(Expenses!B$13)+1),ROWS(Expenses!B$13:'Expenses'!B138))),\"\")","v":""},{"$f":"IFERROR(INDEX(Expenses!D$13:D$1000,SMALL(IF(Expenses!$A$13:$A$1000=$B$3,ROW(Expenses!D$13:D$1000)-ROW(Expenses!D$13)+1),ROWS(Expenses!D$13:'Expenses'!D138))),\"\")","v":""},{"$f":"IFERROR(INDEX(Expenses!E$13:E$1000,SMALL(IF(Expenses!$A$13:$A$1000=$B$3,ROW(Expenses!E$13:E$1000)-ROW(Expenses!E$13)+1),ROWS(Expenses!E$13:'Expenses'!E138))),\"\")","v":""},{"$f":"IFERROR(INDEX(Expenses!F$13:F$1000,SMALL(IF(Expenses!$A$13:$A$1000=$B$3,ROW(Expenses!F$13:F$1000)-ROW(Expenses!F$13)+1),ROWS(Expenses!F$13:'Expenses'!F138))),\"\")","v":""}]
[{"$f":"IFERROR(INDEX(Expenses!A$13:A$1000,SMALL(IF(Expenses!$A$13:$A$1000=$B$3,ROW(Expenses!A$13:A$1000)-ROW(Expenses!A$13)+1),ROWS(Expenses!A$13:'Expenses'!A139))),\"\")","v":""},{"$f":"IFERROR(INDEX(Expenses!B$13:B$1000,SMALL(IF(Expenses!$A$13:$A$1000=$B$3,ROW(Expenses!B$13:B$1000)-ROW(Expenses!B$13)+1),ROWS(Expenses!B$13:'Expenses'!B139))),\"\")","v":""},{"$f":"IFERROR(INDEX(Expenses!D$13:D$1000,SMALL(IF(Expenses!$A$13:$A$1000=$B$3,ROW(Expenses!D$13:D$1000)-ROW(Expenses!D$13)+1),ROWS(Expenses!D$13:'Expenses'!D139))),\"\")","v":""},{"$f":"IFERROR(INDEX(Expenses!E$13:E$1000,SMALL(IF(Expenses!$A$13:$A$1000=$B$3,ROW(Expenses!E$13:E$1000)-ROW(Expenses!E$13)+1),ROWS(Expenses!E$13:'Expenses'!E139))),\"\")","v":""},{"$f":"IFERROR(INDEX(Expenses!F$13:F$1000,SMALL(IF(Expenses!$A$13:$A$1000=$B$3,ROW(Expenses!F$13:F$1000)-ROW(Expenses!F$13)+1),ROWS(Expenses!F$13:'Expenses'!F139))),\"\")","v":""}]
[{"$f":"IFERROR(INDEX(Expenses!A$13:A$1000,SMALL(IF(Expenses!$A$13:$A$1000=$B$3,ROW(Expenses!A$13:A$1000)-ROW(Expenses!A$13)+1),ROWS(Expenses!A$13:'Expenses'!A140))),\"\")","v":""},{"$f":"IFERROR(INDEX(Expenses!B$13:B$1000,SMALL(IF(Expenses!$A$13:$A$1000=$B$3,ROW(Expenses!B$13:B$1000)-ROW(Expenses!B$13)+1),ROWS(Expenses!B$13:'Expenses'!B140))),\"\")","v":""},{"$f":"IFERROR(INDEX(Expenses!D$13:D$1000,SMALL(IF(Expenses!$A$13:$A$1000=$B$3,ROW(Expenses!D$13:D$1000)-ROW(Expenses!D$13)+1),ROWS(Expenses!D$13:'Expenses'!D140))),\"\")","v":""},{"$f":"IFERROR(INDEX(Expenses!E$13:E$1000,SMALL(IF(Expenses!$A$13:$A$1000=$B$3,ROW(Expenses!E$13:E$1000)-ROW(Expenses!E$13)+1),ROWS(Expenses!E$13:'Expenses'!E140))),\"\")","v":""},{"$f":"IFERROR(INDEX(Expenses!F$13:F$1000,SMALL(IF(Expenses!$A$13:$A$1000=$B$3,ROW(Expenses!F$13:F$1000)-ROW(Expenses!F$13)+1),ROWS(Expenses!F$13:'Expenses'!F140))),\"\")","v":""}]
[{"$f":"IFERROR(INDEX(Expenses!A$13:A$1000,SMALL(IF(Expenses!$A$13:$A$1000=$B$3,ROW(Expenses!A$13:A$1000)-ROW(Expenses!A$13)+1),ROWS(Expenses!A$13:'Expenses'!A141))),\"\")","v":""},{"$f":"IFERROR(INDEX(Expenses!B$13:B$1000,SMALL(IF(Expenses!$A$13:$A$1000=$B$3,ROW(Expenses!B$13:B$1000)-ROW(Expenses!B$13)+1),ROWS(Expenses!B$13:'Expenses'!B141))),\"\")","v":""},{"$f":"IFERROR(INDEX(Expenses!D$13:D$1000,SMALL(IF(Expenses!$A$13:$A$1000=$B$3,ROW(Expenses!D$13:D$1000)-ROW(Expenses!D$13)+1),ROWS(Expenses!D$13:'Expenses'!D141))),\"\")","v":""},{"$f":"IFERROR(INDEX(Expenses!E$13:E$1000,SMALL(IF(Expenses!$A$13:$A$1000=$B$3,ROW(Expenses!E$13:E$1000)-ROW(Expenses!E$13)+1),ROWS(Expenses!E$13:'Expenses'!E141))),\"\")","v":""},{"$f":"IFERROR(INDEX(Expenses!F$13:F$1000,SMALL(IF(Expenses!$A$13:$A$1000=$B$3,ROW(Expenses!F$13:F$1000)-ROW(Expenses!F$13)+1),ROWS(Expenses!F$13:'Expenses'!F141))),\"\")","v":""}]
[{"$f":"IFERROR(INDEX(Expenses!A$13:A$1000,SMALL(IF(Expenses!$A$13:$A$1000=$B$3,ROW(Expenses!A$13:A$1000)-ROW(Expenses!A$13)+1),ROWS(Expenses!A$13:'Expenses'!A142))),\"\")","v":""},{"$f":"IFERROR(INDEX(Expenses!B$13:B$1000,SMALL(IF(Expenses!$A$13:$A$1000=$B$3,ROW(Expenses!B$13:B$1000)-ROW(Expenses!B$13)+1),ROWS(Expenses!B$13:'Expenses'!B142))),\"\")","v":""},{"$f":"IFERROR(INDEX(Expenses!D$13:D$1000,SMALL(IF(Expenses!$A$13:$A$1000=$B$3,ROW(Expenses!D$13:D$1000)-ROW(Expenses!D$13)+1),ROWS(Expenses!D$13:'Expenses'!D142))),\"\")","v":""},{"$f":"IFERROR(INDEX(Expenses!E$13:E$1000,SMALL(IF(Expenses!$A$13:$A$1000=$B$3,ROW(Expenses!E$13:E$1000)-ROW(Expenses!E$13)+1),ROWS(Expenses!E$13:'Expenses'!E142))),\"\")","v":""},{"$f":"IFERROR(INDEX(Expenses!F$13:F$1000,SMALL(IF(Expenses!$A$13:$A$1000=$B$3,ROW(Expenses!F$13:F$1000)-ROW(Expenses!F$13)+1),ROWS(Expenses!F$13:'Expenses'!F142))),\"\")","v":""}]
[{"$f":"IFERROR(INDEX(Expenses!A$13:A$1000,SMALL(IF(Expenses!$A$13:$A$1000=$B$3,ROW(Expenses!A$13:A$1000)-ROW(Expenses!A$13)+1),ROWS(Expenses!A$13:'Expenses'!A143))),\"\")","v":""},{"$f":"IFERROR(INDEX(Expenses!B$13:B$1000,SMALL(IF(Expenses!$A$13:$A$1000=$B$3,ROW(Expenses!B$13:B$1000)-ROW(Expenses!B$13)+1),ROWS(Expenses!B$13:'Expenses'!B143))),\"\")","v":""},{"$f":"IFERROR(INDEX(Expenses!D$13:D$1000,SMALL(IF(Expenses!$A$13:$A$1000=$B$3,ROW(Expenses!D$13:D$1000)-ROW(Expenses!D$13)+1),ROWS(Expenses!D$13:'Expenses'!D143))),\"\")","v":""},{"$f":"IFERROR(INDEX(Expenses!E$13:E$1000,SMALL(IF(Expenses!$A$13:$A$1000=$B$3,ROW(Expenses!E$13:E$1000)-ROW(Expenses!E$13)+1),ROWS(Expenses!E$13:'Expenses'!E143))),\"\")","v":""},{"$f":"IFERROR(INDEX(Expenses!F$13:F$1000,SMALL(IF(Expenses!$A$13:$A$1000=$B$3,ROW(Expenses!F$13:F$1000)-ROW(Expenses!F$13)+1),ROWS(Expenses!F$13:'Expenses'!F143))),\"\")","v":""}]
[{"$f":"IFERROR(INDEX(Expenses!A$13:A$1000,SMALL(IF(Expenses!$A$13:$A$1000=$B$3,ROW(Expenses!A$13:A$1000)-ROW(Expenses!A$13)+1),ROWS(Expenses!A$13:'Expenses'!A144))),\"\")","v":""},{"$f":"IFERROR(INDEX(Expenses!B$13:B$1000,SMALL(IF(Expenses!$A$13:$A$1000=$B$3,ROW(Expenses!B$13:B$1000)-ROW(Expenses!B$13)+1),ROWS(Expenses!B$13:'Expenses'!B144))),\"\")","v":""},{"$f":"IFERROR(INDEX(Expenses!D$13:D$1000,SMALL(IF(Expenses!$A$13:$A$1000=$B$3,ROW(Expenses!D$13:D$1000)-ROW(Expenses!D$13)+1),ROWS(Expenses!D$13:'Expenses'!D144))),\"\")","v":""},{"$f":"IFERROR(INDEX(Expenses!E$13:E$1000,SMALL(IF(Expenses!$A$13:$A$1000=$B$3,ROW(Expenses!E$13:E$1000)-ROW(Expenses!E$13)+1),ROWS(Expenses!E$13:'Expenses'!E144))),\"\")","v":""},{"$f":"IFERROR(INDEX(Expenses!F$13:F$1000,SMALL(IF(Expenses!$A$13:$A$1000=$B$3,ROW(Expenses!F$13:F$1000)-ROW(Expenses!F$13)+1),ROWS(Expenses!F$13:'Expenses'!F144))),\"\")","v":""}]
[{"$f":"IFERROR(INDEX(Expenses!A$13:A$1000,SMALL(IF(Expenses!$A$13:$A$1000=$B$3,ROW(Expenses!A$13:A$1000)-ROW(Expenses!A$13)+1),ROWS(Expenses!A$13:'Expenses'!A145))),\"\")","v":""},{"$f":"IFERROR(INDEX(Expenses!B$13:B$1000,SMALL(IF(Expenses!$A$13:$A$1000=$B$3,ROW(Expenses!B$13:B$1000)-ROW(Expenses!B$13)+1),ROWS(Expenses!B$13:'Expenses'!B145))),\"\")","v":""},{"$f":"IFERROR(INDEX(Expenses!D$13:D$1000,SMALL(IF(Expenses!$A$13:$A$1000=$B$3,ROW(Expenses!D$13:D$1000)-ROW(Expenses!D$13)+1),ROWS(Expenses!D$13:'Expenses'!D145))),\"\")","v":""},{"$f":"IFERROR(INDEX(Expenses!E$13:E$1000,SMALL(IF(Expenses!$A$13:$A$1000=$B$3,ROW(Expenses!E$13:E$1000)-ROW(Expenses!E$13)+1),ROWS(Expenses!E$13:'Expenses'!E145))),\"\")","v":""},{"$f":"IFERROR(INDEX(Expenses!F$13:F$1000,SMALL(IF(Expenses!$A$13:$A$1000=$B$3,ROW(Expenses!F$13:F$1000)-ROW(Expenses!F$13)+1),ROWS(Expenses!F$13:'Expenses'!F145))),\"\")","v":""}]
[{"$f":"IFERROR(INDEX(Expenses!A$13:A$1000,SMALL(IF(Expenses!$A$13:$A$1000=$B$3,ROW(Expenses!A$13:A$1000)-ROW(Expenses!A$13)+1),ROWS(Expenses!A$13:'Expenses'!A146))),\"\")","v":""},{"$f":"IFERROR(INDEX(Expenses!B$13:B$1000,SMALL(IF(Expenses!$A$13:$A$1000=$B$3,ROW(Expenses!B$13:B$1000)-ROW(Expenses!B$13)+1),ROWS(Expenses!B$13:'Expenses'!B146))),\"\")","v":""},{"$f":"IFERROR(INDEX(Expenses!D$13:D$1000,SMALL(IF(Expenses!$A$13:$A$1000=$B$3,ROW(Expenses!D$13:D$1000)-ROW(Expenses!D$13)+1),ROWS(Expenses!D$13:'Expenses'!D146))),\"\")","v":""},{"$f":"IFERROR(INDEX(Expenses!E$13:E$1000,SMALL(IF(Expenses!$A$13:$A$1000=$B$3,ROW(Expenses!E$13:E$1000)-ROW(Expenses!E$13)+1),ROWS(Expenses!E$13:'Expenses'!E146))),\"\")","v":""},{"$f":"IFERROR(INDEX(Expenses!F$13:F$1000,SMALL(IF(Expenses!$A$13:$A$1000=$B$3,ROW(Expenses!F$13:F$1000)-ROW(Expenses!F$13)+1),ROWS(Expenses!F$13:'Expenses'!F146))),\"\")","v":""}]
[{"$f":"IFERROR(INDEX(Expenses!A$13:A$1000,SMALL(IF(Expenses!$A$13:$A$1000=$B$3,ROW(Expenses!A$13:A$1000)-ROW(Expenses!A$13)+1),ROWS(Expenses!A$13:'Expenses'!A147))),\"\")","v":""},{"$f":"IFERROR(INDEX(Expenses!B$13:B$1000,SMALL(IF(Expenses!$A$13:$A$1000=$B$3,ROW(Expenses!B$13:B$1000)-ROW(Expenses!B$13)+1),ROWS(Expenses!B$13:'Expenses'!B147))),\"\")","v":""},{"$f":"IFERROR(INDEX(Expenses!D$13:D$1000,SMALL(IF(Expenses!$A$13:$A$1000=$B$3,ROW(Expenses!D$13:D$1000)-ROW(Expenses!D$13)+1),ROWS(Expenses!D$13:'Expenses'!D147))),\"\")","v":""},{"$f":"IFERROR(INDEX(Expenses!E$13:E$1000,SMALL(IF(Expenses!$A$13:$A$1000=$B$3,ROW(Expenses!E$13:E$1000)-ROW(Expenses!E$13)+1),ROWS(Expenses!E$13:'Expenses'!E147))),\"\")","v":""},{"$f":"IFERROR(INDEX(Expenses!F$13:F$1000,SMALL(IF(Expenses!$A$13:$A$1000=$B$3,ROW(Expenses!F$13:F$1000)-ROW(Expenses!F$13)+1),ROWS(Expenses!F$13:'Expenses'!F147))),\"\")","v":""}]
[{"$f":"IFERROR(INDEX(Expenses!A$13:A$1000,SMALL(IF(Expenses!$A$13:$A$1000=$B$3,ROW(Expenses!A$13:A$1000)-ROW(Expenses!A$13)+1),ROWS(Expenses!A$13:'Expenses'!A148))),\"\")","v":""},{"$f":"IFERROR(INDEX(Expenses!B$13:B$1000,SMALL(IF(Expenses!$A$13:$A$1000=$B$3,ROW(Expenses!B$13:B$1000)-ROW(Expenses!B$13)+1),ROWS(Expenses!B$13:'Expenses'!B148))),\"\")","v":""},{"$f":"IFERROR(INDEX(Expenses!D$13:D$1000,SMALL(IF(Expenses!$A$13:$A$1000=$B$3,ROW(Expenses!D$13:D$1000)-ROW(Expenses!D$13)+1),ROWS(Expenses!D$13:'Expenses'!D148))),\"\")","v":""},{"$f":"IFERROR(INDEX(Expenses!E$13:E$1000,SMALL(IF(Expenses!$A$13:$A$1000=$B$3,ROW(Expenses!E$13:E$1000)-ROW(Expenses!E$13)+1),ROWS(Expenses!E$13:'Expenses'!E148))),\"\")","v":""},{"$f":"IFERROR(INDEX(Expenses!F$13:F$1000,SMALL(IF(Expenses!$A$13:$A$1000=$B$3,ROW(Expenses!F$13:F$1000)-ROW(Expenses!F$13)+1),ROWS(Expenses!F$13:'Expenses'!F148))),\"\")","v":""}]
[{"$f":"IFERROR(INDEX(Expenses!A$13:A$1000,SMALL(IF(Expenses!$A$13:$A$1000=$B$3,ROW(Expenses!A$13:A$1000)-ROW(Expenses!A$13)+1),ROWS(Expenses!A$13:'Expenses'!A149))),\"\")","v":""},{"$f":"IFERROR(INDEX(Expenses!B$13:B$1000,SMALL(IF(Expenses!$A$13:$A$1000=$B$3,ROW(Expenses!B$13:B$1000)-ROW(Expenses!B$13)+1),ROWS(Expenses!B$13:'Expenses'!B149))),\"\")","v":""},{"$f":"IFERROR(INDEX(Expenses!D$13:D$1000,SMALL(IF(Expenses!$A$13:$A$1000=$B$3,ROW(Expenses!D$13:D$1000)-ROW(Expenses!D$13)+1),ROWS(Expenses!D$13:'Expenses'!D149))),\"\")","v":""},{"$f":"IFERROR(INDEX(Expenses!E$13:E$1000,SMALL(IF(Expenses!$A$13:$A$1000=$B$3,ROW(Expenses!E$13:E$1000)-ROW(Expenses!E$13)+1),ROWS(Expenses!E$13:'Expenses'!E149))),\"\")","v":""},{"$f":"IFERROR(INDEX(Expenses!F$13:F$1000,SMALL(IF(Expenses!$A$13:$A$1000=$B$3,ROW(Expenses!F$13:F$1000)-ROW(Expenses!F$13)+1),ROWS(Expenses!F$13:'Expenses'!F149))),\"\")","v":""}]
[{"$f":"IFERROR(INDEX(Expenses!A$13:A$1000,SMALL(IF(Expenses!$A$13:$A$1000=$B$3,ROW(Expenses!A$13:A$1000)-ROW(Expenses!A$13)+1),ROWS(Expenses!A$13:'Expenses'!A150))),\"\")","v":""},{"$f":"IFERROR(INDEX(Expenses!B$13:B$1000,SMALL(IF(Expenses!$A$13:$A$1000=$B$3,ROW(Expenses!B$13:B$1000)-ROW(Expenses!B$13)+1),ROWS(Expenses!B$13:'Expenses'!B150))),\"\")","v":""},{"$f":"IFERROR(INDEX(Expenses!D$13:D$1000,SMALL(IF(Expenses!$A$13:$A$1000=$B$3,ROW(Expenses!D$13:D$1000)-ROW(Expenses!D$13)+1),ROWS(Expenses!D$13:'Expenses'!D150))),\"\")","v":""},{"$f":"IFERROR(INDEX(Expenses!E$13:E$1000,SMALL(IF(Expenses!$A$13:$A$1000=$B$3,ROW(Expenses!E$13:E$1000)-ROW(Expenses!E$13)+1),ROWS(Expenses!E$13:'Expenses'!E150))),\"\")","v":""},{"$f":"IFERROR(INDEX(Expenses!F$13:F$1000,SMALL(IF(Expenses!$A$13:$A$1000=$B$3,ROW(Expenses!F$13:F$1000)-ROW(Expenses!F$13)+1),ROWS(Expenses!F$13:'Expenses'!F150))),\"\")","v":""}]
[{"$f":"IFERROR(INDEX(Expenses!A$13:A$1000,SMALL(IF(Expenses!$A$13:$A$1000=$B$3,ROW(Expenses!A$13:A$1000)-ROW(Expenses!A$13)+1),ROWS(Expenses!A$13:'Expenses'!A151))),\"\")","v":""},{"$f":"IFERROR(INDEX(Expenses!B$13:B$1000,SMALL(IF(Expenses!$A$13:$A$1000=$B$3,ROW(Expenses!B$13:B$1000)-ROW(Expenses!B$13)+1),ROWS(Expenses!B$13:'Expenses'!B151))),\"\")","v":""},{"$f":"IFERROR(INDEX(Expenses!D$13:D$1000,SMALL(IF(Expenses!$A$13:$A$1000=$B$3,ROW(Expenses!D$13:D$1000)-ROW(Expenses!D$13)+1),ROWS(Expenses!D$13:'Expenses'!D151))),\"\")","v":""},{"$f":"IFERROR(INDEX(Expenses!E$13:E$1000,SMALL(IF(Expenses!$A$13:$A$1000=$B$3,ROW(Expenses!E$13:E$1000)-ROW(Expenses!E$13)+1),ROWS(Expenses!E$13:'Expenses'!E151))),\"\")","v":""},{"$f":"IFERROR(INDEX(Expenses!F$13:F$1000,SMALL(IF(Expenses!$A$13:$A$1000=$B$3,ROW(Expenses!F$13:F$1000)-ROW(Expenses!F$13)+1),ROWS(Expenses!F$13:'Expenses'!F151))),\"\")","v":""}]
[{"$f":"IFERROR(INDEX(Expenses!A$13:A$1000,SMALL(IF(Expenses!$A$13:$A$1000=$B$3,ROW(Expenses!A$13:A$1000)-ROW(Expenses!A$13)+1),ROWS(Expenses!A$13:'Expenses'!A152))),\"\")","v":""},{"$f":"IFERROR(INDEX(Expenses!B$13:B$1000,SMALL(IF(Expenses!$A$13:$A$1000=$B$3,ROW(Expenses!B$13:B$1000)-ROW(Expenses!B$13)+1),ROWS(Expenses!B$13:'Expenses'!B152))),\"\")","v":""},{"$f":"IFERROR(INDEX(Expenses!D$13:D$1000,SMALL(IF(Expenses!$A$13:$A$1000=$B$3,ROW(Expenses!D$13:D$1000)-ROW(Expenses!D$13)+1),ROWS(Expenses!D$13:'Expenses'!D152))),\"\")","v":""},{"$f":"IFERROR(INDEX(Expenses!E$13:E$1000,SMALL(IF(Expenses!$A$13:$A$1000=$B$3,ROW(Expenses!E$13:E$1000)-ROW(Expenses!E$13)+1),ROWS(Expenses!E$13:'Expenses'!E152))),\"\")","v":""},{"$f":"IFERROR(INDEX(Expenses!F$13:F$1000,SMALL(IF(Expenses!$A$13:$A$1000=$B$3,ROW(Expenses!F$13:F$1000)-ROW(Expenses!F$13)+1),ROWS(Expenses!F$13:'Expenses'!F152))),\"\")","v":""}]
[{"$f":"IFERROR(INDEX(Expenses!A$13:A$1000,SMALL(IF(Expenses!$A$13:$A$1000=$B$3,ROW(Expenses!A$13:A$1000)-ROW(Expenses!A$13)+1),ROWS(Expenses!A$13:'Expenses'!A153))),\"\")","v":""},{"$f":"IFERROR(INDEX(Expenses!B$13:B$1000,SMALL(IF(Expenses!$A$13:$A$1000=$B$3,ROW(Expenses!B$13:B$1000)-ROW(Expenses!B$13)+1),ROWS(Expenses!B$13:'Expenses'!B153))),\"\")","v":""},{"$f":"IFERROR(INDEX(Expenses!D$13:D$1000,SMALL(IF(Expenses!$A$13:$A$1000=$B$3,ROW(Expenses!D$13:D$1000)-ROW(Expenses!D$13)+1),ROWS(Expenses!D$13:'Expenses'!D153))),\"\")","v":""},{"$f":"IFERROR(INDEX(Expenses!E$13:E$1000,SMALL(IF(Expenses!$A$13:$A$1000=$B$3,ROW(Expenses!E$13:E$1000)-ROW(Expenses!E$13)+1),ROWS(Expenses!E$13:'Expenses'!E153))),\"\")","v":""},{"$f":"IFERROR(INDEX(Expenses!F$13:F$1000,SMALL(IF(Expenses!$A$13:$A$1000=$B$3,ROW(Expenses!F$13:F$1000)-ROW(Expenses!F$13)+1),ROWS(Expenses!F$13:'Expenses'!F153))),\"\")","v":""}]
[{"$f":"IFERROR(INDEX(Expenses!A$13:A$1000,SMALL(IF(Expenses!$A$13:$A$1000=$B$3,ROW(Expenses!A$13:A$1000)-ROW(Expenses!A$13)+1),ROWS(Expenses!A$13:'Expenses'!A154))),\"\")","v":""},{"$f":"IFERROR(INDEX(Expenses!B$13:B$1000,SMALL(IF(Expenses!$A$13:$A$1000=$B$3,ROW(Expenses!B$13:B$1000)-ROW(Expenses!B$13)+1),ROWS(Expenses!B$13:'Expenses'!B154))),\"\")","v":""},{"$f":"IFERROR(INDEX(Expenses!D$13:D$1000,SMALL(IF(Expenses!$A$13:$A$1000=$B$3,ROW(Expenses!D$13:D$1000)-ROW(Expenses!D$13)+1),ROWS(Expenses!D$13:'Expenses'!D154))),\"\")","v":""},{"$f":"IFERROR(INDEX(Expenses!E$13:E$1000,SMALL(IF(Expenses!$A$13:$A$1000=$B$3,ROW(Expenses!E$13:E$1000)-ROW(Expenses!E$13)+1),ROWS(Expenses!E$13:'Expenses'!E154))),\"\")","v":""},{"$f":"IFERROR(INDEX(Expenses!F$13:F$1000,SMALL(IF(Expenses!$A$13:$A$1000=$B$3,ROW(Expenses!F$13:F$1000)-ROW(Expenses!F$13)+1),ROWS(Expenses!F$13:'Expenses'!F154))),\"\")","v":""}]
[{"$f":"IFERROR(INDEX(Expenses!A$13:A$1000,SMALL(IF(Expenses!$A$13:$A$1000=$B$3,ROW(Expenses!A$13:A$1000)-ROW(Expenses!A$13)+1),ROWS(Expenses!A$13:'Expenses'!A155))),\"\")","v":""},{"$f":"IFERROR(INDEX(Expenses!B$13:B$1000,SMALL(IF(Expenses!$A$13:$A$1000=$B$3,ROW(Expenses!B$13:B$1000)-ROW(Expenses!B$13)+1),ROWS(Expenses!B$13:'Expenses'!B155))),\"\")","v":""},{"$f":"IFERROR(INDEX(Expenses!D$13:D$1000,SMALL(IF(Expenses!$A$13:$A$1000=$B$3,ROW(Expenses!D$13:D$1000)-ROW(Expenses!D$13)+1),ROWS(Expenses!D$13:'Expenses'!D155))),\"\")","v":""},{"$f":"IFERROR(INDEX(Expenses!E$13:E$1000,SMALL(IF(Expenses!$A$13:$A$1000=$B$3,ROW(Expenses!E$13:E$1000)-ROW(Expenses!E$13)+1),ROWS(Expenses!E$13:'Expenses'!E155))),\"\")","v":""},{"$f":"IFERROR(INDEX(Expenses!F$13:F$1000,SMALL(IF(Expenses!$A$13:$A$1000=$B$3,ROW(Expenses!F$13:F$1000)-ROW(Expenses!F$13)+1),ROWS(Expenses!F$13:'Expenses'!F155))),\"\")","v":""}]
[{"$f":"IFERROR(INDEX(Expenses!A$13:A$1000,SMALL(IF(Expenses!$A$13:$A$1000=$B$3,ROW(Expenses!A$13:A$1000)-ROW(Expenses!A$13)+1),ROWS(Expenses!A$13:'Expenses'!A156))),\"\")","v":""},{"$f":"IFERROR(INDEX(Expenses!B$13:B$1000,SMALL(IF(Expenses!$A$13:$A$1000=$B$3,ROW(Expenses!B$13:B$1000)-ROW(Expenses!B$13)+1),ROWS(Expenses!B$13:'Expenses'!B156))),\"\")","v":""},{"$f":"IFERROR(INDEX(Expenses!D$13:D$1000,SMALL(IF(Expenses!$A$13:$A$1000=$B$3,ROW(Expenses!D$13:D$1000)-ROW(Expenses!D$13)+1),ROWS(Expenses!D$13:'Expenses'!D156))),\"\")","v":""},{"$f":"IFERROR(INDEX(Expenses!E$13:E$1000,SMALL(IF(Expenses!$A$13:$A$1000=$B$3,ROW(Expenses!E$13:E$1000)-ROW(Expenses!E$13)+1),ROWS(Expenses!E$13:'Expenses'!E156))),\"\")","v":""},{"$f":"IFERROR(INDEX(Expenses!F$13:F$1000,SMALL(IF(Expenses!$A$13:$A$1000=$B$3,ROW(Expenses!F$13:F$1000)-ROW(Expenses!F$13)+1),ROWS(Expenses!F$13:'Expenses'!F156))),\"\")","v":""}]
[{"$f":"IFERROR(INDEX(Expenses!A$13:A$1000,SMALL(IF(Expenses!$A$13:$A$1000=$B$3,ROW(Expenses!A$13:A$1000)-ROW(Expenses!A$13)+1),ROWS(Expenses!A$13:'Expenses'!A157))),\"\")","v":""},{"$f":"IFERROR(INDEX(Expenses!B$13:B$1000,SMALL(IF(Expenses!$A$13:$A$1000=$B$3,ROW(Expenses!B$13:B$1000)-ROW(Expenses!B$13)+1),ROWS(Expenses!B$13:'Expenses'!B157))),\"\")","v":""},{"$f":"IFERROR(INDEX(Expenses!D$13:D$1000,SMALL(IF(Expenses!$A$13:$A$1000=$B$3,ROW(Expenses!D$13:D$1000)-ROW(Expenses!D$13)+1),ROWS(Expenses!D$13:'Expenses'!D157))),\"\")","v":""},{"$f":"IFERROR(INDEX(Expenses!E$13:E$1000,SMALL(IF(Expenses!$A$13:$A$1000=$B$3,ROW(Expenses!E$13:E$1000)-ROW(Expenses!E$13)+1),ROWS(Expenses!E$13:'Expenses'!E157))),\"\")","v":""},{"$f":"IFERROR(INDEX(Expenses!F$13:F$1000,SMALL(IF(Expenses!$A$13:$A$1000=$B$3,ROW(Expenses!F$13:F$1000)-ROW(Expenses!F$13)+1),ROWS(Expenses!F$13:'Expenses'!F157))),\"\")","v":""}]
[{"$f":"IFERROR(INDEX(Expenses!A$13:A$1000,SMALL(IF(Expenses!$A$13:$A$1000=$B$3,ROW(Expenses!A$13:A$1000)-ROW(Expenses!A$13)+1),ROWS(Expenses!A$13:'Expenses'!A158))),\"\")","v":""},{"$f":"IFERROR(INDEX(Expenses!B$13:B$1000,SMALL(IF(Expenses!$A$13:$A$1000=$B$3,ROW(Expenses!B$13:B$1000)-ROW(Expenses!B$13)+1),ROWS(Expenses!B$13:'Expenses'!B158))),\"\")","v":""},{"$f":"IFERROR(INDEX(Expenses!D$13:D$1000,SMALL(IF(Expenses!$A$13:$A$1000=$B$3,ROW(Expenses!D$13:D$1000)-ROW(Expenses!D$13)+1),ROWS(Expenses!D$13:'Expenses'!D158))),\"\")","v":""},{"$f":"IFERROR(INDEX(Expenses!E$13:E$1000,SMALL(IF(Expenses!$A$13:$A$1000=$B$3,ROW(Expenses!E$13:E$1000)-ROW(Expenses!E$13)+1),ROWS(Expenses!E$13:'Expenses'!E158))),\"\")","v":""},{"$f":"IFERROR(INDEX(Expenses!F$13:F$1000,SMALL(IF(Expenses!$A$13:$A$1000=$B$3,ROW(Expenses!F$13:F$1000)-ROW(Expenses!F$13)+1),ROWS(Expenses!F$13:'Expenses'!F158))),\"\")","v":""}]
[{"$f":"IFERROR(INDEX(Expenses!A$13:A$1000,SMALL(IF(Expenses!$A$13:$A$1000=$B$3,ROW(Expenses!A$13:A$1000)-ROW(Expenses!A$13)+1),ROWS(Expenses!A$13:'Expenses'!A159))),\"\")","v":""},{"$f":"IFERROR(INDEX(Expenses!B$13:B$1000,SMALL(IF(Expenses!$A$13:$A$1000=$B$3,ROW(Expenses!B$13:B$1000)-ROW(Expenses!B$13)+1),ROWS(Expenses!B$13:'Expenses'!B159))),\"\")","v":""},{"$f":"IFERROR(INDEX(Expenses!D$13:D$1000,SMALL(IF(Expenses!$A$13:$A$1000=$B$3,ROW(Expenses!D$13:D$1000)-ROW(Expenses!D$13)+1),ROWS(Expenses!D$13:'Expenses'!D159))),\"\")","v":""},{"$f":"IFERROR(INDEX(Expenses!E$13:E$1000,SMALL(IF(Expenses!$A$13:$A$1000=$B$3,ROW(Expenses!E$13:E$1000)-ROW(Expenses!E$13)+1),ROWS(Expenses!E$13:'Expenses'!E159))),\"\")","v":""},{"$f":"IFERROR(INDEX(Expenses!F$13:F$1000,SMALL(IF(Expenses!$A$13:$A$1000=$B$3,ROW(Expenses!F$13:F$1000)-ROW(Expenses!F$13)+1),ROWS(Expenses!F$13:'Expenses'!F159))),\"\")","v":""}]
[{"$f":"IFERROR(INDEX(Expenses!A$13:A$1000,SMALL(IF(Expenses!$A$13:$A$1000=$B$3,ROW(Expenses!A$13:A$1000)-ROW(Expenses!A$13)+1),ROWS(Expenses!A$13:'Expenses'!A160))),\"\")","v":""},{"$f":"IFERROR(INDEX(Expenses!B$13:B$1000,SMALL(IF(Expenses!$A$13:$A$1000=$B$3,ROW(Expenses!B$13:B$1000)-ROW(Expenses!B$13)+1),ROWS(Expenses!B$13:'Expenses'!B160))),\"\")","v":""},{"$f":"IFERROR(INDEX(Expenses!D$13:D$1000,SMALL(IF(Expenses!$A$13:$A$1000=$B$3,ROW(Expenses!D$13:D$1000)-ROW(Expenses!D$13)+1),ROWS(Expenses!D$13:'Expenses'!D160))),\"\")","v":""},{"$f":"IFERROR(INDEX(Expenses!E$13:E$1000,SMALL(IF(Expenses!$A$13:$A$1000=$B$3,ROW(Expenses!E$13:E$1000)-ROW(Expenses!E$13)+1),ROWS(Expenses!E$13:'Expenses'!E160))),\"\")","v":""},{"$f":"IFERROR(INDEX(Expenses!F$13:F$1000,SMALL(IF(Expenses!$A$13:$A$1000=$B$3,ROW(Expenses!F$13:F$1000)-ROW(Expenses!F$13)+1),ROWS(Expenses!F$13:'Expenses'!F160))),\"\")","v":""}]
[{"$f":"IFERROR(INDEX(Expenses!A$13:A$1000,SMALL(IF(Expenses!$A$13:$A$1000=$B$3,ROW(Expenses!A$13:A$1000)-ROW(Expenses!A$13)+1),ROWS(Expenses!A$13:'Expenses'!A161))),\"\")","v":""},{"$f":"IFERROR(INDEX(Expenses!B$13:B$1000,SMALL(IF(Expenses!$A$13:$A$1000=$B$3,ROW(Expenses!B$13:B$1000)-ROW(Expenses!B$13)+1),ROWS(Expenses!B$13:'Expenses'!B161))),\"\")","v":""},{"$f":"IFERROR(INDEX(Expenses!D$13:D$1000,SMALL(IF(Expenses!$A$13:$A$1000=$B$3,ROW(Expenses!D$13:D$1000)-ROW(Expenses!D$13)+1),ROWS(Expenses!D$13:'Expenses'!D161))),\"\")","v":""},{"$f":"IFERROR(INDEX(Expenses!E$13:E$1000,SMALL(IF(Expenses!$A$13:$A$1000=$B$3,ROW(Expenses!E$13:E$1000)-ROW(Expenses!E$13)+1),ROWS(Expenses!E$13:'Expenses'!E161))),\"\")","v":""},{"$f":"IFERROR(INDEX(Expenses!F$13:F$1000,SMALL(IF(Expenses!$A$13:$A$1000=$B$3,ROW(Expenses!F$13:F$1000)-ROW(Expenses!F$13)+1),ROWS(Expenses!F$13:'Expenses'!F161))),\"\")","v":""}]
[{"$f":"IFERROR(INDEX(Expenses!A$13:A$1000,SMALL(IF(Expenses!$A$13:$A$1000=$B$3,ROW(Expenses!A$13:A$1000)-ROW(Expenses!A$13)+1),ROWS(Expenses!A$13:'Expenses'!A162))),\"\")","v":""},{"$f":"IFERROR(INDEX(Expenses!B$13:B$1000,SMALL(IF(Expenses!$A$13:$A$1000=$B$3,ROW(Expenses!B$13:B$1000)-ROW(Expenses!B$13)+1),ROWS(Expenses!B$13:'Expenses'!B162))),\"\")","v":""},{"$f":"IFERROR(INDEX(Expenses!D$13:D$1000,SMALL(IF(Expenses!$A$13:$A$1000=$B$3,ROW(Expenses!D$13:D$1000)-ROW(Expenses!D$13)+1),ROWS(Expenses!D$13:'Expenses'!D162))),\"\")","v":""},{"$f":"IFERROR(INDEX(Expenses!E$13:E$1000,SMALL(IF(Expenses!$A$13:$A$1000=$B$3,ROW(Expenses!E$13:E$1000)-ROW(Expenses!E$13)+1),ROWS(Expenses!E$13:'Expenses'!E162))),\"\")","v":""},{"$f":"IFERROR(INDEX(Expenses!F$13:F$1000,SMALL(IF(Expenses!$A$13:$A$1000=$B$3,ROW(Expenses!F$13:F$1000)-ROW(Expenses!F$13)+1),ROWS(Expenses!F$13:'Expenses'!F162))),\"\")","v":""}]
[{"$f":"IFERROR(INDEX(Expenses!A$13:A$1000,SMALL(IF(Expenses!$A$13:$A$1000=$B$3,ROW(Expenses!A$13:A$1000)-ROW(Expenses!A$13)+1),ROWS(Expenses!A$13:'Expenses'!A163))),\"\")","v":""},{"$f":"IFERROR(INDEX(Expenses!B$13:B$1000,SMALL(IF(Expenses!$A$13:$A$1000=$B$3,ROW(Expenses!B$13:B$1000)-ROW(Expenses!B$13)+1),ROWS(Expenses!B$13:'Expenses'!B163))),\"\")","v":""},{"$f":"IFERROR(INDEX(Expenses!D$13:D$1000,SMALL(IF(Expenses!$A$13:$A$1000=$B$3,ROW(Expenses!D$13:D$1000)-ROW(Expenses!D$13)+1),ROWS(Expenses!D$13:'Expenses'!D163))),\"\")","v":""},{"$f":"IFERROR(INDEX(Expenses!E$13:E$1000,SMALL(IF(Expenses!$A$13:$A$1000=$B$3,ROW(Expenses!E$13:E$1000)-ROW(Expenses!E$13)+1),ROWS(Expenses!E$13:'Expenses'!E163))),\"\")","v":""},{"$f":"IFERROR(INDEX(Expenses!F$13:F$1000,SMALL(IF(Expenses!$A$13:$A$1000=$B$3,ROW(Expenses!F$13:F$1000)-ROW(Expenses!F$13)+1),ROWS(Expenses!F$13:'Expenses'!F163))),\"\")","v":""}]
[{"$f":"IFERROR(INDEX(Expenses!A$13:A$1000,SMALL(IF(Expenses!$A$13:$A$1000=$B$3,ROW(Expenses!A$13:A$1000)-ROW(Expenses!A$13)+1),ROWS(Expenses!A$13:'Expenses'!A164))),\"\")","v":""},{"$f":"IFERROR(INDEX(Expenses!B$13:B$1000,SMALL(IF(Expenses!$A$13:$A$1000=$B$3,ROW(Expenses!B$13:B$1000)-ROW(Expenses!B$13)+1),ROWS(Expenses!B$13:'Expenses'!B164))),\"\")","v":""},{"$f":"IFERROR(INDEX(Expenses!D$13:D$1000,SMALL(IF(Expenses!$A$13:$A$1000=$B$3,ROW(Expenses!D$13:D$1000)-ROW(Expenses!D$13)+1),ROWS(Expenses!D$13:'Expenses'!D164))),\"\")","v":""},{"$f":"IFERROR(INDEX(Expenses!E$13:E$1000,SMALL(IF(Expenses!$A$13:$A$1000=$B$3,ROW(Expenses!E$13:E$1000)-ROW(Expenses!E$13)+1),ROWS(Expenses!E$13:'Expenses'!E164))),\"\")","v":""},{"$f":"IFERROR(INDEX(Expenses!F$13:F$1000,SMALL(IF(Expenses!$A$13:$A$1000=$B$3,ROW(Expenses!F$13:F$1000)-ROW(Expenses!F$13)+1),ROWS(Expenses!F$13:'Expenses'!F164))),\"\")","v":""}]
[{"$f":"IFERROR(INDEX(Expenses!A$13:A$1000,SMALL(IF(Expenses!$A$13:$A$1000=$B$3,ROW(Expenses!A$13:A$1000)-ROW(Expenses!A$13)+1),ROWS(Expenses!A$13:'Expenses'!A165))),\"\")","v":""},{"$f":"IFERROR(INDEX(Expenses!B$13:B$1000,SMALL(IF(Expenses!$A$13:$A$1000=$B$3,ROW(Expenses!B$13:B$1000)-ROW(Expenses!B$13)+1),ROWS(Expenses!B$13:'Expenses'!B165))),\"\")","v":""},{"$f":"IFERROR(INDEX(Expenses!D$13:D$1000,SMALL(IF(Expenses!$A$13:$A$1000=$B$3,ROW(Expenses!D$13:D$1000)-ROW(Expenses!D$13)+1),ROWS(Expenses!D$13:'Expenses'!D165))),\"\")","v":""},{"$f":"IFERROR(INDEX(Expenses!E$13:E$1000,SMALL(IF(Expenses!$A$13:$A$1000=$B$3,ROW(Expenses!E$13:E$1000)-ROW(Expenses!E$13)+1),ROWS(Expenses!E$13:'Expenses'!E165))),\"\")","v":""},{"$f":"IFERROR(INDEX(Expenses!F$13:F$1000,SMALL(IF(Expenses!$A$13:$A$1000=$B$3,ROW(Expenses!F$13:F$1000)-ROW(Expenses!F$13)+1),ROWS(Expenses!F$13:'Expenses'!F165))),\"\")","v":""}]
[{"$f":"IFERROR(INDEX(Expenses!A$13:A$1000,SMALL(IF(Expenses!$A$13:$A$1000=$B$3,ROW(Expenses!A$13:A$1000)-ROW(Expenses!A$13)+1),ROWS(Expenses!A$13:'Expenses'!A166))),\"\")","v":""},{"$f":"IFERROR(INDEX(Expenses!B$13:B$1000,SMALL(IF(Expenses!$A$13:$A$1000=$B$3,ROW(Expenses!B$13:B$1000)-ROW(Expenses!B$13)+1),ROWS(Expenses!B$13:'Expenses'!B166))),\"\")","v":""},{"$f":"IFERROR(INDEX(Expenses!D$13:D$1000,SMALL(IF(Expenses!$A$13:$A$1000=$B$3,ROW(Expenses!D$13:D$1000)-ROW(Expenses!D$13)+1),ROWS(Expenses!D$13:'Expenses'!D166))),\"\")","v":""},{"$f":"IFERROR(INDEX(Expenses!E$13:E$1000,SMALL(IF(Expenses!$A$13:$A$1000=$B$3,ROW(Expenses!E$13:E$1000)-ROW(Expenses!E$13)+1),ROWS(Expenses!E$13:'Expenses'!E166))),\"\")","v":""},{"$f":"IFERROR(INDEX(Expenses!F$13:F$1000,SMALL(IF(Expenses!$A$13:$A$1000=$B$3,ROW(Expenses!F$13:F$1000)-ROW(Expenses!F$13)+1),ROWS(Expenses!F$13:'Expenses'!F166))),\"\")","v":""}]
[{"$f":"IFERROR(INDEX(Expenses!A$13:A$1000,SMALL(IF(Expenses!$A$13:$A$1000=$B$3,ROW(Expenses!A$13:A$1000)-ROW(Expenses!A$13)+1),ROWS(Expenses!A$13:'Expenses'!A167))),\"\")","v":""},{"$f":"IFERROR(INDEX(Expenses!B$13:B$1000,SMALL(IF(Expenses!$A$13:$A$1000=$B$3,ROW(Expenses!B$13:B$1000)-ROW(Expenses!B$13)+1),ROWS(Expenses!B$13:'Expenses'!B167))),\"\")","v":""},{"$f":"IFERROR(INDEX(Expenses!D$13:D$1000,SMALL(IF(Expenses!$A$13:$A$1000=$B$3,ROW(Expenses!D$13:D$1000)-ROW(Expenses!D$13)+1),ROWS(Expenses!D$13:'Expenses'!D167))),\"\")","v":""},{"$f":"IFERROR(INDEX(Expenses!E$13:E$1000,SMALL(IF(Expenses!$A$13:$A$1000=$B$3,ROW(Expenses!E$13:E$1000)-ROW(Expenses!E$13)+1),ROWS(Expenses!E$13:'Expenses'!E167))),\"\")","v":""},{"$f":"IFERROR(INDEX(Expenses!F$13:F$1000,SMALL(IF(Expenses!$A$13:$A$1000=$B$3,ROW(Expenses!F$13:F$1000)-ROW(Expenses!F$13)+1),ROWS(Expenses!F$13:'Expenses'!F167))),\"\")","v":""}]
[{"$f":"IFERROR(INDEX(Expenses!A$13:A$1000,SMALL(IF(Expenses!$A$13:$A$1000=$B$3,ROW(Expenses!A$13:A$1000)-ROW(Expenses!A$13)+1),ROWS(Expenses!A$13:'Expenses'!A168))),\"\")","v":""},{"$f":"IFERROR(INDEX(Expenses!B$13:B$1000,SMALL(IF(Expenses!$A$13:$A$1000=$B$3,ROW(Expenses!B$13:B$1000)-ROW(Expenses!B$13)+1),ROWS(Expenses!B$13:'Expenses'!B168))),\"\")","v":""},{"$f":"IFERROR(INDEX(Expenses!D$13:D$1000,SMALL(IF(Expenses!$A$13:$A$1000=$B$3,ROW(Expenses!D$13:D$1000)-ROW(Expenses!D$13)+1),ROWS(Expenses!D$13:'Expenses'!D168))),\"\")","v":""},{"$f":"IFERROR(INDEX(Expenses!E$13:E$1000,SMALL(IF(Expenses!$A$13:$A$1000=$B$3,ROW(Expenses!E$13:E$1000)-ROW(Expenses!E$13)+1),ROWS(Expenses!E$13:'Expenses'!E168))),\"\")","v":""},{"$f":"IFERROR(INDEX(Expenses!F$13:F$1000,SMALL(IF(Expenses!$A$13:$A$1000=$B$3,ROW(Expenses!F$13:F$1000)-ROW(Expenses!F$13)+1),ROWS(Expenses!F$13:'Expenses'!F168))),\"\")","v":""}]
[{"$f":"IFERROR(INDEX(Expenses!A$13:A$1000,SMALL(IF(Expenses!$A$13:$A$1000=$B$3,ROW(Expenses!A$13:A$1000)-ROW(Expenses!A$13)+1),ROWS(Expenses!A$13:'Expenses'!A169))),\"\")","v":""},{"$f":"IFERROR(INDEX(Expenses!B$13:B$1000,SMALL(IF(Expenses!$A$13:$A$1000=$B$3,ROW(Expenses!B$13:B$1000)-ROW(Expenses!B$13)+1),ROWS(Expenses!B$13:'Expenses'!B169))),\"\")","v":""},{"$f":"IFERROR(INDEX(Expenses!D$13:D$1000,SMALL(IF(Expenses!$A$13:$A$1000=$B$3,ROW(Expenses!D$13:D$1000)-ROW(Expenses!D$13)+1),ROWS(Expenses!D$13:'Expenses'!D169))),\"\")","v":""},{"$f":"IFERROR(INDEX(Expenses!E$13:E$1000,SMALL(IF(Expenses!$A$13:$A$1000=$B$3,ROW(Expenses!E$13:E$1000)-ROW(Expenses!E$13)+1),ROWS(Expenses!E$13:'Expenses'!E169))),\"\")","v":""},{"$f":"IFERROR(INDEX(Expenses!F$13:F$1000,SMALL(IF(Expenses!$A$13:$A$1000=$B$3,ROW(Expenses!F$13:F$1000)-ROW(Expenses!F$13)+1),ROWS(Expenses!F$13:'Expenses'!F169))),\"\")","v":""}]
[{"$f":"IFERROR(INDEX(Expenses!A$13:A$1000,SMALL(IF(Expenses!$A$13:$A$1000=$B$3,ROW(Expenses!A$13:A$1000)-ROW(Expenses!A$13)+1),ROWS(Expenses!A$13:'Expenses'!A170))),\"\")","v":""},{"$f":"IFERROR(INDEX(Expenses!B$13:B$1000,SMALL(IF(Expenses!$A$13:$A$1000=$B$3,ROW(Expenses!B$13:B$1000)-ROW(Expenses!B$13)+1),ROWS(Expenses!B$13:'Expenses'!B170))),\"\")","v":""},{"$f":"IFERROR(INDEX(Expenses!D$13:D$1000,SMALL(IF(Expenses!$A$13:$A$1000=$B$3,ROW(Expenses!D$13:D$1000)-ROW(Expenses!D$13)+1),ROWS(Expenses!D$13:'Expenses'!D170))),\"\")","v":""},{"$f":"IFERROR(INDEX(Expenses!E$13:E$1000,SMALL(IF(Expenses!$A$13:$A$1000=$B$3,ROW(Expenses!E$13:E$1000)-ROW(Expenses!E$13)+1),ROWS(Expenses!E$13:'Expenses'!E170))),\"\")","v":""},{"$f":"IFERROR(INDEX(Expenses!F$13:F$1000,SMALL(IF(Expenses!$A$13:$A$1000=$B$3,ROW(Expenses!F$13:F$1000)-ROW(Expenses!F$13)+1),ROWS(Expenses!F$13:'Expenses'!F170))),\"\")","v":""}]
[{"$f":"IFERROR(INDEX(Expenses!A$13:A$1000,SMALL(IF(Expenses!$A$13:$A$1000=$B$3,ROW(Expenses!A$13:A$1000)-ROW(Expenses!A$13)+1),ROWS(Expenses!A$13:'Expenses'!A171))),\"\")","v":""},{"$f":"IFERROR(INDEX(Expenses!B$13:B$1000,SMALL(IF(Expenses!$A$13:$A$1000=$B$3,ROW(Expenses!B$13:B$1000)-ROW(Expenses!B$13)+1),ROWS(Expenses!B$13:'Expenses'!B171))),\"\")","v":""},{"$f":"IFERROR(INDEX(Expenses!D$13:D$1000,SMALL(IF(Expenses!$A$13:$A$1000=$B$3,ROW(Expenses!D$13:D$1000)-ROW(Expenses!D$13)+1),ROWS(Expenses!D$13:'Expenses'!D171))),\"\")","v":""},{"$f":"IFERROR(INDEX(Expenses!E$13:E$1000,SMALL(IF(Expenses!$A$13:$A$1000=$B$3,ROW(Expenses!E$13:E$1000)-ROW(Expenses!E$13)+1),ROWS(Expenses!E$13:'Expenses'!E171))),\"\")","v":""},{"$f":"IFERROR(INDEX(Expenses!F$13:F$1000,SMALL(IF(Expenses!$A$13:$A$1000=$B$3,ROW(Expenses!F$13:F$1000)-ROW(Expenses!F$13)+1),ROWS(Expenses!F$13:'Expenses'!F171))),\"\")","v":""}]
[{"$f":"IFERROR(INDEX(Expenses!A$13:A$1000,SMALL(IF(Expenses!$A$13:$A$1000=$B$3,ROW(Expenses!A$13:A$1000)-ROW(Expenses!A$13)+1),ROWS(Expenses!A$13:'Expenses'!A172))),\"\")","v":""},{"$f":"IFERROR(INDEX(Expenses!B$13:B$1000,SMALL(IF(Expenses!$A$13:$A$1000=$B$3,ROW(Expenses!B$13:B$1000)-ROW(Expenses!B$13)+1),ROWS(Expenses!B$13:'Expenses'!B172))),\"\")","v":""},{"$f":"IFERROR(INDEX(Expenses!D$13:D$1000,SMALL(IF(Expenses!$A$13:$A$1000=$B$3,ROW(Expenses!D$13:D$1000)-ROW(Expenses!D$13)+1),ROWS(Expenses!D$13:'Expenses'!D172))),\"\")","v":""},{"$f":"IFERROR(INDEX(Expenses!E$13:E$1000,SMALL(IF(Expenses!$A$13:$A$1000=$B$3,ROW(Expenses!E$13:E$1000)-ROW(Expenses!E$13)+1),ROWS(Expenses!E$13:'Expenses'!E172))),\"\")","v":""},{"$f":"IFERROR(INDEX(Expenses!F$13:F$1000,SMALL(IF(Expenses!$A$13:$A$1000=$B$3,ROW(Expenses!F$13:F$1000)-ROW(Expenses!F$13)+1),ROWS(Expenses!F$13:'Expenses'!F172))),\"\")","v":""}]
[{"$f":"IFERROR(INDEX(Expenses!A$13:A$1000,SMALL(IF(Expenses!$A$13:$A$1000=$B$3,ROW(Expenses!A$13:A$1000)-ROW(Expenses!A$13)+1),ROWS(Expenses!A$13:'Expenses'!A173))),\"\")","v":""},{"$f":"IFERROR(INDEX(Expenses!B$13:B$1000,SMALL(IF(Expenses!$A$13:$A$1000=$B$3,ROW(Expenses!B$13:B$1000)-ROW(Expenses!B$13)+1),ROWS(Expenses!B$13:'Expenses'!B173))),\"\")","v":""},{"$f":"IFERROR(INDEX(Expenses!D$13:D$1000,SMALL(IF(Expenses!$A$13:$A$1000=$B$3,ROW(Expenses!D$13:D$1000)-ROW(Expenses!D$13)+1),ROWS(Expenses!D$13:'Expenses'!D173))),\"\")","v":""},{"$f":"IFERROR(INDEX(Expenses!E$13:E$1000,SMALL(IF(Expenses!$A$13:$A$1000=$B$3,ROW(Expenses!E$13:E$1000)-ROW(Expenses!E$13)+1),ROWS(Expenses!E$13:'Expenses'!E173))),\"\")","v":""},{"$f":"IFERROR(INDEX(Expenses!F$13:F$1000,SMALL(IF(Expenses!$A$13:$A$1000=$B$3,ROW(Expenses!F$13:F$1000)-ROW(Expenses!F$13)+1),ROWS(Expenses!F$13:'Expenses'!F173))),\"\")","v":""}]
[{"$f":"IFERROR(INDEX(Expenses!A$13:A$1000,SMALL(IF(Expenses!$A$13:$A$1000=$B$3,ROW(Expenses!A$13:A$1000)-ROW(Expenses!A$13)+1),ROWS(Expenses!A$13:'Expenses'!A174))),\"\")","v":""},{"$f":"IFERROR(INDEX(Expenses!B$13:B$1000,SMALL(IF(Expenses!$A$13:$A$1000=$B$3,ROW(Expenses!B$13:B$1000)-ROW(Expenses!B$13)+1),ROWS(Expenses!B$13:'Expenses'!B174))),\"\")","v":""},{"$f":"IFERROR(INDEX(Expenses!D$13:D$1000,SMALL(IF(Expenses!$A$13:$A$1000=$B$3,ROW(Expenses!D$13:D$1000)-ROW(Expenses!D$13)+1),ROWS(Expenses!D$13:'Expenses'!D174))),\"\")","v":""},{"$f":"IFERROR(INDEX(Expenses!E$13:E$1000,SMALL(IF(Expenses!$A$13:$A$1000=$B$3,ROW(Expenses!E$13:E$1000)-ROW(Expenses!E$13)+1),ROWS(Expenses!E$13:'Expenses'!E174))),\"\")","v":""},{"$f":"IFERROR(INDEX(Expenses!F$13:F$1000,SMALL(IF(Expenses!$A$13:$A$1000=$B$3,ROW(Expenses!F$13:F$1000)-ROW(Expenses!F$13)+1),ROWS(Expenses!F$13:'Expenses'!F174))),\"\")","v":""}]
[{"$f":"IFERROR(INDEX(Expenses!A$13:A$1000,SMALL(IF(Expenses!$A$13:$A$1000=$B$3,ROW(Expenses!A$13:A$1000)-ROW(Expenses!A$13)+1),ROWS(Expenses!A$13:'Expenses'!A175))),\"\")","v":""},{"$f":"IFERROR(INDEX(Expenses!B$13:B$1000,SMALL(IF(Expenses!$A$13:$A$1000=$B$3,ROW(Expenses!B$13:B$1000)-ROW(Expenses!B$13)+1),ROWS(Expenses!B$13:'Expenses'!B175))),\"\")","v":""},{"$f":"IFERROR(INDEX(Expenses!D$13:D$1000,SMALL(IF(Expenses!$A$13:$A$1000=$B$3,ROW(Expenses!D$13:D$1000)-ROW(Expenses!D$13)+1),ROWS(Expenses!D$13:'Expenses'!D175))),\"\")","v":""},{"$f":"IFERROR(INDEX(Expenses!E$13:E$1000,SMALL(IF(Expenses!$A$13:$A$1000=$B$3,ROW(Expenses!E$13:E$1000)-ROW(Expenses!E$13)+1),ROWS(Expenses!E$13:'Expenses'!E175))),\"\")","v":""},{"$f":"IFERROR(INDEX(Expenses!F$13:F$1000,SMALL(IF(Expenses!$A$13:$A$1000=$B$3,ROW(Expenses!F$13:F$1000)-ROW(Expenses!F$13)+1),ROWS(Expenses!F$13:'Expenses'!F175))),\"\")","v":""}]
[{"$f":"IFERROR(INDEX(Expenses!A$13:A$1000,SMALL(IF(Expenses!$A$13:$A$1000=$B$3,ROW(Expenses!A$13:A$1000)-ROW(Expenses!A$13)+1),ROWS(Expenses!A$13:'Expenses'!A176))),\"\")","v":""},{"$f":"IFERROR(INDEX(Expenses!B$13:B$1000,SMALL(IF(Expenses!$A$13:$A$1000=$B$3,ROW(Expenses!B$13:B$1000)-ROW(Expenses!B$13)+1),ROWS(Expenses!B$13:'Expenses'!B176))),\"\")","v":""},{"$f":"IFERROR(INDEX(Expenses!D$13:D$1000,SMALL(IF(Expenses!$A$13:$A$1000=$B$3,ROW(Expenses!D$13:D$1000)-ROW(Expenses!D$13)+1),ROWS(Expenses!D$13:'Expenses'!D176))),\"\")","v":""},{"$f":"IFERROR(INDEX(Expenses!E$13:E$1000,SMALL(IF(Expenses!$A$13:$A$1000=$B$3,ROW(Expenses!E$13:E$1000)-ROW(Expenses!E$13)+1),ROWS(Expenses!E$13:'Expenses'!E176))),\"\")","v":""},{"$f":"IFERROR(INDEX(Expenses!F$13:F$1000,SMALL(IF(Expenses!$A$13:$A$1000=$B$3,ROW(Expenses!F$13:F$1000)-ROW(Expenses!F$13)+1),ROWS(Expenses!F$13:'Expenses'!F176))),\"\")","v":""}]
[{"$f":"IFERROR(INDEX(Expenses!A$13:A$1000,SMALL(IF(Expenses!$A$13:$A$1000=$B$3,ROW(Expenses!A$13:A$1000)-ROW(Expenses!A$13)+1),ROWS(Expenses!A$13:'Expenses'!A177))),\"\")","v":""},{"$f":"IFERROR(INDEX(Expenses!B$13:B$1000,SMALL(IF(Expenses!$A$13:$A$1000=$B$3,ROW(Expenses!B$13:B$1000)-ROW(Expenses!B$13)+1),ROWS(Expenses!B$13:'Expenses'!B177))),\"\")","v":""},{"$f":"IFERROR(INDEX(Expenses!D$13:D$1000,SMALL(IF(Expenses!$A$13:$A$1000=$B$3,ROW(Expenses!D$13:D$1000)-ROW(Expenses!D$13)+1),ROWS(Expenses!D$13:'Expenses'!D177))),\"\")","v":""},{"$f":"IFERROR(INDEX(Expenses!E$13:E$1000,SMALL(IF(Expenses!$A$13:$A$1000=$B$3,ROW(Expenses!E$13:E$1000)-ROW(Expenses!E$13)+1),ROWS(Expenses!E$13:'Expenses'!E177))),\"\")","v":""},{"$f":"IFERROR(INDEX(Expenses!F$13:F$1000,SMALL(IF(Expenses!$A$13:$A$1000=$B$3,ROW(Expenses!F$13:F$1000)-ROW(Expenses!F$13)+1),ROWS(Expenses!F$13:'Expenses'!F177))),\"\")","v":""}]
[{"$f":"IFERROR(INDEX(Expenses!A$13:A$1000,SMALL(IF(Expenses!$A$13:$A$1000=$B$3,ROW(Expenses!A$13:A$1000)-ROW(Expenses!A$13)+1),ROWS(Expenses!A$13:'Expenses'!A178))),\"\")","v":""},{"$f":"IFERROR(INDEX(Expenses!B$13:B$1000,SMALL(IF(Expenses!$A$13:$A$1000=$B$3,ROW(Expenses!B$13:B$1000)-ROW(Expenses!B$13)+1),ROWS(Expenses!B$13:'Expenses'!B178))),\"\")","v":""},{"$f":"IFERROR(INDEX(Expenses!D$13:D$1000,SMALL(IF(Expenses!$A$13:$A$1000=$B$3,ROW(Expenses!D$13:D$1000)-ROW(Expenses!D$13)+1),ROWS(Expenses!D$13:'Expenses'!D178))),\"\")","v":""},{"$f":"IFERROR(INDEX(Expenses!E$13:E$1000,SMALL(IF(Expenses!$A$13:$A$1000=$B$3,ROW(Expenses!E$13:E$1000)-ROW(Expenses!E$13)+1),ROWS(Expenses!E$13:'Expenses'!E178))),\"\")","v":""},{"$f":"IFERROR(INDEX(Expenses!F$13:F$1000,SMALL(IF(Expenses!$A$13:$A$1000=$B$3,ROW(Expenses!F$13:F$1000)-ROW(Expenses!F$13)+1),ROWS(Expenses!F$13:'Expenses'!F178))),\"\")","v":""}]
[{"$f":"IFERROR(INDEX(Expenses!A$13:A$1000,SMALL(IF(Expenses!$A$13:$A$1000=$B$3,ROW(Expenses!A$13:A$1000)-ROW(Expenses!A$13)+1),ROWS(Expenses!A$13:'Expenses'!A179))),\"\")","v":""},{"$f":"IFERROR(INDEX(Expenses!B$13:B$1000,SMALL(IF(Expenses!$A$13:$A$1000=$B$3,ROW(Expenses!B$13:B$1000)-ROW(Expenses!B$13)+1),ROWS(Expenses!B$13:'Expenses'!B179))),\"\")","v":""},{"$f":"IFERROR(INDEX(Expenses!D$13:D$1000,SMALL(IF(Expenses!$A$13:$A$1000=$B$3,ROW(Expenses!D$13:D$1000)-ROW(Expenses!D$13)+1),ROWS(Expenses!D$13:'Expenses'!D179))),\"\")","v":""},{"$f":"IFERROR(INDEX(Expenses!E$13:E$1000,SMALL(IF(Expenses!$A$13:$A$1000=$B$3,ROW(Expenses!E$13:E$1000)-ROW(Expenses!E$13)+1),ROWS(Expenses!E$13:'Expenses'!E179))),\"\")","v":""},{"$f":"IFERROR(INDEX(Expenses!F$13:F$1000,SMALL(IF(Expenses!$A$13:$A$1000=$B$3,ROW(Expenses!F$13:F$1000)-ROW(Expenses!F$13)+1),ROWS(Expenses!F$13:'Expenses'!F179))),\"\")","v":""}]
[{"$f":"IFERROR(INDEX(Expenses!A$13:A$1000,SMALL(IF(Expenses!$A$13:$A$1000=$B$3,ROW(Expenses!A$13:A$1000)-ROW(Expenses!A$13)+1),ROWS(Expenses!A$13:'Expenses'!A180))),\"\")","v":""},{"$f":"IFERROR(INDEX(Expenses!B$13:B$1000,SMALL(IF(Expenses!$A$13:$A$1000=$B$3,ROW(Expenses!B$13:B$1000)-ROW(Expenses!B$13)+1),ROWS(Expenses!B$13:'Expenses'!B180))),\"\")","v":""},{"$f":"IFERROR(INDEX(Expenses!D$13:D$1000,SMALL(IF(Expenses!$A$13:$A$1000=$B$3,ROW(Expenses!D$13:D$1000)-ROW(Expenses!D$13)+1),ROWS(Expenses!D$13:'Expenses'!D180))),\"\")","v":""},{"$f":"IFERROR(INDEX(Expenses!E$13:E$1000,SMALL(IF(Expenses!$A$13:$A$1000=$B$3,ROW(Expenses!E$13:E$1000)-ROW(Expenses!E$13)+1),ROWS(Expenses!E$13:'Expenses'!E180))),\"\")","v":""},{"$f":"IFERROR(INDEX(Expenses!F$13:F$1000,SMALL(IF(Expenses!$A$13:$A$1000=$B$3,ROW(Expenses!F$13:F$1000)-ROW(Expenses!F$13)+1),ROWS(Expenses!F$13:'Expenses'!F180))),\"\")","v":""}]
[{"$f":"IFERROR(INDEX(Expenses!A$13:A$1000,SMALL(IF(Expenses!$A$13:$A$1000=$B$3,ROW(Expenses!A$13:A$1000)-ROW(Expenses!A$13)+1),ROWS(Expenses!A$13:'Expenses'!A181))),\"\")","v":""},{"$f":"IFERROR(INDEX(Expenses!B$13:B$1000,SMALL(IF(Expenses!$A$13:$A$1000=$B$3,ROW(Expenses!B$13:B$1000)-ROW(Expenses!B$13)+1),ROWS(Expenses!B$13:'Expenses'!B181))),\"\")","v":""},{"$f":"IFERROR(INDEX(Expenses!D$13:D$1000,SMALL(IF(Expenses!$A$13:$A$1000=$B$3,ROW(Expenses!D$13:D$1000)-ROW(Expenses!D$13)+1),ROWS(Expenses!D$13:'Expenses'!D181))),\"\")","v":""},{"$f":"IFERROR(INDEX(Expenses!E$13:E$1000,SMALL(IF(Expenses!$A$13:$A$1000=$B$3,ROW(Expenses!E$13:E$1000)-ROW(Expenses!E$13)+1),ROWS(Expenses!E$13:'Expenses'!E181))),\"\")","v":""},{"$f":"IFERROR(INDEX(Expenses!F$13:F$1000,SMALL(IF(Expenses!$A$13:$A$1000=$B$3,ROW(Expenses!F$13:F$1000)-ROW(Expenses!F$13)+1),ROWS(Expenses!F$13:'Expenses'!F181))),\"\")","v":""}]
[{"$f":"IFERROR(INDEX(Expenses!A$13:A$1000,SMALL(IF(Expenses!$A$13:$A$1000=$B$3,ROW(Expenses!A$13:A$1000)-ROW(Expenses!A$13)+1),ROWS(Expenses!A$13:'Expenses'!A182))),\"\")","v":""},{"$f":"IFERROR(INDEX(Expenses!B$13:B$1000,SMALL(IF(Expenses!$A$13:$A$1000=$B$3,ROW(Expenses!B$13:B$1000)-ROW(Expenses!B$13)+1),ROWS(Expenses!B$13:'Expenses'!B182))),\"\")","v":""},{"$f":"IFERROR(INDEX(Expenses!D$13:D$1000,SMALL(IF(Expenses!$A$13:$A$1000=$B$3,ROW(Expenses!D$13:D$1000)-ROW(Expenses!D$13)+1),ROWS(Expenses!D$13:'Expenses'!D182))),\"\")","v":""},{"$f":"IFERROR(INDEX(Expenses!E$13:E$1000,SMALL(IF(Expenses!$A$13:$A$1000=$B$3,ROW(Expenses!E$13:E$1000)-ROW(Expenses!E$13)+1),ROWS(Expenses!E$13:'Expenses'!E182))),\"\")","v":""},{"$f":"IFERROR(INDEX(Expenses!F$13:F$1000,SMALL(IF(Expenses!$A$13:$A$1000=$B$3,ROW(Expenses!F$13:F$1000)-ROW(Expenses!F$13)+1),ROWS(Expenses!F$13:'Expenses'!F182))),\"\")","v":""}]
[{"$f":"IFERROR(INDEX(Expenses!A$13:A$1000,SMALL(IF(Expenses!$A$13:$A$1000=$B$3,ROW(Expenses!A$13:A$1000)-ROW(Expenses!A$13)+1),ROWS(Expenses!A$13:'Expenses'!A183))),\"\")","v":""},{"$f":"IFERROR(INDEX(Expenses!B$13:B$1000,SMALL(IF(Expenses!$A$13:$A$1000=$B$3,ROW(Expenses!B$13:B$1000)-ROW(Expenses!B$13)+1),ROWS(Expenses!B$13:'Expenses'!B183))),\"\")","v":""},{"$f":"IFERROR(INDEX(Expenses!D$13:D$1000,SMALL(IF(Expenses!$A$13:$A$1000=$B$3,ROW(Expenses!D$13:D$1000)-ROW(Expenses!D$13)+1),ROWS(Expenses!D$13:'Expenses'!D183))),\"\")","v":""},{"$f":"IFERROR(INDEX(Expenses!E$13:E$1000,SMALL(IF(Expenses!$A$13:$A$1000=$B$3,ROW(Expenses!E$13:E$1000)-ROW(Expenses!E$13)+1),ROWS(Expenses!E$13:'Expenses'!E183))),\"\")","v":""},{"$f":"IFERROR(INDEX(Expenses!F$13:F$1000,SMALL(IF(Expenses!$A$13:$A$1000=$B$3,ROW(Expenses!F$13:F$1000)-ROW(Expenses!F$13)+1),ROWS(Expenses!F$13:'Expenses'!F183))),\"\")","v":""}]
[{"$f":"IFERROR(INDEX(Expenses!A$13:A$1000,SMALL(IF(Expenses!$A$13:$A$1000=$B$3,ROW(Expenses!A$13:A$1000)-ROW(Expenses!A$13)+1),ROWS(Expenses!A$13:'Expenses'!A184))),\"\")","v":""},{"$f":"IFERROR(INDEX(Expenses!B$13:B$1000,SMALL(IF(Expenses!$A$13:$A$1000=$B$3,ROW(Expenses!B$13:B$1000)-ROW(Expenses!B$13)+1),ROWS(Expenses!B$13:'Expenses'!B184))),\"\")","v":""},{"$f":"IFERROR(INDEX(Expenses!D$13:D$1000,SMALL(IF(Expenses!$A$13:$A$1000=$B$3,ROW(Expenses!D$13:D$1000)-ROW(Expenses!D$13)+1),ROWS(Expenses!D$13:'Expenses'!D184))),\"\")","v":""},{"$f":"IFERROR(INDEX(Expenses!E$13:E$1000,SMALL(IF(Expenses!$A$13:$A$1000=$B$3,ROW(Expenses!E$13:E$1000)-ROW(Expenses!E$13)+1),ROWS(Expenses!E$13:'Expenses'!E184))),\"\")","v":""},{"$f":"IFERROR(INDEX(Expenses!F$13:F$1000,SMALL(IF(Expenses!$A$13:$A$1000=$B$3,ROW(Expenses!F$13:F$1000)-ROW(Expenses!F$13)+1),ROWS(Expenses!F$13:'Expenses'!F184))),\"\")","v":""}]
[{"$f":"IFERROR(INDEX(Expenses!A$13:A$1000,SMALL(IF(Expenses!$A$13:$A$1000=$B$3,ROW(Expenses!A$13:A$1000)-ROW(Expenses!A$13)+1),ROWS(Expenses!A$13:'Expenses'!A185))),\"\")","v":""},{"$f":"IFERROR(INDEX(Expenses!B$13:B$1000,SMALL(IF(Expenses!$A$13:$A$1000=$B$3,ROW(Expenses!B$13:B$1000)-ROW(Expenses!B$13)+1),ROWS(Expenses!B$13:'Expenses'!B185))),\"\")","v":""},{"$f":"IFERROR(INDEX(Expenses!D$13:D$1000,SMALL(IF(Expenses!$A$13:$A$1000=$B$3,ROW(Expenses!D$13:D$1000)-ROW(Expenses!D$13)+1),ROWS(Expenses!D$13:'Expenses'!D185))),\"\")","v":""},{"$f":"IFERROR(INDEX(Expenses!E$13:E$1000,SMALL(IF(Expenses!$A$13:$A$1000=$B$3,ROW(Expenses!E$13:E$1000)-ROW(Expenses!E$13)+1),ROWS(Expenses!E$13:'Expenses'!E185))),\"\")","v":""},{"$f":"IFERROR(INDEX(Expenses!F$13:F$1000,SMALL(IF(Expenses!$A$13:$A$1000=$B$3,ROW(Expenses!F$13:F$1000)-ROW(Expenses!F$13)+1),ROWS(Expenses!F$13:'Expenses'!F185))),\"\")","v":""}]
[{"$f":"IFERROR(INDEX(Expenses!A$13:A$1000,SMALL(IF(Expenses!$A$13:$A$1000=$B$3,ROW(Expenses!A$13:A$1000)-ROW(Expenses!A$13)+1),ROWS(Expenses!A$13:'Expenses'!A186))),\"\")","v":""},{"$f":"IFERROR(INDEX(Expenses!B$13:B$1000,SMALL(IF(Expenses!$A$13:$A$1000=$B$3,ROW(Expenses!B$13:B$1000)-ROW(Expenses!B$13)+1),ROWS(Expenses!B$13:'Expenses'!B186))),\"\")","v":""},{"$f":"IFERROR(INDEX(Expenses!D$13:D$1000,SMALL(IF(Expenses!$A$13:$A$1000=$B$3,ROW(Expenses!D$13:D$1000)-ROW(Expenses!D$13)+1),ROWS(Expenses!D$13:'Expenses'!D186))),\"\")","v":""},{"$f":"IFERROR(INDEX(Expenses!E$13:E$1000,SMALL(IF(Expenses!$A$13:$A$1000=$B$3,ROW(Expenses!E$13:E$1000)-ROW(Expenses!E$13)+1),ROWS(Expenses!E$13:'Expenses'!E186))),\"\")","v":""},{"$f":"IFERROR(INDEX(Expenses!F$13:F$1000,SMALL(IF(Expenses!$A$13:$A$1000=$B$3,ROW(Expenses!F$13:F$1000)-ROW(Expenses!F$13)+1),ROWS(Expenses!F$13:'Expenses'!F186))),\"\")","v":""}]
[{"$f":"IFERROR(INDEX(Expenses!A$13:A$1000,SMALL(IF(Expenses!$A$13:$A$1000=$B$3,ROW(Expenses!A$13:A$1000)-ROW(Expenses!A$13)+1),ROWS(Expenses!A$13:'Expenses'!A187))),\"\")","v":""},{"$f":"IFERROR(INDEX(Expenses!B$13:B$1000,SMALL(IF(Expenses!$A$13:$A$1000=$B$3,ROW(Expenses!B$13:B$1000)-ROW(Expenses!B$13)+1),ROWS(Expenses!B$13:'Expenses'!B187))),\"\")","v":""},{"$f":"IFERROR(INDEX(Expenses!D$13:D$1000,SMALL(IF(Expenses!$A$13:$A$1000=$B$3,ROW(Expenses!D$13:D$1000)-ROW(Expenses!D$13)+1),ROWS(Expenses!D$13:'Expenses'!D187))),\"\")","v":""},{"$f":"IFERROR(INDEX(Expenses!E$13:E$1000,SMALL(IF(Expenses!$A$13:$A$1000=$B$3,ROW(Expenses!E$13:E$1000)-ROW(Expenses!E$13)+1),ROWS(Expenses!E$13:'Expenses'!E187))),\"\")","v":""},{"$f":"IFERROR(INDEX(Expenses!F$13:F$1000,SMALL(IF(Expenses!$A$13:$A$1000=$B$3,ROW(Expenses!F$13:F$1000)-ROW(Expenses!F$13)+1),ROWS(Expenses!F$13:'Expenses'!F187))),\"\")","v":""}]
[{"$f":"IFERROR(INDEX(Expenses!A$13:A$1000,SMALL(IF(Expenses!$A$13:$A$1000=$B$3,ROW(Expenses!A$13:A$1000)-ROW(Expenses!A$13)+1),ROWS(Expenses!A$13:'Expenses'!A188))),\"\")","v":""},{"$f":"IFERROR(INDEX(Expenses!B$13:B$1000,SMALL(IF(Expenses!$A$13:$A$1000=$B$3,ROW(Expenses!B$13:B$1000)-ROW(Expenses!B$13)+1),ROWS(Expenses!B$13:'Expenses'!B188))),\"\")","v":""},{"$f":"IFERROR(INDEX(Expenses!D$13:D$1000,SMALL(IF(Expenses!$A$13:$A$1000=$B$3,ROW(Expenses!D$13:D$1000)-ROW(Expenses!D$13)+1),ROWS(Expenses!D$13:'Expenses'!D188))),\"\")","v":""},{"$f":"IFERROR(INDEX(Expenses!E$13:E$1000,SMALL(IF(Expenses!$A$13:$A$1000=$B$3,ROW(Expenses!E$13:E$1000)-ROW(Expenses!E$13)+1),ROWS(Expenses!E$13:'Expenses'!E188))),\"\")","v":""},{"$f":"IFERROR(INDEX(Expenses!F$13:F$1000,SMALL(IF(Expenses!$A$13:$A$1000=$B$3,ROW(Expenses!F$13:F$1000)-ROW(Expenses!F$13)+1),ROWS(Expenses!F$13:'Expenses'!F188))),\"\")","v":""}]
[{"$f":"IFERROR(INDEX(Expenses!A$13:A$1000,SMALL(IF(Expenses!$A$13:$A$1000=$B$3,ROW(Expenses!A$13:A$1000)-ROW(Expenses!A$13)+1),ROWS(Expenses!A$13:'Expenses'!A189))),\"\")","v":""},{"$f":"IFERROR(INDEX(Expenses!B$13:B$1000,SMALL(IF(Expenses!$A$13:$A$1000=$B$3,ROW(Expenses!B$13:B$1000)-ROW(Expenses!B$13)+1),ROWS(Expenses!B$13:'Expenses'!B189))),\"\")","v":""},{"$f":"IFERROR(INDEX(Expenses!D$13:D$1000,SMALL(IF(Expenses!$A$13:$A$1000=$B$3,ROW(Expenses!D$13:D$1000)-ROW(Expenses!D$13)+1),ROWS(Expenses!D$13:'Expenses'!D189))),\"\")","v":""},{"$f":"IFERROR(INDEX(Expenses!E$13:E$1000,SMALL(IF(Expenses!$A$13:$A$1000=$B$3,ROW(Expenses!E$13:E$1000)-ROW(Expenses!E$13)+1),ROWS(Expenses!E$13:'Expenses'!E189))),\"\")","v":""},{"$f":"IFERROR(INDEX(Expenses!F$13:F$1000,SMALL(IF(Expenses!$A$13:$A$1000=$B$3,ROW(Expenses!F$13:F$1000)-ROW(Expenses!F$13)+1),ROWS(Expenses!F$13:'Expenses'!F189))),\"\")","v":""}]
[{"$f":"IFERROR(INDEX(Expenses!A$13:A$1000,SMALL(IF(Expenses!$A$13:$A$1000=$B$3,ROW(Expenses!A$13:A$1000)-ROW(Expenses!A$13)+1),ROWS(Expenses!A$13:'Expenses'!A190))),\"\")","v":""},{"$f":"IFERROR(INDEX(Expenses!B$13:B$1000,SMALL(IF(Expenses!$A$13:$A$1000=$B$3,ROW(Expenses!B$13:B$1000)-ROW(Expenses!B$13)+1),ROWS(Expenses!B$13:'Expenses'!B190))),\"\")","v":""},{"$f":"IFERROR(INDEX(Expenses!D$13:D$1000,SMALL(IF(Expenses!$A$13:$A$1000=$B$3,ROW(Expenses!D$13:D$1000)-ROW(Expenses!D$13)+1),ROWS(Expenses!D$13:'Expenses'!D190))),\"\")","v":""},{"$f":"IFERROR(INDEX(Expenses!E$13:E$1000,SMALL(IF(Expenses!$A$13:$A$1000=$B$3,ROW(Expenses!E$13:E$1000)-ROW(Expenses!E$13)+1),ROWS(Expenses!E$13:'Expenses'!E190))),\"\")","v":""},{"$f":"IFERROR(INDEX(Expenses!F$13:F$1000,SMALL(IF(Expenses!$A$13:$A$1000=$B$3,ROW(Expenses!F$13:F$1000)-ROW(Expenses!F$13)+1),ROWS(Expenses!F$13:'Expenses'!F190))),\"\")","v":""}]
[{"$f":"IFERROR(INDEX(Expenses!A$13:A$1000,SMALL(IF(Expenses!$A$13:$A$1000=$B$3,ROW(Expenses!A$13:A$1000)-ROW(Expenses!A$13)+1),ROWS(Expenses!A$13:'Expenses'!A191))),\"\")","v":""},{"$f":"IFERROR(INDEX(Expenses!B$13:B$1000,SMALL(IF(Expenses!$A$13:$A$1000=$B$3,ROW(Expenses!B$13:B$1000)-ROW(Expenses!B$13)+1),ROWS(Expenses!B$13:'Expenses'!B191))),\"\")","v":""},{"$f":"IFERROR(INDEX(Expenses!D$13:D$1000,SMALL(IF(Expenses!$A$13:$A$1000=$B$3,ROW(Expenses!D$13:D$1000)-ROW(Expenses!D$13)+1),ROWS(Expenses!D$13:'Expenses'!D191))),\"\")","v":""},{"$f":"IFERROR(INDEX(Expenses!E$13:E$1000,SMALL(IF(Expenses!$A$13:$A$1000=$B$3,ROW(Expenses!E$13:E$1000)-ROW(Expenses!E$13)+1),ROWS(Expenses!E$13:'Expenses'!E191))),\"\")","v":""},{"$f":"IFERROR(INDEX(Expenses!F$13:F$1000,SMALL(IF(Expenses!$A$13:$A$1000=$B$3,ROW(Expenses!F$13:F$1000)-ROW(Expenses!F$13)+1),ROWS(Expenses!F$13:'Expenses'!F191))),\"\")","v":""}]
[{"$f":"IFERROR(INDEX(Expenses!A$13:A$1000,SMALL(IF(Expenses!$A$13:$A$1000=$B$3,ROW(Expenses!A$13:A$1000)-ROW(Expenses!A$13)+1),ROWS(Expenses!A$13:'Expenses'!A192))),\"\")","v":""},{"$f":"IFERROR(INDEX(Expenses!B$13:B$1000,SMALL(IF(Expenses!$A$13:$A$1000=$B$3,ROW(Expenses!B$13:B$1000)-ROW(Expenses!B$13)+1),ROWS(Expenses!B$13:'Expenses'!B192))),\"\")","v":""},{"$f":"IFERROR(INDEX(Expenses!D$13:D$1000,SMALL(IF(Expenses!$A$13:$A$1000=$B$3,ROW(Expenses!D$13:D$1000)-ROW(Expenses!D$13)+1),ROWS(Expenses!D$13:'Expenses'!D192))),\"\")","v":""},{"$f":"IFERROR(INDEX(Expenses!E$13:E$1000,SMALL(IF(Expenses!$A$13:$A$1000=$B$3,ROW(Expenses!E$13:E$1000)-ROW(Expenses!E$13)+1),ROWS(Expenses!E$13:'Expenses'!E192))),\"\")","v":""},{"$f":"IFERROR(INDEX(Expenses!F$13:F$1000,SMALL(IF(Expenses!$A$13:$A$1000=$B$3,ROW(Expenses!F$13:F$1000)-ROW(Expenses!F$13)+1),ROWS(Expenses!F$13:'Expenses'!F192))),\"\")","v":""}]
[{"$f":"IFERROR(INDEX(Expenses!A$13:A$1000,SMALL(IF(Expenses!$A$13:$A$1000=$B$3,ROW(Expenses!A$13:A$1000)-ROW(Expenses!A$13)+1),ROWS(Expenses!A$13:'Expenses'!A193))),\"\")","v":""},{"$f":"IFERROR(INDEX(Expenses!B$13:B$1000,SMALL(IF(Expenses!$A$13:$A$1000=$B$3,ROW(Expenses!B$13:B$1000)-ROW(Expenses!B$13)+1),ROWS(Expenses!B$13:'Expenses'!B193))),\"\")","v":""},{"$f":"IFERROR(INDEX(Expenses!D$13:D$1000,SMALL(IF(Expenses!$A$13:$A$1000=$B$3,ROW(Expenses!D$13:D$1000)-ROW(Expenses!D$13)+1),ROWS(Expenses!D$13:'Expenses'!D193))),\"\")","v":""},{"$f":"IFERROR(INDEX(Expenses!E$13:E$1000,SMALL(IF(Expenses!$A$13:$A$1000=$B$3,ROW(Expenses!E$13:E$1000)-ROW(Expenses!E$13)+1),ROWS(Expenses!E$13:'Expenses'!E193))),\"\")","v":""},{"$f":"IFERROR(INDEX(Expenses!F$13:F$1000,SMALL(IF(Expenses!$A$13:$A$1000=$B$3,ROW(Expenses!F$13:F$1000)-ROW(Expenses!F$13)+1),ROWS(Expenses!F$13:'Expenses'!F193))),\"\")","v":""}]
[{"$f":"IFERROR(INDEX(Expenses!A$13:A$1000,SMALL(IF(Expenses!$A$13:$A$1000=$B$3,ROW(Expenses!A$13:A$1000)-ROW(Expenses!A$13)+1),ROWS(Expenses!A$13:'Expenses'!A194))),\"\")","v":""},{"$f":"IFERROR(INDEX(Expenses!B$13:B$1000,SMALL(IF(Expenses!$A$13:$A$1000=$B$3,ROW(Expenses!B$13:B$1000)-ROW(Expenses!B$13)+1),ROWS(Expenses!B$13:'Expenses'!B194))),\"\")","v":""},{"$f":"IFERROR(INDEX(Expenses!D$13:D$1000,SMALL(IF(Expenses!$A$13:$A$1000=$B$3,ROW(Expenses!D$13:D$1000)-ROW(Expenses!D$13)+1),ROWS(Expenses!D$13:'Expenses'!D194))),\"\")","v":""},{"$f":"IFERROR(INDEX(Expenses!E$13:E$1000,SMALL(IF(Expenses!$A$13:$A$1000=$B$3,ROW(Expenses!E$13:E$1000)-ROW(Expenses!E$13)+1),ROWS(Expenses!E$13:'Expenses'!E194))),\"\")","v":""},{"$f":"IFERROR(INDEX(Expenses!F$13:F$1000,SMALL(IF(Expenses!$A$13:$A$1000=$B$3,ROW(Expenses!F$13:F$1000)-ROW(Expenses!F$13)+1),ROWS(Expenses!F$13:'Expenses'!F194))),\"\")","v":""}]
[{"$f":"IFERROR(INDEX(Expenses!A$13:A$1000,SMALL(IF(Expenses!$A$13:$A$1000=$B$3,ROW(Expenses!A$13:A$1000)-ROW(Expenses!A$13)+1),ROWS(Expenses!A$13:'Expenses'!A195))),\"\")","v":""},{"$f":"IFERROR(INDEX(Expenses!B$13:B$1000,SMALL(IF(Expenses!$A$13:$A$1000=$B$3,ROW(Expenses!B$13:B$1000)-ROW(Expenses!B$13)+1),ROWS(Expenses!B$13:'Expenses'!B195))),\"\")","v":""},{"$f":"IFERROR(INDEX(Expenses!D$13:D$1000,SMALL(IF(Expenses!$A$13:$A$1000=$B$3,ROW(Expenses!D$13:D$1000)-ROW(Expenses!D$13)+1),ROWS(Expenses!D$13:'Expenses'!D195))),\"\")","v":""},{"$f":"IFERROR(INDEX(Expenses!E$13:E$1000,SMALL(IF(Expenses!$A$13:$A$1000=$B$3,ROW(Expenses!E$13:E$1000)-ROW(Expenses!E$13)+1),ROWS(Expenses!E$13:'Expenses'!E195))),\"\")","v":""},{"$f":"IFERROR(INDEX(Expenses!F$13:F$1000,SMALL(IF(Expenses!$A$13:$A$1000=$B$3,ROW(Expenses!F$13:F$1000)-ROW(Expenses!F$13)+1),ROWS(Expenses!F$13:'Expenses'!F195))),\"\")","v":""}]
[{"$f":"IFERROR(INDEX(Expenses!A$13:A$1000,SMALL(IF(Expenses!$A$13:$A$1000=$B$3,ROW(Expenses!A$13:A$1000)-ROW(Expenses!A$13)+1),ROWS(Expenses!A$13:'Expenses'!A196))),\"\")","v":""},{"$f":"IFERROR(INDEX(Expenses!B$13:B$1000,SMALL(IF(Expenses!$A$13:$A$1000=$B$3,ROW(Expenses!B$13:B$1000)-ROW(Expenses!B$13)+1),ROWS(Expenses!B$13:'Expenses'!B196))),\"\")","v":""},{"$f":"IFERROR(INDEX(Expenses!D$13:D$1000,SMALL(IF(Expenses!$A$13:$A$1000=$B$3,ROW(Expenses!D$13:D$1000)-ROW(Expenses!D$13)+1),ROWS(Expenses!D$13:'Expenses'!D196))),\"\")","v":""},{"$f":"IFERROR(INDEX(Expenses!E$13:E$1000,SMALL(IF(Expenses!$A$13:$A$1000=$B$3,ROW(Expenses!E$13:E$1000)-ROW(Expenses!E$13)+1),ROWS(Expenses!E$13:'Expenses'!E196))),\"\")","v":""},{"$f":"IFERROR(INDEX(Expenses!F$13:F$1000,SMALL(IF(Expenses!$A$13:$A$1000=$B$3,ROW(Expenses!F$13:F$1000)-ROW(Expenses!F$13)+1),ROWS(Expenses!F$13:'Expenses'!F196))),\"\")","v":""}]
[{"$f":"IFERROR(INDEX(Expenses!A$13:A$1000,SMALL(IF(Expenses!$A$13:$A$1000=$B$3,ROW(Expenses!A$13:A$1000)-ROW(Expenses!A$13)+1),ROWS(Expenses!A$13:'Expenses'!A197))),\"\")","v":""},{"$f":"IFERROR(INDEX(Expenses!B$13:B$1000,SMALL(IF(Expenses!$A$13:$A$1000=$B$3,ROW(Expenses!B$13:B$1000)-ROW(Expenses!B$13)+1),ROWS(Expenses!B$13:'Expenses'!B197))),\"\")","v":""},{"$f":"IFERROR(INDEX(Expenses!D$13:D$1000,SMALL(IF(Expenses!$A$13:$A$1000=$B$3,ROW(Expenses!D$13:D$1000)-ROW(Expenses!D$13)+1),ROWS(Expenses!D$13:'Expenses'!D197))),\"\")","v":""},{"$f":"IFERROR(INDEX(Expenses!E$13:E$1000,SMALL(IF(Expenses!$A$13:$A$1000=$B$3,ROW(Expenses!E$13:E$1000)-ROW(Expenses!E$13)+1),ROWS(Expenses!E$13:'Expenses'!E197))),\"\")","v":""},{"$f":"IFERROR(INDEX(Expenses!F$13:F$1000,SMALL(IF(Expenses!$A$13:$A$1000=$B$3,ROW(Expenses!F$13:F$1000)-ROW(Expenses!F$13)+1),ROWS(Expenses!F$13:'Expenses'!F197))),\"\")","v":""}]
[{"$f":"IFERROR(INDEX(Expenses!A$13:A$1000,SMALL(IF(Expenses!$A$13:$A$1000=$B$3,ROW(Expenses!A$13:A$1000)-ROW(Expenses!A$13)+1),ROWS(Expenses!A$13:'Expenses'!A198))),\"\")","v":""},{"$f":"IFERROR(INDEX(Expenses!B$13:B$1000,SMALL(IF(Expenses!$A$13:$A$1000=$B$3,ROW(Expenses!B$13:B$1000)-ROW(Expenses!B$13)+1),ROWS(Expenses!B$13:'Expenses'!B198))),\"\")","v":""},{"$f":"IFERROR(INDEX(Expenses!D$13:D$1000,SMALL(IF(Expenses!$A$13:$A$1000=$B$3,ROW(Expenses!D$13:D$1000)-ROW(Expenses!D$13)+1),ROWS(Expenses!D$13:'Expenses'!D198))),\"\")","v":""},{"$f":"IFERROR(INDEX(Expenses!E$13:E$1000,SMALL(IF(Expenses!$A$13:$A$1000=$B$3,ROW(Expenses!E$13:E$1000)-ROW(Expenses!E$13)+1),ROWS(Expenses!E$13:'Expenses'!E198))),\"\")","v":""},{"$f":"IFERROR(INDEX(Expenses!F$13:F$1000,SMALL(IF(Expenses!$A$13:$A$1000=$B$3,ROW(Expenses!F$13:F$1000)-ROW(Expenses!F$13)+1),ROWS(Expenses!F$13:'Expenses'!F198))),\"\")","v":""}]
[{"$f":"IFERROR(INDEX(Expenses!A$13:A$1000,SMALL(IF(Expenses!$A$13:$A$1000=$B$3,ROW(Expenses!A$13:A$1000)-ROW(Expenses!A$13)+1),ROWS(Expenses!A$13:'Expenses'!A199))),\"\")","v":""},{"$f":"IFERROR(INDEX(Expenses!B$13:B$1000,SMALL(IF(Expenses!$A$13:$A$1000=$B$3,ROW(Expenses!B$13:B$1000)-ROW(Expenses!B$13)+1),ROWS(Expenses!B$13:'Expenses'!B199))),\"\")","v":""},{"$f":"IFERROR(INDEX(Expenses!D$13:D$1000,SMALL(IF(Expenses!$A$13:$A$1000=$B$3,ROW(Expenses!D$13:D$1000)-ROW(Expenses!D$13)+1),ROWS(Expenses!D$13:'Expenses'!D199))),\"\")","v":""},{"$f":"IFERROR(INDEX(Expenses!E$13:E$1000,SMALL(IF(Expenses!$A$13:$A$1000=$B$3,ROW(Expenses!E$13:E$1000)-ROW(Expenses!E$13)+1),ROWS(Expenses!E$13:'Expenses'!E199))),\"\")","v":""},{"$f":"IFERROR(INDEX(Expenses!F$13:F$1000,SMALL(IF(Expenses!$A$13:$A$1000=$B$3,ROW(Expenses!F$13:F$1000)-ROW(Expenses!F$13)+1),ROWS(Expenses!F$13:'Expenses'!F199))),\"\")","v":""}]
[{"$f":"IFERROR(INDEX(Expenses!A$13:A$1000,SMALL(IF(Expenses!$A$13:$A$1000=$B$3,ROW(Expenses!A$13:A$1000)-ROW(Expenses!A$13)+1),ROWS(Expenses!A$13:'Expenses'!A200))),\"\")","v":""},{"$f":"IFERROR(INDEX(Expenses!B$13:B$1000,SMALL(IF(Expenses!$A$13:$A$1000=$B$3,ROW(Expenses!B$13:B$1000)-ROW(Expenses!B$13)+1),ROWS(Expenses!B$13:'Expenses'!B200))),\"\")","v":""},{"$f":"IFERROR(INDEX(Expenses!D$13:D$1000,SMALL(IF(Expenses!$A$13:$A$1000=$B$3,ROW(Expenses!D$13:D$1000)-ROW(Expenses!D$13)+1),ROWS(Expenses!D$13:'Expenses'!D200))),\"\")","v":""},{"$f":"IFERROR(INDEX(Expenses!E$13:E$1000,SMALL(IF(Expenses!$A$13:$A$1000=$B$3,ROW(Expenses!E$13:E$1000)-ROW(Expenses!E$13)+1),ROWS(Expenses!E$13:'Expenses'!E200))),\"\")","v":""},{"$f":"IFERROR(INDEX(Expenses!F$13:F$1000,SMALL(IF(Expenses!$A$13:$A$1000=$B$3,ROW(Expenses!F$13:F$1000)-ROW(Expenses!F$13)+1),ROWS(Expenses!F$13:'Expenses'!F200))),\"\")","v":""}]
[{"$f":"IFERROR(INDEX(Expenses!A$13:A$1000,SMALL(IF(Expenses!$A$13:$A$1000=$B$3,ROW(Expenses!A$13:A$1000)-ROW(Expenses!A$13)+1),ROWS(Expenses!A$13:'Expenses'!A201))),\"\")","v":""},{"$f":"IFERROR(INDEX(Expenses!B$13:B$1000,SMALL(IF(Expenses!$A$13:$A$1000=$B$3,ROW(Expenses!B$13:B$1000)-ROW(Expenses!B$13)+1),ROWS(Expenses!B$13:'Expenses'!B201))),\"\")","v":""},{"$f":"IFERROR(INDEX(Expenses!D$13:D$1000,SMALL(IF(Expenses!$A$13:$A$1000=$B$3,ROW(Expenses!D$13:D$1000)-ROW(Expenses!D$13)+1),ROWS(Expenses!D$13:'Expenses'!D201))),\"\")","v":""},{"$f":"IFERROR(INDEX(Expenses!E$13:E$1000,SMALL(IF(Expenses!$A$13:$A$1000=$B$3,ROW(Expenses!E$13:E$1000)-ROW(Expenses!E$13)+1),ROWS(Expenses!E$13:'Expenses'!E201))),\"\")","v":""},{"$f":"IFERROR(INDEX(Expenses!F$13:F$1000,SMALL(IF(Expenses!$A$13:$A$1000=$B$3,ROW(Expenses!F$13:F$1000)-ROW(Expenses!F$13)+1),ROWS(Expenses!F$13:'Expenses'!F201))),\"\")","v":""}]
[{"$f":"IFERROR(INDEX(Expenses!A$13:A$1000,SMALL(IF(Expenses!$A$13:$A$1000=$B$3,ROW(Expenses!A$13:A$1000)-ROW(Expenses!A$13)+1),ROWS(Expenses!A$13:'Expenses'!A202))),\"\")","v":""},{"$f":"IFERROR(INDEX(Expenses!B$13:B$1000,SMALL(IF(Expenses!$A$13:$A$1000=$B$3,ROW(Expenses!B$13:B$1000)-ROW(Expenses!B$13)+1),ROWS(Expenses!B$13:'Expenses'!B202))),\"\")","v":""},{"$f":"IFERROR(INDEX(Expenses!D$13:D$1000,SMALL(IF(Expenses!$A$13:$A$1000=$B$3,ROW(Expenses!D$13:D$1000)-ROW(Expenses!D$13)+1),ROWS(Expenses!D$13:'Expenses'!D202))),\"\")","v":""},{"$f":"IFERROR(INDEX(Expenses!E$13:E$1000,SMALL(IF(Expenses!$A$13:$A$1000=$B$3,ROW(Expenses!E$13:E$1000)-ROW(Expenses!E$13)+1),ROWS(Expenses!E$13:'Expenses'!E202))),\"\")","v":""},{"$f":"IFERROR(INDEX(Expenses!F$13:F$1000,SMALL(IF(Expenses!$A$13:$A$1000=$B$3,ROW(Expenses!F$13:F$1000)-ROW(Expenses!F$13)+1),ROWS(Expenses!F$13:'Expenses'!F202))),\"\")","v":""}]
[{"$f":"IFERROR(INDEX(Expenses!A$13:A$1000,SMALL(IF(Expenses!$A$13:$A$1000=$B$3,ROW(Expenses!A$13:A$1000)-ROW(Expenses!A$13)+1),ROWS(Expenses!A$13:'Expenses'!A203))),\"\")","v":""},{"$f":"IFERROR(INDEX(Expenses!B$13:B$1000,SMALL(IF(Expenses!$A$13:$A$1000=$B$3,ROW(Expenses!B$13:B$1000)-ROW(Expenses!B$13)+1),ROWS(Expenses!B$13:'Expenses'!B203))),\"\")","v":""},{"$f":"IFERROR(INDEX(Expenses!D$13:D$1000,SMALL(IF(Expenses!$A$13:$A$1000=$B$3,ROW(Expenses!D$13:D$1000)-ROW(Expenses!D$13)+1),ROWS(Expenses!D$13:'Expenses'!D203))),\"\")","v":""},{"$f":"IFERROR(INDEX(Expenses!E$13:E$1000,SMALL(IF(Expenses!$A$13:$A$1000=$B$3,ROW(Expenses!E$13:E$1000)-ROW(Expenses!E$13)+1),ROWS(Expenses!E$13:'Expenses'!E203))),\"\")","v":""},{"$f":"IFERROR(INDEX(Expenses!F$13:F$1000,SMALL(IF(Expenses!$A$13:$A$1000=$B$3,ROW(Expenses!F$13:F$1000)-ROW(Expenses!F$13)+1),ROWS(Expenses!F$13:'Expenses'!F203))),\"\")","v":""}]
[{"$f":"IFERROR(INDEX(Expenses!A$13:A$1000,SMALL(IF(Expenses!$A$13:$A$1000=$B$3,ROW(Expenses!A$13:A$1000)-ROW(Expenses!A$13)+1),ROWS(Expenses!A$13:'Expenses'!A204))),\"\")","v":""},{"$f":"IFERROR(INDEX(Expenses!B$13:B$1000,SMALL(IF(Expenses!$A$13:$A$1000=$B$3,ROW(Expenses!B$13:B$1000)-ROW(Expenses!B$13)+1),ROWS(Expenses!B$13:'Expenses'!B204))),\"\")","v":""},{"$f":"IFERROR(INDEX(Expenses!D$13:D$1000,SMALL(IF(Expenses!$A$13:$A$1000=$B$3,ROW(Expenses!D$13:D$1000)-ROW(Expenses!D$13)+1),ROWS(Expenses!D$13:'Expenses'!D204))),\"\")","v":""},{"$f":"IFERROR(INDEX(Expenses!E$13:E$1000,SMALL(IF(Expenses!$A$13:$A$1000=$B$3,ROW(Expenses!E$13:E$1000)-ROW(Expenses!E$13)+1),ROWS(Expenses!E$13:'Expenses'!E204))),\"\")","v":""},{"$f":"IFERROR(INDEX(Expenses!F$13:F$1000,SMALL(IF(Expenses!$A$13:$A$1000=$B$3,ROW(Expenses!F$13:F$1000)-ROW(Expenses!F$13)+1),ROWS(Expenses!F$13:'Expenses'!F204))),\"\")","v":""}]
[{"$f":"IFERROR(INDEX(Expenses!A$13:A$1000,SMALL(IF(Expenses!$A$13:$A$1000=$B$3,ROW(Expenses!A$13:A$1000)-ROW(Expenses!A$13)+1),ROWS(Expenses!A$13:'Expenses'!A205))),\"\")","v":""},{"$f":"IFERROR(INDEX(Expenses!B$13:B$1000,SMALL(IF(Expenses!$A$13:$A$1000=$B$3,ROW(Expenses!B$13:B$1000)-ROW(Expenses!B$13)+1),ROWS(Expenses!B$13:'Expenses'!B205))),\"\")","v":""},{"$f":"IFERROR(INDEX(Expenses!D$13:D$1000,SMALL(IF(Expenses!$A$13:$A$1000=$B$3,ROW(Expenses!D$13:D$1000)-ROW(Expenses!D$13)+1),ROWS(Expenses!D$13:'Expenses'!D205))),\"\")","v":""},{"$f":"IFERROR(INDEX(Expenses!E$13:E$1000,SMALL(IF(Expenses!$A$13:$A$1000=$B$3,ROW(Expenses!E$13:E$1000)-ROW(Expenses!E$13)+1),ROWS(Expenses!E$13:'Expenses'!E205))),\"\")","v":""},{"$f":"IFERROR(INDEX(Expenses!F$13:F$1000,SMALL(IF(Expenses!$A$13:$A$1000=$B$3,ROW(Expenses!F$13:F$1000)-ROW(Expenses!F$13)+1),ROWS(Expenses!F$13:'Expenses'!F205))),\"\")","v":""}]
[{"$f":"IFERROR(INDEX(Expenses!A$13:A$1000,SMALL(IF(Expenses!$A$13:$A$1000=$B$3,ROW(Expenses!A$13:A$1000)-ROW(Expenses!A$13)+1),ROWS(Expenses!A$13:'Expenses'!A206))),\"\")","v":""},{"$f":"IFERROR(INDEX(Expenses!B$13:B$1000,SMALL(IF(Expenses!$A$13:$A$1000=$B$3,ROW(Expenses!B$13:B$1000)-ROW(Expenses!B$13)+1),ROWS(Expenses!B$13:'Expenses'!B206))),\"\")","v":""},{"$f":"IFERROR(INDEX(Expenses!D$13:D$1000,SMALL(IF(Expenses!$A$13:$A$1000=$B$3,ROW(Expenses!D$13:D$1000)-ROW(Expenses!D$13)+1),ROWS(Expenses!D$13:'Expenses'!D206))),\"\")","v":""},{"$f":"IFERROR(INDEX(Expenses!E$13:E$1000,SMALL(IF(Expenses!$A$13:$A$1000=$B$3,ROW(Expenses!E$13:E$1000)-ROW(Expenses!E$13)+1),ROWS(Expenses!E$13:'Expenses'!E206))),\"\")","v":""},{"$f":"IFERROR(INDEX(Expenses!F$13:F$1000,SMALL(IF(Expenses!$A$13:$A$1000=$B$3,ROW(Expenses!F$13:F$1000)-ROW(Expenses!F$13)+1),ROWS(Expenses!F$13:'Expenses'!F206))),\"\")","v":""}]
[{"$f":"IFERROR(INDEX(Expenses!A$13:A$1000,SMALL(IF(Expenses!$A$13:$A$1000=$B$3,ROW(Expenses!A$13:A$1000)-ROW(Expenses!A$13)+1),ROWS(Expenses!A$13:'Expenses'!A207))),\"\")","v":""},{"$f":"IFERROR(INDEX(Expenses!B$13:B$1000,SMALL(IF(Expenses!$A$13:$A$1000=$B$3,ROW(Expenses!B$13:B$1000)-ROW(Expenses!B$13)+1),ROWS(Expenses!B$13:'Expenses'!B207))),\"\")","v":""},{"$f":"IFERROR(INDEX(Expenses!D$13:D$1000,SMALL(IF(Expenses!$A$13:$A$1000=$B$3,ROW(Expenses!D$13:D$1000)-ROW(Expenses!D$13)+1),ROWS(Expenses!D$13:'Expenses'!D207))),\"\")","v":""},{"$f":"IFERROR(INDEX(Expenses!E$13:E$1000,SMALL(IF(Expenses!$A$13:$A$1000=$B$3,ROW(Expenses!E$13:E$1000)-ROW(Expenses!E$13)+1),ROWS(Expenses!E$13:'Expenses'!E207))),\"\")","v":""},{"$f":"IFERROR(INDEX(Expenses!F$13:F$1000,SMALL(IF(Expenses!$A$13:$A$1000=$B$3,ROW(Expenses!F$13:F$1000)-ROW(Expenses!F$13)+1),ROWS(Expenses!F$13:'Expenses'!F207))),\"\")","v":""}]
[{"$f":"IFERROR(INDEX(Expenses!A$13:A$1000,SMALL(IF(Expenses!$A$13:$A$1000=$B$3,ROW(Expenses!A$13:A$1000)-ROW(Expenses!A$13)+1),ROWS(Expenses!A$13:'Expenses'!A208))),\"\")","v":""},{"$f":"IFERROR(INDEX(Expenses!B$13:B$1000,SMALL(IF(Expenses!$A$13:$A$1000=$B$3,ROW(Expenses!B$13:B$1000)-ROW(Expenses!B$13)+1),ROWS(Expenses!B$13:'Expenses'!B208))),\"\")","v":""},{"$f":"IFERROR(INDEX(Expenses!D$13:D$1000,SMALL(IF(Expenses!$A$13:$A$1000=$B$3,ROW(Expenses!D$13:D$1000)-ROW(Expenses!D$13)+1),ROWS(Expenses!D$13:'Expenses'!D208))),\"\")","v":""},{"$f":"IFERROR(INDEX(Expenses!E$13:E$1000,SMALL(IF(Expenses!$A$13:$A$1000=$B$3,ROW(Expenses!E$13:E$1000)-ROW(Expenses!E$13)+1),ROWS(Expenses!E$13:'Expenses'!E208))),\"\")","v":""},{"$f":"IFERROR(INDEX(Expenses!F$13:F$1000,SMALL(IF(Expenses!$A$13:$A$1000=$B$3,ROW(Expenses!F$13:F$1000)-ROW(Expenses!F$13)+1),ROWS(Expenses!F$13:'Expenses'!F208))),\"\")","v":""}]
[{"$f":"IFERROR(INDEX(Expenses!A$13:A$1000,SMALL(IF(Expenses!$A$13:$A$1000=$B$3,ROW(Expenses!A$13:A$1000)-ROW(Expenses!A$13)+1),ROWS(Expenses!A$13:'Expenses'!A209))),\"\")","v":""},{"$f":"IFERROR(INDEX(Expenses!B$13:B$1000,SMALL(IF(Expenses!$A$13:$A$1000=$B$3,ROW(Expenses!B$13:B$1000)-ROW(Expenses!B$13)+1),ROWS(Expenses!B$13:'Expenses'!B209))),\"\")","v":""},{"$f":"IFERROR(INDEX(Expenses!D$13:D$1000,SMALL(IF(Expenses!$A$13:$A$1000=$B$3,ROW(Expenses!D$13:D$1000)-ROW(Expenses!D$13)+1),ROWS(Expenses!D$13:'Expenses'!D209))),\"\")","v":""},{"$f":"IFERROR(INDEX(Expenses!E$13:E$1000,SMALL(IF(Expenses!$A$13:$A$1000=$B$3,ROW(Expenses!E$13:E$1000)-ROW(Expenses!E$13)+1),ROWS(Expenses!E$13:'Expenses'!E209))),\"\")","v":""},{"$f":"IFERROR(INDEX(Expenses!F$13:F$1000,SMALL(IF(Expenses!$A$13:$A$1000=$B$3,ROW(Expenses!F$13:F$1000)-ROW(Expenses!F$13)+1),ROWS(Expenses!F$13:'Expenses'!F209))),\"\")","v":""}]
[{"$f":"IFERROR(INDEX(Expenses!A$13:A$1000,SMALL(IF(Expenses!$A$13:$A$1000=$B$3,ROW(Expenses!A$13:A$1000)-ROW(Expenses!A$13)+1),ROWS(Expenses!A$13:'Expenses'!A210))),\"\")","v":""},{"$f":"IFERROR(INDEX(Expenses!B$13:B$1000,SMALL(IF(Expenses!$A$13:$A$1000=$B$3,ROW(Expenses!B$13:B$1000)-ROW(Expenses!B$13)+1),ROWS(Expenses!B$13:'Expenses'!B210))),\"\")","v":""},{"$f":"IFERROR(INDEX(Expenses!D$13:D$1000,SMALL(IF(Expenses!$A$13:$A$1000=$B$3,ROW(Expenses!D$13:D$1000)-ROW(Expenses!D$13)+1),ROWS(Expenses!D$13:'Expenses'!D210))),\"\")","v":""},{"$f":"IFERROR(INDEX(Expenses!E$13:E$1000,SMALL(IF(Expenses!$A$13:$A$1000=$B$3,ROW(Expenses!E$13:E$1000)-ROW(Expenses!E$13)+1),ROWS(Expenses!E$13:'Expenses'!E210))),\"\")","v":""},{"$f":"IFERROR(INDEX(Expenses!F$13:F$1000,SMALL(IF(Expenses!$A$13:$A$1000=$B$3,ROW(Expenses!F$13:F$1000)-ROW(Expenses!F$13)+1),ROWS(Expenses!F$13:'Expenses'!F210))),\"\")","v":""}]
[{"$f":"IFERROR(INDEX(Expenses!A$13:A$1000,SMALL(IF(Expenses!$A$13:$A$1000=$B$3,ROW(Expenses!A$13:A$1000)-ROW(Expenses!A$13)+1),ROWS(Expenses!A$13:'Expenses'!A211))),\"\")","v":""},{"$f":"IFERROR(INDEX(Expenses!B$13:B$1000,SMALL(IF(Expenses!$A$13:$A$1000=$B$3,ROW(Expenses!B$13:B$1000)-ROW(Expenses!B$13)+1),ROWS(Expenses!B$13:'Expenses'!B211))),\"\")","v":""},{"$f":"IFERROR(INDEX(Expenses!D$13:D$1000,SMALL(IF(Expenses!$A$13:$A$1000=$B$3,ROW(Expenses!D$13:D$1000)-ROW(Expenses!D$13)+1),ROWS(Expenses!D$13:'Expenses'!D211))),\"\")","v":""},{"$f":"IFERROR(INDEX(Expenses!E$13:E$1000,SMALL(IF(Expenses!$A$13:$A$1000=$B$3,ROW(Expenses!E$13:E$1000)-ROW(Expenses!E$13)+1),ROWS(Expenses!E$13:'Expenses'!E211))),\"\")","v":""},{"$f":"IFERROR(INDEX(Expenses!F$13:F$1000,SMALL(IF(Expenses!$A$13:$A$1000=$B$3,ROW(Expenses!F$13:F$1000)-ROW(Expenses!F$13)+1),ROWS(Expenses!F$13:'Expenses'!F211))),\"\")","v":""}]
[{"$f":"IFERROR(INDEX(Expenses!A$13:A$1000,SMALL(IF(Expenses!$A$13:$A$1000=$B$3,ROW(Expenses!A$13:A$1000)-ROW(Expenses!A$13)+1),ROWS(Expenses!A$13:'Expenses'!A212))),\"\")","v":""},{"$f":"IFERROR(INDEX(Expenses!B$13:B$1000,SMALL(IF(Expenses!$A$13:$A$1000=$B$3,ROW(Expenses!B$13:B$1000)-ROW(Expenses!B$13)+1),ROWS(Expenses!B$13:'Expenses'!B212))),\"\")","v":""},{"$f":"IFERROR(INDEX(Expenses!D$13:D$1000,SMALL(IF(Expenses!$A$13:$A$1000=$B$3,ROW(Expenses!D$13:D$1000)-ROW(Expenses!D$13)+1),ROWS(Expenses!D$13:'Expenses'!D212))),\"\")","v":""},{"$f":"IFERROR(INDEX(Expenses!E$13:E$1000,SMALL(IF(Expenses!$A$13:$A$1000=$B$3,ROW(Expenses!E$13:E$1000)-ROW(Expenses!E$13)+1),ROWS(Expenses!E$13:'Expenses'!E212))),\"\")","v":""},{"$f":"IFERROR(INDEX(Expenses!F$13:F$1000,SMALL(IF(Expenses!$A$13:$A$1000=$B$3,ROW(Expenses!F$13:F$1000)-ROW(Expenses!F$13)+1),ROWS(Expenses!F$13:'Expenses'!F212))),\"\")","v":""}]
[{"$f":"IFERROR(INDEX(Expenses!A$13:A$1000,SMALL(IF(Expenses!$A$13:$A$1000=$B$3,ROW(Expenses!A$13:A$1000)-ROW(Expenses!A$13)+1),ROWS(Expenses!A$13:'Expenses'!A213))),\"\")","v":""},{"$f":"IFERROR(INDEX(Expenses!B$13:B$1000,SMALL(IF(Expenses!$A$13:$A$1000=$B$3,ROW(Expenses!B$13:B$1000)-ROW(Expenses!B$13)+1),ROWS(Expenses!B$13:'Expenses'!B213))),\"\")","v":""},{"$f":"IFERROR(INDEX(Expenses!D$13:D$1000,SMALL(IF(Expenses!$A$13:$A$1000=$B$3,ROW(Expenses!D$13:D$1000)-ROW(Expenses!D$13)+1),ROWS(Expenses!D$13:'Expenses'!D213))),\"\")","v":""},{"$f":"IFERROR(INDEX(Expenses!E$13:E$1000,SMALL(IF(Expenses!$A$13:$A$1000=$B$3,ROW(Expenses!E$13:E$1000)-ROW(Expenses!E$13)+1),ROWS(Expenses!E$13:'Expenses'!E213))),\"\")","v":""},{"$f":"IFERROR(INDEX(Expenses!F$13:F$1000,SMALL(IF(Expenses!$A$13:$A$1000=$B$3,ROW(Expenses!F$13:F$1000)-ROW(Expenses!F$13)+1),ROWS(Expenses!F$13:'Expenses'!F213))),\"\")","v":""}]
[{"$f":"IFERROR(INDEX(Expenses!A$13:A$1000,SMALL(IF(Expenses!$A$13:$A$1000=$B$3,ROW(Expenses!A$13:A$1000)-ROW(Expenses!A$13)+1),ROWS(Expenses!A$13:'Expenses'!A214))),\"\")","v":""},{"$f":"IFERROR(INDEX(Expenses!B$13:B$1000,SMALL(IF(Expenses!$A$13:$A$1000=$B$3,ROW(Expenses!B$13:B$1000)-ROW(Expenses!B$13)+1),ROWS(Expenses!B$13:'Expenses'!B214))),\"\")","v":""},{"$f":"IFERROR(INDEX(Expenses!D$13:D$1000,SMALL(IF(Expenses!$A$13:$A$1000=$B$3,ROW(Expenses!D$13:D$1000)-ROW(Expenses!D$13)+1),ROWS(Expenses!D$13:'Expenses'!D214))),\"\")","v":""},{"$f":"IFERROR(INDEX(Expenses!E$13:E$1000,SMALL(IF(Expenses!$A$13:$A$1000=$B$3,ROW(Expenses!E$13:E$1000)-ROW(Expenses!E$13)+1),ROWS(Expenses!E$13:'Expenses'!E214))),\"\")","v":""},{"$f":"IFERROR(INDEX(Expenses!F$13:F$1000,SMALL(IF(Expenses!$A$13:$A$1000=$B$3,ROW(Expenses!F$13:F$1000)-ROW(Expenses!F$13)+1),ROWS(Expenses!F$13:'Expenses'!F214))),\"\")","v":""}]
[{"$f":"IFERROR(INDEX(Expenses!A$13:A$1000,SMALL(IF(Expenses!$A$13:$A$1000=$B$3,ROW(Expenses!A$13:A$1000)-ROW(Expenses!A$13)+1),ROWS(Expenses!A$13:'Expenses'!A215))),\"\")","v":""},{"$f":"IFERROR(INDEX(Expenses!B$13:B$1000,SMALL(IF(Expenses!$A$13:$A$1000=$B$3,ROW(Expenses!B$13:B$1000)-ROW(Expenses!B$13)+1),ROWS(Expenses!B$13:'Expenses'!B215))),\"\")","v":""},{"$f":"IFERROR(INDEX(Expenses!D$13:D$1000,SMALL(IF(Expenses!$A$13:$A$1000=$B$3,ROW(Expenses!D$13:D$1000)-ROW(Expenses!D$13)+1),ROWS(Expenses!D$13:'Expenses'!D215))),\"\")","v":""},{"$f":"IFERROR(INDEX(Expenses!E$13:E$1000,SMALL(IF(Expenses!$A$13:$A$1000=$B$3,ROW(Expenses!E$13:E$1000)-ROW(Expenses!E$13)+1),ROWS(Expenses!E$13:'Expenses'!E215))),\"\")","v":""},{"$f":"IFERROR(INDEX(Expenses!F$13:F$1000,SMALL(IF(Expenses!$A$13:$A$1000=$B$3,ROW(Expenses!F$13:F$1000)-ROW(Expenses!F$13)+1),ROWS(Expenses!F$13:'Expenses'!F215))),\"\")","v":""}]
[{"$f":"IFERROR(INDEX(Expenses!A$13:A$1000,SMALL(IF(Expenses!$A$13:$A$1000=$B$3,ROW(Expenses!A$13:A$1000)-ROW(Expenses!A$13)+1),ROWS(Expenses!A$13:'Expenses'!A216))),\"\")","v":""},{"$f":"IFERROR(INDEX(Expenses!B$13:B$1000,SMALL(IF(Expenses!$A$13:$A$1000=$B$3,ROW(Expenses!B$13:B$1000)-ROW(Expenses!B$13)+1),ROWS(Expenses!B$13:'Expenses'!B216))),\"\")","v":""},{"$f":"IFERROR(INDEX(Expenses!D$13:D$1000,SMALL(IF(Expenses!$A$13:$A$1000=$B$3,ROW(Expenses!D$13:D$1000)-ROW(Expenses!D$13)+1),ROWS(Expenses!D$13:'Expenses'!D216))),\"\")","v":""},{"$f":"IFERROR(INDEX(Expenses!E$13:E$1000,SMALL(IF(Expenses!$A$13:$A$1000=$B$3,ROW(Expenses!E$13:E$1000)-ROW(Expenses!E$13)+1),ROWS(Expenses!E$13:'Expenses'!E216))),\"\")","v":""},{"$f":"IFERROR(INDEX(Expenses!F$13:F$1000,SMALL(IF(Expenses!$A$13:$A$1000=$B$3,ROW(Expenses!F$13:F$1000)-ROW(Expenses!F$13)+1),ROWS(Expenses!F$13:'Expenses'!F216))),\"\")","v":""}]
[{"$f":"IFERROR(INDEX(Expenses!A$13:A$1000,SMALL(IF(Expenses!$A$13:$A$1000=$B$3,ROW(Expenses!A$13:A$1000)-ROW(Expenses!A$13)+1),ROWS(Expenses!A$13:'Expenses'!A217))),\"\")","v":""},{"$f":"IFERROR(INDEX(Expenses!B$13:B$1000,SMALL(IF(Expenses!$A$13:$A$1000=$B$3,ROW(Expenses!B$13:B$1000)-ROW(Expenses!B$13)+1),ROWS(Expenses!B$13:'Expenses'!B217))),\"\")","v":""},{"$f":"IFERROR(INDEX(Expenses!D$13:D$1000,SMALL(IF(Expenses!$A$13:$A$1000=$B$3,ROW(Expenses!D$13:D$1000)-ROW(Expenses!D$13)+1),ROWS(Expenses!D$13:'Expenses'!D217))),\"\")","v":""},{"$f":"IFERROR(INDEX(Expenses!E$13:E$1000,SMALL(IF(Expenses!$A$13:$A$1000=$B$3,ROW(Expenses!E$13:E$1000)-ROW(Expenses!E$13)+1),ROWS(Expenses!E$13:'Expenses'!E217))),\"\")","v":""},{"$f":"IFERROR(INDEX(Expenses!F$13:F$1000,SMALL(IF(Expenses!$A$13:$A$1000=$B$3,ROW(Expenses!F$13:F$1000)-ROW(Expenses!F$13)+1),ROWS(Expenses!F$13:'Expenses'!F217))),\"\")","v":""}]
[{"$f":"IFERROR(INDEX(Expenses!A$13:A$1000,SMALL(IF(Expenses!$A$13:$A$1000=$B$3,ROW(Expenses!A$13:A$1000)-ROW(Expenses!A$13)+1),ROWS(Expenses!A$13:'Expenses'!A218))),\"\")","v":""},{"$f":"IFERROR(INDEX(Expenses!B$13:B$1000,SMALL(IF(Expenses!$A$13:$A$1000=$B$3,ROW(Expenses!B$13:B$1000)-ROW(Expenses!B$13)+1),ROWS(Expenses!B$13:'Expenses'!B218))),\"\")","v":""},{"$f":"IFERROR(INDEX(Expenses!D$13:D$1000,SMALL(IF(Expenses!$A$13:$A$1000=$B$3,ROW(Expenses!D$13:D$1000)-ROW(Expenses!D$13)+1),ROWS(Expenses!D$13:'Expenses'!D218))),\"\")","v":""},{"$f":"IFERROR(INDEX(Expenses!E$13:E$1000,SMALL(IF(Expenses!$A$13:$A$1000=$B$3,ROW(Expenses!E$13:E$1000)-ROW(Expenses!E$13)+1),ROWS(Expenses!E$13:'Expenses'!E218))),\"\")","v":""},{"$f":"IFERROR(INDEX(Expenses!F$13:F$1000,SMALL(IF(Expenses!$A$13:$A$1000=$B$3,ROW(Expenses!F$13:F$1000)-ROW(Expenses!F$13)+1),ROWS(Expenses!F$13:'Expenses'!F218))),\"\")","v":""}]
[{"$f":"IFERROR(INDEX(Expenses!A$13:A$1000,SMALL(IF(Expenses!$A$13:$A$1000=$B$3,ROW(Expenses!A$13:A$1000)-ROW(Expenses!A$13)+1),ROWS(Expenses!A$13:'Expenses'!A219))),\"\")","v":""},{"$f":"IFERROR(INDEX(Expenses!B$13:B$1000,SMALL(IF(Expenses!$A$13:$A$1000=$B$3,ROW(Expenses!B$13:B$1000)-ROW(Expenses!B$13)+1),ROWS(Expenses!B$13:'Expenses'!B219))),\"\")","v":""},{"$f":"IFERROR(INDEX(Expenses!D$13:D$1000,SMALL(IF(Expenses!$A$13:$A$1000=$B$3,ROW(Expenses!D$13:D$1000)-ROW(Expenses!D$13)+1),ROWS(Expenses!D$13:'Expenses'!D219))),\"\")","v":""},{"$f":"IFERROR(INDEX(Expenses!E$13:E$1000,SMALL(IF(Expenses!$A$13:$A$1000=$B$3,ROW(Expenses!E$13:E$1000)-ROW(Expenses!E$13)+1),ROWS(Expenses!E$13:'Expenses'!E219))),\"\")","v":""},{"$f":"IFERROR(INDEX(Expenses!F$13:F$1000,SMALL(IF(Expenses!$A$13:$A$1000=$B$3,ROW(Expenses!F$13:F$1000)-ROW(Expenses!F$13)+1),ROWS(Expenses!F$13:'Expenses'!F219))),\"\")","v":""}]
[{"$f":"IFERROR(INDEX(Expenses!A$13:A$1000,SMALL(IF(Expenses!$A$13:$A$1000=$B$3,ROW(Expenses!A$13:A$1000)-ROW(Expenses!A$13)+1),ROWS(Expenses!A$13:'Expenses'!A220))),\"\")","v":""},{"$f":"IFERROR(INDEX(Expenses!B$13:B$1000,SMALL(IF(Expenses!$A$13:$A$1000=$B$3,ROW(Expenses!B$13:B$1000)-ROW(Expenses!B$13)+1),ROWS(Expenses!B$13:'Expenses'!B220))),\"\")","v":""},{"$f":"IFERROR(INDEX(Expenses!D$13:D$1000,SMALL(IF(Expenses!$A$13:$A$1000=$B$3,ROW(Expenses!D$13:D$1000)-ROW(Expenses!D$13)+1),ROWS(Expenses!D$13:'Expenses'!D220))),\"\")","v":""},{"$f":"IFERROR(INDEX(Expenses!E$13:E$1000,SMALL(IF(Expenses!$A$13:$A$1000=$B$3,ROW(Expenses!E$13:E$1000)-ROW(Expenses!E$13)+1),ROWS(Expenses!E$13:'Expenses'!E220))),\"\")","v":""},{"$f":"IFERROR(INDEX(Expenses!F$13:F$1000,SMALL(IF(Expenses!$A$13:$A$1000=$B$3,ROW(Expenses!F$13:F$1000)-ROW(Expenses!F$13)+1),ROWS(Expenses!F$13:'Expenses'!F220))),\"\")","v":""}]
[{"$f":"IFERROR(INDEX(Expenses!A$13:A$1000,SMALL(IF(Expenses!$A$13:$A$1000=$B$3,ROW(Expenses!A$13:A$1000)-ROW(Expenses!A$13)+1),ROWS(Expenses!A$13:'Expenses'!A221))),\"\")","v":""},{"$f":"IFERROR(INDEX(Expenses!B$13:B$1000,SMALL(IF(Expenses!$A$13:$A$1000=$B$3,ROW(Expenses!B$13:B$1000)-ROW(Expenses!B$13)+1),ROWS(Expenses!B$13:'Expenses'!B221))),\"\")","v":""},{"$f":"IFERROR(INDEX(Expenses!D$13:D$1000,SMALL(IF(Expenses!$A$13:$A$1000=$B$3,ROW(Expenses!D$13:D$1000)-ROW(Expenses!D$13)+1),ROWS(Expenses!D$13:'Expenses'!D221))),\"\")","v":""},{"$f":"IFERROR(INDEX(Expenses!E$13:E$1000,SMALL(IF(Expenses!$A$13:$A$1000=$B$3,ROW(Expenses!E$13:E$1000)-ROW(Expenses!E$13)+1),ROWS(Expenses!E$13:'Expenses'!E221))),\"\")","v":""},{"$f":"IFERROR(INDEX(Expenses!F$13:F$1000,SMALL(IF(Expenses!$A$13:$A$1000=$B$3,ROW(Expenses!F$13:F$1000)-ROW(Expenses!F$13)+1),ROWS(Expenses!F$13:'Expenses'!F221))),\"\")","v":""}]
[{"$f":"IFERROR(INDEX(Expenses!A$13:A$1000,SMALL(IF(Expenses!$A$13:$A$1000=$B$3,ROW(Expenses!A$13:A$1000)-ROW(Expenses!A$13)+1),ROWS(Expenses!A$13:'Expenses'!A222))),\"\")","v":""},{"$f":"IFERROR(INDEX(Expenses!B$13:B$1000,SMALL(IF(Expenses!$A$13:$A$1000=$B$3,ROW(Expenses!B$13:B$1000)-ROW(Expenses!B$13)+1),ROWS(Expenses!B$13:'Expenses'!B222))),\"\")","v":""},{"$f":"IFERROR(INDEX(Expenses!D$13:D$1000,SMALL(IF(Expenses!$A$13:$A$1000=$B$3,ROW(Expenses!D$13:D$1000)-ROW(Expenses!D$13)+1),ROWS(Expenses!D$13:'Expenses'!D222))),\"\")","v":""},{"$f":"IFERROR(INDEX(Expenses!E$13:E$1000,SMALL(IF(Expenses!$A$13:$A$1000=$B$3,ROW(Expenses!E$13:E$1000)-ROW(Expenses!E$13)+1),ROWS(Expenses!E$13:'Expenses'!E222))),\"\")","v":""},{"$f":"IFERROR(INDEX(Expenses!F$13:F$1000,SMALL(IF(Expenses!$A$13:$A$1000=$B$3,ROW(Expenses!F$13:F$1000)-ROW(Expenses!F$13)+1),ROWS(Expenses!F$13:'Expenses'!F222))),\"\")","v":""}]
[{"$f":"IFERROR(INDEX(Expenses!A$13:A$1000,SMALL(IF(Expenses!$A$13:$A$1000=$B$3,ROW(Expenses!A$13:A$1000)-ROW(Expenses!A$13)+1),ROWS(Expenses!A$13:'Expenses'!A223))),\"\")","v":""},{"$f":"IFERROR(INDEX(Expenses!B$13:B$1000,SMALL(IF(Expenses!$A$13:$A$1000=$B$3,ROW(Expenses!B$13:B$1000)-ROW(Expenses!B$13)+1),ROWS(Expenses!B$13:'Expenses'!B223))),\"\")","v":""},{"$f":"IFERROR(INDEX(Expenses!D$13:D$1000,SMALL(IF(Expenses!$A$13:$A$1000=$B$3,ROW(Expenses!D$13:D$1000)-ROW(Expenses!D$13)+1),ROWS(Expenses!D$13:'Expenses'!D223))),\"\")","v":""},{"$f":"IFERROR(INDEX(Expenses!E$13:E$1000,SMALL(IF(Expenses!$A$13:$A$1000=$B$3,ROW(Expenses!E$13:E$1000)-ROW(Expenses!E$13)+1),ROWS(Expenses!E$13:'Expenses'!E223))),\"\")","v":""},{"$f":"IFERROR(INDEX(Expenses!F$13:F$1000,SMALL(IF(Expenses!$A$13:$A$1000=$B$3,ROW(Expenses!F$13:F$1000)-ROW(Expenses!F$13)+1),ROWS(Expenses!F$13:'Expenses'!F223))),\"\")","v":""}]
[{"$f":"IFERROR(INDEX(Expenses!A$13:A$1000,SMALL(IF(Expenses!$A$13:$A$1000=$B$3,ROW(Expenses!A$13:A$1000)-ROW(Expenses!A$13)+1),ROWS(Expenses!A$13:'Expenses'!A224))),\"\")","v":""},{"$f":"IFERROR(INDEX(Expenses!B$13:B$1000,SMALL(IF(Expenses!$A$13:$A$1000=$B$3,ROW(Expenses!B$13:B$1000)-ROW(Expenses!B$13)+1),ROWS(Expenses!B$13:'Expenses'!B224))),\"\")","v":""},{"$f":"IFERROR(INDEX(Expenses!D$13:D$1000,SMALL(IF(Expenses!$A$13:$A$1000=$B$3,ROW(Expenses!D$13:D$1000)-ROW(Expenses!D$13)+1),ROWS(Expenses!D$13:'Expenses'!D224))),\"\")","v":""},{"$f":"IFERROR(INDEX(Expenses!E$13:E$1000,SMALL(IF(Expenses!$A$13:$A$1000=$B$3,ROW(Expenses!E$13:E$1000)-ROW(Expenses!E$13)+1),ROWS(Expenses!E$13:'Expenses'!E224))),\"\")","v":""},{"$f":"IFERROR(INDEX(Expenses!F$13:F$1000,SMALL(IF(Expenses!$A$13:$A$1000=$B$3,ROW(Expenses!F$13:F$1000)-ROW(Expenses!F$13)+1),ROWS(Expenses!F$13:'Expenses'!F224))),\"\")","v":""}]
[{"$f":"IFERROR(INDEX(Expenses!A$13:A$1000,SMALL(IF(Expenses!$A$13:$A$1000=$B$3,ROW(Expenses!A$13:A$1000)-ROW(Expenses!A$13)+1),ROWS(Expenses!A$13:'Expenses'!A225))),\"\")","v":""},{"$f":"IFERROR(INDEX(Expenses!B$13:B$1000,SMALL(IF(Expenses!$A$13:$A$1000=$B$3,ROW(Expenses!B$13:B$1000)-ROW(Expenses!B$13)+1),ROWS(Expenses!B$13:'Expenses'!B225))),\"\")","v":""},{"$f":"IFERROR(INDEX(Expenses!D$13:D$1000,SMALL(IF(Expenses!$A$13:$A$1000=$B$3,ROW(Expenses!D$13:D$1000)-ROW(Expenses!D$13)+1),ROWS(Expenses!D$13:'Expenses'!D225))),\"\")","v":""},{"$f":"IFERROR(INDEX(Expenses!E$13:E$1000,SMALL(IF(Expenses!$A$13:$A$1000=$B$3,ROW(Expenses!E$13:E$1000)-ROW(Expenses!E$13)+1),ROWS(Expenses!E$13:'Expenses'!E225))),\"\")","v":""},{"$f":"IFERROR(INDEX(Expenses!F$13:F$1000,SMALL(IF(Expenses!$A$13:$A$1000=$B$3,ROW(Expenses!F$13:F$1000)-ROW(Expenses!F$13)+1),ROWS(Expenses!F$13:'Expenses'!F225))),\"\")","v":""}]
[{"$f":"IFERROR(INDEX(Expenses!A$13:A$1000,SMALL(IF(Expenses!$A$13:$A$1000=$B$3,ROW(Expenses!A$13:A$1000)-ROW(Expenses!A$13)+1),ROWS(Expenses!A$13:'Expenses'!A226))),\"\")","v":""},{"$f":"IFERROR(INDEX(Expenses!B$13:B$1000,SMALL(IF(Expenses!$A$13:$A$1000=$B$3,ROW(Expenses!B$13:B$1000)-ROW(Expenses!B$13)+1),ROWS(Expenses!B$13:'Expenses'!B226))),\"\")","v":""},{"$f":"IFERROR(INDEX(Expenses!D$13:D$1000,SMALL(IF(Expenses!$A$13:$A$1000=$B$3,ROW(Expenses!D$13:D$1000)-ROW(Expenses!D$13)+1),ROWS(Expenses!D$13:'Expenses'!D226))),\"\")","v":""},{"$f":"IFERROR(INDEX(Expenses!E$13:E$1000,SMALL(IF(Expenses!$A$13:$A$1000=$B$3,ROW(Expenses!E$13:E$1000)-ROW(Expenses!E$13)+1),ROWS(Expenses!E$13:'Expenses'!E226))),\"\")","v":""},{"$f":"IFERROR(INDEX(Expenses!F$13:F$1000,SMALL(IF(Expenses!$A$13:$A$1000=$B$3,ROW(Expenses!F$13:F$1000)-ROW(Expenses!F$13)+1),ROWS(Expenses!F$13:'Expenses'!F226))),\"\")","v":""}]
[{"$f":"IFERROR(INDEX(Expenses!A$13:A$1000,SMALL(IF(Expenses!$A$13:$A$1000=$B$3,ROW(Expenses!A$13:A$1000)-ROW(Expenses!A$13)+1),ROWS(Expenses!A$13:'Expenses'!A227))),\"\")","v":""},{"$f":"IFERROR(INDEX(Expenses!B$13:B$1000,SMALL(IF(Expenses!$A$13:$A$1000=$B$3,ROW(Expenses!B$13:B$1000)-ROW(Expenses!B$13)+1),ROWS(Expenses!B$13:'Expenses'!B227))),\"\")","v":""},{"$f":"IFERROR(INDEX(Expenses!D$13:D$1000,SMALL(IF(Expenses!$A$13:$A$1000=$B$3,ROW(Expenses!D$13:D$1000)-ROW(Expenses!D$13)+1),ROWS(Expenses!D$13:'Expenses'!D227))),\"\")","v":""},{"$f":"IFERROR(INDEX(Expenses!E$13:E$1000,SMALL(IF(Expenses!$A$13:$A$1000=$B$3,ROW(Expenses!E$13:E$1000)-ROW(Expenses!E$13)+1),ROWS(Expenses!E$13:'Expenses'!E227))),\"\")","v":""},{"$f":"IFERROR(INDEX(Expenses!F$13:F$1000,SMALL(IF(Expenses!$A$13:$A$1000=$B$3,ROW(Expenses!F$13:F$1000)-ROW(Expenses!F$13)+1),ROWS(Expenses!F$13:'Expenses'!F227))),\"\")","v":""}]
[{"$f":"IFERROR(INDEX(Expenses!A$13:A$1000,SMALL(IF(Expenses!$A$13:$A$1000=$B$3,ROW(Expenses!A$13:A$1000)-ROW(Expenses!A$13)+1),ROWS(Expenses!A$13:'Expenses'!A228))),\"\")","v":""},{"$f":"IFERROR(INDEX(Expenses!B$13:B$1000,SMALL(IF(Expenses!$A$13:$A$1000=$B$3,ROW(Expenses!B$13:B$1000)-ROW(Expenses!B$13)+1),ROWS(Expenses!B$13:'Expenses'!B228))),\"\")","v":""},{"$f":"IFERROR(INDEX(Expenses!D$13:D$1000,SMALL(IF(Expenses!$A$13:$A$1000=$B$3,ROW(Expenses!D$13:D$1000)-ROW(Expenses!D$13)+1),ROWS(Expenses!D$13:'Expenses'!D228))),\"\")","v":""},{"$f":"IFERROR(INDEX(Expenses!E$13:E$1000,SMALL(IF(Expenses!$A$13:$A$1000=$B$3,ROW(Expenses!E$13:E$1000)-ROW(Expenses!E$13)+1),ROWS(Expenses!E$13:'Expenses'!E228))),\"\")","v":""},{"$f":"IFERROR(INDEX(Expenses!F$13:F$1000,SMALL(IF(Expenses!$A$13:$A$1000=$B$3,ROW(Expenses!F$13:F$1000)-ROW(Expenses!F$13)+1),ROWS(Expenses!F$13:'Expenses'!F228))),\"\")","v":""}]
[{"$f":"IFERROR(INDEX(Expenses!A$13:A$1000,SMALL(IF(Expenses!$A$13:$A$1000=$B$3,ROW(Expenses!A$13:A$1000)-ROW(Expenses!A$13)+1),ROWS(Expenses!A$13:'Expenses'!A229))),\"\")","v":""},{"$f":"IFERROR(INDEX(Expenses!B$13:B$1000,SMALL(IF(Expenses!$A$13:$A$1000=$B$3,ROW(Expenses!B$13:B$1000)-ROW(Expenses!B$13)+1),ROWS(Expenses!B$13:'Expenses'!B229))),\"\")","v":""},{"$f":"IFERROR(INDEX(Expenses!D$13:D$1000,SMALL(IF(Expenses!$A$13:$A$1000=$B$3,ROW(Expenses!D$13:D$1000)-ROW(Expenses!D$13)+1),ROWS(Expenses!D$13:'Expenses'!D229))),\"\")","v":""},{"$f":"IFERROR(INDEX(Expenses!E$13:E$1000,SMALL(IF(Expenses!$A$13:$A$1000=$B$3,ROW(Expenses!E$13:E$1000)-ROW(Expenses!E$13)+1),ROWS(Expenses!E$13:'Expenses'!E229))),\"\")","v":""},{"$f":"IFERROR(INDEX(Expenses!F$13:F$1000,SMALL(IF(Expenses!$A$13:$A$1000=$B$3,ROW(Expenses!F$13:F$1000)-ROW(Expenses!F$13)+1),ROWS(Expenses!F$13:'Expenses'!F229))),\"\")","v":""}]
[{"$f":"IFERROR(INDEX(Expenses!A$13:A$1000,SMALL(IF(Expenses!$A$13:$A$1000=$B$3,ROW(Expenses!A$13:A$1000)-ROW(Expenses!A$13)+1),ROWS(Expenses!A$13:'Expenses'!A230))),\"\")","v":""},{"$f":"IFERROR(INDEX(Expenses!B$13:B$1000,SMALL(IF(Expenses!$A$13:$A$1000=$B$3,ROW(Expenses!B$13:B$1000)-ROW(Expenses!B$13)+1),ROWS(Expenses!B$13:'Expenses'!B230))),\"\")","v":""},{"$f":"IFERROR(INDEX(Expenses!D$13:D$1000,SMALL(IF(Expenses!$A$13:$A$1000=$B$3,ROW(Expenses!D$13:D$1000)-ROW(Expenses!D$13)+1),ROWS(Expenses!D$13:'Expenses'!D230))),\"\")","v":""},{"$f":"IFERROR(INDEX(Expenses!E$13:E$1000,SMALL(IF(Expenses!$A$13:$A$1000=$B$3,ROW(Expenses!E$13:E$1000)-ROW(Expenses!E$13)+1),ROWS(Expenses!E$13:'Expenses'!E230))),\"\")","v":""},{"$f":"IFERROR(INDEX(Expenses!F$13:F$1000,SMALL(IF(Expenses!$A$13:$A$1000=$B$3,ROW(Expenses!F$13:F$1000)-ROW(Expenses!F$13)+1),ROWS(Expenses!F$13:'Expenses'!F230))),\"\")","v":""}]
[{"$f":"IFERROR(INDEX(Expenses!A$13:A$1000,SMALL(IF(Expenses!$A$13:$A$1000=$B$3,ROW(Expenses!A$13:A$1000)-ROW(Expenses!A$13)+1),ROWS(Expenses!A$13:'Expenses'!A231))),\"\")","v":""},{"$f":"IFERROR(INDEX(Expenses!B$13:B$1000,SMALL(IF(Expenses!$A$13:$A$1000=$B$3,ROW(Expenses!B$13:B$1000)-ROW(Expenses!B$13)+1),ROWS(Expenses!B$13:'Expenses'!B231))),\"\")","v":""},{"$f":"IFERROR(INDEX(Expenses!D$13:D$1000,SMALL(IF(Expenses!$A$13:$A$1000=$B$3,ROW(Expenses!D$13:D$1000)-ROW(Expenses!D$13)+1),ROWS(Expenses!D$13:'Expenses'!D231))),\"\")","v":""},{"$f":"IFERROR(INDEX(Expenses!E$13:E$1000,SMALL(IF(Expenses!$A$13:$A$1000=$B$3,ROW(Expenses!E$13:E$1000)-ROW(Expenses!E$13)+1),ROWS(Expenses!E$13:'Expenses'!E231))),\"\")","v":""},{"$f":"IFERROR(INDEX(Expenses!F$13:F$1000,SMALL(IF(Expenses!$A$13:$A$1000=$B$3,ROW(Expenses!F$13:F$1000)-ROW(Expenses!F$13)+1),ROWS(Expenses!F$13:'Expenses'!F231))),\"\")","v":""}]
[{"$f":"IFERROR(INDEX(Expenses!A$13:A$1000,SMALL(IF(Expenses!$A$13:$A$1000=$B$3,ROW(Expenses!A$13:A$1000)-ROW(Expenses!A$13)+1),ROWS(Expenses!A$13:'Expenses'!A232))),\"\")","v":""},{"$f":"IFERROR(INDEX(Expenses!B$13:B$1000,SMALL(IF(Expenses!$A$13:$A$1000=$B$3,ROW(Expenses!B$13:B$1000)-ROW(Expenses!B$13)+1),ROWS(Expenses!B$13:'Expenses'!B232))),\"\")","v":""},{"$f":"IFERROR(INDEX(Expenses!D$13:D$1000,SMALL(IF(Expenses!$A$13:$A$1000=$B$3,ROW(Expenses!D$13:D$1000)-ROW(Expenses!D$13)+1),ROWS(Expenses!D$13:'Expenses'!D232))),\"\")","v":""},{"$f":"IFERROR(INDEX(Expenses!E$13:E$1000,SMALL(IF(Expenses!$A$13:$A$1000=$B$3,ROW(Expenses!E$13:E$1000)-ROW(Expenses!E$13)+1),ROWS(Expenses!E$13:'Expenses'!E232))),\"\")","v":""},{"$f":"IFERROR(INDEX(Expenses!F$13:F$1000,SMALL(IF(Expenses!$A$13:$A$1000=$B$3,ROW(Expenses!F$13:F$1000)-ROW(Expenses!F$13)+1),ROWS(Expenses!F$13:'Expenses'!F232))),\"\")","v":""}]
[{"$f":"IFERROR(INDEX(Expenses!A$13:A$1000,SMALL(IF(Expenses!$A$13:$A$1000=$B$3,ROW(Expenses!A$13:A$1000)-ROW(Expenses!A$13)+1),ROWS(Expenses!A$13:'Expenses'!A233))),\"\")","v":""},{"$f":"IFERROR(INDEX(Expenses!B$13:B$1000,SMALL(IF(Expenses!$A$13:$A$1000=$B$3,ROW(Expenses!B$13:B$1000)-ROW(Expenses!B$13)+1),ROWS(Expenses!B$13:'Expenses'!B233))),\"\")","v":""},{"$f":"IFERROR(INDEX(Expenses!D$13:D$1000,SMALL(IF(Expenses!$A$13:$A$1000=$B$3,ROW(Expenses!D$13:D$1000)-ROW(Expenses!D$13)+1),ROWS(Expenses!D$13:'Expenses'!D233))),\"\")","v":""},{"$f":"IFERROR(INDEX(Expenses!E$13:E$1000,SMALL(IF(Expenses!$A$13:$A$1000=$B$3,ROW(Expenses!E$13:E$1000)-ROW(Expenses!E$13)+1),ROWS(Expenses!E$13:'Expenses'!E233))),\"\")","v":""},{"$f":"IFERROR(INDEX(Expenses!F$13:F$1000,SMALL(IF(Expenses!$A$13:$A$1000=$B$3,ROW(Expenses!F$13:F$1000)-ROW(Expenses!F$13)+1),ROWS(Expenses!F$13:'Expenses'!F233))),\"\")","v":""}]
[{"$f":"IFERROR(INDEX(Expenses!A$13:A$1000,SMALL(IF(Expenses!$A$13:$A$1000=$B$3,ROW(Expenses!A$13:A$1000)-ROW(Expenses!A$13)+1),ROWS(Expenses!A$13:'Expenses'!A234))),\"\")","v":""},{"$f":"IFERROR(INDEX(Expenses!B$13:B$1000,SMALL(IF(Expenses!$A$13:$A$1000=$B$3,ROW(Expenses!B$13:B$1000)-ROW(Expenses!B$13)+1),ROWS(Expenses!B$13:'Expenses'!B234))),\"\")","v":""},{"$f":"IFERROR(INDEX(Expenses!D$13:D$1000,SMALL(IF(Expenses!$A$13:$A$1000=$B$3,ROW(Expenses!D$13:D$1000)-ROW(Expenses!D$13)+1),ROWS(Expenses!D$13:'Expenses'!D234))),\"\")","v":""},{"$f":"IFERROR(INDEX(Expenses!E$13:E$1000,SMALL(IF(Expenses!$A$13:$A$1000=$B$3,ROW(Expenses!E$13:E$1000)-ROW(Expenses!E$13)+1),ROWS(Expenses!E$13:'Expenses'!E234))),\"\")","v":""},{"$f":"IFERROR(INDEX(Expenses!F$13:F$1000,SMALL(IF(Expenses!$A$13:$A$1000=$B$3,ROW(Expenses!F$13:F$1000)-ROW(Expenses!F$13)+1),ROWS(Expenses!F$13:'Expenses'!F234))),\"\")","v":""}]
[{"$f":"IFERROR(INDEX(Expenses!A$13:A$1000,SMALL(IF(Expenses!$A$13:$A$1000=$B$3,ROW(Expenses!A$13:A$1000)-ROW(Expenses!A$13)+1),ROWS(Expenses!A$13:'Expenses'!A235))),\"\")","v":""},{"$f":"IFERROR(INDEX(Expenses!B$13:B$1000,SMALL(IF(Expenses!$A$13:$A$1000=$B$3,ROW(Expenses!B$13:B$1000)-ROW(Expenses!B$13)+1),ROWS(Expenses!B$13:'Expenses'!B235))),\"\")","v":""},{"$f":"IFERROR(INDEX(Expenses!D$13:D$1000,SMALL(IF(Expenses!$A$13:$A$1000=$B$3,ROW(Expenses!D$13:D$1000)-ROW(Expenses!D$13)+1),ROWS(Expenses!D$13:'Expenses'!D235))),\"\")","v":""},{"$f":"IFERROR(INDEX(Expenses!E$13:E$1000,SMALL(IF(Expenses!$A$13:$A$1000=$B$3,ROW(Expenses!E$13:E$1000)-ROW(Expenses!E$13)+1),ROWS(Expenses!E$13:'Expenses'!E235))),\"\")","v":""},{"$f":"IFERROR(INDEX(Expenses!F$13:F$1000,SMALL(IF(Expenses!$A$13:$A$1000=$B$3,ROW(Expenses!F$13:F$1000)-ROW(Expenses!F$13)+1),ROWS(Expenses!F$13:'Expenses'!F235))),\"\")","v":""}]
[{"$f":"IFERROR(INDEX(Expenses!A$13:A$1000,SMALL(IF(Expenses!$A$13:$A$1000=$B$3,ROW(Expenses!A$13:A$1000)-ROW(Expenses!A$13)+1),ROWS(Expenses!A$13:'Expenses'!A236))),\"\")","v":""},{"$f":"IFERROR(INDEX(Expenses!B$13:B$1000,SMALL(IF(Expenses!$A$13:$A$1000=$B$3,ROW(Expenses!B$13:B$1000)-ROW(Expenses!B$13)+1),ROWS(Expenses!B$13:'Expenses'!B236))),\"\")","v":""},{"$f":"IFERROR(INDEX(Expenses!D$13:D$1000,SMALL(IF(Expenses!$A$13:$A$1000=$B$3,ROW(Expenses!D$13:D$1000)-ROW(Expenses!D$13)+1),ROWS(Expenses!D$13:'Expenses'!D236))),\"\")","v":""},{"$f":"IFERROR(INDEX(Expenses!E$13:E$1000,SMALL(IF(Expenses!$A$13:$A$1000=$B$3,ROW(Expenses!E$13:E$1000)-ROW(Expenses!E$13)+1),ROWS(Expenses!E$13:'Expenses'!E236))),\"\")","v":""},{"$f":"IFERROR(INDEX(Expenses!F$13:F$1000,SMALL(IF(Expenses!$A$13:$A$1000=$B$3,ROW(Expenses!F$13:F$1000)-ROW(Expenses!F$13)+1),ROWS(Expenses!F$13:'Expenses'!F236))),\"\")","v":""}]
[{"$f":"IFERROR(INDEX(Expenses!A$13:A$1000,SMALL(IF(Expenses!$A$13:$A$1000=$B$3,ROW(Expenses!A$13:A$1000)-ROW(Expenses!A$13)+1),ROWS(Expenses!A$13:'Expenses'!A237))),\"\")","v":""},{"$f":"IFERROR(INDEX(Expenses!B$13:B$1000,SMALL(IF(Expenses!$A$13:$A$1000=$B$3,ROW(Expenses!B$13:B$1000)-ROW(Expenses!B$13)+1),ROWS(Expenses!B$13:'Expenses'!B237))),\"\")","v":""},{"$f":"IFERROR(INDEX(Expenses!D$13:D$1000,SMALL(IF(Expenses!$A$13:$A$1000=$B$3,ROW(Expenses!D$13:D$1000)-ROW(Expenses!D$13)+1),ROWS(Expenses!D$13:'Expenses'!D237))),\"\")","v":""},{"$f":"IFERROR(INDEX(Expenses!E$13:E$1000,SMALL(IF(Expenses!$A$13:$A$1000=$B$3,ROW(Expenses!E$13:E$1000)-ROW(Expenses!E$13)+1),ROWS(Expenses!E$13:'Expenses'!E237))),\"\")","v":""},{"$f":"IFERROR(INDEX(Expenses!F$13:F$1000,SMALL(IF(Expenses!$A$13:$A$1000=$B$3,ROW(Expenses!F$13:F$1000)-ROW(Expenses!F$13)+1),ROWS(Expenses!F$13:'Expenses'!F237))),\"\")","v":""}]
[{"$f":"IFERROR(INDEX(Expenses!A$13:A$1000,SMALL(IF(Expenses!$A$13:$A$1000=$B$3,ROW(Expenses!A$13:A$1000)-ROW(Expenses!A$13)+1),ROWS(Expenses!A$13:'Expenses'!A238))),\"\")","v":""},{"$f":"IFERROR(INDEX(Expenses!B$13:B$1000,SMALL(IF(Expenses!$A$13:$A$1000=$B$3,ROW(Expenses!B$13:B$1000)-ROW(Expenses!B$13)+1),ROWS(Expenses!B$13:'Expenses'!B238))),\"\")","v":""},{"$f":"IFERROR(INDEX(Expenses!D$13:D$1000,SMALL(IF(Expenses!$A$13:$A$1000=$B$3,ROW(Expenses!D$13:D$1000)-ROW(Expenses!D$13)+1),ROWS(Expenses!D$13:'Expenses'!D238))),\"\")","v":""},{"$f":"IFERROR(INDEX(Expenses!E$13:E$1000,SMALL(IF(Expenses!$A$13:$A$1000=$B$3,ROW(Expenses!E$13:E$1000)-ROW(Expenses!E$13)+1),ROWS(Expenses!E$13:'Expenses'!E238))),\"\")","v":""},{"$f":"IFERROR(INDEX(Expenses!F$13:F$1000,SMALL(IF(Expenses!$A$13:$A$1000=$B$3,ROW(Expenses!F$13:F$1000)-ROW(Expenses!F$13)+1),ROWS(Expenses!F$13:'Expenses'!F238))),\"\")","v":""}]
[{"$f":"IFERROR(INDEX(Expenses!A$13:A$1000,SMALL(IF(Expenses!$A$13:$A$1000=$B$3,ROW(Expenses!A$13:A$1000)-ROW(Expenses!A$13)+1),ROWS(Expenses!A$13:'Expenses'!A239))),\"\")","v":""},{"$f":"IFERROR(INDEX(Expenses!B$13:B$1000,SMALL(IF(Expenses!$A$13:$A$1000=$B$3,ROW(Expenses!B$13:B$1000)-ROW(Expenses!B$13)+1),ROWS(Expenses!B$13:'Expenses'!B239))),\"\")","v":""},{"$f":"IFERROR(INDEX(Expenses!D$13:D$1000,SMALL(IF(Expenses!$A$13:$A$1000=$B$3,ROW(Expenses!D$13:D$1000)-ROW(Expenses!D$13)+1),ROWS(Expenses!D$13:'Expenses'!D239))),\"\")","v":""},{"$f":"IFERROR(INDEX(Expenses!E$13:E$1000,SMALL(IF(Expenses!$A$13:$A$1000=$B$3,ROW(Expenses!E$13:E$1000)-ROW(Expenses!E$13)+1),ROWS(Expenses!E$13:'Expenses'!E239))),\"\")","v":""},{"$f":"IFERROR(INDEX(Expenses!F$13:F$1000,SMALL(IF(Expenses!$A$13:$A$1000=$B$3,ROW(Expenses!F$13:F$1000)-ROW(Expenses!F$13)+1),ROWS(Expenses!F$13:'Expenses'!F239))),\"\")","v":""}]
[{"$f":"IFERROR(INDEX(Expenses!A$13:A$1000,SMALL(IF(Expenses!$A$13:$A$1000=$B$3,ROW(Expenses!A$13:A$1000)-ROW(Expenses!A$13)+1),ROWS(Expenses!A$13:'Expenses'!A240))),\"\")","v":""},{"$f":"IFERROR(INDEX(Expenses!B$13:B$1000,SMALL(IF(Expenses!$A$13:$A$1000=$B$3,ROW(Expenses!B$13:B$1000)-ROW(Expenses!B$13)+1),ROWS(Expenses!B$13:'Expenses'!B240))),\"\")","v":""},{"$f":"IFERROR(INDEX(Expenses!D$13:D$1000,SMALL(IF(Expenses!$A$13:$A$1000=$B$3,ROW(Expenses!D$13:D$1000)-ROW(Expenses!D$13)+1),ROWS(Expenses!D$13:'Expenses'!D240))),\"\")","v":""},{"$f":"IFERROR(INDEX(Expenses!E$13:E$1000,SMALL(IF(Expenses!$A$13:$A$1000=$B$3,ROW(Expenses!E$13:E$1000)-ROW(Expenses!E$13)+1),ROWS(Expenses!E$13:'Expenses'!E240))),\"\")","v":""},{"$f":"IFERROR(INDEX(Expenses!F$13:F$1000,SMALL(IF(Expenses!$A$13:$A$1000=$B$3,ROW(Expenses!F$13:F$1000)-ROW(Expenses!F$13)+1),ROWS(Expenses!F$13:'Expenses'!F240))),\"\")","v":""}]
[{"$f":"IFERROR(INDEX(Expenses!A$13:A$1000,SMALL(IF(Expenses!$A$13:$A$1000=$B$3,ROW(Expenses!A$13:A$1000)-ROW(Expenses!A$13)+1),ROWS(Expenses!A$13:'Expenses'!A241))),\"\")","v":""},{"$f":"IFERROR(INDEX(Expenses!B$13:B$1000,SMALL(IF(Expenses!$A$13:$A$1000=$B$3,ROW(Expenses!B$13:B$1000)-ROW(Expenses!B$13)+1),ROWS(Expenses!B$13:'Expenses'!B241))),\"\")","v":""},{"$f":"IFERROR(INDEX(Expenses!D$13:D$1000,SMALL(IF(Expenses!$A$13:$A$1000=$B$3,ROW(Expenses!D$13:D$1000)-ROW(Expenses!D$13)+1),ROWS(Expenses!D$13:'Expenses'!D241))),\"\")","v":""},{"$f":"IFERROR(INDEX(Expenses!E$13:E$1000,SMALL(IF(Expenses!$A$13:$A$1000=$B$3,ROW(Expenses!E$13:E$1000)-ROW(Expenses!E$13)+1),ROWS(Expenses!E$13:'Expenses'!E241))),\"\")","v":""},{"$f":"IFERROR(INDEX(Expenses!F$13:F$1000,SMALL(IF(Expenses!$A$13:$A$1000=$B$3,ROW(Expenses!F$13:F$1000)-ROW(Expenses!F$13)+1),ROWS(Expenses!F$13:'Expenses'!F241))),\"\")","v":""}]
[{"$f":"IFERROR(INDEX(Expenses!A$13:A$1000,SMALL(IF(Expenses!$A$13:$A$1000=$B$3,ROW(Expenses!A$13:A$1000)-ROW(Expenses!A$13)+1),ROWS(Expenses!A$13:'Expenses'!A242))),\"\")","v":""},{"$f":"IFERROR(INDEX(Expenses!B$13:B$1000,SMALL(IF(Expenses!$A$13:$A$1000=$B$3,ROW(Expenses!B$13:B$1000)-ROW(Expenses!B$13)+1),ROWS(Expenses!B$13:'Expenses'!B242))),\"\")","v":""},{"$f":"IFERROR(INDEX(Expenses!D$13:D$1000,SMALL(IF(Expenses!$A$13:$A$1000=$B$3,ROW(Expenses!D$13:D$1000)-ROW(Expenses!D$13)+1),ROWS(Expenses!D$13:'Expenses'!D242))),\"\")","v":""},{"$f":"IFERROR(INDEX(Expenses!E$13:E$1000,SMALL(IF(Expenses!$A$13:$A$1000=$B$3,ROW(Expenses!E$13:E$1000)-ROW(Expenses!E$13)+1),ROWS(Expenses!E$13:'Expenses'!E242))),\"\")","v":""},{"$f":"IFERROR(INDEX(Expenses!F$13:F$1000,SMALL(IF(Expenses!$A$13:$A$1000=$B$3,ROW(Expenses!F$13:F$1000)-ROW(Expenses!F$13)+1),ROWS(Expenses!F$13:'Expenses'!F242))),\"\")","v":""}]
[{"$f":"IFERROR(INDEX(Expenses!A$13:A$1000,SMALL(IF(Expenses!$A$13:$A$1000=$B$3,ROW(Expenses!A$13:A$1000)-ROW(Expenses!A$13)+1),ROWS(Expenses!A$13:'Expenses'!A243))),\"\")","v":""},{"$f":"IFERROR(INDEX(Expenses!B$13:B$1000,SMALL(IF(Expenses!$A$13:$A$1000=$B$3,ROW(Expenses!B$13:B$1000)-ROW(Expenses!B$13)+1),ROWS(Expenses!B$13:'Expenses'!B243))),\"\")","v":""},{"$f":"IFERROR(INDEX(Expenses!D$13:D$1000,SMALL(IF(Expenses!$A$13:$A$1000=$B$3,ROW(Expenses!D$13:D$1000)-ROW(Expenses!D$13)+1),ROWS(Expenses!D$13:'Expenses'!D243))),\"\")","v":""},{"$f":"IFERROR(INDEX(Expenses!E$13:E$1000,SMALL(IF(Expenses!$A$13:$A$1000=$B$3,ROW(Expenses!E$13:E$1000)-ROW(Expenses!E$13)+1),ROWS(Expenses!E$13:'Expenses'!E243))),\"\")","v":""},{"$f":"IFERROR(INDEX(Expenses!F$13:F$1000,SMALL(IF(Expenses!$A$13:$A$1000=$B$3,ROW(Expenses!F$13:F$1000)-ROW(Expenses!F$13)+1),ROWS(Expenses!F$13:'Expenses'!F243))),\"\")","v":""}]
[{"$f":"IFERROR(INDEX(Expenses!A$13:A$1000,SMALL(IF(Expenses!$A$13:$A$1000=$B$3,ROW(Expenses!A$13:A$1000)-ROW(Expenses!A$13)+1),ROWS(Expenses!A$13:'Expenses'!A244))),\"\")","v":""},{"$f":"IFERROR(INDEX(Expenses!B$13:B$1000,SMALL(IF(Expenses!$A$13:$A$1000=$B$3,ROW(Expenses!B$13:B$1000)-ROW(Expenses!B$13)+1),ROWS(Expenses!B$13:'Expenses'!B244))),\"\")","v":""},{"$f":"IFERROR(INDEX(Expenses!D$13:D$1000,SMALL(IF(Expenses!$A$13:$A$1000=$B$3,ROW(Expenses!D$13:D$1000)-ROW(Expenses!D$13)+1),ROWS(Expenses!D$13:'Expenses'!D244))),\"\")","v":""},{"$f":"IFERROR(INDEX(Expenses!E$13:E$1000,SMALL(IF(Expenses!$A$13:$A$1000=$B$3,ROW(Expenses!E$13:E$1000)-ROW(Expenses!E$13)+1),ROWS(Expenses!E$13:'Expenses'!E244))),\"\")","v":""},{"$f":"IFERROR(INDEX(Expenses!F$13:F$1000,SMALL(IF(Expenses!$A$13:$A$1000=$B$3,ROW(Expenses!F$13:F$1000)-ROW(Expenses!F$13)+1),ROWS(Expenses!F$13:'Expenses'!F244))),\"\")","v":""}]
[{"$f":"IFERROR(INDEX(Expenses!A$13:A$1000,SMALL(IF(Expenses!$A$13:$A$1000=$B$3,ROW(Expenses!A$13:A$1000)-ROW(Expenses!A$13)+1),ROWS(Expenses!A$13:'Expenses'!A245))),\"\")","v":""},{"$f":"IFERROR(INDEX(Expenses!B$13:B$1000,SMALL(IF(Expenses!$A$13:$A$1000=$B$3,ROW(Expenses!B$13:B$1000)-ROW(Expenses!B$13)+1),ROWS(Expenses!B$13:'Expenses'!B245))),\"\")","v":""},{"$f":"IFERROR(INDEX(Expenses!D$13:D$1000,SMALL(IF(Expenses!$A$13:$A$1000=$B$3,ROW(Expenses!D$13:D$1000)-ROW(Expenses!D$13)+1),ROWS(Expenses!D$13:'Expenses'!D245))),\"\")","v":""},{"$f":"IFERROR(INDEX(Expenses!E$13:E$1000,SMALL(IF(Expenses!$A$13:$A$1000=$B$3,ROW(Expenses!E$13:E$1000)-ROW(Expenses!E$13)+1),ROWS(Expenses!E$13:'Expenses'!E245))),\"\")","v":""},{"$f":"IFERROR(INDEX(Expenses!F$13:F$1000,SMALL(IF(Expenses!$A$13:$A$1000=$B$3,ROW(Expenses!F$13:F$1000)-ROW(Expenses!F$13)+1),ROWS(Expenses!F$13:'Expenses'!F245))),\"\")","v":""}]
[{"$f":"IFERROR(INDEX(Expenses!A$13:A$1000,SMALL(IF(Expenses!$A$13:$A$1000=$B$3,ROW(Expenses!A$13:A$1000)-ROW(Expenses!A$13)+1),ROWS(Expenses!A$13:'Expenses'!A246))),\"\")","v":""},{"$f":"IFERROR(INDEX(Expenses!B$13:B$1000,SMALL(IF(Expenses!$A$13:$A$1000=$B$3,ROW(Expenses!B$13:B$1000)-ROW(Expenses!B$13)+1),ROWS(Expenses!B$13:'Expenses'!B246))),\"\")","v":""},{"$f":"IFERROR(INDEX(Expenses!D$13:D$1000,SMALL(IF(Expenses!$A$13:$A$1000=$B$3,ROW(Expenses!D$13:D$1000)-ROW(Expenses!D$13)+1),ROWS(Expenses!D$13:'Expenses'!D246))),\"\")","v":""},{"$f":"IFERROR(INDEX(Expenses!E$13:E$1000,SMALL(IF(Expenses!$A$13:$A$1000=$B$3,ROW(Expenses!E$13:E$1000)-ROW(Expenses!E$13)+1),ROWS(Expenses!E$13:'Expenses'!E246))),\"\")","v":""},{"$f":"IFERROR(INDEX(Expenses!F$13:F$1000,SMALL(IF(Expenses!$A$13:$A$1000=$B$3,ROW(Expenses!F$13:F$1000)-ROW(Expenses!F$13)+1),ROWS(Expenses!F$13:'Expenses'!F246))),\"\")","v":""}]
[{"$f":"IFERROR(INDEX(Expenses!A$13:A$1000,SMALL(IF(Expenses!$A$13:$A$1000=$B$3,ROW(Expenses!A$13:A$1000)-ROW(Expenses!A$13)+1),ROWS(Expenses!A$13:'Expenses'!A247))),\"\")","v":""},{"$f":"IFERROR(INDEX(Expenses!B$13:B$1000,SMALL(IF(Expenses!$A$13:$A$1000=$B$3,ROW(Expenses!B$13:B$1000)-ROW(Expenses!B$13)+1),ROWS(Expenses!B$13:'Expenses'!B247))),\"\")","v":""},{"$f":"IFERROR(INDEX(Expenses!D$13:D$1000,SMALL(IF(Expenses!$A$13:$A$1000=$B$3,ROW(Expenses!D$13:D$1000)-ROW(Expenses!D$13)+1),ROWS(Expenses!D$13:'Expenses'!D247))),\"\")","v":""},{"$f":"IFERROR(INDEX(Expenses!E$13:E$1000,SMALL(IF(Expenses!$A$13:$A$1000=$B$3,ROW(Expenses!E$13:E$1000)-ROW(Expenses!E$13)+1),ROWS(Expenses!E$13:'Expenses'!E247))),\"\")","v":""},{"$f":"IFERROR(INDEX(Expenses!F$13:F$1000,SMALL(IF(Expenses!$A$13:$A$1000=$B$3,ROW(Expenses!F$13:F$1000)-ROW(Expenses!F$13)+1),ROWS(Expenses!F$13:'Expenses'!F247))),\"\")","v":""}]
[{"$f":"IFERROR(INDEX(Expenses!A$13:A$1000,SMALL(IF(Expenses!$A$13:$A$1000=$B$3,ROW(Expenses!A$13:A$1000)-ROW(Expenses!A$13)+1),ROWS(Expenses!A$13:'Expenses'!A248))),\"\")","v":""},{"$f":"IFERROR(INDEX(Expenses!B$13:B$1000,SMALL(IF(Expenses!$A$13:$A$1000=$B$3,ROW(Expenses!B$13:B$1000)-ROW(Expenses!B$13)+1),ROWS(Expenses!B$13:'Expenses'!B248))),\"\")","v":""},{"$f":"IFERROR(INDEX(Expenses!D$13:D$1000,SMALL(IF(Expenses!$A$13:$A$1000=$B$3,ROW(Expenses!D$13:D$1000)-ROW(Expenses!D$13)+1),ROWS(Expenses!D$13:'Expenses'!D248))),\"\")","v":""},{"$f":"IFERROR(INDEX(Expenses!E$13:E$1000,SMALL(IF(Expenses!$A$13:$A$1000=$B$3,ROW(Expenses!E$13:E$1000)-ROW(Expenses!E$13)+1),ROWS(Expenses!E$13:'Expenses'!E248))),\"\")","v":""},{"$f":"IFERROR(INDEX(Expenses!F$13:F$1000,SMALL(IF(Expenses!$A$13:$A$1000=$B$3,ROW(Expenses!F$13:F$1000)-ROW(Expenses!F$13)+1),ROWS(Expenses!F$13:'Expenses'!F248))),\"\")","v":""}]
[{"$f":"IFERROR(INDEX(Expenses!A$13:A$1000,SMALL(IF(Expenses!$A$13:$A$1000=$B$3,ROW(Expenses!A$13:A$1000)-ROW(Expenses!A$13)+1),ROWS(Expenses!A$13:'Expenses'!A249))),\"\")","v":""},{"$f":"IFERROR(INDEX(Expenses!B$13:B$1000,SMALL(IF(Expenses!$A$13:$A$1000=$B$3,ROW(Expenses!B$13:B$1000)-ROW(Expenses!B$13)+1),ROWS(Expenses!B$13:'Expenses'!B249))),\"\")","v":""},{"$f":"IFERROR(INDEX(Expenses!D$13:D$1000,SMALL(IF(Expenses!$A$13:$A$1000=$B$3,ROW(Expenses!D$13:D$1000)-ROW(Expenses!D$13)+1),ROWS(Expenses!D$13:'Expenses'!D249))),\"\")","v":""},{"$f":"IFERROR(INDEX(Expenses!E$13:E$1000,SMALL(IF(Expenses!$A$13:$A$1000=$B$3,ROW(Expenses!E$13:E$1000)-ROW(Expenses!E$13)+1),ROWS(Expenses!E$13:'Expenses'!E249))),\"\")","v":""},{"$f":"IFERROR(INDEX(Expenses!F$13:F$1000,SMALL(IF(Expenses!$A$13:$A$1000=$B$3,ROW(Expenses!F$13:F$1000)-ROW(Expenses!F$13)+1),ROWS(Expenses!F$13:'Expenses'!F249))),\"\")","v":""}]
[{"$f":"IFERROR(INDEX(Expenses!A$13:A$1000,SMALL(IF(Expenses!$A$13:$A$1000=$B$3,ROW(Expenses!A$13:A$1000)-ROW(Expenses!A$13)+1),ROWS(Expenses!A$13:'Expenses'!A250))),\"\")","v":""},{"$f":"IFERROR(INDEX(Expenses!B$13:B$1000,SMALL(IF(Expenses!$A$13:$A$1000=$B$3,ROW(Expenses!B$13:B$1000)-ROW(Expenses!B$13)+1),ROWS(Expenses!B$13:'Expenses'!B250))),\"\")","v":""},{"$f":"IFERROR(INDEX(Expenses!D$13:D$1000,SMALL(IF(Expenses!$A$13:$A$1000=$B$3,ROW(Expenses!D$13:D$1000)-ROW(Expenses!D$13)+1),ROWS(Expenses!D$13:'Expenses'!D250))),\"\")","v":""},{"$f":"IFERROR(INDEX(Expenses!E$13:E$1000,SMALL(IF(Expenses!$A$13:$A$1000=$B$3,ROW(Expenses!E$13:E$1000)-ROW(Expenses!E$13)+1),ROWS(Expenses!E$13:'Expenses'!E250))),\"\")","v":""},{"$f":"IFERROR(INDEX(Expenses!F$13:F$1000,SMALL(IF(Expenses!$A$13:$A$1000=$B$3,ROW(Expenses!F$13:F$1000)-ROW(Expenses!F$13)+1),ROWS(Expenses!F$13:'Expenses'!F250))),\"\")","v":""}]

{"sheet":"DBE Form","index":5,"n_rows":52,"n_cols":26,"rows_kept":52,"cut":false,"hidden":false,"merged":[[44,21,44,32],[46,21,46,32],[48,21,48,32],[50,0,50,32],[51,0,51,32],[44,4,44,15],[46,4,46,15],[48,4,48,15],[25,15,25,21],[25,25,25,31],[42,4,42,15],[26,15,26,21],[26,25,26,31],[29,15,29,21],[29,25,29,31],[30,15,30,21],[30,25,30,31],[33,15,33,21],[33,25,33,31],[34,15,34,21],[34,25,34,31],[39,0,39,15],[39,17,39,32],[42,21,42,32],[16,14,18,22],[16,24,18,32],[21,15,21,21],[21,25,21,31],[22,15,22,21],[22,25,22,31],[7,5,7,16],[7,21,7,32],[11,9,11,32],[13,11,13,20],[13,23,13,32],[9,9,9,32],[0,0,0,32],[1,0,1,32],[3,0,3,32],[5,0,5,32],[6,5,6,16],[6,21,6,32]]}
["This form is to be completed only if you answered YES to the MBE/WBE question on Draw Form Page 1."]
["Click here if you need to review/change your answer."]
[]
["KIA STATE REVOLVING FUND"]
[]
["DBE UTILIZATION"]
["Borrower Name:",null,null,null,null,{"$f":"'Start Here - Instructions'!B7","v":0},null,null,null,null,null,null,null,null,null,null,null,"KIA Loan #:",null,null,null,{"$f":"'Start Here - Instructions'!B9","v":0}]
["Project Name:",null,null,null,null,{"$f":"'Start Here - Instructions'!B10","v":"[enter Project Title]"},null,null,null,null,null,null,null,null,null,null,null,"Project No:",null,null,null,{"$f":"'Draw Form Page 1'!D4","v":"SX "}]
[]
["Contract Number/Name:"]
[]
["MBE/WBE Contractor Name:"]
[]
["Reporting Period:",null,null,null,null,null,null,null,null,null,"From",null,null,null,null,null,null,null,null,null,null,null,"To"]
[]
[]
[null,null,null,null,null,null,null,null,null,null,null,null,null,null,"Minority\nBusiness Enterprise\n(MBE)",null,null,null,null,null,null,null,null,null,"Women's\n Business Enterprise (WBE)"]
[]
[]
[]
[1,"Construction"]
[null,"Total dollar amount of subcontract:",null,null,null,null,null,null,null,null,null,null,null,null,null,0,null,null,null,null,null,null,null,null,null,0]
[null,"Total dollar amount for this reporting period:",null,null,null,null,null,null,null,null,null,null,null,null,null,0,null,null,null,null,null,null,null,null,null,0]
[]
[2,"Materials/Supplies"]
[null,"Total dollar amount of subcontract:",null,null,null,null,null,null,null,null,null,null,null,null,null,0,null,null,null,null,null,null,null,null,null,0]
[null,"Total dollar amount for this reporting period:",null,null,null,null,null,null,null,null,null,null,null,null,null,0,null,null,null,null,null,null,null,null,null,0]
[]
[3,"Services"]
[null,"Total dollar amount of subcontract:",null,null,null,null,null,null,null,null,null,null,null,null,null,0,null,null,null,null,null,null,null,null,null,0]
[null,"Total dollar amount for this reporting period:",null,null,null,null,null,null,null,null,null,null,null,null,null,0,null,null,null,null,null,null,null,null,null,0]
[]
[4,"Equipment"]
[null,"Total dollar amount of subcontract:",null,null,null,null,null,null,null,null,null,null,null,null,null,0,null,null,null,null,null,null,null,null,null,0]
[null,"Total dollar amount for this reporting period:",null,null,null,null,null,null,null,null,null,null,null,null,null,0,null,null,null,null,null,null,null,null,null,0]
[]
[]
[]
[]
["Contractor",null,null,null,null,null,null,null,null,null,null,null,null,null,null,null,null,"Project Administrator"]
[]
[]
["Signature:",null,null,null,null,null,null,null,null,null,null,null,null,null,null,null,null,"Signature:"]
[]
["Title:",null,null,null,null,null,null,null,null,null,null,null,null,null,null,null,null,"Title:"]
[]
["Phone:",null,null,null,null,null,null,null,null,null,null,null,null,null,null,null,null,"Phone:"]
[]
["Email:",null,null,null,null,null,null,null,null,null,null,null,null,null,null,null,null,"Email:"]
[]
["Click here to go back to Draw Form Page 1."]
["Click here to go back to Instructions."]

{"sheet":"Closeout","index":6,"n_rows":22,"n_cols":22,"rows_kept":22,"cut":false,"hidden":false,"merged":[[17,0,17,8],[19,0,19,8],[1,10,1,17],[8,10,8,17],[8,1,8,8],[9,1,9,8],[11,5,11,7],[12,1,12,7],[13,1,13,7],[14,1,14,7],[7,1,7,8],[0,0,0,8],[1,0,1,8],[2,0,2,8],[3,0,3,8],[5,3,5,5]]}
["Project Closeout"]
["Click here to go back to Instructions.",null,null,null,null,null,null,null,null,null,"Example Closeout Documents for Fund A and Fund F"]
[]
["The project is finally finished and it is time to close the loan. The following is a list of closeout items needed by KIA and DOW:",null,null,null,null,null,null,null,null,null,null,null,null,null,null,null,null,null,null,null,null,"Upon notification of a final inspection by DOW, KIA will request submission of all the closeout items listed above to close out the loan. An Exhibit F and an amortization schedule are prepared by KIA and sent to the loan recipient. The Exhibit F must be signed and returned to KIA. These documents complete the borrowing cycle by establishing the final loan balance and when repayments will be made."]
[]
["Please send the items below to:",null,null,"KIA.SRFCloseout@ky.gov",null,null,null,null,null,null,null,null,null,null,null,null,null,null,null,null,null,"Upon receipt of the closeout information, KIA will prepare and send to the Borrower a cover letter with instructions, the Exhibit F to the Assistance Agreement, and the final amortization schedule. The signed Exhibit F must be returned to KIA. The borrower should retain a copy for their files."]
[]
["u","Initiation of Operations Letter\nThe date of the initiation of operation signifies when the constructed items will be doing what they were designed to do."]
["u","Consulting Engineer's Certificate of Completion\n*must be on letterhead*",null,null,null,null,null,null,null,null,"Example Closeout Documents for Fund B and Fund C"]
["u","Borrower's Certification of Completion\n*must be on letterhead*"]
[]
["Please send the items below with the final draw request to:",null,null,null,null,{"$f":"'Start Here - Instructions'!A37","v":false}]
["u","Final Adjusting Change Order(s), if applicable"]
["u","Record Drawings (aka As-Builts)\nThese can be emailed as a PDF document or saved to a CD and mailed to KIA."]
["u","Release of Lien from Contractor(s)"]
[]
[]
[{"$f":"IF(OR(LEFT('Start Here - Instructions'!B9,1)=\"A\",LEFT('Start Here - Instructions'!B9,1)=\"F\"),V4,V6)","v":"Upon receipt of the closeout information, KIA will prepare and send to the Borrower a cover letter with instructions, the Exhibit F to the Assistance Agreement, and the final amortization schedule. The signed Exhibit F must be returned to KIA. The borrower should retain a copy for their files."}]
[]
["KIA may withhold the greater of $25,000 or 20% from the final draw until all closeout documents have been submitted."]
[]
["*Forms and closeout procedures are subject to change."]

{"sheet":"Davis-Bacon","index":7,"n_rows":19,"n_cols":6,"rows_kept":19,"cut":false,"hidden":false,"merged":[[0,0,0,7],[14,5,14,6],[15,5,15,6],[18,0,18,7]]}
["Davis-Bacon Forms"]
[]
[]
[]
[]
[]
[]
[]
[]
[]
[]
[]
["Davis Bacon Certifications are due within 5 days of the end of the quarter."]
[]
[null,null,null,null,{"$f":"'Start Here - Instructions'!D40","v":"Today is:"},{"$f":"'Start Here - Instructions'!E40","v":"2019-06-27"}]
[null,null,null,null,{"$f":"'Start Here - Instructions'!A41","v":"Your next Davis-Bacon Certification is due on:"},{"$f":"'Start Here - Instructions'!E41","v":"July 5, 2019"}]
[]
[]
["Click here to return to Instructions."]

{"sheet":"American Iron & Steel","index":8,"n_rows":17,"n_cols":2,"rows_kept":17,"cut":false,"hidden":false,"merged":[[5,1,5,7],[0,0,0,8],[2,1,2,7],[16,1,16,7]]}
["American Iron & Steel"]
[]
[null,"Click here to access EPA AIS Guidance"]
[]
[]
[null,"Example Forms"]
[]
[]
[]
[]
[]
[]
[]
[]
[]
[]
[null,"Click here to go back to Draw Form Page 1."]